Workbook

Sheet DatosTablas (hidden)
B3: Departamento | D3: Región | F3: Categoria
B4: AMAZONAS | C4: AMAZONÍA | D4: TODOS | F4: Todas las categorias
B5: CAQUETÁ | C5: AMAZONÍA | D5: AMAZONÍA | F5: ESP
B6: GUAINÍA | C6: AMAZONÍA | D6: CARIBE | F6: 1
B7: GUAVIARE | C7: AMAZONÍA | D7: CENTRAL | F7: 2
B8: PUTUMAYO | C8: AMAZONÍA | D8: EJE_CAFETERO_Y_ANTIOQUIA | F8: 3
B9: VAUPÉS | C9: AMAZONÍA | D9: LLANOS_Y_ORINOQUÍA | F9: 4
B10: ATLÁNTICO | C10: CARIBE | D10: PACÍFICO | F10: 5
B11: BOLÍVAR | C11: CARIBE | D11: SANTANDERES | F11: 6
B12: CESAR | C12: CARIBE | D12: SEA_FLOWER
B13: CÓRDOBA | C13: CARIBE
B14: GUAJIRA | C14: CARIBE
B15: MAGDALENA | C15: CARIBE
B16: SUCRE | C16: CARIBE
B17: BOGOTÁ D.C. | C17: CENTRAL
B18: BOYACÁ | C18: CENTRAL
B19: CUNDINAMARCA | C19: CENTRAL
B20: HUILA | C20: CENTRAL
B21: TOLIMA | C21: CENTRAL
B22: ANTIOQUIA | C22: EJE_CAFETERO_Y_ANTIOQUIA | G22: =32/5 -> 6.4
B23: CALDAS | C23: EJE_CAFETERO_Y_ANTIOQUIA
B24: QUINDÍO | C24: EJE_CAFETERO_Y_ANTIOQUIA
B25: RISARALDA | C25: EJE_CAFETERO_Y_ANTIOQUIA
B26: ARAUCA | C26: LLANOS_Y_ORINOQUÍA
B27: CASANARE | C27: LLANOS_Y_ORINOQUÍA
B28: META | C28: LLANOS_Y_ORINOQUÍA
B29: VICHADA | C29: LLANOS_Y_ORINOQUÍA
B30: CAUCA | C30: PACÍFICO
B31: CHOCÓ | C31: PACÍFICO
B32: NARIÑO | C32: PACÍFICO
B33: VALLE DEL CAUCA | C33: PACÍFICO
B34: NORTE DE SANTANDER | C34: SANTANDERES
B35: SANTANDER | C35: SANTANDERES
B36: SAN ANDRÉS Y PROVIDENCIA | C36: SEA_FLOWER
B47: Cantidad Personas N36 | C47: Total valor deudas N36 | D47: Cantidad Personas J36 | E47: Total valor deudas J36 | F47: Valor total 36 | G47: Cantidad Personas N35 | H47: Total valor deudas N35 | I47: Cantidad Personas J35 | J47: Total valor deudas J35 | K47: Valor total 35

Sheet BaseBDME (hidden)
A1: Datos Entidades | E1: Boletín 37 | J1: Boletín 38
E2: Personas Naturales | G2: Personas Jurídicas | J2: Personas Naturales | L2: Personas Jurídicas | Q2: 1000000
A3: Código CGN | B3: Razón Social | C3: Ámbito | D3: Departamento | E3: Cantidad Personas N37 | F3: Total valor deudas N37 | G3: Cantidad Personas J37 | H3: Total valor deudas J37 | I3: Valor total 37 | J3: Cantidad Personas N38 | K3: Total valor deudas N38 | L3: Cantidad Personas J38 | M3: Total valor deudas J38 | N3: Valor total 38 | Q3: =N4/Q2 -> 0.001150050827
A4: 37217000 | B4: E.S.P. Central Hidroeléctrica de Caldas S.A. | C4: Empresas cotizantes | D4: CALDAS | E4: 53 | F4: 571.694658 | G4: 10 | H4: 387.252593 | I4: =F4+H4 -> 958.947251 | J4: 53 | K4: 545.946869 | L4: 18 | M4: 604.103958 | N4: =K4+M4 -> 1150.050827
A5: 37400000 | B5: E.S.P. Centrales Eléctricas de Norte de Santander S.A. | C5: Empresas cotizantes | D5: ANTIOQUIA | E5: 4 | F5: 202.802796 | G5: 21 | H5: 3060.476243 | I5: =F5+H5 -> 3263.279039 | J5: 64 | K5: 1111.988716 | L5: 26 | M5: 1945.83405 | N5: =K5+M5 -> 3057.822766
A6: 38900000 | B6: E.S.P. Electrificadora Santander S.A. | C6: Empresas cotizantes | D6: ANTIOQUIA | E6: 0 | F6: 0 | G6: 43 | H6: 4954.032794 | I6: 4954.032794 | J6: 0 | K6: 0 | L6: 29 | M6: 989.848006 | N6: 989.848006
A7: 39363000 | B7: E.S.P. Empresa de Energía del Quindío S.A. | C7: Empresas cotizantes | D7: QUINDÍO | E7: 25 | F7: 192.524128 | G7: 2 | H7: 45.281373 | I7: 237.805501 | J7: 17 | K7: 144.403749 | L7: 8 | M7: 362.262699 | N7: 506.666448
A8: 45500000 | B8: Fiduciaria Central S.A. | C8: Empresas cotizantes | D8: ANTIOQUIA | E8: 1 | F8: 18.624389 | G8: 12 | H8: 333.675881 | I8: 352.30027 | J8: 4 | K8: 39.890906 | L8: 32 | M8: 797.59502 | N8: 837.485926
A9: 64500000 | B9: Instituto Tecnológico de Soledad Atlántico | C9: Entidades de gobierno | D9: ATLÁNTICO | E9: 0 | F9: 0 | G9: 6 | H9: 17012.85327 | I9: 17012.85327 | J9: 0 | K9: 0 | L9: 6 | M9: 27082.76996 | N9: 27082.76996
A10: 83300000 | B10: Sociedad Terminal de Transporte Terrestre de Ipiales S.A. | C10: Empresas no cotizantes | D10: NARIÑO | E10: 0 | F10: 0 | G10: 1 | H10: 5.144 | I10: 5.144 | J10: 1 | K10: 6.052 | L10: 1 | M10: 6.563601 | N10: 12.615601
A11: 83400000 | B11: E.S.E. Hospital San Miguel - Santander | C11: Empresas no cotizantes | D11: SANTANDER | E11: 0 | F11: 0 | G11: 2 | H11: 75.138286 | I11: 75.138286 | J11: 0 | K11: 0 | L11: 2 | M11: 73.925136 | N11: 73.925136
A12: 83500000 | B12: E.S.E. Hospital María Angelines - Puerto Leguízamo | C12: Empresas no cotizantes | D12: PUTUMAYO | E12: 0 | F12: 0 | G12: 17 | H12: 1996.150948 | I12: 1996.150948 | J12: 0 | K12: 0 | L12: 0 | M12: 0 | N12: 0
A13: 85800000 | B13: E.S.E. Salud Yopal | C13: Empresas no cotizantes | D13: CASANARE | E13: 0 | F13: 0 | G13: 0 | H13: 0 | I13: 0 | J13: 0 | K13: 0 | L13: 7 | M13: 159.500363 | N13: 159.500363
A14: 86200000 | B14: Empresa Social del Estado Región de Salud Medina | C14: Empresas no cotizantes | D14: CUNDINAMARCA | E14: 0 | F14: 0 | G14: 21 | H14: 2312.339803 | I14: 2312.339803 | J14: 0 | K14: 0 | L14: 14 | M14: 2017.501472 | N14: 2017.501472
A15: 86300000 | B15: E.S.E. Barrancabermeja | C15: Empresas no cotizantes | D15: SANTANDER | E15: 0 | F15: 0 | G15: 4 | H15: 307.181543 | I15: 307.181543 | J15: 0 | K15: 0 | L15: 7 | M15: 478.038466 | N15: 478.038466
A16: 86800000 | B16: E.S.P. Empresa de Servicios Públicos Domiciliarios de Aguazul | C16: Empresas no cotizantes | D16: CASANARE | E16: 7 | F16: 77.4482 | G16: 5 | H16: 118.4722 | I16: 195.9204 | J16: 6 | K16: 80.7858 | L16: 5 | M16: 136.5301 | N16: 217.3159
A17: 86900000 | B17: Centro de Salud Alcides Jiménez Puerto Caicedo | C17: Empresas no cotizantes | D17: PUTUMAYO | E17: 0 | F17: 0 | G17: 15 | H17: 2332.686495 | I17: 2332.686495 | J17: 0 | K17: 0 | L17: 18 | M17: 2022.067852 | N17: 2022.067852
A18: 87200000 | B18: Empresa de Vivienda de Antioquia - VIVA | C18: Entidades de gobierno | D18: ANTIOQUIA | E18: 146 | F18: 2224.88033 | G18: 3 | H18: 787.968632 | I18: 3012.848962 | J18: 136 | K18: 2192.807413 | L18: 0 | M18: 0 | N18: 2192.807413
A19: 87700000 | B19: E.S.E. Hospital San José de Marsella | C19: Empresas no cotizantes | D19: RISARALDA | E19: 0 | F19: 0 | G19: 4 | H19: 172.565756 | I19: 172.565756 | J19: 0 | K19: 0 | L19: 0 | M19: 0 | N19: 0
A20: 88500000 | B20: Empresa Municipal de Vías - Belén de Umbría | C20: Empresas no cotizantes | D20: RISARALDA | E20: 0 | F20: 0 | G20: 3 | H20: 99.506828 | I20: 99.506828 | J20: 0 | K20: 0 | L20: 0 | M20: 0 | N20: 0
A21: 88800000 | B21: Instituto de Tránsito y Transporte de Los Patios | C21: Entidades de gobierno | D21: NORTE DE SANTANDER | E21: 11 | F21: 314.7984 | G21: 0 | H21: 0 | I21: 314.7984 | J21: 5 | K21: 129.292164 | L21: 0 | M21: 0 | N21: 129.292164
A22: 89000000 | B22: Asociación de Municipios del Alto Ariari | C22: Entidades de gobierno | D22: META | E22: 0 | F22: 0 | G22: 6 | H22: 688.054459 | I22: 688.054459 | J22: 0 | K22: 0 | L22: 5 | M22: 659.684983 | N22: 659.684983
A23: 89800000 | B23: E.S.E. Centro de Salud - Ventaquemada | C23: Empresas no cotizantes | D23: BOYACÁ | E23: 0 | F23: 0 | G23: 6 | H23: 508.760412 | I23: 508.760412 | J23: 0 | K23: 0 | L23: 9 | M23: 725.37414 | N23: 725.37414
A24: 89970221 | B24: Coveñas | C24: Entidades de gobierno | D24: SUCRE | E24: 979 | F24: 28575.67744 | G24: 58 | H24: 1739.327528 | I24: 30315.00497 | J24: 1056 | K24: 35702.49222 | L24: 32 | M24: 6951.34518 | N24: 42653.8374
A25: 90000000 | B25: Corporación Prodesarrollo y Seguridad del Municipio de Girardot | C25: Entidades de gobierno | D25: CUNDINAMARCA | E25: 0 | F25: 0 | G25: 1 | H25: 17 | I25: 17 | J25: 0 | K25: 0 | L25: 0 | M25: 0 | N25: 0
A26: 90500000 | B26: E.S.E. Hospital Fronterizo - La Dorada | C26: Empresas no cotizantes | D26: PUTUMAYO | E26: 0 | F26: 0 | G26: 16 | H26: 429.115402 | I26: 429.115402 | J26: 0 | K26: 0 | L26: 19 | M26: 682.627266 | N26: 682.627266
A27: 90600000 | B27: E.S.E. Hospital San Francisco Javier del Municipio de Acevedo | C27: Empresas no cotizantes | D27: HUILA | E27: 0 | F27: 0 | G27: 5 | H27: 850.450164 | I27: 850.450164 | J27: 0 | K27: 0 | L27: 5 | M27: 304.999032 | N27: 304.999032
A28: 90900000 | B28: E.S.E. Centro de Salud Rafael Salgado | C28: Empresas no cotizantes | D28: BOYACÁ | E28: 0 | F28: 0 | G28: 9 | H28: 848.489125 | I28: 848.489125 | J28: 0 | K28: 0 | L28: 10 | M28: 853.197646 | N28: 853.197646
A29: 91100000 | B29: E.S.E. Puesto de Salud de Ciénega | C29: Empresas no cotizantes | D29: BOYACÁ | E29: 0 | F29: 0 | G29: 1 | H29: 97.36298 | I29: 97.36298 | J29: 0 | K29: 0 | L29: 2 | M29: 118.618843 | N29: 118.618843
A30: 91900000 | B30: E.S.E. Santiago de Tunja | C30: Empresas no cotizantes | D30: BOYACÁ | E30: 0 | F30: 0 | G30: 37 | H30: 7499.067106 | I30: 7499.067106 | J30: 0 | K30: 0 | L30: 47 | M30: 10367.02606 | N30: 10367.02606
A31: 92100000 | B31: E.S.E. Hospital Sagrado Corazón de Jesús de la Hormiga | C31: Empresas no cotizantes | D31: PUTUMAYO | E31: 0 | F31: 0 | G31: 11 | H31: 1089.372841 | I31: 1089.372841 | J31: 0 | K31: 0 | L31: 11 | M31: 1089.372841 | N31: 1089.372841
A32: 92200000 | B32: E.S.E. Centro de Salud San Blas | C32: Empresas no cotizantes | D32: BOYACÁ | E32: 0 | F32: 0 | G32: 3 | H32: 128.030857 | I32: 128.030857 | J32: 0 | K32: 0 | L32: 3 | M32: 165.79134 | N32: 165.79134
A33: 92600000 | B33: E.S.E. Centro de Salud de Sáchica | C33: Empresas no cotizantes | D33: BOYACÁ | E33: 0 | F33: 0 | G33: 1 | H33: 304.634136 | I33: 304.634136 | J33: 0 | K33: 0 | L33: 1 | M33: 304.634136 | N33: 304.634136
A34: 92800000 | B34: Gestora Urbana de Ibagué | C34: Entidades de gobierno | D34: TOLIMA | E34: 401 | F34: 8771.365501 | G34: 3 | H34: 71.354588 | I34: 8842.720089 | J34: 430 | K34: 9216.181863 | L34: 2 | M34: 57.703178 | N34: 9273.885041
A35: 93200000 | B35: E.S.E. Salud del Tundama | C35: Empresas no cotizantes | D35: BOYACÁ | E35: 0 | F35: 0 | G35: 5 | H35: 199.149522 | I35: 199.149522 | J35: 0 | K35: 0 | L35: 3 | M35: 163.970646 | N35: 163.970646
A36: 93500000 | B36: Empresa Social del Estado Centro de Salud Santa Rita de Casia | C36: Empresas no cotizantes | D36: BOYACÁ | E36: 0 | F36: 0 | G36: 2 | H36: 116.967902 | I36: 116.967902 | J36: 0 | K36: 0 | L36: 1 | M36: 143.206201 | N36: 143.206201
A37: 93600000 | B37: E.S.E. Prestadora de Servicios de Salud Gustavo Romero Hernández | C37: Empresas no cotizantes | D37: BOYACÁ | E37: 0 | F37: 0 | G37: 2 | H37: 261.277863 | I37: 261.277863 | J37: 0 | K37: 0 | L37: 3 | M37: 268.897323 | N37: 268.897323
A38: 93700000 | B38: E.S.E. Centro de Salud de Motavita | C38: Empresas no cotizantes | D38: BOYACÁ | E38: 0 | F38: 0 | G38: 1 | H38: 212.53914 | I38: 212.53914 | J38: 0 | K38: 0 | L38: 1 | M38: 212.53914 | N38: 212.53914
A39: 93900000 | B39: E.S.E. Hospital San José de Guaduas | C39: Empresas no cotizantes | D39: CUNDINAMARCA | E39: 0 | F39: 0 | G39: 0 | H39: 0 | I39: 0 | J39: 0 | K39: 0 | L39: 1 | M39: 7898.499975 | N39: 7898.499975
A40: 94200000 | B40: U.A.E. Unidad de Licores del Meta | C40: Empresas no cotizantes | D40: META | E40: 2 | F40: 32.682474 | G40: 0 | H40: 0 | I40: 32.682474 | J40: 2 | K40: 33.280544 | L40: 0 | M40: 0 | N40: 33.280544
A41: 94900000 | B41: Instituto de Vivienda Municipal de Aguazul | C41: Entidades de gobierno | D41: CASANARE | E41: 346 | F41: 7369.466599 | G41: 0 | H41: 0 | I41: 7369.466599 | J41: 0 | K41: 0 | L41: 0 | M41: 0 | N41: 0
A42: 95300000 | B42: E.S.E Centro de Salud - Betéitiva | C42: Empresas no cotizantes | D42: BOYACÁ | E42: 0 | F42: 0 | G42: 1 | H42: 43.704876 | I42: 43.704876 | J42: 0 | K42: 0 | L42: 1 | M42: 23.593199 | N42: 23.593199
A43: 95600000 | B43: E.S.E. Hospital San Antonio de Chía | C43: Empresas no cotizantes | D43: CUNDINAMARCA | E43: 0 | F43: 0 | G43: 21 | H43: 1721.477188 | I43: 1721.477188 | J43: 0 | K43: 0 | L43: 18 | M43: 914.135902 | N43: 914.135902
A44: 96600000 | B44: E.S.E. Centro de Salud del Municipio de Sutamarchán | C44: Empresas no cotizantes | D44: BOYACÁ | E44: 0 | F44: 0 | G44: 0 | H44: 0 | I44: 0 | J44: 0 | K44: 0 | L44: 5 | M44: 413.857592 | N44: 413.857592
A45: 96900000 | B45: E.S.E. Centro de Salud las Mercedes de Caldas - Boyacá | C45: Empresas no cotizantes | D45: BOYACÁ | E45: 0 | F45: 0 | G45: 2 | H45: 174.644711 | I45: 174.644711 | J45: 0 | K45: 0 | L45: 1 | M45: 160.896278 | N45: 160.896278
A46: 97000000 | B46: E.S.E. Centro de Salud San Vicente Ferrer - Saboyá - Boyacá | C46: Empresas no cotizantes | D46: BOYACÁ | E46: 0 | F46: 0 | G46: 7 | H46: 851.618466 | I46: 851.618466 | J46: 0 | K46: 0 | L46: 7 | M46: 867.860521 | N46: 867.860521
A47: 97400000 | B47: E.S.P. Empresa Municipal de Servicios Públicos de Trinidad | C47: Empresas no cotizantes | D47: CASANARE | E47: 4 | F47: 45.50165 | G47: 0 | H47: 0 | I47: 45.50165 | J47: 0 | K47: 0 | L47: 0 | M47: 0 | N47: 0
A48: 97500000 | B48: E.S.E. Centro de Salud Fe y Esperanza - Soracá | C48: Empresas no cotizantes | D48: BOYACÁ | E48: 0 | F48: 0 | G48: 1 | H48: 96.101514 | I48: 96.101514 | J48: 0 | K48: 0 | L48: 3 | M48: 35.253127 | N48: 35.253127
A49: 110505000 | B49: Departamento de Antioquia | C49: Entidades de gobierno | D49: ANTIOQUIA | E49: 20821 | F49: 256637.9822 | G49: 1153 | H49: 36886.84943 | I49: 293524.8317 | J49: 18574 | K49: 238077.21 | L49: 949 | M49: 33494.79041 | N49: 271572.0004
A50: 110808000 | B50: Departamento del Atlántico | C50: Entidades de gobierno | D50: ATLÁNTICO | E50: 2126 | F50: 19344.50759 | G50: 199 | H50: 1956.881948 | I50: 21301.38954 | J50: 33531 | K50: 298014.3964 | L50: 1890 | M50: 29202.52333 | N50: 327216.9197
A51: 111313000 | B51: Departamento de Bolívar | C51: Entidades de gobierno | D51: BOLÍVAR | E51: 1288 | F51: 10396.35819 | G51: 161 | H51: 4476.337722 | I51: 14872.69591 | J51: 1188 | K51: 9614.537146 | L51: 152 | M51: 1811.485048 | N51: 11426.02219
A52: 111515000 | B52: Departamento de Boyacá | C52: Entidades de gobierno | D52: BOYACÁ | E52: 8324 | F52: 104487.9027 | G52: 324 | H52: 36634.76646 | I52: 141122.6691 | J52: 14078 | K52: 270306.0701 | L52: 516 | M52: 52061.65448 | N52: 322367.7246
A53: 111717000 | B53: Departamento de Caldas | C53: Entidades de gobierno | D53: CALDAS | E53: 121 | F53: 1285.534 | G53: 17 | H53: 215.286 | I53: 1500.82 | J53: 224 | K53: 2570.40055 | L53: 20 | M53: 247.524 | N53: 2817.92455
A54: 111818000 | B54: Departamento del Caquetá | C54: Entidades de gobierno | D54: CAQUETÁ | E54: 390 | F54: 3174.185 | G54: 8 | H54: 138.085 | I54: 3312.27 | J54: 407 | K54: 3321.072 | L54: 12 | M54: 182.955 | N54: 3504.027
A55: 111919000 | B55: Departamento del Cauca | C55: Entidades de gobierno | D55: CAUCA | E55: 1216 | F55: 10006.17187 | G55: 160 | H55: 3087.807466 | I55: 13093.97934 | J55: 2357 | K55: 19909.80339 | L55: 218 | M55: 4292.357908 | N55: 24202.1613
A56: 112020000 | B56: Departamento del Cesar | C56: Entidades de gobierno | D56: CESAR | E56: 874 | F56: 69208.17492 | G56: 95 | H56: 28723.90804 | I56: 97932.08296 | J56: 909 | K56: 10023.59762 | L56: 27 | M56: 391.424894 | N56: 10415.02252
A57: 112525000 | B57: Departamento de Cundinamarca | C57: Entidades de gobierno | D57: CUNDINAMARCA | E57: 4383 | F57: 85392.79475 | G57: 115 | H57: 70502.37282 | I57: 155895.1676 | J57: 4498 | K57: 69510.03906 | L57: 179 | M57: 138921.047 | N57: 208431.086
A58: 114141000 | B58: Departamento del Huila | C58: Entidades de gobierno | D58: HUILA | E58: 0 | F58: 0 | G58: 0 | H58: 0 | I58: 0 | J58: 2 | K58: 818.552577 | L58: 0 | M58: 0 | N58: 818.552577
A59: 114747000 | B59: Departamento del Magdalena | C59: Entidades de gobierno | D59: MAGDALENA | E59: 825 | F59: 11911.522 | G59: 127 | H59: 2950.068 | I59: 14861.59 | J59: 538 | K59: 4391.903 | L59: 92 | M59: 1169.272 | N59: 5561.175
A60: 115050000 | B60: Departamento del Meta | C60: Entidades de gobierno | D60: META | E60: 1211 | F60: 26583.78471 | G60: 53 | H60: 11192.46167 | I60: 37776.24638 | J60: 1340 | K60: 30756.48156 | L60: 47 | M60: 11295.46637 | N60: 42051.94792
A61: 115252000 | B61: Departamento de Nariño | C61: Entidades de gobierno | D61: NARIÑO | E61: 367 | F61: 9989.204371 | G61: 86 | H61: 27893.36924 | I61: 37882.57361 | J61: 200 | K61: 4339.741446 | L61: 69 | M61: 11661.62153 | N61: 16001.36298
A62: 115454000 | B62: Departamento del Norte de Santander | C62: Entidades de gobierno | D62: NORTE DE SANTANDER | E62: 7079 | F62: 72415.43667 | G62: 327 | H62: 6915.914489 | I62: 79331.35116 | J62: 6732 | K62: 72013.99502 | L62: 208 | M62: 5123.216612 | N62: 77137.21163
A63: 116363000 | B63: Departamento del Quindío | C63: Entidades de gobierno | D63: QUINDÍO | E63: 843 | F63: 10826.75448 | G63: 57 | H63: 922.829721 | I63: 11749.5842 | J63: 841 | K63: 10950.01497 | L63: 69 | M63: 1030.486172 | N63: 11980.50114
A64: 116666000 | B64: Departamento de Risaralda | C64: Entidades de gobierno | D64: RISARALDA | E64: 4091 | F64: 50714.27838 | G64: 136 | H64: 3423.069061 | I64: 54137.34744 | J64: 7749 | K64: 85233.99431 | L64: 181 | M64: 3603.976791 | N64: 88837.9711
A65: 116868000 | B65: Departamento de Santander | C65: Entidades de gobierno | D65: SANTANDER | E65: 9023 | F65: 100742.7138 | G65: 421 | H65: 7924.29594 | I65: 108667.0098 | J65: 9146 | K65: 101050.5753 | L65: 425 | M65: 8201.406 | N65: 109251.9813
A66: 117070000 | B66: Departamento de Sucre | C66: Entidades de gobierno | D66: SUCRE | E66: 540 | F66: 5229.223293 | G66: 0 | H66: 0 | I66: 5229.223293 | J66: 0 | K66: 0 | L66: 0 | M66: 0 | N66: 0
A67: 117373000 | B67: Departamento del Tolima | C67: Entidades de gobierno | D67: TOLIMA | E67: 1674 | F67: 53867.23783 | G67: 0 | H67: 0 | I67: 53867.23783 | J67: 1831 | K67: 45405.2561 | L67: 0 | M67: 0 | N67: 45405.2561
A68: 117676000 | B68: Departamento del Valle del Cauca | C68: Entidades de gobierno | D68: VALLE DEL CAUCA | E68: 2027 | F68: 21192.02021 | G68: 346 | H68: 64622.70986 | I68: 85814.73007 | J68: 617 | K68: 6859.851412 | L68: 261 | M68: 73430.15561 | N68: 80290.00702
A69: 118181000 | B69: Departamento de Arauca | C69: Entidades de gobierno | D69: ARAUCA | E69: 6 | F69: 110.85634 | G69: 7 | H69: 1574.768544 | I69: =F69+H69 -> 1685.624884 | J69: 6 | K69: 110.85634 | L69: 7 | M69: 1574.768544 | N69: =K69+M69 -> 1685.624884
A70: 118585000 | B70: Departamento de Casanare | C70: Entidades de gobierno | D70: CASANARE | E70: 1014 | F70: 11787.92446 | G70: 62 | H70: 5354.547153 | I70: 17142.47161 | J70: 1278 | K70: 14320.77892 | L70: 66 | M70: 6599.361595 | N70: 20920.14051
A71: 118686000 | B71: Departamento del Putumayo | C71: Entidades de gobierno | D71: PUTUMAYO | E71: 4 | F71: 192.110813 | G71: 7 | H71: 182.62817 | I71: 374.738983 | J71: 0 | K71: 0 | L71: 0 | M71: 0 | N71: 0
A72: 119191000 | B72: Departamento del Amazonas | C72: Entidades de gobierno | D72: AMAZONAS | E72: 25 | F72: 2136.811054 | G72: 58 | H72: 37856.70093 | I72: 39993.51198 | J72: 25 | K72: 2137.319619 | L72: 55 | M72: 22001.06353 | N72: 24138.38314
A73: 119494000 | B73: Departamento del Guainía | C73: Entidades de gobierno | D73: GUAINÍA | E73: 5 | F73: 720.918176 | G73: 11 | H73: 1342.267587 | I73: 2063.185763 | J73: 7 | K73: 769.666539 | L73: 18 | M73: 6833.931352 | N73: 7603.597891
A74: 119595000 | B74: Departamento del Guaviare | C74: Entidades de gobierno | D74: GUAVIARE | E74: 10 | F74: 962.351598 | G74: 11 | H74: 1020.664557 | I74: 1983.016155 | J74: 10 | K74: 962.351598 | L74: 10 | M74: 1005.624557 | N74: 1967.976155
A75: 120125040 | B75: E.S.E. Empresa Social del Estado Hospital San Antonio - Anolaima | C75: Empresas no cotizantes | D75: CUNDINAMARCA | E75: 0 | F75: 0 | G75: 2 | H75: 17.997496 | I75: 17.997496 | J75: 0 | K75: 0 | L75: 3 | M75: 83.55894 | N75: 83.55894
A76: 120150000 | B76: E.S.E. Empresa Social del Estado del Meta - Solución Salud | C76: Empresas no cotizantes | D76: META | E76: 0 | F76: 0 | G76: 73 | H76: 29310.56577 | I76: 29310.56577 | J76: 0 | K76: 0 | L76: 0 | M76: 0 | N76: 0
A77: 120176000 | B77: Beneficencia del Valle del Cauca | C77: Empresas no cotizantes | D77: VALLE DEL CAUCA | E77: 100 | F77: 2938.887524 | G77: 28 | H77: 1010.156192 | I77: 3949.043716 | J77: 98 | K77: 2789.375982 | L77: 27 | M77: 845.681579 | N77: 3635.057561
A78: 120185000 | B78: E.S.E. Red Salud Casanare | C78: Empresas no cotizantes | D78: CASANARE | E78: 0 | F78: 0 | G78: 56 | H78: 13491.01037 | I78: 13491.01037 | J78: 0 | K78: 0 | L78: 59 | M78: 14341.46967 | N78: 14341.46967
A79: 120205000 | B79: Universidad de Antioquia | C79: Entidades de gobierno | D79: ANTIOQUIA | E79: 58 | F79: 4681.801786 | G79: 42 | H79: 2208.419767 | I79: 6890.221553 | J79: 46 | K79: 3706.08068 | L79: 41 | M79: 1872.09776 | N79: 5578.17844
A80: 120273000 | B80: E.S.E. Hospital Nelson Restrepo Martínez - Guayabal | C80: Empresas no cotizantes | D80: TOLIMA | E80: 0 | F80: 0 | G80: 44 | H80: 4544.356026 | I80: 4544.356026 | J80: 0 | K80: 0 | L80: 46 | M80: 4492.266237 | N80: 4492.266237
A81: 120305000 | B81: Politécnico Colombiano Jaime Isaza Cadavid | C81: Entidades de gobierno | D81: ANTIOQUIA | E81: 5 | F81: 41.636465 | G81: 1 | H81: 50.838962 | I81: 92.475427 | J81: 3 | K81: 20.937084 | L81: 0 | M81: 0 | N81: 20.937084
A82: 120373000 | B82: E.S.E. Hospital Departamental Especializado Granja Integral - Lérida | C82: Empresas no cotizantes | D82: TOLIMA | E82: 0 | F82: 0 | G82: 6 | H82: 5403.57689 | I82: 5403.57689 | J82: 0 | K82: 0 | L82: 6 | M82: 4874.160494 | N82: 4874.160494
A83: 120473000 | B83: E.S.E. Hospital Departamental Reina Sofía de España - Lérida | C83: Empresas no cotizantes | D83: TOLIMA | E83: 0 | F83: 0 | G83: 81 | H83: 24159.94008 | I83: 24159.94008 | J83: 0 | K83: 0 | L83: 11 | M83: 1809.699059 | N83: 1809.699059
A84: 120554000 | B84: E.S.E. Hospital Regional Norte | C84: Empresas no cotizantes | D84: NORTE DE SANTANDER | E84: 0 | F84: 0 | G84: 13 | H84: 11475.87647 | I84: 11475.87647 | J84: 0 | K84: 0 | L84: 11 | M84: 16533.88524 | N84: 16533.88524
A85: 120573000 | B85: E.S.P. Empresa Generadora del Tolima S.A. | C85: Empresas no cotizantes | D85: TOLIMA | E85: 1 | F85: 10.6 | G85: 1 | H85: 10 | I85: 20.6 | J85: 1 | K85: 10.6 | L85: 1 | M85: 10 | N85: 20.6
A86: 120676000 | B86: Universidad del Valle | C86: Entidades de gobierno | D86: VALLE DEL CAUCA | E86: 3 | F86: 18.265312 | G86: 31 | H86: 9177.920289 | I86: 9196.185601 | J86: 2 | K86: 12.837365 | L86: 26 | M86: 9477.526866 | N86: 9490.364231
A87: 120705000 | B87: Lotería de Medellín | C87: Empresas no cotizantes | D87: ANTIOQUIA | E87: 28 | F87: 1596.468251 | G87: 10 | H87: 1842.41511 | I87: 3438.883361 | J87: 25 | K87: 1550.174564 | L87: 8 | M87: 1438.458408 | N87: 2988.632972
A88: 120844000 | B88: I.P.S.I. Outajiapala | C88: Empresas no cotizantes | D88: LA GUAJIRA | E88: 0 | F88: 0 | G88: 2 | H88: 146.545077 | I88: 146.545077 | J88: 0 | K88: 0 | L88: 0 | M88: 0 | N88: 0
A89: 120905000 | B89: Instituto Departamental de Deportes de Antioquia | C89: Entidades de gobierno | D89: ANTIOQUIA | E89: 0 | F89: 0 | G89: 2 | H89: 1682.85249 | I89: 1682.85249 | J89: 0 | K89: 0 | L89: 3 | M89: 2182.639219 | N89: 2182.639219
A90: 120968000 | B90: E.S.E. Hospital Universitario de Santander | C90: Empresas no cotizantes | D90: SANTANDER | E90: 174 | F90: 2621.249906 | G90: 82 | H90: 107382.3698 | I90: 110003.6197 | J90: 186 | K90: 2811.225016 | L90: 82 | M90: 112378.85 | N90: 115190.0751
A91: 121105000 | B91: E.S.E. Hospital Mental de Antioquia - Homo | C91: Empresas no cotizantes | D91: ANTIOQUIA | E91: 3 | F91: 21.655111 | G91: 7 | H91: 345.585376 | I91: 367.240487 | J91: 0 | K91: 0 | L91: 0 | M91: 0 | N91: 0
A92: 121168000 | B92: E.S.E. Hospital Psiquiátrico San Camilo de Bucaramanga | C92: Empresas no cotizantes | D92: SANTANDER | E92: 0 | F92: 0 | G92: 18 | H92: 10326.69343 | I92: 10326.69343 | J92: 0 | K92: 0 | L92: 18 | M92: 10326.69343 | N92: 10326.69343
A93: 121270000 | B93: E.S.E. Hospital Regional San Marcos - Sucre | C93: Empresas no cotizantes | D93: SUCRE | E93: 0 | F93: 0 | G93: 63 | H93: 13488.51202 | I93: 13488.51202 | J93: 0 | K93: 0 | L93: 56 | M93: 10874.44826 | N93: 10874.44826
A94: 121370000 | B94: E.S.E. Hospital Regional Nuestra Señora de las Mercedes - Corozal | C94: Empresas no cotizantes | D94: SUCRE | E94: 0 | F94: 0 | G94: 10 | H94: 372.641202 | I94: 372.641202 | J94: 0 | K94: 0 | L94: 0 | M94: 0 | N94: 0
A95: 121468000 | B95: E.S.E. Hospital Integrado San Bernardo de Barbosa | C95: Empresas no cotizantes | D95: SANTANDER | E95: 0 | F95: 0 | G95: 33 | H95: 2414.395362 | I95: 2414.395362 | J95: 0 | K95: 0 | L95: 37 | M95: 2798.787 | N95: 2798.787
A96: 121568000 | B96: E.S.E. Hospital San Juan de Dios - Barichara | C96: Empresas no cotizantes | D96: SANTANDER | E96: 0 | F96: 0 | G96: 8 | H96: 294.427703 | I96: 294.427703 | J96: 0 | K96: 0 | L96: 0 | M96: 0 | N96: 0
A97: 121570000 | B97: E.S.E. Hospital Local Nivel I Nuestra Señora del Socorro - Sincé | C97: Empresas no cotizantes | D97: SUCRE | E97: 0 | F97: 0 | G97: 13 | H97: 1235.387033 | I97: 1235.387033 | J97: 0 | K97: 0 | L97: 0 | M97: 0 | N97: 0
A98: 121647000 | B98: Universidad del Magdalena | C98: Entidades de gobierno | D98: MAGDALENA | E98: 34 | F98: 235.97523 | G98: 0 | H98: 0 | I98: 235.97523 | J98: 41 | K98: 284.962872 | L98: 1 | M98: 57.194569 | N98: 342.157441
A99: 121705000 | B99: Tecnológico de Antioquia | C99: Entidades de gobierno | D99: ANTIOQUIA | E99: 0 | F99: 0 | G99: 2 | H99: 70.246189 | I99: 70.246189 | J99: 0 | K99: 0 | L99: 0 | M99: 0 | N99: 0
A100: 122125000 | B100: E.S.E. Hospital Universitario de La Samaritana | C100: Empresas no cotizantes | D100: CUNDINAMARCA | E100: 0 | F100: 0 | G100: 14 | H100: 50327.70149 | I100: 50327.70149 | J100: 0 | K100: 0 | L100: 24 | M100: 14477.82225 | N100: 14477.82225
A101: 122168000 | B101: Hospital San Roque - Chima | C101: Empresas no cotizantes | D101: SANTANDER | E101: 0 | F101: 0 | G101: 3 | H101: 458.049997 | I101: 458.049997 | J101: 0 | K101: 0 | L101: 0 | M101: 0 | N101: 0
A102: 122176000 | B102: E.S.E. Hospital Universitario del Valle Evaristo García | C102: Empresas no cotizantes | D102: VALLE DEL CAUCA | E102: 0 | F102: 0 | G102: 38 | H102: 61050.41806 | I102: 61050.41806 | J102: 0 | K102: 0 | L102: 28 | M102: 130830.5684 | N102: 130830.5684
A103: 122350000 | B103: Instituto de Turismo del Meta | C103: Entidades de gobierno | D103: META | E103: 3 | F103: 11021.34218 | G103: 0 | H103: 0 | I103: 11021.34218 | J103: 3 | K103: 11386.02111 | L103: 0 | M103: 0 | N103: 11386.02111
A104: 122368000 | B104: E.S.E. Hospital San Rafael de Concepción | C104: Empresas no cotizantes | D104: SANTANDER | E104: 0 | F104: 0 | G104: 1 | H104: 197.949032 | I104: 197.949032 | J104: 0 | K104: 0 | L104: 0 | M104: 0 | N104: 0
A105: 122376000 | B105: E.S.E. Hospital Departamental Mario Correa Rengifo - Cali | C105: Empresas no cotizantes | D105: VALLE DEL CAUCA | E105: 0 | F105: 0 | G105: 74 | H105: 26798.4126 | I105: 26798.4126 | J105: 0 | K105: 0 | L105: 103 | M105: 16064.81514 | N105: 16064.81514
A106: 122381000 | B106: E.S.E. Departamental de Primer Nivel | C106: Empresas no cotizantes | D106: ARAUCA | E106: 0 | F106: 0 | G106: 0 | H106: 0 | I106: 0 | J106: 0 | K106: 0 | L106: 1 | M106: 1909.745244 | N106: 1909.745244
A107: 122425000 | B107: E.S.E. Hospital San Rafael - Cáqueza | C107: Empresas no cotizantes | D107: CUNDINAMARCA | E107: 0 | F107: 0 | G107: 28 | H107: 12070.10075 | I107: 12070.10075 | J107: 0 | K107: 0 | L107: 22 | M107: 3791.144076 | N107: 3791.144076
A108: 122476000 | B108: E.S.E. Hospital Psiquiátrico Universitario San Isidro - Cali | C108: Empresas no cotizantes | D108: VALLE DEL CAUCA | E108: 0 | F108: 0 | G108: 5 | H108: 175.048966 | I108: 175.048966 | J108: 0 | K108: 0 | L108: 5 | M108: 175.148065 | N108: 175.148065
A109: 122568000 | B109: E.S.E. Hospital San Juan de Dios de Floridablanca | C109: Empresas no cotizantes | D109: SANTANDER | E109: 0 | F109: 0 | G109: 45 | H109: 23080.48514 | I109: 23080.48514 | J109: 0 | K109: 0 | L109: 47 | M109: 24966.04777 | N109: 24966.04777
A110: 122613000 | B110: Universidad de Cartagena | C110: Entidades de gobierno | D110: BOLÍVAR | E110: 75 | F110: 562.308828 | G110: 0 | H110: 0 | I110: 562.308828 | J110: 18 | K110: 134.065234 | L110: 0 | M110: 0 | N110: 134.065234
A111: 122725000 | B111: Empresa Social del Estado Región de Salud Centro Oriente Almeidas | C111: Empresas no cotizantes | D111: CUNDINAMARCA | E111: 0 | F111: 0 | G111: 19 | H111: 2539.188853 | I111: 2539.188853 | J111: 0 | K111: 0 | L111: 20 | M111: 867.908802 | N111: 867.908802
A112: 122768000 | B112: E.S.E. Clinica Girón | C112: Empresas no cotizantes | D112: SANTANDER | E112: 0 | F112: 0 | G112: 2 | H112: 805.107346 | I112: 805.107346 | J112: 0 | K112: 0 | L112: 2 | M112: 724.87554 | N112: 724.87554
A113: 122776000 | B113: E.S.E. Hospital San Antonio - Roldanillo (Valle) | C113: Empresas no cotizantes | D113: VALLE DEL CAUCA | E113: 0 | F113: 0 | G113: 6 | H113: 175.642434 | I113: 175.642434 | J113: 0 | K113: 0 | L113: 3 | M113: 133.506401 | N113: 133.506401
A114: 122781000 | B114: E.S.E. Hospital San Vicente - Arauca | C114: Empresas no cotizantes | D114: ARAUCA | E114: 0 | F114: 0 | G114: 29 | H114: 15456.50801 | I114: 15456.50801 | J114: 0 | K114: 0 | L114: 0 | M114: 0 | N114: 0
A115: 122868000 | B115: E.S.E. Hospital Santa Ana | C115: Empresas no cotizantes | D115: SANTANDER | E115: 0 | F115: 0 | G115: 2 | H115: 86.256188 | I115: 86.256188 | J115: 0 | K115: 0 | L115: 2 | M115: 118.62026 | N115: 118.62026
A116: 122925000 | B116: E.S.E. Hospital San Rafael - Facatativá | C116: Empresas no cotizantes | D116: CUNDINAMARCA | E116: 0 | F116: 0 | G116: 55 | H116: 34572.34747 | I116: 34572.34747 | J116: 0 | K116: 0 | L116: 45 | M116: 25022.24774 | N116: 25022.24774
A117: 122976000 | B117: E.S.E. Hospital Tomás Uribe Uribe - Tuluá | C117: Empresas no cotizantes | D117: VALLE DEL CAUCA | E117: 0 | F117: 0 | G117: 15 | H117: 750.000077 | I117: 750.000077 | J117: 0 | K117: 0 | L117: 16 | M117: 8251.26453 | N117: 8251.26453
A118: 123076000 | B118: E.S.E. Hospital Departamental San Rafael - Zarzal | C118: Empresas no cotizantes | D118: VALLE DEL CAUCA | E118: 0 | F118: 0 | G118: 12 | H118: 769.66346 | I118: 769.66346 | J118: 0 | K118: 0 | L118: 0 | M118: 0 | N118: 0
A119: 123081000 | B119: E.S.E. Hospital de Sarare - Saravena | C119: Empresas no cotizantes | D119: ARAUCA | E119: 0 | F119: 0 | G119: 0 | H119: 0 | I119: 0 | J119: 0 | K119: 0 | L119: 39 | M119: 22542.14066 | N119: 22542.14066
A120: 123125000 | B120: E.S.E. Hospital San Rafael - Fusagasugá | C120: Empresas no cotizantes | D120: CUNDINAMARCA | E120: 0 | F120: 0 | G120: 18 | H120: 21006.86124 | I120: 21006.86124 | J120: 0 | K120: 0 | L120: 18 | M120: 38026.74243 | N120: 38026.74243
A121: 123147000 | B121: E.S.E. Hospital Santander Herrera - Pivijay | C121: Empresas no cotizantes | D121: MAGDALENA | E121: 0 | F121: 0 | G121: 1 | H121: 616.570632 | I121: 616.570632 | J121: 0 | K121: 0 | L121: 1 | M121: 1128.706413 | N121: 1128.706413
A122: 123168000 | B122: E.S.E. Hospital San Juan de Dios - Lebrija | C122: Empresas no cotizantes | D122: SANTANDER | E122: 0 | F122: 0 | G122: 30 | H122: 3725.878623 | I122: 3725.878623 | J122: 0 | K122: 0 | L122: 32 | M122: 4150.462346 | N122: 4150.462346
A123: 123173000 | B123: E.S.E. Hospital Dptal. Federico Lleras Acosta - Ibagué | C123: Empresas no cotizantes | D123: TOLIMA | E123: 0 | F123: 0 | G123: 60 | H123: 22422.75765 | I123: 22422.75765 | J123: 0 | K123: 0 | L123: 47 | M123: 20475.73203 | N123: 20475.73203
A124: 123215000 | B124: E.S.E. Hospital Regional de Chiquinquirá | C124: Empresas no cotizantes | D124: BOYACÁ | E124: 0 | F124: 0 | G124: 61 | H124: 37094.44396 | I124: 37094.44396 | J124: 0 | K124: 0 | L124: 66 | M124: 37713.35825 | N124: 37713.35825
A125: 123225000 | B125: E.S.E. Hospital San Francisco - Gachetá | C125: Empresas no cotizantes | D125: CUNDINAMARCA | E125: 0 | F125: 0 | G125: 12 | H125: 931.583317 | I125: 931.583317 | J125: 0 | K125: 0 | L125: 9 | M125: 1431.865778 | N125: 1431.865778
A126: 123247000 | B126: Hospital Universitario Julio Méndez Barreneche. | C126: Empresas no cotizantes | D126: MAGDALENA | E126: 0 | F126: 0 | G126: 68 | H126: 104010.2573 | I126: 104010.2573 | J126: 0 | K126: 0 | L126: 28 | M126: 56744.52822 | N126: 56744.52822
A127: 123305000 | B127: E.S.E. Centro de Rehabilitación Integral en Salud Mental de Antioquia | C127: Empresas no cotizantes | D127: ANTIOQUIA | E127: 0 | F127: 0 | G127: 2 | H127: 328.715181 | I127: 328.715181 | J127: 4 | K127: 29.241916 | L127: 1 | M127: 287.784021 | N127: 317.025937
A128: 123315000 | B128: E.S.E. Hospital Especial de Cubará | C128: Empresas no cotizantes | D128: BOYACÁ | E128: 0 | F128: 0 | G128: 0 | H128: 0 | I128: 0 | J128: 0 | K128: 0 | L128: 4 | M128: 917.260389 | N128: 917.260389
A129: 123350000 | B129: E.S.E. Hospital Departamental de Villavicencio | C129: Empresas no cotizantes | D129: META | E129: 0 | F129: 0 | G129: 96 | H129: 80593.21871 | I129: 80593.21871 | J129: 0 | K129: 0 | L129: 100 | M129: 100195.3581 | N129: 100195.3581
A130: 123408000 | B130: Instituto de Tránsito del Atlántico | C130: Entidades de gobierno | D130: ATLÁNTICO | E130: 2513 | F130: 14874.62355 | G130: 109 | H130: 1799.368254 | I130: 16673.99181 | J130: 25 | K130: 187.961703 | L130: 1 | M130: 5.492043 | N130: 193.453746
A131: 123468000 | B131: E.S.E. Hospital San Rafael - Oiba | C131: Empresas no cotizantes | D131: SANTANDER | E131: 0 | F131: 0 | G131: 23 | H131: 733.37875 | I131: 733.37875 | J131: 0 | K131: 0 | L131: 22 | M131: 854.87279 | N131: 854.87279
A132: 123566001 | B132: E.S.E. Hospital Universitario San Jorge - Pereira | C132: Empresas no cotizantes | D132: RISARALDA | E132: 0 | F132: 0 | G132: 97 | H132: 79782.23893 | I132: 79782.23893 | J132: 0 | K132: 0 | L132: 100 | M132: 99614.02114 | N132: 99614.02114
A133: 123605000 | B133: E.S.E. Hospital la María - Medellín | C133: Empresas no cotizantes | D133: ANTIOQUIA | E133: 0 | F133: 0 | G133: 62 | H133: 43578.45427 | I133: =F133+H133 -> 43578.45427 | J133: 0 | K133: 0 | L133: 8 | M133: 974.519188 | N133: =K133+M133 -> 974.519188
A134: 123615000 | B134: Lotería de Boyacá | C134: Empresas no cotizantes | D134: BOYACÁ | E134: 32 | F134: 1085.995325 | G134: 22 | H134: 1990.283948 | I134: 3076.279273 | J134: 32 | K134: 1085.995325 | L134: 22 | M134: 1990.283948 | N134: 3076.279273
A135: 123805000 | B135: E.S.E. Hospital San Juan de Dios - Abejorral | C135: Empresas no cotizantes | D135: ANTIOQUIA | E135: 0 | F135: 0 | G135: 12 | H135: 1165.403 | I135: 1165.403 | J135: 0 | K135: 0 | L135: 11 | M135: 1143.952578 | N135: 1143.952578
A136: 123850000 | B136: Instituto Departamental de Tránsito y Transporte | C136: Entidades de gobierno | D136: META | E136: 388 | F136: 11395.7396 | G136: 0 | H136: 0 | I136: 11395.7396 | J136: 480 | K136: 13847.34093 | L136: 0 | M136: 0 | N136: 13847.34093
A137: 123918000 | B137: E.S.E. Hospital Departamental María Inmaculada - Florencia Caquetá | C137: Empresas no cotizantes | D137: CAQUETÁ | E137: 0 | F137: 0 | G137: 84 | H137: 40374.63458 | I137: 40374.63458 | J137: 0 | K137: 0 | L137: 86 | M137: 52439.26207 | N137: 52439.26207
A138: 123925000 | B138: E.S.E. Hospital Pedro León - La Mesa | C138: Empresas no cotizantes | D138: CUNDINAMARCA | E138: 0 | F138: 0 | G138: 9 | H138: 3544.228272 | I138: 3544.228272 | J138: 0 | K138: 0 | L138: 4 | M138: 1882.131058 | N138: 1882.131058
A139: 123968000 | B139: Hospital San Antonio - Rionegro | C139: Empresas no cotizantes | D139: SANTANDER | E139: 0 | F139: 0 | G139: 7 | H139: 586.122949 | I139: 586.122949 | J139: 0 | K139: 0 | L139: 6 | M139: 553.02376 | N139: 553.02376
A140: 123973000 | B140: E.S.E. Hospital Santa Lucía - Cajamarca | C140: Empresas no cotizantes | D140: TOLIMA | E140: 0 | F140: 0 | G140: 41 | H140: 15299.73038 | I140: 15299.73038 | J140: 0 | K140: 0 | L140: 22 | M140: 2798.872609 | N140: 2798.872609
A141: 124005000 | B141: E.S.E. Hospital Felipe Arbeláez - Alejandría | C141: Empresas no cotizantes | D141: ANTIOQUIA | E141: 0 | F141: 0 | G141: 4 | H141: 113.22483 | I141: 113.22483 | J141: 0 | K141: 0 | L141: 6 | M141: 353.264664 | N141: 353.264664
A142: 124050000 | B142: E.S.E. Hospital Local - Puerto López | C142: Empresas no cotizantes | D142: META | E142: 0 | F142: 0 | G142: 21 | H142: 2767.709449 | I142: 2767.709449 | J142: 0 | K142: 0 | L142: 20 | M142: 2654.527374 | N142: 2654.527374
A143: 124073000 | B143: E.S.E. Hospital Dptal. San Juan Bautista - Chaparral | C143: Empresas no cotizantes | D143: TOLIMA | E143: 0 | F143: 0 | G143: 30 | H143: 4281.427468 | I143: 4281.427468 | J143: 0 | K143: 0 | L143: 28 | M143: 4947.000509 | N143: 4947.000509
A144: 124173000 | B144: E.S.E. Hospital Nuestra Señora del Carmen - Carmen de Apicalá | C144: Empresas no cotizantes | D144: TOLIMA | E144: 0 | F144: 0 | G144: 8 | H144: 182.225043 | I144: 182.225043 | J144: 0 | K144: 0 | L144: 15 | M144: 566.756124 | N144: 566.756124
A145: 124205000 | B145: E.S.E. Hospital San Fernando - Amagá | C145: Empresas no cotizantes | D145: ANTIOQUIA | E145: 0 | F145: 0 | G145: 1 | H145: 15.927254 | I145: 15.927254 | J145: 0 | K145: 0 | L145: 9 | M145: 191.922753 | N145: 191.922753
A146: 124250000 | B146: E.S.E. Hospital Municipal - Acacías | C146: Empresas no cotizantes | D146: META | E146: 0 | F146: 0 | G146: 19 | H146: 1026.799947 | I146: 1026.799947 | J146: 0 | K146: 0 | L146: 20 | M146: 1047.718591 | N146: 1047.718591
A147: 124266000 | B147: E.S.E. Hospital Mental de Risaralda - Pereira | C147: Empresas no cotizantes | D147: RISARALDA | E147: 0 | F147: 0 | G147: 14 | H147: 6480.807538 | I147: 6480.807538 | J147: 0 | K147: 0 | L147: 24 | M147: 7798.124732 | N147: 7798.124732
A148: 124273000 | B148: E.S.E. Hospital Santo Domingo - Casabianca | C148: Empresas no cotizantes | D148: TOLIMA | E148: 0 | F148: 0 | G148: 2 | H148: 11.342525 | I148: 11.342525 | J148: 0 | K148: 0 | L148: 4 | M148: 449.567235 | N148: 449.567235
A149: 124308000 | B149: E.S.E. Hospital de Puerto Colombia | C149: Empresas no cotizantes | D149: ATLÁNTICO | E149: 0 | F149: 0 | G149: 16 | H149: 963.698472 | I149: 963.698472 | J149: 0 | K149: 0 | L149: 17 | M149: 1169.161173 | N149: 1169.161173
A150: 124313000 | B150: E.S.E. Clínica de Maternidad Rafael Calvo C. | C150: Empresas no cotizantes | D150: BOLÍVAR | E150: 0 | F150: 0 | G150: 59 | H150: 20526.24192 | I150: 20526.24192 | J150: 0 | K150: 0 | L150: 36 | M150: 4483.911051 | N150: 4483.911051
A151: 124325000 | B151: E.S.E. Hospital San Rafael - Pacho | C151: Empresas no cotizantes | D151: CUNDINAMARCA | E151: 0 | F151: 0 | G151: 34 | H151: 8478.11083 | I151: 8478.11083 | J151: 0 | K151: 0 | L151: 24 | M151: 9755.528456 | N151: 9755.528456
A152: 124341000 | B152: E.S.E. Hospital Departamental Hernando Moncaleano Perdomo - Neiva | C152: Empresas no cotizantes | D152: HUILA | E152: 0 | F152: 0 | G152: 53 | H152: 12476.17801 | I152: 12476.17801 | J152: 0 | K152: 0 | L152: 52 | M152: 21834.74045 | N152: 21834.74045
A153: 124373000 | B153: E.S.E. Hospital San Roque - Coyaima | C153: Empresas no cotizantes | D153: TOLIMA | E153: 0 | F153: 0 | G153: 26 | H153: 1621.732583 | I153: 1621.732583 | J153: 0 | K153: 0 | L153: 6 | M153: 119.551864 | N153: 119.551864
A154: 124405000 | B154: E.S.E. Hospital San Rafael - Andes | C154: Empresas no cotizantes | D154: ANTIOQUIA | E154: 0 | F154: 0 | G154: 32 | H154: 2877.091586 | I154: 2877.091586 | J154: 0 | K154: 0 | L154: 33 | M154: 4633.095928 | N154: 4633.095928
A155: 124441000 | B155: E.S.E. Hospital San Antonio | C155: Empresas no cotizantes | D155: HUILA | E155: 0 | F155: 0 | G155: 4 | H155: 38.137095 | I155: 38.137095 | J155: 0 | K155: 0 | L155: 5 | M155: 74.766455 | N155: 74.766455
A156: 124450000 | B156: E.S.E. Hospital - San Martín | C156: Empresas no cotizantes | D156: META | E156: 2 | F156: 46.023778 | G156: 32 | H156: 1347.653903 | I156: 1393.677681 | J156: 2 | K156: 48.287242 | L156: 18 | M156: 540.192051 | N156: 588.479293
A157: 124466000 | B157: E.S.E. Hospital Cristo Rey - Balboa | C157: Empresas no cotizantes | D157: RISARALDA | E157: 0 | F157: 0 | G157: 15 | H157: 814.22955 | I157: 814.22955 | J157: 0 | K157: 0 | L157: 0 | M157: 0 | N157: 0
A158: 124515000 | B158: E.S.E. Centro de Rehabilitación Integral de Boyacá -Tunja | C158: Empresas no cotizantes | D158: BOYACÁ | E158: 0 | F158: 0 | G158: 0 | H158: 0 | I158: 0 | J158: 0 | K158: 0 | L158: 7 | M158: 2537.49279 | N158: 2537.49279
A159: 124541000 | B159: E.S.E. Hospital San Carlos - Aipe | C159: Empresas no cotizantes | D159: HUILA | E159: 0 | F159: 0 | G159: 7 | H159: 406.481823 | I159: 406.481823 | J159: 0 | K159: 0 | L159: 0 | M159: 0 | N159: 0
A160: 124550000 | B160: E.S.E. Hospital Regional - Granada | C160: Empresas no cotizantes | D160: META | E160: 3 | F160: 317.336844 | G160: 35 | H160: 966.221541 | I160: 1283.558385 | J160: 3 | K160: 323.19537 | L160: 33 | M160: 410.25797 | N160: 733.45334
A161: 124566000 | B161: E.S.E. Hospital San José - La Celia | C161: Empresas no cotizantes | D161: RISARALDA | E161: 0 | F161: 0 | G161: 7 | H161: 122.528669 | I161: 122.528669 | J161: 0 | K161: 0 | L161: 0 | M161: 0 | N161: 0
A162: 124605000 | B162: E.S.E. Hospital San Rafael - Angostura | C162: Empresas no cotizantes | D162: ANTIOQUIA | E162: 0 | F162: 0 | G162: 0 | H162: 0 | I162: 0 | J162: 0 | K162: 0 | L162: 6 | M162: 418.716463 | N162: 418.716463
A163: 124652000 | B163: Centro de Habilitación del Niño | C163: Empresas no cotizantes | D163: NARIÑO | E163: 0 | F163: 0 | G163: 3 | H163: 1545.738273 | I163: 1545.738273 | J163: 0 | K163: 0 | L163: 0 | M163: 0 | N163: 0
A164: 124654000 | B164: Lotería de Cúcuta | C164: Empresas no cotizantes | D164: NORTE DE SANTANDER | E164: 0 | F164: 0 | G164: 0 | H164: 0 | I164: 0 | J164: 8 | K164: 196.629465 | L164: 0 | M164: 0 | N164: 196.629465
A165: 124666000 | B165: E.S.E. Hospital Santa Mónica - Dosquebradas | C165: Empresas no cotizantes | D165: RISARALDA | E165: 0 | F165: 0 | G165: 67 | H165: 26501.58306 | I165: 26501.58306 | J165: 0 | K165: 0 | L165: 68 | M165: 32440.86346 | N165: 32440.86346
A166: 124668000 | B166: E.S.E. Hospital San Roque - Simacota | C166: Empresas no cotizantes | D166: SANTANDER | E166: 0 | F166: 0 | G166: 11 | H166: 148.676948 | I166: 148.676948 | J166: 0 | K166: 0 | L166: 0 | M166: 0 | N166: 0
A167: 124673000 | B167: E.S.E. Hospital Dptal. San Rafael - Espinal | C167: Empresas no cotizantes | D167: TOLIMA | E167: 0 | F167: 0 | G167: 63 | H167: 87681.7041 | I167: 87681.7041 | J167: 0 | K167: 0 | L167: 48 | M167: 24348.46882 | N167: 24348.46882
A168: 124686000 | B168: E.S.E. Hospital de Orito - Orito | C168: Empresas no cotizantes | D168: PUTUMAYO | E168: 0 | F168: 0 | G168: 15 | H168: 3887.169832 | I168: 3887.169832 | J168: 0 | K168: 0 | L168: 0 | M168: 0 | N168: 0
A169: 124705000 | B169: E.S.E. Hospital San Juan de Dios - Anorí | C169: Empresas no cotizantes | D169: ANTIOQUIA | E169: 0 | F169: 0 | G169: 4 | H169: 382.544249 | I169: 382.544249 | J169: 0 | K169: 0 | L169: 6 | M169: 205.016916 | N169: 205.016916
A170: 124715000 | B170: Instituto de Tránsito de Boyacá | C170: Entidades de gobierno | D170: BOYACÁ | E170: 10 | F170: 101.20584 | G170: 0 | H170: 0 | I170: 101.20584 | J170: 0 | K170: 0 | L170: 0 | M170: 0 | N170: 0
A171: 124717000 | B171: Dirección Territorial de Salud de Caldas | C171: Entidades de gobierno | D171: CALDAS | E171: 0 | F171: 0 | G171: 0 | H171: 0 | I171: 0 | J171: 5 | K171: 207.952688 | L171: 10 | M171: 1681.069845 | N171: 1889.022533
A172: 124773000 | B172: E.S.E. Hospital Santa Ana - Falán | C172: Empresas no cotizantes | D172: TOLIMA | E172: 0 | F172: 0 | G172: 19 | H172: 1101.44937 | I172: 1101.44937 | J172: 0 | K172: 0 | L172: 0 | M172: 0 | N172: 0
A173: 124805000 | B173: E.S.E. Hospital Regional San Juan de Dios - Santafé de Antioquia | C173: Empresas no cotizantes | D173: ANTIOQUIA | E173: 0 | F173: 0 | G173: 48 | H173: 12075.18205 | I173: 12075.18205 | J173: 0 | K173: 0 | L173: 43 | M173: 13588.21394 | N173: 13588.21394
A174: 124825000 | B174: E.S.E. Región de Salud Soacha | C174: Empresas no cotizantes | D174: CUNDINAMARCA | E174: 0 | F174: 0 | G174: 43 | H174: 11263.21864 | I174: 11263.21864 | J174: 0 | K174: 0 | L174: 87 | M174: 33676.3497 | N174: 33676.3497
A175: 124841000 | B175: E.S.E. Hospital Nuestra Señora del Rosario - Campoalegre | C175: Empresas no cotizantes | D175: HUILA | E175: 0 | F175: 0 | G175: 8 | H175: 1028.342669 | I175: 1028.342669 | J175: 0 | K175: 0 | L175: 9 | M175: 1568.513895 | N175: 1568.513895
A176: 124868000 | B176: E.S.E. Hospital Caicedo Flórez - Suaita | C176: Empresas no cotizantes | D176: SANTANDER | E176: 0 | F176: 0 | G176: 4 | H176: 176.94038 | I176: 176.94038 | J176: 0 | K176: 0 | L176: 4 | M176: 199.657398 | N176: 199.657398
A177: 124873000 | B177: E.S.E. Hospital San Vicente de Paul - Fresno | C177: Empresas no cotizantes | D177: TOLIMA | E177: 0 | F177: 0 | G177: 10 | H177: 238.877484 | I177: 238.877484 | J177: 0 | K177: 0 | L177: 6 | M177: 193.079409 | N177: 193.079409
A178: 124876000 | B178: Unidad Central del Valle del Cauca | C178: Entidades de gobierno | D178: VALLE DEL CAUCA | E178: 13 | F178: 139.610394 | G178: 0 | H178: 0 | I178: 139.610394 | J178: 13 | K178: 139.610394 | L178: 0 | M178: 0 | N178: 139.610394
A179: 124905000 | B179: E.S.E. Hospital San Francisco de Asís - Anzá | C179: Empresas no cotizantes | D179: ANTIOQUIA | E179: 0 | F179: 0 | G179: 4 | H179: 52.639313 | I179: 52.639313 | J179: 0 | K179: 0 | L179: 6 | M179: 65.223378 | N179: 65.223378
A180: 124941000 | B180: E.S.E. Hospital Departamental San Vicente de Paul - Garzón | C180: Empresas no cotizantes | D180: HUILA | E180: 0 | F180: 0 | G180: 4 | H180: 564.244262 | I180: 564.244262 | J180: 0 | K180: 0 | L180: 3 | M180: 100.343298 | N180: 100.343298
A181: 124968000 | B181: E.S.E. Hospital San José | C181: Empresas no cotizantes | D181: SANTANDER | E181: 0 | F181: 0 | G181: 0 | H181: 0 | I181: 0 | J181: 0 | K181: 0 | L181: 3 | M181: 88.596716 | N181: 88.596716
A182: 124973000 | B182: E.S.E. Hospital San Antonio - Guamo | C182: Empresas no cotizantes | D182: TOLIMA | E182: 0 | F182: 0 | G182: 34 | H182: 2458.904652 | I182: 2458.904652 | J182: 0 | K182: 0 | L182: 35 | M182: 2428.018653 | N182: 2428.018653
A183: 125041000 | B183: E.S.E. Hospital Gigante | C183: Empresas no cotizantes | D183: HUILA | E183: 0 | F183: 0 | G183: 14 | H183: 1092.641724 | I183: 1092.641724 | J183: 0 | K183: 0 | L183: 8 | M183: 1375.376563 | N183: 1375.376563
A184: 125073000 | B184: E.S.E. Hospital San Antonio - Herveo | C184: Empresas no cotizantes | D184: TOLIMA | E184: 0 | F184: 0 | G184: 12 | H184: 406.667201 | I184: 406.667201 | J184: 0 | K184: 0 | L184: 10 | M184: 385.874303 | N184: 385.874303
A185: 125105000 | B185: E.S.E. Hospital Pedro Nel Cardona - Arboletes | C185: Empresas no cotizantes | D185: ANTIOQUIA | E185: 0 | F185: 0 | G185: 19 | H185: 1374.123462 | I185: 1374.123462 | J185: 0 | K185: 0 | L185: 21 | M185: 2610.497702 | N185: 2610.497702
A186: 125115000 | B186: E.S.E. Hospital Universitario San Rafael de Tunja | C186: Empresas no cotizantes | D186: BOYACÁ | E186: 27 | F186: 327.605774 | G186: 39 | H186: 107368.6685 | I186: 107696.2743 | J186: 19 | K186: 214.189356 | L186: 41 | M186: 107709.4803 | N186: 107923.6697
A187: 125120000 | B187: E.S.E. Hospital José David Padilla Villafañe - Aguachica | C187: Empresas no cotizantes | D187: CESAR | E187: 0 | F187: 0 | G187: 33 | H187: 7673.461739 | I187: 7673.461739 | J187: 0 | K187: 0 | L187: 28 | M187: 10008.03253 | N187: 10008.03253
A188: 125141000 | B188: E.S.E. Hospital María Auxiliadora - Íquira | C188: Empresas no cotizantes | D188: HUILA | E188: 0 | F188: 0 | G188: 2 | H188: 165.516034 | I188: 165.516034 | J188: 0 | K188: 0 | L188: 0 | M188: 0 | N188: 0
A189: 125152000 | B189: E.S.E. Hospital Departamental de Nariño | C189: Empresas no cotizantes | D189: NARIÑO | E189: 6 | F189: 97.3554 | G189: 41 | H189: 20440.63838 | I189: 20537.99378 | J189: 10 | K189: 131.2088 | L189: 38 | M189: 8148.211341 | N189: 8279.420141
A190: 125173000 | B190: E.S.E. Hospital San Juan de Dios - Honda | C190: Empresas no cotizantes | D190: TOLIMA | E190: 1 | F190: 13.182693 | G190: 29 | H190: 21490.36435 | I190: 21503.54705 | J190: 0 | K190: 0 | L190: 0 | M190: 0 | N190: 0
A191: 125241000 | B191: E.S.E. Hospital Departamental San Antonio de Padua - La Plata | C191: Empresas no cotizantes | D191: HUILA | E191: 0 | F191: 0 | G191: 54 | H191: 33686.12159 | I191: 33686.12159 | J191: 0 | K191: 0 | L191: 36 | M191: 8886.649763 | N191: 8886.649763
A192: 125268000 | B192: E.S.E. Hospital San Vicente de Paul - Onzaga | C192: Empresas no cotizantes | D192: SANTANDER | E192: 0 | F192: 0 | G192: 0 | H192: 0 | I192: 0 | J192: 0 | K192: 0 | L192: 3 | M192: 347.329985 | N192: 347.329985
A193: 125273000 | B193: Hospital Sumapaz - Icononzo | C193: Empresas no cotizantes | D193: TOLIMA | E193: 0 | F193: 0 | G193: 1 | H193: 8.5608 | I193: 8.5608 | J193: 0 | K193: 0 | L193: 0 | M193: 0 | N193: 0
A194: 125286000 | B194: E.S.E. Hospital José María Hernández - Mocoa | C194: Empresas no cotizantes | D194: PUTUMAYO | E194: 1 | F194: 24.12125 | G194: 16 | H194: 841.56292 | I194: 865.68417 | J194: 0 | K194: 0 | L194: 10 | M194: 383.72188 | N194: 383.72188
A195: 125305000 | B195: E.S.E. Hospital San Martín - Armenia | C195: Empresas no cotizantes | D195: ANTIOQUIA | E195: 0 | F195: 0 | G195: 7 | H195: 1106.493764 | I195: 1106.493764 | J195: 0 | K195: 0 | L195: 7 | M195: 1095.778829 | N195: 1095.778829
A196: 125325000 | B196: E.S.E. Hospital el Salvador de Ubaté | C196: Empresas no cotizantes | D196: CUNDINAMARCA | E196: 0 | F196: 0 | G196: 15 | H196: 10448.09253 | I196: 10448.09253 | J196: 0 | K196: 0 | L196: 6 | M196: 1326.885715 | N196: 1326.885715
A197: 125354000 | B197: Universidad Francisco de Paula Santander | C197: Entidades de gobierno | D197: NORTE DE SANTANDER | E197: 0 | F197: 0 | G197: 0 | H197: 0 | I197: =F197+H197 -> 0 | J197: 0 | K197: 0 | L197: 1 | M197: 200 | N197: =K197+M197 -> 200
A198: 125366000 | B198: E.S.E. Hospital San Rafael - Pueblorrico | C198: Empresas no cotizantes | D198: RISARALDA | E198: 0 | F198: 0 | G198: 36 | H198: 1556.561493 | I198: 1556.561493 | J198: 0 | K198: 0 | L198: 0 | M198: 0 | N198: 0
A199: 125386000 | B199: E.S.E. Hospital Pio XII - Colón | C199: Empresas no cotizantes | D199: PUTUMAYO | E199: 0 | F199: 0 | G199: 15 | H199: 1731.830162 | I199: 1731.830162 | J199: 0 | K199: 0 | L199: 0 | M199: 0 | N199: 0
A200: 125441000 | B200: E.S.E. Hospital Departamental San Antonio - Pitalito | C200: Empresas no cotizantes | D200: HUILA | E200: 0 | F200: 0 | G200: 17 | H200: 1100.213939 | I200: 1100.213939 | J200: 0 | K200: 0 | L200: 20 | M200: 4805.038614 | N200: 4805.038614
... 1630 more rows

Sheet Hoja1 (hidden)
B3: CALDAS
B4: ANTIOQUIA
B5: QUINDIO
B6: ATLANTICO
B7: NARIÑO
B8: SANTANDER
B9: PUTUMAYO
B10: CASANARE
B11: CUNDINAMARCA
B12: RISARALDA
B13: NORTE DE SANTANDER
B14: META
B15: BOYACA
B16: SUCRE
B17: HUILA
B18: TOLIMA
B19: BOLIVAR
B20: CAQUETA
B21: CAUCA
B22: CESAR
B23: MAGDALENA
B24: VALLE DEL CAUCA
B25: ARAUCA
B26: AMAZONAS
B27: GUAINIA
B28: GUAVIARE
B29: GUAJIRA
B30: CORDOBA
B31: VAUPES
B32: VICHADA
B33: BOGOTÁ
B34: CHOCO
B35: ARCHIPIELAGO DE SAN ANDRES

Sheet BaseCI (hidden)
A1: id_entidad | B1: Entidad | C1: Región | D1: Departamento | E1: Marco normativo | F1: 2021 | G1: 2022 | H1: Criterio | I1: Var
A2: 89970221 | B2: Coveñas | C2: Caribe | D2: Sucre | E2: Entidades de gobierno | F2: 4.92 | G2: 4.92 | H2: Eficiente | I2: =+G2-F2 -> 0
A3: 210005400 | B3: La Unión - Antioquia | C3: Eje Cafetero y Antioquia | D3: Antioquia | E3: Entidades de gobierno | F3: 4.68 | G3: 4.72 | H3: Eficiente | I3: =+G3-F3 -> 0.04
A4: 210013300 | B4: Hatillo de Loba | C4: Caribe | D4: Bolívar | E4: Entidades de gobierno | F4: 3.28 | G4: 4.63 | H4: Eficiente | I4: 1.35
A5: 210013600 | B5: Rioviejo | C5: Caribe | D5: Bolívar | E5: Entidades de gobierno | F5: 3.62 | G5: 4.33 | H5: Eficiente | I5: 0.71
A6: 210015500 | B6: Oicatá | C6: Central | D6: Boyacá | E6: Entidades de gobierno | F6: 4.76 | G6: 4.76 | H6: Eficiente | I6: 0
A7: 210015600 | B7: Ráquira | C7: Central | D7: Boyacá | E7: Entidades de gobierno | F7: 4.77 | G7: 4.87 | H7: Eficiente | I7: 0.1
A8: 210019100 | B8: Bolívar - Cauca | C8: Pacífico | D8: Cauca | E8: Entidades de gobierno | F8: 4 | G8: 3.96 | H8: Adecuado | I8: -0.04
A9: 210020400 | B9: La Jagua de Ibirico | C9: Caribe | D9: Cesar | E9: Entidades de gobierno | F9: 4.57 | G9: 4.51 | H9: Eficiente | I9: -0.06
A10: 210023300 | B10: Cotorra | C10: Caribe | D10: Córdoba | E10: Entidades de gobierno | F10: 4.14 | G10: 4.17 | H10: Eficiente | I10: 0.03
A11: 210023500 | B11: Moñitos | C11: Caribe | D11: Córdoba | E11: Entidades de gobierno | F11: 4.37 | G11: 4.14 | H11: Eficiente | I11: -0.23
A12: 210025200 | B12: Cogua | C12: Central | D12: Cundinamarca | E12: Entidades de gobierno | F12: 4.9 | G12: 4.93 | H12: Eficiente | I12: 0.03
A13: 210027600 | B13: Río Quito | C13: Pacífico | D13: Chocó | E13: Entidades de gobierno | G13: 4.56 | H13: Eficiente | I13: 4.56
A14: 210027800 | B14: Unguía | C14: Pacífico | D14: Chocó | E14: Entidades de gobierno | F14: 4.97 | G14: 4.9 | H14: Eficiente | I14: -0.07
A15: 210050400 | B15: Lejanías | C15: Llanos - Orinoquía | D15: Meta | E15: Entidades de gobierno | F15: 4.39 | G15: 4.73 | H15: Eficiente | I15: 0.34
A16: 210054800 | B16: Teorama | C16: Santanderes | D16: Norte de Santander | E16: Entidades de gobierno | F16: 4.33 | G16: 4.38 | H16: Eficiente | I16: 0.05
A17: 210066400 | B17: La Virginia | C17: Eje Cafetero y Antioquia | D17: Risaralda | E17: Entidades de gobierno | F17: 3.02 | G17: 3.12 | H17: Adecuado | I17: 0.1
A18: 210068500 | B18: Oiba | C18: Santanderes | D18: Santander | E18: Entidades de gobierno | F18: 4.88 | G18: 5 | H18: Eficiente | I18: 0.12
A19: 210070400 | B19: La Unión de Sucre | C19: Caribe | D19: Sucre | E19: Entidades de gobierno | F19: 3.41 | G19: 4.64 | H19: Eficiente | I19: 1.23
A20: 210073200 | B20: Coello | C20: Central | D20: Tolima | E20: Entidades de gobierno | F20: 4.78 | G20: 4.78 | H20: Eficiente | I20: 0
A21: 210076100 | B21: Bolívar - Valle del Cauca | C21: Pacífico | D21: Valle del Cauca | E21: Entidades de gobierno | F21: 4.74 | G21: 4.74 | H21: Eficiente | I21: 0
A22: 210076400 | B22: La Unión - Valle del Cauca | C22: Pacífico | D22: Valle del Cauca | E22: Entidades de gobierno | F22: 4.52 | G22: 4.79 | H22: Eficiente | I22: 0.27
A23: 210081300 | B23: Fortul | C23: Llanos - Orinoquía | D23: Arauca | E23: Entidades de gobierno | F23: 4.4 | G23: 4.43 | H23: Eficiente | I23: 0.03
A24: 210085300 | B24: Sabanalarga - Casanare | C24: Llanos - Orinoquía | D24: Casanare | E24: Entidades de gobierno | F24: 4.91 | G24: 4.91 | H24: Eficiente | I24: 0
A25: 210085400 | B25: Támara | C25: Llanos - Orinoquía | D25: Casanare | E25: Entidades de gobierno | F25: 4.96 | G25: 4.96 | H25: Eficiente | I25: 0
A26: 210095200 | B26: Miraflores - Guaviare | C26: Amazonía | D26: Guaviare | E26: Entidades de gobierno | F26: 3.77 | G26: 3.85 | H26: Adecuado | I26: 0.08
A27: 210105001 | B27: Distrito Especial de Ciencia, Tecnologia e Innovaciónde Medellin | C27: Eje Cafetero y Antioquia | D27: Antioquia | E27: Entidades de gobierno | F27: 4.95 | G27: 4.98 | H27: Eficiente | I27: 0.03
A28: 210105101 | B28: Ciudad Bolívar | C28: Eje Cafetero y Antioquia | D28: Antioquia | E28: Entidades de gobierno | F28: 4.25 | G28: 4.65 | H28: Eficiente | I28: 0.4
A29: 210105501 | B29: Olaya | C29: Eje Cafetero y Antioquia | D29: Antioquia | E29: Entidades de gobierno | F29: 4.38 | G29: 4.17 | H29: Eficiente | I29: -0.21
A30: 210108001 | B30: Barranquilla, Distrito Especial, Industrial y Portuario | C30: Caribe | D30: Atlántico | E30: Entidades de gobierno | F30: 4.78 | G30: 4.8 | H30: Eficiente | I30: 0.02
A31: 210111001 | B31: Bogotá D.C. | C31: Central | D31: Bogotá D.C. | E31: Entidades de gobierno | F31: 4.94 | G31: 4.85 | H31: Eficiente | I31: -0.09
A32: 210113001 | B32: Cartagena de Indias, Distrito Turístico y Cultural | C32: Caribe | D32: Bolívar | E32: Entidades de gobierno | F32: 3.98 | G32: 4.05 | H32: Eficiente | I32: 0.07
A33: 210115001 | B33: Tunja | C33: Central | D33: Boyacá | E33: Entidades de gobierno | F33: 4.75 | G33: 4.87 | H33: Eficiente | I33: 0.12
A34: 210115401 | B34: La Victoria - Boyacá | C34: Central | D34: Boyacá | E34: Entidades de gobierno | F34: 3.93 | G34: 4.67 | H34: Eficiente | I34: 0.74
A35: 210117001 | B35: Manizales | C35: Eje Cafetero y Antioquia | D35: Caldas | E35: Entidades de gobierno | F35: 4.27 | G35: 4.67 | H35: Eficiente | I35: 0.4
A36: 210118001 | B36: Florencia - Caquetá | C36: Amazonía | D36: Caquetá | E36: Entidades de gobierno | F36: 3.76 | G36: 4.43 | H36: Eficiente | I36: 0.67
A37: 210119001 | B37: Popayán | C37: Pacífico | D37: Cauca | E37: Entidades de gobierno | F37: 4.26 | G37: 4.06 | H37: Eficiente | I37: -0.2
A38: 210119701 | B38: Santa Rosa - Cauca | C38: Pacífico | D38: Cauca | E38: Entidades de gobierno | F38: 4.05 | G38: 4.05 | H38: Eficiente | I38: 0
A39: 210120001 | B39: Valledupar | C39: Caribe | D39: Cesar | E39: Entidades de gobierno | F39: 4.21 | G39: 4.68 | H39: Eficiente | I39: 0.47
A40: 210123001 | B40: Montería | C40: Caribe | D40: Córdoba | E40: Entidades de gobierno | F40: 4.89 | G40: 4.9 | H40: Eficiente | I40: 0.01
A41: 210125001 | B41: Agua de Dios | C41: Central | D41: Cundinamarca | E41: Entidades de gobierno | F41: 4.66 | G41: 4.73 | H41: Eficiente | I41: 0.07
A42: 210127001 | B42: Quibdó | C42: Pacífico | D42: Chocó | E42: Entidades de gobierno | F42: 4.94 | G42: 4.47 | H42: Eficiente | I42: -0.47
A43: 210141001 | B43: Neiva | C43: Central | D43: Huila | E43: Entidades de gobierno | F43: 4.76 | G43: 4.52 | H43: Eficiente | I43: -0.24
A44: 210141801 | B44: Teruel | C44: Central | D44: Huila | E44: Entidades de gobierno | F44: 4.62 | G44: 4.83 | H44: Eficiente | I44: 0.21
A45: 210144001 | B45: Riohacha | C45: Caribe | D45: Guajira | E45: Entidades de gobierno | F45: 4.67 | G45: 4.7 | H45: Eficiente | I45: 0.03
A46: 210147001 | B46: Santa Marta, Distrito Turístico, Cultural e Histórico | C46: Caribe | D46: Magdalena | E46: Entidades de gobierno | F46: 4.55 | G46: 4.75 | H46: Eficiente | I46: 0.2
A47: 210150001 | B47: Villavicencio | C47: Llanos - Orinoquía | D47: Meta | E47: Entidades de gobierno | F47: 4.96 | G47: 4.79 | H47: Eficiente | I47: -0.17
A48: 210152001 | B48: San Juan de Pasto | C48: Pacífico | D48: Nariño | E48: Entidades de gobierno | F48: 5 | G48: 5 | H48: Eficiente | I48: 0
A49: 210154001 | B49: San José de Cúcuta | C49: Santanderes | D49: Norte de Santander | E49: Entidades de gobierno | F49: 4.9 | G49: 4.69 | H49: Eficiente | I49: -0.21
A50: 210163001 | B50: Armenia | C50: Eje Cafetero y Antioquia | D50: Quindío | E50: Entidades de gobierno | F50: 5 | G50: 5 | H50: Eficiente | I50: 0
A51: 210163401 | B51: La Tebaida | C51: Eje Cafetero y Antioquia | D51: Quindío | E51: Entidades de gobierno | F51: 4.77 | G51: 4.96 | H51: Eficiente | I51: 0.19
A52: 210166001 | B52: Pereira | C52: Eje Cafetero y Antioquia | D52: Risaralda | E52: Entidades de gobierno | F52: 4.52 | G52: 4.59 | H52: Eficiente | I52: 0.07
A53: 210168001 | B53: Bucaramanga | C53: Santanderes | D53: Santander | E53: Entidades de gobierno | F53: 4.61 | G53: 4.62 | H53: Eficiente | I53: 0.01
A54: 210168101 | B54: Bolívar - Santander | C54: Santanderes | D54: Santander | E54: Entidades de gobierno | F54: 4.96 | G54: 4.96 | H54: Eficiente | I54: 0
A55: 210170001 | B55: Sincelejo | C55: Caribe | D55: Sucre | E55: Entidades de gobierno | F55: 4.81 | G55: 4.81 | H55: Eficiente | I55: 0
A56: 210173001 | B56: Ibagué | C56: Central | D56: Tolima | E56: Entidades de gobierno | F56: 4.65 | G56: 4.56 | H56: Eficiente | I56: -0.09
A57: 210176001 | B57: Santiago de Cali | C57: Pacífico | D57: Valle del Cauca | E57: Entidades de gobierno | F57: 4.93 | G57: 4.94 | H57: Eficiente | I57: 0.01
A58: 210181001 | B58: Arauca | C58: Llanos - Orinoquía | D58: Arauca | E58: Entidades de gobierno | F58: 4.05 | G58: 3.8 | H58: Adecuado | I58: -0.25
A59: 210185001 | B59: Yopal | C59: Llanos - Orinoquía | D59: Casanare | E59: Entidades de gobierno | F59: 4.11 | G59: 4.34 | H59: Eficiente | I59: 0.23
A60: 210186001 | B60: San Miguel de Mocoa | C60: Amazonía | D60: Putumayo | E60: Entidades de gobierno | F60: 4.51 | G60: 4.51 | H60: Eficiente | I60: 0
A61: 210191001 | B61: Leticia | C61: Amazonía | D61: Amazonas | E61: Entidades de gobierno | F61: 4.35 | G61: 4.13 | H61: Eficiente | I61: -0.22
A62: 210194001 | B62: Puerto Inírida | C62: Amazonía | D62: Guainía | E62: Entidades de gobierno | F62: 4.48 | G62: 4.49 | H62: Eficiente | I62: 0.01
A63: 210197001 | B63: Mitú | C63: Amazonía | D63: Vaupés | E63: Entidades de gobierno | F63: 4.46 | G63: 4.52 | H63: Eficiente | I63: 0.06
A64: 210199001 | B64: Puerto Carreño | C64: Llanos - Orinoquía | D64: Vichada | E64: Entidades de gobierno | F64: 4.56 | G64: 4.98 | H64: Eficiente | I64: 0.42
A65: 210205002 | B65: Abejorral | C65: Eje Cafetero y Antioquia | D65: Antioquia | E65: Entidades de gobierno | F65: 3.93 | G65: 3.34 | H65: Adecuado | I65: -0.59
A66: 210225402 | B66: La Vega - Cundinamarca | C66: Central | D66: Cundinamarca | E66: Entidades de gobierno | F66: 4.83 | G66: 4.84 | H66: Eficiente | I66: 0.01
A67: 210263302 | B67: Génova | C67: Eje Cafetero y Antioquia | D67: Quindío | E67: Entidades de gobierno | F67: 4.67 | G67: 4.8 | H67: Eficiente | I67: =+G67-F67 -> 0.13
A68: 210268502 | B68: Onzaga | C68: Santanderes | D68: Santander | E68: Entidades de gobierno | F68: 4.91 | G68: 4.79 | H68: Eficiente | I68: -0.12
A69: 210315403 | B69: La Uvita | C69: Central | D69: Boyacá | E69: Entidades de gobierno | F69: 4.94 | G69: 5 | H69: Eficiente | I69: 0.06
A70: 210341503 | B70: Oporapa | C70: Central | D70: Huila | E70: Entidades de gobierno | F70: 4.97 | G70: 4.83 | H70: Eficiente | I70: -0.14
A71: 210347703 | B71: San Zenón | C71: Caribe | D71: Magdalena | E71: Entidades de gobierno | F71: 4.81 | G71: 4.94 | H71: Eficiente | I71: 0.13
A72: 210352203 | B72: Colón (Génova) - Nariño | C72: Pacífico | D72: Nariño | E72: Entidades de gobierno | F72: 4.45 | G72: 4.54 | H72: Eficiente | I72: 0.09
A73: 210354003 | B73: Ábrego | C73: Santanderes | D73: Norte de Santander | E73: Entidades de gobierno | F73: 4.85 | G73: 4.92 | H73: Eficiente | I73: 0.07
A74: 210376403 | B74: La Victoria - Valle del Cauca | C74: Pacífico | D74: Valle del Cauca | E74: Entidades de gobierno | F74: 4.72 | G74: 4.67 | H74: Eficiente | I74: -0.05
A75: 210405004 | B75: Abriaquí | C75: Eje Cafetero y Antioquia | D75: Antioquia | E75: Entidades de gobierno | F75: 4.4 | G75: 4.44 | H75: Eficiente | I75: 0.04
A76: 210405604 | B76: Remedios | C76: Eje Cafetero y Antioquia | D76: Antioquia | E76: Entidades de gobierno | F76: 4.58 | G76: 4.47 | H76: Eficiente | I76: -0.11
A77: 210415104 | B77: Boyacá | C77: Central | D77: Boyacá | E77: Entidades de gobierno | F77: 5 | G77: 5 | H77: Eficiente | I77: 0
A78: 210415204 | B78: Cómbita | C78: Central | D78: Boyacá | E78: Entidades de gobierno | F78: 4.87 | G78: 4.87 | H78: Eficiente | I78: 0
A79: 210415804 | B79: Tibaná | C79: Central | D79: Boyacá | E79: Entidades de gobierno | F79: 4.54 | G79: 4.54 | H79: Eficiente | I79: 0
A80: 210470204 | B80: Colosó (Ricaurte) | C80: Caribe | D80: Sucre | E80: Entidades de gobierno | F80: 4.83 | G80: 4.92 | H80: Eficiente | I80: 0.09
A81: 210473504 | B81: Ortega | C81: Central | D81: Tolima | E81: Entidades de gobierno | F81: 4.75 | G81: 4.8 | H81: Eficiente | I81: 0.05
A82: 210518205 | B82: Curillo | C82: Amazonía | D82: Caquetá | E82: Entidades de gobierno | F82: 3.28 | G82: 3.48 | H82: Adecuado | I82: 0.2
A83: 210525805 | B83: Tibacuy | C83: Central | D83: Cundinamarca | E83: Entidades de gobierno | F83: 4.82 | G83: 4.91 | H83: Eficiente | I83: 0.09
A84: 210527205 | B84: Condoto | C84: Pacífico | D84: Chocó | E84: Entidades de gobierno | F84: 4.72 | G84: 4.81 | H84: Eficiente | I84: 0.09
A85: 210547605 | B85: Remolino | C85: Caribe | D85: Magdalena | E85: Entidades de gobierno | F85: 4.11 | G85: 4.13 | H85: Eficiente | I85: 0.02
A86: 210552405 | B86: Leiva | C86: Pacífico | D86: Nariño | E86: Entidades de gobierno | F86: 3.98 | G86: 4.45 | H86: Eficiente | I86: 0.47
A87: 210554405 | B87: Los Patios | C87: Santanderes | D87: Norte de Santander | E87: Entidades de gobierno | F87: 4.9 | G87: 4.94 | H87: Eficiente | I87: 0.04
A88: 210568705 | B88: Santa Bárbara - Santander | C88: Santanderes | D88: Santander | E88: Entidades de gobierno | F88: 4.44 | G88: 4.45 | H88: Eficiente | I88: 0.01
A89: 210605206 | B89: Concepción - Antioquia | C89: Eje Cafetero y Antioquia | D89: Antioquia | E89: Entidades de gobierno | F89: 4.36 | G89: 4.45 | H89: Eficiente | I89: 0.09
A90: 210605306 | B90: Giraldo | C90: Eje Cafetero y Antioquia | D90: Antioquia | E90: Entidades de gobierno | F90: 4.74 | G90: 4.74 | H90: Eficiente | I90: 0
A91: 210608606 | B91: Repelón | C91: Caribe | D91: Atlántico | E91: Entidades de gobierno | F91: 4.8 | G91: 4.44 | H91: Eficiente | I91: -0.36
A92: 210613006 | B92: Achí | C92: Caribe | D92: Bolívar | E92: Entidades de gobierno | F92: 4.96 | G92: 4.65 | H92: Eficiente | I92: -0.31
A93: 210615106 | B93: Briceño - Boyacá | C93: Central | D93: Boyacá | E93: Entidades de gobierno | F93: 3.66 | G93: 4.46 | H93: Eficiente | I93: 0.8
A94: 210615806 | B94: Tibasosa | C94: Central | D94: Boyacá | E94: Entidades de gobierno | F94: 4.91 | G94: 4.98 | H94: Eficiente | I94: 0.07
A95: 210625506 | B95: Venecia - Cundinamarca | C95: Central | D95: Cundinamarca | E95: Entidades de gobierno | F95: 4.95 | G95: 4.95 | H95: Eficiente | I95: 0
A96: 210627006 | B96: Acandí | C96: Pacífico | D96: Chocó | E96: Entidades de gobierno | F96: 4.42 | G96: 4.51 | H96: Eficiente | I96: 0.09
A97: 210641006 | B97: Acevedo | C97: Central | D97: Huila | E97: Entidades de gobierno | F97: 4.7 | G97: 4.72 | H97: Eficiente | I97: 0.02
A98: 210641206 | B98: Colombia | C98: Central | D98: Huila | E98: Entidades de gobierno | F98: 5 | G98: 5 | H98: Eficiente | I98: 0
A99: 210641306 | B99: Gigante | C99: Central | D99: Huila | E99: Entidades de gobierno | F99: 4.8 | G99: 4.8 | H99: Eficiente | I99: 0
A100: 210650006 | B100: Acacías | C100: Llanos - Orinoquía | D100: Meta | E100: Entidades de gobierno | F100: 4.92 | G100: 4.96 | H100: Eficiente | I100: 0.04
A101: 210650606 | B101: Restrepo - Meta | C101: Llanos - Orinoquía | D101: Meta | E101: Entidades de gobierno | F101: 4.74 | G101: 4.82 | H101: Eficiente | I101: 0.08
A102: 210652506 | B102: Ospina | C102: Pacífico | D102: Nariño | E102: Entidades de gobierno | F102: 4.57 | G102: 4.59 | H102: Eficiente | I102: 0.02
A103: 210654206 | B103: Convención | C103: Santanderes | D103: Norte de Santander | E103: Entidades de gobierno | F103: 4.48 | G103: 4.8 | H103: Eficiente | I103: 0.32
A104: 210668406 | B104: Lebrija | C104: Santanderes | D104: Santander | E104: Entidades de gobierno | F104: 4.17 | G104: 4.3 | H104: Eficiente | I104: 0.13
A105: 210676306 | B105: Ginebra | C105: Pacífico | D105: Valle del Cauca | E105: Entidades de gobierno | F105: 4.4 | G105: 4.42 | H105: Eficiente | I105: 0.02
A106: 210676606 | B106: Restrepo - Valle del Cauca | C106: Pacífico | D106: Valle del Cauca | E106: Entidades de gobierno | F106: 4.81 | G106: 4.81 | H106: Eficiente | I106: 0
A107: 210705107 | B107: Briceño - Antioquia | C107: Eje Cafetero y Antioquia | D107: Antioquia | E107: Entidades de gobierno | F107: 3.81 | G107: 3.79 | H107: Adecuado | I107: -0.02
A108: 210705607 | B108: El Retiro | C108: Eje Cafetero y Antioquia | D108: Antioquia | E108: Entidades de gobierno | F108: 4.67 | G108: 4.87 | H108: Eficiente | I108: 0.2
A109: 210715407 | B109: Villa de Leyva | C109: Central | D109: Boyacá | E109: Entidades de gobierno | F109: 4.69 | G109: 4.57 | H109: Eficiente | I109: -0.12
A110: 210715507 | B110: Otanche | C110: Central | D110: Boyacá | E110: Entidades de gobierno | F110: 4.61 | G110: 4.61 | H110: Eficiente | I110: 0
A111: 210719807 | B111: Timbío | C111: Pacífico | D111: Cauca | E111: Entidades de gobierno | F111: 4.18 | G111: 4.15 | H111: Eficiente | I111: -0.03
A112: 210723807 | B112: Tierralta | C112: Caribe | D112: Córdoba | E112: Entidades de gobierno | F112: 3.91 | G112: 4.11 | H112: Eficiente | I112: 0.2
A113: 210725307 | B113: Girardot | C113: Central | D113: Cundinamarca | E113: Entidades de gobierno | F113: 4.34 | G113: 4.48 | H113: Eficiente | I113: 0.14
A114: 210725407 | B114: Lenguazaque | C114: Central | D114: Cundinamarca | E114: Entidades de gobierno | F114: 5 | G114: 5 | H114: Eficiente | I114: 0
A115: 210725807 | B115: Tibirita | C115: Central | D115: Cundinamarca | E115: Entidades de gobierno | F115: 3.96 | G115: 4.2 | H115: Eficiente | I115: 0.24
A116: 210741807 | B116: Timaná | C116: Central | D116: Huila | E116: Entidades de gobierno | F116: 4.91 | G116: 4.96 | H116: Eficiente | I116: 0.05
A117: 210747707 | B117: Santa Ana | C117: Caribe | D117: Magdalena | E117: Entidades de gobierno | F117: 4.05 | G117: 4.88 | H117: Eficiente | I117: 0.83
A118: 210752207 | B118: Consacá | C118: Pacífico | D118: Nariño | E118: Entidades de gobierno | F118: 4.26 | G118: 4.39 | H118: Eficiente | I118: 0.13
A119: 210768207 | B119: Concepción - Santander | C119: Santanderes | D119: Santander | E119: Entidades de gobierno | F119: 4.88 | G119: 4.93 | H119: Eficiente | I119: 0.05
A120: 210768307 | B120: Girón | C120: Santanderes | D120: Santander | E120: Entidades de gobierno | F120: 5 | G120: 5 | H120: Eficiente | I120: 0
A121: 210805308 | B121: Girardota | C121: Eje Cafetero y Antioquia | D121: Antioquia | E121: Entidades de gobierno | F121: 5 | G121: 4.84 | H121: Eficiente | I121: -0.16
A122: 210815808 | B122: Tinjacá | C122: Central | D122: Boyacá | E122: Entidades de gobierno | F122: 4.73 | G122: 4.74 | H122: Eficiente | I122: 0.01
A123: 210870508 | B123: Ovejas | C123: Caribe | D123: Sucre | E123: Entidades de gobierno | F123: 4.4 | G123: 4.53 | H123: Eficiente | I123: 0.13
A124: 210870708 | B124: San Marcos | C124: Caribe | D124: Sucre | E124: Entidades de gobierno | F124: 4.37 | G124: 4.52 | H124: Eficiente | I124: 0.15
A125: 210873408 | B125: Lérida | C125: Central | D125: Tolima | E125: Entidades de gobierno | F125: 4.67 | G125: 4.57 | H125: Eficiente | I125: -0.1
A126: 210905209 | B126: Concordia - Antioquia | C126: Eje Cafetero y Antioquia | D126: Antioquia | E126: Entidades de gobierno | F126: 4.71 | G126: 4.71 | H126: Eficiente | I126: 0
A127: 210905809 | B127: Titiribí | C127: Eje Cafetero y Antioquia | D127: Antioquia | E127: Entidades de gobierno | F127: 4.39 | G127: 4.35 | H127: Eficiente | I127: -0.04
A128: 210915109 | B128: Buenavista - Boyacá | C128: Central | D128: Boyacá | E128: Entidades de gobierno | F128: 4.12 | G128: 4.28 | H128: Eficiente | I128: 0.16
A129: 210919809 | B129: Timbiquí | C129: Pacífico | D129: Cauca | E129: Entidades de gobierno | F129: 4.38 | G129: 4.21 | H129: Eficiente | I129: -0.17
A130: 210954109 | B130: Bucarasica | C130: Santanderes | D130: Norte de Santander | E130: Entidades de gobierno | F130: 4.42 | G130: 4.34 | H130: Eficiente | I130: -0.08
A131: 210968209 | B131: Confines | C131: Santanderes | D131: Santander | E131: Entidades de gobierno | F131: 4.36 | G131: 4.38 | H131: Eficiente | I131: =+G131-F131 -> 0.02
A132: 210976109 | B132: Buenaventura | C132: Pacífico | D132: Valle del Cauca | E132: Entidades de gobierno | F132: 4.63 | G132: 4.57 | H132: Eficiente | I132: -0.06
A133: 211005310 | B133: Gómez Plata | C133: Eje Cafetero y Antioquia | D133: Antioquia | E133: Entidades de gobierno | F133: 4.38 | G133: 4.75 | H133: Eficiente | I133: 0.37
A134: 211013810 | B134: Tiquisio | C134: Caribe | D134: Bolívar | E134: Entidades de gobierno | F134: 4.16 | G134: 4.63 | H134: Eficiente | I134: 0.47
A135: 211015810 | B135: Tipacoque | C135: Central | D135: Boyacá | E135: Entidades de gobierno | F135: 4.19 | G135: 4.27 | H135: Eficiente | I135: 0.08
A136: 211018410 | B136: La Montañita | C136: Amazonía | D136: Caquetá | E136: Entidades de gobierno | F136: 3.82 | G136: 4.09 | H136: Eficiente | I136: 0.27
A137: 211018610 | B137: San José de la Fragua | C137: Amazonía | D137: Caquetá | E137: Entidades de gobierno | F137: 4.74 | G137: 4.76 | H137: Eficiente | I137: 0.02
A138: 211019110 | B138: Buenos Aires | C138: Pacífico | D138: Cauca | E138: Entidades de gobierno | F138: 4.83 | G138: 4.43 | H138: Eficiente | I138: -0.4
A139: 211020310 | B139: González | C139: Caribe | D139: Cesar | E139: Entidades de gobierno | F139: 4.37 | G139: 4.4 | H139: Eficiente | I139: 0.03
A140: 211020710 | B140: San Alberto | C140: Caribe | D140: Cesar | E140: Entidades de gobierno | F140: 4.61 | G140: 4.76 | H140: Eficiente | I140: 0.15
A141: 211027810 | B141: Unión Panamericana | C141: Pacífico | D141: Chocó | E141: Entidades de gobierno | F141: 4.56 | G141: 4.73 | H141: Eficiente | I141: 0.17
A142: 211044110 | B142: El Molino | C142: Caribe | D142: Guajira | E142: Entidades de gobierno | F142: 4.68 | G142: 4.72 | H142: Eficiente | I142: 0.04
A143: 211050110 | B143: Barranca de Upía | C143: Llanos - Orinoquía | D143: Meta | E143: Entidades de gobierno | F143: 4.98 | G143: 4.98 | H143: Eficiente | I143: 0
A144: 211052110 | B144: Buesaco | C144: Pacífico | D144: Nariño | E144: Entidades de gobierno | F144: 4.74 | G144: 4.45 | H144: Eficiente | I144: -0.29
A145: 211052210 | B145: Contadero | C145: Pacífico | D145: Nariño | E145: Entidades de gobierno | F145: 4.64 | G145: 5 | H145: Eficiente | I145: 0.36
A146: 211054810 | B146: Tibú | C146: Santanderes | D146: Norte de Santander | E146: Entidades de gobierno | F146: 4.67 | G146: 4.33 | H146: Eficiente | I146: -0.34
A147: 211070110 | B147: Buenavista - Sucre | C147: Caribe | D147: Sucre | E147: Entidades de gobierno | F147: 4.42 | G147: 4.6 | H147: Eficiente | I147: 0.18
A148: 211085010 | B148: Aguazul | C148: Llanos - Orinoquía | D148: Casanare | E148: Entidades de gobierno | F148: 4.8 | G148: 4.89 | H148: Eficiente | I148: 0.09
A149: 211085410 | B149: Tauramena. | C149: Llanos - Orinoquía | D149: Casanare | E149: Entidades de gobierno | F149: 4.96 | G149: 4.98 | H149: Eficiente | I149: 0.02
A150: 211105411 | B150: Liborina | C150: Eje Cafetero y Antioquia | D150: Antioquia | E150: Entidades de gobierno | F150: 4.75 | G150: 4.76 | H150: Eficiente | I150: 0.01
A151: 211115511 | B151: Pachavita | C151: Central | D151: Boyacá | E151: Entidades de gobierno | F151: 4.41 | G151: 4.34 | H151: Eficiente | I151: -0.07
A152: 211120011 | B152: Aguachica | C152: Caribe | D152: Cesar | E152: Entidades de gobierno | F152: 3.87 | G152: 3.88 | H152: Adecuado | I152: 0.01
A153: 211150711 | B153: Vista Hermosa | C153: Llanos - Orinoquía | D153: Meta | E153: Entidades de gobierno | F153: 4.67 | G153: 4.73 | H153: Eficiente | I153: 0.06
A154: 211152411 | B154: Linares | C154: Pacífico | D154: Nariño | E154: Entidades de gobierno | F154: 4.11 | G154: 4.11 | H154: Eficiente | I154: 0
A155: 211163111 | B155: Buenavista - Quindío | C155: Eje Cafetero y Antioquia | D155: Quindío | E155: Entidades de gobierno | F155: 4.65 | G155: 4.85 | H155: Eficiente | I155: 0.2
A156: 211168211 | B156: Contratación | C156: Santanderes | D156: Santander | E156: Entidades de gobierno | F156: 4.31 | G156: 4.93 | H156: Eficiente | I156: 0.62
A157: 211173411 | B157: Líbano | C157: Central | D157: Tolima | E157: Entidades de gobierno | F157: 3.82 | G157: 4.01 | H157: Eficiente | I157: 0.19
A158: 211176111 | B158: Guadalajara de Buga | C158: Pacífico | D158: Valle del Cauca | E158: Entidades de gobierno | F158: 4.46 | G158: 4.6 | H158: Eficiente | I158: 0.14
A159: 211205212 | B159: Copacabana | C159: Eje Cafetero y Antioquia | D159: Antioquia | E159: Entidades de gobierno | F159: 4.63 | G159: 4.77 | H159: Eficiente | I159: 0.14
A160: 211213212 | B160: Córdoba - Bolívar | C160: Caribe | D160: Bolívar | E160: Entidades de gobierno | F160: 3.27 | G160: 3.28 | H160: Adecuado | I160: 0.01
A161: 211215212 | B161: Coper | C161: Central | D161: Boyacá | E161: Entidades de gobierno | F161: 4.77 | G161: 4.8 | H161: Eficiente | I161: 0.03
A162: 211219212 | B162: Corinto | C162: Pacífico | D162: Cauca | E162: Entidades de gobierno | F162: 4.4 | G162: 4.65 | H162: Eficiente | I162: 0.25
A163: 211225312 | B163: Granada - Cundinamarca | C163: Central | D163: Cundinamarca | E163: Entidades de gobierno | F163: 4.86 | G163: 4.86 | H163: Eficiente | I163: 0
A164: 211225612 | B164: Ricaurte - Cundinamarca | C164: Central | D164: Cundinamarca | E164: Entidades de gobierno | F164: 4.91 | G164: 4.85 | H164: Eficiente | I164: -0.06
A165: 211252612 | B165: Ricaurte - Nariño | C165: Pacífico | D165: Nariño | E165: Entidades de gobierno | F165: 4.77 | G165: 4.77 | H165: Eficiente | I165: 0
A166: 211263212 | B166: Córdoba - Quindío | C166: Eje Cafetero y Antioquia | D166: Quindío | E166: Entidades de gobierno | F166: 3.65 | G166: 3.26 | H166: Adecuado | I166: -0.39
A167: 211305113 | B167: Buriticá | C167: Eje Cafetero y Antioquia | D167: Antioquia | E167: Entidades de gobierno | F167: 4.12 | G167: 4.52 | H167: Eficiente | I167: 0.4
A168: 211305313 | B168: Granada - Antioquia | C168: Eje Cafetero y Antioquia | D168: Antioquia | E168: Entidades de gobierno | F168: 3.62 | G168: 3.77 | H168: Adecuado | I168: 0.15
A169: 211317013 | B169: Aguadas - Caldas | C169: Eje Cafetero y Antioquia | D169: Caldas | E169: Entidades de gobierno | F169: 4.23 | G169: 4.7 | H169: Eficiente | I169: 0.47
A170: 211317513 | B170: Pácora | C170: Eje Cafetero y Antioquia | D170: Caldas | E170: Entidades de gobierno | F170: 4.37 | G170: 4.88 | H170: Eficiente | I170: 0.51
A171: 211319513 | B171: Padilla | C171: Pacífico | D171: Cauca | E171: Entidades de gobierno | F171: 4.24 | G171: 4.3 | H171: Eficiente | I171: 0.06
A172: 211320013 | B172: Agustín Codazzi | C172: Caribe | D172: Cesar | E172: Entidades de gobierno | F172: 4.64 | G172: 4.71 | H172: Eficiente | I172: 0.07
A173: 211325513 | B173: Pacho | C173: Central | D173: Cundinamarca | E173: Entidades de gobierno | F173: 4.96 | G173: 4.97 | H173: Eficiente | I173: 0.01
A174: 211327413 | B174: Lloró | C174: Pacífico | D174: Chocó | E174: Entidades de gobierno | F174: 4.81 | G174: 4.82 | H174: Eficiente | I174: 0.01
A175: 211341013 | B175: El Agrado | C175: Central | D175: Huila | E175: Entidades de gobierno | F175: 5 | G175: 5 | H175: Eficiente | I175: 0
A176: 211350313 | B176: Granada - Meta | C176: Llanos - Orinoquía | D176: Meta | E176: Entidades de gobierno | F176: 4.95 | G176: 4.95 | H176: Eficiente | I176: 0
A177: 211354313 | B177: Gramalote | C177: Santanderes | D177: Norte de Santander | E177: Entidades de gobierno | F177: 4.45 | G177: 4.45 | H177: Eficiente | I177: 0
A178: 211368013 | B178: Aguada - Santander | C178: Santanderes | D178: Santander | E178: Entidades de gobierno | F178: 5 | G178: 5 | H178: Eficiente | I178: 0
A179: 211370713 | B179: San Onofre | C179: Caribe | D179: Sucre | E179: Entidades de gobierno | F179: 4.35 | G179: 4.12 | H179: Eficiente | I179: -0.23
A180: 211376113 | B180: Bugalagrande | C180: Pacífico | D180: Valle del Cauca | E180: Entidades de gobierno | F180: 4.59 | G180: 4.74 | H180: Eficiente | I180: 0.15
A181: 211415114 | B181: Busbanzá | C181: Central | D181: Boyacá | E181: Entidades de gobierno | F181: 4.6 | G181: 4.6 | H181: Eficiente | I181: 0
A182: 211415514 | B182: Páez - Boyacá | C182: Central | D182: Boyacá | E182: Entidades de gobierno | F182: 4.17 | G182: 4.15 | H182: Eficiente | I182: -0.02
A183: 211415814 | B183: Toca | C183: Central | D183: Boyacá | E183: Entidades de gobierno | F183: 4.62 | G183: 4.72 | H183: Eficiente | I183: 0.1
A184: 211417614 | B184: Riosucio - Caldas | C184: Eje Cafetero y Antioquia | D184: Caldas | E184: Entidades de gobierno | F184: 4.89 | G184: 4.71 | H184: Eficiente | I184: -0.18
A185: 211420614 | B185: Río de Oro | C185: Caribe | D185: Cesar | E185: Entidades de gobierno | F185: 4.49 | G185: 4.6 | H185: Eficiente | I185: 0.11
A186: 211425214 | B186: Cota | C186: Central | D186: Cundinamarca | E186: Entidades de gobierno | F186: 3.94 | G186: 4.76 | H186: Eficiente | I186: 0.82
A187: 211505315 | B187: Guadalupe - Antioquia | C187: Eje Cafetero y Antioquia | D187: Antioquia | E187: Entidades de gobierno | F187: 4.33 | G187: 4.53 | H187: Eficiente | I187: 0.2
A188: 211505615 | B188: Rionegro - Antioquia | C188: Eje Cafetero y Antioquia | D188: Antioquia | E188: Entidades de gobierno | F188: 4.7 | G188: 4.96 | H188: Eficiente | I188: 0.26
A189: 211515215 | B189: Corrales | C189: Central | D189: Boyacá | E189: Entidades de gobierno | F189: 4.62 | G189: 4.62 | H189: Eficiente | I189: 0
A190: 211525815 | B190: Tocaima | C190: Central | D190: Cundinamarca | E190: Entidades de gobierno | F190: 4.77 | G190: 4.79 | H190: Eficiente | I190: 0.02
A191: 211527615 | B191: Riosucio - Chocó | C191: Pacífico | D191: Chocó | E191: Entidades de gobierno | F191: 4.81 | G191: 4.81 | H191: Eficiente | I191: 0
A192: 211541615 | B192: Rivera | C192: Central | D192: Huila | E192: Entidades de gobierno | F192: 4.98 | G192: 4.98 | H192: Eficiente | I192: 0
A193: 211552215 | B193: Córdoba - Nariño | C193: Pacífico | D193: Nariño | E193: Entidades de gobierno | F193: 4.96 | G193: 5 | H193: Eficiente | I193: 0.04
A194: 211568615 | B194: Rionegro - Santander | C194: Santanderes | D194: Santander | E194: Entidades de gobierno | F194: 3.98 | G194: 3.3 | H194: Adecuado | I194: -0.68
A195: 211570215 | B195: Corozal | C195: Caribe | D195: Sucre | E195: Entidades de gobierno | F195: 4.53 | G195: 4.45 | H195: Eficiente | I195: =+G195-F195 -> -0.08
A196: 211585015 | B196: Chámeza | C196: Llanos - Orinoquía | D196: Casanare | E196: Entidades de gobierno | F196: 4.76 | G196: 4.76 | H196: Eficiente | I196: 0
A197: 211585315 | B197: Sácama | C197: Llanos - Orinoquía | D197: Casanare | E197: Entidades de gobierno | F197: 4.69 | G197: 4.71 | H197: Eficiente | I197: 0.02
A198: 211595015 | B198: Calamar - Guaviare | C198: Amazonía | D198: Guaviare | E198: Entidades de gobierno | F198: 4.94 | G198: 4.98 | H198: Eficiente | I198: 0.04
A199: 211615516 | B199: Paipa | C199: Central | D199: Boyacá | E199: Entidades de gobierno | F199: 4.99 | G199: 4.91 | H199: Eficiente | I199: -0.08
A200: 211615816 | B200: Togüí | C200: Central | D200: Boyacá | E200: Entidades de gobierno | F200: 4.56 | G200: 5 | H200: Eficiente | I200: 0.44
... 3176 more rows

Sheet HT (hidden)
A1: CONTADURIA GENERAL DE LA NACIÓN
S2: Capitales
A3: C17B - SALDOS REPORTADOS POR CÓDIGO DE ENTIDAD Y CUENTA - CONSOLIDADOS
A4: CENTRO DE CONSOLIDACIÓN: id: 80 | TERRITORIAL | Q4: Estado de Resultados
A6: Versión del plan de cuentas: | AS6: Periodo: 01/10/2019 | Versión: 01/10/2019
A8: Cifras en pesos
C9: 1000000
D10: Activos 2021 | E10: Activos 2020 | F10: ABS Activos | G10: % Activos | H10: CUENTAS POR COBRAR 2021 | I10: CUENTAS POR COBRAR 2020 | J10: ABS CXC | K10: % CXC | L10: IMPUESTOS RETENCIÓN EN LA FUENTE Y ANTICIPOS DE IMPUESTOS 2021 | M10: IMPUESTOS RETENCIÓN EN LA FUENTE Y ANTICIPOS DE IMPUESTOS 2020 | N10: CONTRIBUCIONES TASAS E INGRESOS NO TRIBUTARIOS 2021 | O10: CONTRIBUCIONES TASAS E INGRESOS NO TRIBUTARIOS 2020 | P10: APORTES SOBRE LA NÓMINA 2021 | Q10: APORTES SOBRE LA NÓMINA 2020 | R10: RENTAS PARAFISCALES 2021 | S10: RENTAS PARAFISCALES 2020 | T10: REGALÍAS 2021 | U10: REGALÍAS 2020 | V10: VENTA DE BIENES 2021 | W10: VENTA DE BIENES 2020 | X10: PRESTACIÓN DE SERVICIOS 2021 | Y10: PRESTACIÓN DE SERVICIOS 2020 | Z10: PRESTACIÓN DE SERVICIOS PÚBLICOS 2021 | AA10: PRESTACIÓN DE SERVICIOS PÚBLICOS 2020 | AB10: PRESTACIÓN DE SERVICIOS DE SALUD 2021 | AC10: PRESTACIÓN DE SERVICIOS DE SALUD 2020 | AD10: RECURSOS DESTINADOS A LA FINANCIACIÓN DEL SISTEMA GENERAL DE SEGURIDAD SOCIAL EN SALUD 2021 | AE10: RECURSOS DESTINADOS A LA FINANCIACIÓN DEL SISTEMA GENERAL DE SEGURIDAD SOCIAL EN SALUD 2020 | AF10: ADMINISTRACIÓN DE LA SEGURIDAD SOCIAL EN SALUD 2021 | AG10: ADMINISTRACIÓN DE LA SEGURIDAD SOCIAL EN SALUD 2020 | AH10: SUBVENCIONES POR COBRAR 2021 | AI10: SUBVENCIONES POR COBRAR 2020 | AJ10: RECURSOS DE LOS FONDOS DE PENSIONES ADMINISTRADOS POR COLPENSIONES 2021 | AK10: RECURSOS DE LOS FONDOS DE PENSIONES ADMINISTRADOS POR COLPENSIONES 2020 | AL10: FONDO DE AHORRO Y ESTABILIZACIÓN PETROLERA 2021 | AM10: FONDO DE AHORRO Y ESTABILIZACIÓN PETROLERA 2020 | AN10: DERECHOS DE RECOMPRA DE CUENTAS POR COBRAR 2021 | AO10: DERECHOS DE RECOMPRA DE CUENTAS POR COBRAR 2020 | AP10: SALDOS DISPONIBLES EN PATRIMONIOS AUTÓNOMOS Y OTROS RECURSOS ENTREGADOS EN ADMINISTRACIÓN 2021 | AQ10: SALDOS DISPONIBLES EN PATRIMONIOS AUTÓNOMOS Y OTROS RECURSOS ENTREGADOS EN ADMINISTRACIÓN 2020 | AR10: TRANSFERENCIAS POR COBRAR 2021 | AS10: TRANSFERENCIAS POR COBRAR 2020 | AT10: OTRAS CUENTAS POR COBRAR 2021 | AU10: OTRAS CUENTAS POR COBRAR 2020 | AV10: CUENTAS POR COBRAR DE DIFÍCIL RECAUDO 2021 | AW10: CUENTAS POR COBRAR DE DIFÍCIL RECAUDO 2020 | AX10: DETERIORO ACUMULADO DE CUENTAS POR COBRAR (CR) 2021 | AY10: DETERIORO ACUMULADO DE CUENTAS POR COBRAR (CR) 2020 | AZ10: VENTA DE BIENES 2021 | BA10: VENTA DE BIENES 2020 | BB10: PRESTACIÓN DE SERVICIOS 2021 | BC10: PRESTACIÓN DE SERVICIOS 2020 | BD10: SERVICIO DE ENERGÍA 2021 | BE10: SERVICIO DE ENERGÍA 2020 | BF10: SERVICIO DE ACUEDUCTO 2021 | BG10: SERVICIO DE ACUEDUCTO 2020 | BH10: SERVICIO DE ALCANTARILLADO 2021 | BI10: SERVICIO DE ALCANTARILLADO 2020 | BJ10: SERVICIO DE ASEO 2021 | BK10: SERVICIO DE ASEO 2020 | BL10: SERVICIO DE GAS COMBUSTIBLE 2021 | BM10: SERVICIO DE GAS COMBUSTIBLE 2020 | BN10: SERVICIO DE TELECOMUNICACIONES 2021 | BO10: SERVICIO DE TELECOMUNICACIONES 2020 | BP10: PRESTACIÓN DE SERVICIOS DE SALUD 2021 | BQ10: PRESTACIÓN DE SERVICIOS DE SALUD 2020 | BR10: ADMINISTRACIÓN DE LA SEGURIDAD SOCIAL EN SALUD 2021 | BS10: ADMINISTRACIÓN DE LA SEGURIDAD SOCIAL EN SALUD 2020 | BT10: RECURSOS DE LOS FONDOS DE PENSIONES ADMINISTRADOS POR COLPENSIONES 2021 | BU10: RECURSOS DE LOS FONDOS DE PENSIONES ADMINISTRADOS POR COLPENSIONES 2020 | BV10: IMPUESTOS 2021 | BW10: IMPUESTOS 2020 | BX10: CONTRIBUCIONES TASAS E INGRESOS NO TRIBUTARIOS 2021 | BY10: CONTRIBUCIONES TASAS E INGRESOS NO TRIBUTARIOS 2020 | BZ10: APORTES SOBRE LA NÓMINA 2021 | CA10: APORTES SOBRE LA NÓMINA 2020 | CB10: RECURSOS DESTINADOS A LA FINANCIACIÓN DEL SISTEMA GENERAL DE SEGURIDAD SOCIAL EN SALUD 2021 | CC10: RECURSOS DESTINADOS A LA FINANCIACIÓN DEL SISTEMA GENERAL DE SEGURIDAD SOCIAL EN SALUD 2020 | CD10: TRAS CUENTAS POR COBRAR 2021 | CE10: TRAS CUENTAS POR COBRAR 2020 | CF10: CUENTAS POR COBRAR A COSTO AMORTIZADO 2021 | CG10: CUENTAS POR COBRAR A COSTO AMORTIZADO 2020 | CH10: DETERIORO ACUMULADO DE CUENTAS POR COBRAR A COSTO AMORTIZADO (CR) 2021 | CI10: DETERIORO ACUMULADO DE CUENTAS POR COBRAR A COSTO AMORTIZADO (CR) 2020 | CJ10: PLAN DE ACTIVOS PARA BENEFICIOS POSEMPLEO 2021 | CK10: PLAN DE ACTIVOS PARA BENEFICIOS POSEMPLEO 2020 | CL10: ABS PlanActivos | CM10: % PlanActivos | CN10: PASIVOS 2021 | CO10: PASIVOS 2020 | CP10: ABS Pasivos | CQ10: % Pasivos | CR10: EMISIÓN Y COLOCACIÓN DE TÍTULOS DE DEUDA 2021 | CS10: EMISIÓN Y COLOCACIÓN DE TÍTULOS DE DEUDA 2020 | CT10: ABS Emision | CU10: % Emision | CV10: PRÉSTAMOS POR PAGAR 2021 | CW10: PRÉSTAMOS POR PAGAR 2020 | CX10: ABS Prestamos | CY10: % Prestamos | CZ10: CÁLCULO ACTUARIAL DE PENSIONES ACTUALES 2021 | DA10: CÁLCULO ACTUARIAL DE PENSIONES ACTUALES 2020 | DB10: CÁLCULO ACTUARIAL PASIVO PENSIONAL CONMUTADO 2021 | DC10: CÁLCULO ACTUARIAL PASIVO PENSIONAL CONMUTADO 2020 | DD10: PATRIMONIO 2021 | DE10: PATRIMONIO 2020 | DF10: ABS Patrimonio | DG10: % Patrimonio | DH10: INGRESOS 2021 | DI10: INGRESOS 2020 | DJ10: ABS Ingresos | DK10: % Ingresos | DL10: IMPUESTOS 2021 | DM10: IMPUESTOS 2020 | DN10: ABS Impuestos | DO10: % Impuestos | DP10: TRANSFERENCIAS Y SUBVENCIONES 2021 | DQ10: TRANSFERENCIAS Y SUBVENCIONES 2020 | DR10: ABS Transferencias | DS10: % Transferencias | DT10: GASTOS 2021 | DU10: GASTOS 2020 | DV10: GASTO PÚBLICO SOCIAL 2021 | DW10: GASTO PÚBLICO SOCIAL 2020 | DX10: ABS GastoPublico | DY10: % GastoPublico | DZ10: CIERRE DE INGRESOS, GASTOS Y COSTOS 2021 | EA10: CIERRE DE INGRESOS, GASTOS Y COSTOS 2020 | EB10: ABS Resultado | EC10: % Resultado | ED10: COSTOS DE VENTAS 2021 | EE10: COSTOS DE VENTAS 2020
D11: ACTIVOS | E11: ACTIVOS | H11: CUENTAS POR COBRAR | I11: CUENTAS POR COBRAR | L11: IMPUESTOS RETENCIÓN EN LA FUENTE Y ANTICIPOS DE IMPUESTOS | M11: IMPUESTOS RETENCIÓN EN LA FUENTE Y ANTICIPOS DE IMPUESTOS | N11: CONTRIBUCIONES TASAS E INGRESOS NO TRIBUTARIOS | O11: CONTRIBUCIONES TASAS E INGRESOS NO TRIBUTARIOS | P11: APORTES SOBRE LA NÓMINA | Q11: APORTES SOBRE LA NÓMINA | R11: RENTAS PARAFISCALES | S11: RENTAS PARAFISCALES | T11: REGALÍAS | U11: REGALÍAS | V11: VENTA DE BIENES | W11: VENTA DE BIENES | X11: PRESTACIÓN DE SERVICIOS | Y11: PRESTACIÓN DE SERVICIOS | Z11: PRESTACIÓN DE SERVICIOS PÚBLICOS | AA11: PRESTACIÓN DE SERVICIOS PÚBLICOS | AB11: PRESTACIÓN DE SERVICIOS DE SALUD | AC11: PRESTACIÓN DE SERVICIOS DE SALUD | AD11: RECURSOS DESTINADOS A LA FINANCIACIÓN DEL SISTEMA GENERAL DE SEGURIDAD SOCIAL EN SALUD | AE11: RECURSOS DESTINADOS A LA FINANCIACIÓN DEL SISTEMA GENERAL DE SEGURIDAD SOCIAL EN SALUD | AF11: ADMINISTRACIÓN DEL SISTEMA DE SEGURIDAD SOCIAL EN SALUD | AG11: ADMINISTRACIÓN DEL SISTEMA DE SEGURIDAD SOCIAL EN SALUD | AH11: SUBVENCIONES POR COBRAR | AI11: SUBVENCIONES POR COBRAR | AJ11: RECURSOS DE LOS FONDOS DE PENSIONES ADMINISTRADOS POR COLPENSIONES | AK11: RECURSOS DE LOS FONDOS DE PENSIONES ADMINISTRADOS POR COLPENSIONES | AL11: FONDO DE AHORRO Y ESTABILIZACIÓN PETROLERA | AM11: FONDO DE AHORRO Y ESTABILIZACIÓN PETROLERA | AN11: DERECHOS DE RECOMPRA DE CUENTAS POR COBRAR | AO11: DERECHOS DE RECOMPRA DE CUENTAS POR COBRAR | AP11: SALDOS DISPONIBLES EN PATRIMONIOS AUTÓNOMOS Y OTROS RECURSOS ENTREGADOS EN ADMINISTRACIÓN | AQ11: SALDOS DISPONIBLES EN PATRIMONIOS AUTÓNOMOS Y OTROS RECURSOS ENTREGADOS EN ADMINISTRACIÓN | AR11: TRANSFERENCIAS POR COBRAR | AS11: TRANSFERENCIAS POR COBRAR | AT11: OTRAS CUENTAS POR COBRAR | AU11: OTRAS CUENTAS POR COBRAR | AV11: CUENTAS POR COBRAR DE DIFÍCIL RECAUDO | AW11: CUENTAS POR COBRAR DE DIFÍCIL RECAUDO | AX11: DETERIORO ACUMULADO DE CUENTAS POR COBRAR (CR) | AY11: DETERIORO ACUMULADO DE CUENTAS POR COBRAR (CR) | AZ11: CUENTAS POR COBRAR A COSTO AMORTIZADO | BA11: CUENTAS POR COBRAR A COSTO AMORTIZADO | BB11: DETERIORO ACUMULADO DE CUENTAS POR COBRAR A COSTO AMORTIZADO (CR) | BC11: DETERIORO ACUMULADO DE CUENTAS POR COBRAR A COSTO AMORTIZADO (CR) | BD11: PLAN DE ACTIVOS PARA BENEFICIOS POSEMPLEO | BE11: PLAN DE ACTIVOS PARA BENEFICIOS POSEMPLEO | CN11: PASIVOS | CO11: PASIVOS | CR11: EMISIÓN Y COLOCACIÓN DE TÍTULOS DE DEUDA | CS11: EMISIÓN Y COLOCACIÓN DE TÍTULOS DE DEUDA | CV11: PRÉSTAMOS POR PAGAR | CW11: PRÉSTAMOS POR PAGAR | CZ11: CÁLCULO ACTUARIAL DE PENSIONES ACTUALES | DA11: CÁLCULO ACTUARIAL DE PENSIONES ACTUALES | DB11: CÁLCULO ACTUARIAL PASIVO PENSIONAL CONMUTADO | DC11: CÁLCULO ACTUARIAL PASIVO PENSIONAL CONMUTADO | DD11: PATRIMONIO | DE11: PATRIMONIO | DH11: INGRESOS | DI11: INGRESOS | DL11: IMPUESTOS | DM11: IMPUESTOS | DP11: TRANSFERENCIAS Y SUBVENCIONES | DQ11: TRANSFERENCIAS Y SUBVENCIONES | DT11: GASTOS | DU11: GASTOS | DV11: GASTO PÚBLICO SOCIAL | DW11: GASTO PÚBLICO SOCIAL | DZ11: CIERRE DE INGRESOS, GASTOS Y COSTOS | EA11: CIERRE DE INGRESOS, GASTOS Y COSTOS | ED11: COSTOS DE VENTAS | EE11: COSTOS DE VENTAS
D12: 2019 | E12: 2018 | H12: 2019 | I12: 2018 | L12: 2019 | M12: 2018 | N12: 2019 | O12: 2018 | P12: 2019 | Q12: 2018 | R12: 2019 | S12: 2018 | T12: 2019 | U12: 2018 | V12: 2019 | W12: 2018 | X12: 2019 | Y12: 2018 | Z12: 2019 | AA12: 2018 | AB12: 2019 | AC12: 2018 | AD12: 2019 | AE12: 2018 | AF12: 2019 | AG12: 2018 | AH12: 2019 | AI12: 2018 | AJ12: 2019 | AK12: 2018 | AL12: 2019 | AM12: 2018 | AN12: 2019 | AO12: 2018 | AP12: 2019 | AQ12: 2018 | AR12: 2019 | AS12: 2018 | AT12: 2019 | AU12: 2018 | AV12: 2019 | AW12: 2018 | AX12: 2019 | AY12: 2018 | AZ12: 2019 | BA12: 2018 | BB12: 2019 | BC12: 2018 | BD12: 2019 | BE12: 2018 | CN12: 2019 | CO12: 2018 | CR12: 2019 | CS12: 2018 | CV12: 2019 | CW12: 2018 | CZ12: 2019 | DA12: 2018 | DB12: 2019 | DC12: 2018 | DD12: 2019 | DE12: 2018 | DH12: 2019 | DI12: 2018 | DL12: 2019 | DM12: 2018 | DP12: 2019 | DQ12: 2018 | DT12: 2019 | DU12: 2018 | DV12: 2019 | DW12: 2018 | DZ12: 2019 | EA12: 2018 | ED12: 2019 | EE12: 2018
D13: ACTIVOS 2019 | E13: ACTIVOS 2018 | H13: CUENTAS POR COBRAR 2019 | I13: CUENTAS POR COBRAR 2018 | L13: IMPUESTOS RETENCIÓN EN LA FUENTE Y ANTICIPOS DE IMPUESTOS 2019 | M13: IMPUESTOS RETENCIÓN EN LA FUENTE Y ANTICIPOS DE IMPUESTOS 2018 | N13: CONTRIBUCIONES TASAS E INGRESOS NO TRIBUTARIOS 2019 | O13: CONTRIBUCIONES TASAS E INGRESOS NO TRIBUTARIOS 2018 | P13: APORTES SOBRE LA NÓMINA 2019 | Q13: APORTES SOBRE LA NÓMINA 2018 | R13: RENTAS PARAFISCALES 2019 | S13: RENTAS PARAFISCALES 2018 | T13: REGALÍAS 2019 | U13: REGALÍAS 2018 | V13: VENTA DE BIENES 2019 | W13: VENTA DE BIENES 2018 | X13: PRESTACIÓN DE SERVICIOS 2019 | Y13: PRESTACIÓN DE SERVICIOS 2018 | Z13: PRESTACIÓN DE SERVICIOS PÚBLICOS 2019 | AA13: PRESTACIÓN DE SERVICIOS PÚBLICOS 2018 | AB13: PRESTACIÓN DE SERVICIOS DE SALUD 2019 | AC13: PRESTACIÓN DE SERVICIOS DE SALUD 2018 | AD13: RECURSOS DESTINADOS A LA FINANCIACIÓN DEL SISTEMA GENERAL DE SEGURIDAD SOCIAL EN SALUD 2019 | AE13: RECURSOS DESTINADOS A LA FINANCIACIÓN DEL SISTEMA GENERAL DE SEGURIDAD SOCIAL EN SALUD 2018 | AF13: ADMINISTRACIÓN DEL SISTEMA DE SEGURIDAD SOCIAL EN SALUD 2019 | AG13: ADMINISTRACIÓN DEL SISTEMA DE SEGURIDAD SOCIAL EN SALUD 2018 | AH13: SUBVENCIONES POR COBRAR 2019 | AI13: SUBVENCIONES POR COBRAR 2018 | AJ13: RECURSOS DE LOS FONDOS DE PENSIONES ADMINISTRADOS POR COLPENSIONES 2019 | AK13: RECURSOS DE LOS FONDOS DE PENSIONES ADMINISTRADOS POR COLPENSIONES 2018 | AL13: FONDO DE AHORRO Y ESTABILIZACIÓN PETROLERA 2019 | AM13: FONDO DE AHORRO Y ESTABILIZACIÓN PETROLERA 2018 | AN13: DERECHOS DE RECOMPRA DE CUENTAS POR COBRAR 2019 | AO13: DERECHOS DE RECOMPRA DE CUENTAS POR COBRAR 2018 | AP13: SALDOS DISPONIBLES EN PATRIMONIOS AUTÓNOMOS Y OTROS RECURSOS ENTREGADOS EN ADMINISTRACIÓN 2019 | AQ13: SALDOS DISPONIBLES EN PATRIMONIOS AUTÓNOMOS Y OTROS RECURSOS ENTREGADOS EN ADMINISTRACIÓN 2018 | AR13: TRANSFERENCIAS POR COBRAR 2019 | AS13: TRANSFERENCIAS POR COBRAR 2018 | AT13: OTRAS CUENTAS POR COBRAR 2019 | AU13: OTRAS CUENTAS POR COBRAR 2018 | AV13: CUENTAS POR COBRAR DE DIFÍCIL RECAUDO 2019 | AW13: CUENTAS POR COBRAR DE DIFÍCIL RECAUDO 2018 | AX13: DETERIORO ACUMULADO DE CUENTAS POR COBRAR (CR) 2019 | AY13: DETERIORO ACUMULADO DE CUENTAS POR COBRAR (CR) 2018 | AZ13: CUENTAS POR COBRAR A COSTO AMORTIZADO 2019 | BA13: CUENTAS POR COBRAR A COSTO AMORTIZADO 2018 | BB13: DETERIORO ACUMULADO DE CUENTAS POR COBRAR A COSTO AMORTIZADO (CR) 2019 | BC13: DETERIORO ACUMULADO DE CUENTAS POR COBRAR A COSTO AMORTIZADO (CR) 2018 | BD13: PLAN DE ACTIVOS PARA BENEFICIOS POSEMPLEO 2019 | BE13: PLAN DE ACTIVOS PARA BENEFICIOS POSEMPLEO 2018 | CN13: PASIVOS 2019 | CO13: PASIVOS 2018 | CR13: EMISIÓN Y COLOCACIÓN DE TÍTULOS DE DEUDA 2019 | CS13: EMISIÓN Y COLOCACIÓN DE TÍTULOS DE DEUDA 2018 | CV13: PRÉSTAMOS POR PAGAR 2019 | CW13: PRÉSTAMOS POR PAGAR 2018 | CZ13: CÁLCULO ACTUARIAL DE PENSIONES ACTUALES 2019 | DA13: CÁLCULO ACTUARIAL DE PENSIONES ACTUALES 2018 | DB13: CÁLCULO ACTUARIAL PASIVO PENSIONAL CONMUTADO 2019 | DC13: CÁLCULO ACTUARIAL PASIVO PENSIONAL CONMUTADO 2018 | DD13: PATRIMONIO 2019 | DE13: PATRIMONIO 2018 | DH13: INGRESOS 2019 | DI13: INGRESOS 2018 | DL13: IMPUESTOS 2019 | DM13: IMPUESTOS 2018 | DP13: TRANSFERENCIAS Y SUBVENCIONES 2019 | DQ13: TRANSFERENCIAS Y SUBVENCIONES 2018 | DT13: GASTOS 2019 | DU13: GASTOS 2018 | DV13: GASTO PÚBLICO SOCIAL 2019 | DW13: GASTO PÚBLICO SOCIAL 2018 | DZ13: CIERRE DE INGRESOS, GASTOS Y COSTOS 2019 | EA13: CIERRE DE INGRESOS, GASTOS Y COSTOS 2018 | ED13: COSTOS DE VENTAS 2019 | EE13: COSTOS DE VENTAS 2018
D14: 1 - ACTIVOS | H14: 1.3 - CUENTAS POR COBRAR | L14: 1.3.05 - IMPUESTOS RETENCIÓN EN LA FUENTE Y ANTICIPOS DE IMPUESTOS | N14: 1.3.11 - CONTRIBUCIONES TASAS E INGRESOS NO TRIBUTARIOS | P14: 1.3.12 - APORTES SOBRE LA NÓMINA | R14: 1.3.13 - RENTAS PARAFISCALES | T14: 1.3.14 - REGALÍAS | V14: 1.3.16 - VENTA DE BIENES | X14: 1.3.17 - PRESTACIÓN DE SERVICIOS | Z14: 1.3.18 - PRESTACIÓN DE SERVICIOS PÚBLICOS | AB14: 1.3.19 - PRESTACIÓN DE SERVICIOS DE SALUD | AD14: 1.3.21 - RECURSOS DESTINADOS A LA FINANCIACIÓN DEL SISTEMA GENERAL DE SEGURIDAD SOCIAL EN SALUD | AF14: 1.3.22 - ADMINISTRACIÓN DEL SISTEMA DE SEGURIDAD SOCIAL EN SALUD | AH14: 1.3.24 - SUBVENCIONES POR COBRAR | AJ14: 1.3.25 - RECURSOS DE LOS FONDOS DE PENSIONES ADMINISTRADOS POR COLPENSIONES | AK14: 1.3.25 - RECURSOS DE LOS FONDOS DE RESERVAS DE PENSIONES | AL14: 1.3.32 - FONDO DE AHORRO Y ESTABILIZACIÓN PETROLERA | AN14: 1.3.33 - DERECHOS DE RECOMPRA DE CUENTAS POR COBRAR | AP14: 1.3.36 - SALDOS DISPONIBLES EN PATRIMONIOS AUTÓNOMOS Y OTROS RECURSOS ENTREGADOS EN ADMINISTRACIÓN | AR14: 1.3.37 - TRANSFERENCIAS POR COBRAR | AT14: 1.3.84 - OTRAS CUENTAS POR COBRAR | AV14: 1.3.85 - CUENTAS POR COBRAR DE DIFÍCIL RECAUDO | AX14: 1.3.86 - DETERIORO ACUMULADO DE CUENTAS POR COBRAR (CR) | AZ14: 1.3.87 - CUENTAS POR COBRAR A COSTO AMORTIZADO | BB14: 1.3.88 - DETERIORO ACUMULADO DE CUENTAS POR COBRAR A COSTO AMORTIZADO (CR) | BD14: 1.9.04 - PLAN DE ACTIVOS PARA BENEFICIOS POSEMPLEO | CN14: 2 - PASIVOS | CR14: 2.2 - EMISIÓN Y COLOCACIÓN DE TÍTULOS DE DEUDA | CV14: 2.3 - PRÉSTAMOS POR PAGAR | CZ14: 2.5.14.10 - CÁLCULO ACTUARIAL DE PENSIONES ACTUALES | DB14: 2.5.14.15 - CÁLCULO ACTUARIAL PASIVO PENSIONAL CONMUTADO | DD14: 3 - PATRIMONIO | DH14: 4 - INGRESOS | DL14: 4.1.05 - IMPUESTOS | DP14: 4.4 - TRANSFERENCIAS Y SUBVENCIONES | DT14: 5 - GASTOS | DV14: 5.5 - GASTO PÚBLICO SOCIAL | DZ14: 5.9 - CIERRE DE INGRESOS, GASTOS Y COSTOS | ED14: 6 - COSTOS DE VENTAS
A15: CÓDIGO | B15: ENTIDAD | C15: CGNDepartamento | D15: ACTIVO 2022 | E15: ACTIVO 2021 | F15: ABS Activos | G15: % Activos | H15: CUENTAS POR COBRAR 2022 | I15: CUENTAS POR COBRAR 2021 | J15: ABS CXC | K15: % CXC | L15: IMPUESTOS RETENCIÓN EN LA FUENTE Y ANTICIPOS DE IMPUESTOS 2022 | M15: IMPUESTOS RETENCIÓN EN LA FUENTE Y ANTICIPOS DE IMPUESTOS 2021 | N15: CONTRIBUCIONES TASAS E INGRESOS NO TRIBUTARIOS 2022 | O15: CONTRIBUCIONES TASAS E INGRESOS NO TRIBUTARIOS 2021 | P15: APORTES SOBRE LA NÓMINA 2022 | Q15: APORTES SOBRE LA NÓMINA 2021 | R15: RENTAS PARAFISCALES 2022 | S15: RENTAS PARAFISCALES 2021 | T15: REGALÍAS 2022 | U15: REGALÍAS 2021 | V15: VENTA DE BIENES 2022 | W15: VENTA DE BIENES 2021 | X15: PRESTACIÓN DE SERVICIOS 2022 | Y15: PRESTACIÓN DE SERVICIOS 2021 | Z15: PRESTACIÓN DE SERVICIOS PÚBLICOS 2022 | AA15: PRESTACIÓN DE SERVICIOS PÚBLICOS 2021 | AB15: PRESTACIÓN DE SERVICIOS DE SALUD 2022 | AC15: PRESTACIÓN DE SERVICIOS DE SALUD 2021 | AD15: RECURSOS DESTINADOS A LA FINANCIACIÓN DEL SISTEMA GENERAL DE SEGURIDAD SOCIAL EN SALUD 2022 | AE15: RECURSOS DESTINADOS A LA FINANCIACIÓN DEL SISTEMA GENERAL DE SEGURIDAD SOCIAL EN SALUD 2021 | AF15: ADMINISTRACIÓN DE LA SEGURIDAD SOCIAL EN SALUD 2022 | AG15: ADMINISTRACIÓN DE LA SEGURIDAD SOCIAL EN SALUD 2021 | AH15: SUBVENCIONES POR COBRAR 2022 | AI15: SUBVENCIONES POR COBRAR 2021 | AJ15: RECURSOS DE LOS FONDOS DE PENSIONES ADMINISTRADOS POR COLPENSIONES 2022 | AK15: RECURSOS DE LOS FONDOS DE PENSIONES ADMINISTRADOS POR COLPENSIONES 2021 | AL15: FONDO DE AHORRO Y ESTABILIZACIÓN PETROLERA 2022 | AM15: FONDO DE AHORRO Y ESTABILIZACIÓN PETROLERA 2021 | AN15: DERECHOS DE RECOMPRA DE CUENTAS POR COBRAR 2022 | AO15: DERECHOS DE RECOMPRA DE CUENTAS POR COBRAR 2021 | AP15: SALDOS DISPONIBLES EN PATRIMONIOS AUTÓNOMOS Y OTROS RECURSOS ENTREGADOS EN ADMINISTRACIÓN 2022 | AQ15: SALDOS DISPONIBLES EN PATRIMONIOS AUTÓNOMOS Y OTROS RECURSOS ENTREGADOS EN ADMINISTRACIÓN 2021 | AR15: TRANSFERENCIAS POR COBRAR 2022 | AS15: TRANSFERENCIAS POR COBRAR 2021 | AT15: Sentencias, Laudos 2022 | AU15: Sentencias, Laudos 2021 | AV15: OTRAS CUENTAS POR COBRAR 2022 | AW15: OTRAS CUENTAS POR COBRAR 2021 | AX15: CUENTAS POR COBRAR DE DIFÍCIL RECAUDO 2022 | AY15: CUENTAS POR COBRAR DE DIFÍCIL RECAUDO 2021 | AZ15: DETERIORO ACUMULADO DE CUENTAS POR COBRAR (CR) 2022 | BA15: DETERIORO ACUMULADO DE CUENTAS POR COBRAR (CR) 2021 | BB15: 1.3.86.01 - VENTA DE BIENES | BD15: 1.3.86.02 - PRESTACIÓN DE SERVICIOS | BF15: 1.3.86.03 - SERVICIO DE ENERGÍA | BH15: 1.3.86.04 - SERVICIO DE ACUEDUCTO | BJ15: 1.3.86.05 - SERVICIO DE ALCANTARILLADO | BL15: 1.3.86.06 - SERVICIO DE ASEO | BN15: 1.3.86.07 - SERVICIO DE GAS COMBUSTIBLE | BP15: 1.3.86.08 - SERVICIO DE TELECOMUNICACIONES | BR15: 1.3.86.09 - PRESTACIÓN DE SERVICIOS DE SALUD | BT15: 1.3.86.10 - ADMINISTRACIÓN DE LA SEGURIDAD SOCIAL EN SALUD | BV15: 1.3.86.11 - RECURSOS DE LOS FONDOS DE PENSIONES ADMINISTRADOS POR COLPENSIONES | BX15: 1.3.86.13 - IMPUESTOS | BZ15: 1.3.86.14 - CONTRIBUCIONES TASAS E INGRESOS NO TRIBUTARIOS | CB15: 1.3.86.15 - APORTES SOBRE LA NÓMINA | CD15: 1.3.86.17 - RECURSOS DESTINADOS A LA FINANCIACIÓN DEL SISTEMA GENERAL DE SEGURIDAD SOCIAL EN SALUD | CF15: 1.3.86.90 - OTRAS CUENTAS POR COBRAR | CH15: CUENTAS POR COBRAR A COSTO AMORTIZADO 2022 | CI15: CUENTAS POR COBRAR A COSTO AMORTIZADO 2021 | CJ15: DETERIORO ACUMULADO DE CUENTAS POR COBRAR A COSTO AMORTIZADO (CR) 2022 | CK15: DETERIORO ACUMULADO DE CUENTAS POR COBRAR A COSTO AMORTIZADO (CR) 2021 | CL15: PLAN DE ACTIVOS 2022 | CM15: PLAN DE ACTIVOS 2021 | CN15: ABS PlanActivos | CO15: % PlanActivos | CP15: PASIVO 2022 | CQ15: PASIVO 2021 | CR15: ABS Pasivos | CS15: % Pasivos | CT15: EMISIÓN Y COLOCACIÓN DE TÍTULOS DE DEUDA 2022 | CU15: EMISIÓN Y COLOCACIÓN DE TÍTULOS DE DEUDA 2021 | CV15: ABS Emision | CW15: % Emision | CX15: PRÉSTAMOS POR PAGAR 2022 | CY15: PRÉSTAMOS POR PAGAR 2021 | CZ15: ABS Prestamos | DA15: % Prestamos | DB15: CÁLCULO ACTUARIAL DE PENSIONES ACTUALES 2022 | DC15: CÁLCULO ACTUARIAL DE PENSIONES ACTUALES 2021 | DD15: 2.5.14.15 - CÁLCULO ACTUARIAL PASIVO PENSIONAL CONMUTADO | DF15: PATRIMONIO 2022 | DG15: PATRIMONIO 2021 | DH15: ABS Patrimonio | DI15: % Patrimonio | DJ15: INGRESOS 2022 | DK15: INGRESOS 2021 | DL15: ABS Ingresos | DM15: % Ingresos | DN15: IMPUESTOS 2022 | DO15: IMPUESTOS 2021 | DP15: ABS Impuestos | DQ15: % Impuestos | DR15: TRANSFERENCIAS Y SUBVENCIONES 2022 | DS15: TRANSFERENCIAS Y SUBVENCIONES 2021 | DT15: ABS Transferencias | DU15: % Transferencias | DV15: GASTOS 2022 | DW15: GASTOS 2021 | DX15: GASTO PÚBLICO SOCIAL 2022 | DY15: GASTO PÚBLICO SOCIAL 2021 | DZ15: ABS GastoPublico | EA15: % GastoPublico | EB15: CIERRE DE INGRESOS, GASTOS Y COSTOS 2022 | EC15: CIERRE DE INGRESOS, GASTOS Y COSTOS 2021 | ED15: ABS Resultado | EE15: % Resultado | EF15: COSTOS DE VENTAS 2022 | EG15: COSTOS DE VENTAS 2021 | EH15: GASTOS Y COSTOS 2022 | EI15: GASTOS Y COSTOS 2021 | EJ15: ABS GastosyCostos | EK15: % Gastosycostos | EL15: ENDEUDAMIENTO 2022 | EM15: ENDEUDAMIENTO 2021 | EN15: ABS Endeudamiento | EO15: % Endeudamiento | EP15: CALCULO ACTUARIAL 2022 | EQ15: CALCULO ACTUARIAL 2021 | ER15: ABS CalculoActuarial | ES15: % CalculoActuarial | ET15: DÉFICIT O SUPERAVIT PENSIONAL 2022 | EU15: DÉFICIT O SUPERAVIT PENSIONAL 2021 | EV15: ABS Deficit | EW15: % Deficit | EX15: CUENTAS POR COBRAR SIN CONTRAPRESTACIÓN 2022 | EY15: CUENTAS POR COBRAR SIN CONTRAPRESTACIÓN 2021 | EZ15: ABS CXC Sin | FA15: % CXC Sin | FB15: CUENTAS POR COBRAR CON CONTRAPRESTACIÓN 2022 | FC15: CUENTAS POR COBRAR CON CONTRAPRESTACIÓN 2021 | FD15: ABS CXC Con | FE15: % CXC Con | FF15: DETERIORO SIN CONTRAPRESTACIÓN 2022 | FG15: DETERIORO SIN CONTRAPRESTACIÓN 2021 | FH15: DETERIORO CON CONTRAPRESTACIÓN 2022 | FI15: DETERIORO CON CONTRAPRESTACIÓN 2021 | FJ15: Confirmación CxC 2022 | FK15: Confirmación CxC 2021
A16: 20615000 | B16: Colegio de Boyacá | C16: BOYACÁ ENTIDADES DE GOBIERNO | D16: 37484.20021 | E16: 36618.63219 | F16: 865.568022 | G16: 2.363736629 | H16: 945.866618 | I16: 1751.618789 | J16: -805.752171 | K16: -46.00042978 | L16: 0 | M16: 0 | N16: 0 | O16: 0 | P16: 0 | Q16: 0 | R16: 0 | S16: 0 | T16: 0 | U16: 0 | V16: 0 | W16: 0 | X16: 1031.106863 | Y16: 1064.38742 | Z16: 0 | AA16: 0 | AB16: 0 | AC16: 0 | AD16: 0 | AE16: 0 | AF16: 0 | AG16: 0 | AH16: 0 | AI16: 0 | AJ16: 0 | AK16: 0 | AL16: 0 | AM16: 0 | AN16: 0 | AO16: 0 | AP16: 0 | AQ16: 0 | AR16: 0 | AS16: 0 | AT16: 0 | AU16: 0 | AV16: 203.250536 | AW16: 904.084631 | AX16: 0 | AY16: 0 | AZ16: 288.490781 | BA16: 216.853262 | BB16: 0 | BC16: 0 | BD16: 288.490781 | BE16: 216.853262 | BF16: 0 | BG16: 0 | BH16: 0 | BI16: 0 | BJ16: 0 | BK16: 0 | BL16: 0 | BM16: 0 | BN16: 0 | BO16: 0 | BP16: 0 | BQ16: 0 | BR16: 0 | BS16: 0 | BT16: 0 | BU16: 0 | BV16: 0 | BW16: 0 | BX16: 0 | BY16: 0 | BZ16: 0 | CA16: 0 | CB16: 0 | CC16: 0 | CD16: 0 | CE16: 0 | CF16: 0 | CG16: 0 | CH16: 0 | CI16: 0 | CJ16: 0 | CK16: 0 | CL16: 0 | CM16: 0 | CN16: 0 | CO16: - | CP16: 2967.564673 | CQ16: 2390.885277 | CR16: 576.679396 | CS16: 24.11991079 | CT16: 0 | CU16: 0 | CV16: 0 | CW16: - | CX16: 0 | CY16: 0 | CZ16: 0 | DA16: - | DB16: 0 | DC16: 0 | DD16: 0 | DE16: 0 | DF16: 34516.63554 | DG16: 34227.74691 | DH16: 288.888626 | DI16: 0.8440188212 | DJ16: 14512.83406 | DK16: 12768.92234 | DL16: 1743.911716 | DM16: 13.65746983 | DN16: 0 | DO16: 0 | DP16: 0 | DQ16: - | DR16: 8033.297262 | DS16: 7119.70608 | DT16: 913.591182 | DU16: 12.83186654 | DV16: 3372.585897 | DW16: 2900.644868 | DX16: 0 | DY16: 0 | DZ16: 0 | EA16: - | EB16: 214.378757 | EC16: 111.898867 | ED16: 102.47989 | EE16: 91.58259842 | EF16: 11140.24816 | EG16: 9868.277474 | EH16: 14298.4553 | EI16: 12657.02347 | EJ16: 1641.431826 | EK16: 12.96854532 | EL16: 0 | EM16: 0 | EN16: 0 | EO16: - | EP16: 0 | EQ16: 0 | ER16: 0 | ES16: - | ET16: 0 | EU16: 0 | EV16: 0 | EW16: - | EX16: 0 | EY16: 0 | EZ16: 0 | FA16: - | FB16: 945.866618 | FC16: 1751.618789 | FD16: -805.752171 | FE16: -46.00042978 | FF16: 0 | FG16: 0 | FH16: 288.490781 | FI16: 216.853262 | FJ16: 0 | FK16: 0
A17: 37217000 | B17: E.S.P. Central Hidroeléctrica de Caldas S.A. | C17: CALDAS EMPRESAS QUE COTIZAN | D17: 1465387.953 | E17: 1471170.314 | F17: -5782.360306 | G17: -0.3930449284 | H17: 255480.3654 | I17: 166556.7242 | J17: 88923.64118 | K17: 53.3894033 | L17: 0 | M17: 0 | N17: 0 | O17: 0 | P17: 0 | Q17: 0 | R17: 0 | S17: 0 | T17: 0 | U17: 0 | V17: 0 | W17: 0 | X17: 53.31112965 | Y17: 228.1510005 | Z17: 28803.46414 | AA17: 6379.529247 | AB17: 0 | AC17: 0 | AD17: 0 | AE17: 0 | AF17: 0 | AG17: 0 | AH17: 0 | AI17: 0 | AJ17: 0 | AK17: 0 | AL17: 0 | AM17: 0 | AN17: 0 | AO17: 0 | AP17: 0 | AQ17: 0 | AR17: 0 | AS17: 0 | AT17: 0 | AU17: 0 | AV17: 11723.9106 | AW17: 9587.07312 | AX17: 729.8524835 | AY17: 712.3757062 | AZ17: 2817.153291 | BA17: 1353.949072 | BB17: 0 | BC17: 0 | BD17: 0 | BE17: 0 | BF17: 0 | BG17: 0 | BH17: 0 | BI17: 0 | BJ17: 0 | BK17: 0 | BL17: 0 | BM17: 0 | BN17: 0 | BO17: 0 | BP17: 0 | BQ17: 0 | BR17: 0 | BS17: 0 | BT17: 0 | BU17: 0 | BV17: 0 | BW17: 0 | BX17: 0 | BY17: 0 | BZ17: 0 | CA17: 0 | CB17: 0 | CC17: 0 | CD17: 0 | CE17: 0 | CF17: 2817.153291 | CG17: 1353.949072 | CH17: 216986.9803 | CI17: 160591.2243 | CJ17: 0 | CK17: 9587.680094 | CL17: 22498.34767 | CM17: 11822.3606 | CN17: 10675.98707 | CO17: 90.30334493 | CP17: 859354.4134 | CQ17: 917468.7956 | CR17: -58114.38223 | CS17: -6.334208041 | CT17: 0 | CU17: 0 | CV17: 0 | CW17: - | CX17: 366215.36 | CY17: 356985.7127 | CZ17: 9229.647241 | DA17: 2.585438832 | DB17: 0 | DC17: 0 | DD17: 0 | DE17: 0 | DF17: 606033.5399 | DG17: 553701.518 | DH17: 52332.02192 | DI17: 9.451305482 | DJ17: 1593139.688 | DK17: 1107405.483 | DL17: 485734.2049 | DM17: 43.86236229 | DN17: 0 | DO17: 0 | DP17: 0 | DQ17: - | DR17: 36.392115 | DS17: 93.15906 | DT17: -56.766945 | DU17: -60.93550643 | DV17: 939565.2944 | DW17: 521465.6601 | DX17: 0 | DY17: 0 | DZ17: 0 | EA17: - | EB17: 204536.4919 | EC17: 156171.1128 | ED17: 48365.37912 | EE17: 30.96947845 | EF17: 653574.3932 | EG17: 585939.8227 | EH17: 1388603.196 | EI17: 951234.37 | EJ17: 437368.8258 | EK17: 45.97908145 | EL17: 366215.36 | EM17: 356985.7127 | EN17: 9229.647241 | EO17: 2.585438832 | EP17: 0 | EQ17: 0 | ER17: 0 | ES17: - | ET17: 22498.34767 | EU17: 11822.3606 | EV17: 10675.98707 | EW17: 90.30334493 | EX17: 0 | EY17: 0 | EZ17: 0 | FA17: - | FB17: 255480.3654 | FC17: 166556.7242 | FD17: 88923.64118 | FE17: 53.3894033 | FF17: 0 | FG17: 0 | FH17: 2817.153291 | FI17: 10941.62917 | FJ17: 0 | FK17: 0
A18: 37400000 | B18: E.S.P. Centrales Eléctricas de Norte de Santander S.A. | C18: ANTIOQUIA EMPRESAS QUE COTIZAN | D18: 1616577.06 | E18: 1488355.404 | F18: 128221.656 | G18: 8.614989115 | H18: 340455.214 | I18: 210894.2069 | J18: 129561.0071 | K18: 61.4341233 | L18: 0 | M18: 0 | N18: 0 | O18: 0 | P18: 0 | Q18: 0 | R18: 0 | S18: 0 | T18: 0 | U18: 0 | V18: 4639.977789 | W18: 5197.199004 | X18: 206.5972972 | Y18: 65.81277662 | Z18: 69292.11113 | AA18: 14457.06414 | AB18: 0 | AC18: 0 | AD18: 0 | AE18: 0 | AF18: 0 | AG18: 0 | AH18: 0 | AI18: 0 | AJ18: 0 | AK18: 0 | AL18: 0 | AM18: 0 | AN18: 0 | AO18: 0 | AP18: 0 | AQ18: 0 | AR18: 0 | AS18: 0 | AT18: 14.420879 | AU18: 12.839842 | AV18: 15132.54528 | AW18: 9902.533048 | AX18: 3465.20849 | AY18: 4781.63441 | AZ18: 3392.821889 | BA18: 3420.979067 | BB18: 0 | BC18: 0 | BD18: 0 | BE18: 0 | BF18: 0 | BG18: 0 | BH18: 0 | BI18: 0 | BJ18: 0 | BK18: 0 | BL18: 0 | BM18: 0 | BN18: 0 | BO18: 0 | BP18: 0 | BQ18: 0 | BR18: 0 | BS18: 0 | BT18: 0 | BU18: 0 | BV18: 0 | BW18: 0 | BX18: 0 | BY18: 0 | BZ18: 0 | CA18: 0 | CB18: 0 | CC18: 0 | CD18: 0 | CE18: 0 | CF18: 3392.821889 | CG18: 3420.979067 | CH18: 304896.0743 | CI18: 221903.4347 | CJ18: 53798.89925 | CK18: 42005.332 | CL18: 0 | CM18: 0 | CN18: 0 | CO18: - | CP18: 1067945.558 | CQ18: 1007566.293 | CR18: 60379.26497 | CS18: 5.992584844 | CT18: 0 | CU18: 0 | CV18: 0 | CW18: - | CX18: 474198.7175 | CY18: 410941.41 | CZ18: 63257.30751 | DA18: 15.39326677 | DB18: 0 | DC18: 0 | DD18: 0 | DE18: 0 | DF18: 548631.5017 | DG18: 480789.1107 | DH18: 67842.39105 | DI18: 14.11063386 | DJ18: 1366568.314 | DK18: 1122942.366 | DL18: 243625.9477 | DM18: 21.6953207 | DN18: 0 | DO18: 0 | DP18: 0 | DQ18: - | DR18: 0 | DS18: 0 | DT18: 0 | DU18: - | DV18: 457721.1817 | DW18: 404979.601 | DX18: 0 | DY18: 0 | DZ18: 0 | EA18: - | EB18: 151037.7002 | EC18: 133881.4022 | ED18: 17156.29802 | EE18: 12.8145491 | EF18: 908847.1323 | EG18: 717962.7653 | EH18: 1215530.614 | EI18: 989060.9641 | EJ18: 226469.6497 | EK18: 22.8974409 | EL18: 474198.7175 | EM18: 410941.41 | EN18: 63257.30751 | EO18: 15.39326677 | EP18: 0 | EQ18: 0 | ER18: 0 | ES18: - | ET18: 0 | EU18: 0 | EV18: 0 | EW18: - | EX18: 14.420879 | EY18: 12.839842 | EZ18: 1.581037 | FA18: 12.3135238 | FB18: 340440.7931 | FC18: 210881.3671 | FD18: 129559.4261 | FE18: 61.43711409 | FF18: 0 | FG18: 0 | FH18: 57191.72114 | FI18: 45426.31106 | FJ18: 0 | FK18: 0
A19: 38900000 | B19: E.S.P. Electrificadora Santander S.A. | C19: ANTIOQUIA EMPRESAS QUE COTIZAN | D19: 2738774.151 | E19: 2384902.945 | F19: 353871.2057 | G19: 14.83797093 | H19: 353628.7285 | I19: 279713.6972 | J19: 73915.03123 | K19: 26.42524551 | L19: 0 | M19: 0 | N19: 0 | O19: 0 | P19: 0 | Q19: 0 | R19: 0 | S19: 0 | T19: 0 | U19: 0 | V19: 537.8054764 | W19: 0 | X19: 812.201806 | Y19: 607.9340625 | Z19: 55467.22541 | AA19: 12075.58337 | AB19: 0 | AC19: 0 | AD19: 0 | AE19: 0 | AF19: 0 | AG19: 0 | AH19: 0 | AI19: 0 | AJ19: 0 | AK19: 0 | AL19: 0 | AM19: 0 | AN19: 0 | AO19: 0 | AP19: 0 | AQ19: 0 | AR19: 0 | AS19: 0 | AT19: 0 | AU19: 0 | AV19: 17380.38106 | AW19: 12499.56224 | AX19: 67867.13388 | AY19: 51426.26921 | AZ19: 10112.51816 | BA19: 4739.463753 | BB19: 0 | BC19: 0 | BD19: 0 | BE19: 0 | BF19: 0 | BG19: 0 | BH19: 0 | BI19: 0 | BJ19: 0 | BK19: 0 | BL19: 0 | BM19: 0 | BN19: 0 | BO19: 0 | BP19: 0 | BQ19: 0 | BR19: 0 | BS19: 0 | BT19: 0 | BU19: 0 | BV19: 0 | BW19: 0 | BX19: 0 | BY19: 0 | BZ19: 0 | CA19: 0 | CB19: 0 | CC19: 0 | CD19: 0 | CE19: 0 | CF19: 10112.51816 | CG19: 4739.463753 | CH19: 328966.9514 | CI19: 303457.5591 | CJ19: 107290.4524 | CK19: 95613.74704 | CL19: 0 | CM19: 0 | CN19: 0 | CO19: - | CP19: 1734367.831 | CQ19: 1513499.498 | CR19: 220868.3327 | CS19: 14.5932214 | CT19: 0 | CU19: 0 | CV19: 0 | CW19: - | CX19: 1018795.48 | CY19: 828236.4945 | CZ19: 190558.9854 | DA19: 23.00779869 | DB19: 0 | DC19: 0 | DD19: 0 | DE19: 0 | DF19: 1004406.32 | DG19: 871403.4467 | DH19: 133002.8731 | DI19: 15.26306484 | DJ19: 1974241.871 | DK19: 1657658.941 | DL19: 316582.9294 | DM19: 19.09819454 | DN19: 0 | DO19: 0 | DP19: 0 | DQ19: - | DR19: 28.115232 | DS19: 220.115232 | DT19: -192 | DU19: -87.22703934 | DV19: 847690.4739 | DW19: 676808.4752 | DX19: 0 | DY19: 0 | DZ19: 0 | EA19: - | EB19: 250824.905 | EC19: 259670.6631 | ED19: -8845.758085 | EE19: -3.406529633 | EF19: 1126551.397 | EG19: 980850.4662 | EH19: 1723416.966 | EI19: 1397988.278 | EJ19: 325428.6875 | EK19: 23.27835595 | EL19: 1018795.48 | EM19: 828236.4945 | EN19: 190558.9854 | EO19: 23.00779869 | EP19: 0 | EQ19: 0 | ER19: 0 | ES19: - | ET19: 0 | EU19: 0 | EV19: 0 | EW19: - | EX19: 0 | EY19: 0 | EZ19: 0 | FA19: - | FB19: 353628.7285 | FC19: 279713.6972 | FD19: 73915.03123 | FE19: 26.42524551 | FF19: 0 | FG19: 0 | FH19: 117402.9706 | FI19: 100353.2108 | FJ19: 0 | FK19: 0
A20: 39363000 | B20: E.S.P. Empresa de Energía del Quindío S.A. | C20: QUINDÍO EMPRESAS QUE COTIZAN | D20: 429636.4005 | E20: 353426.7443 | F20: 76209.65618 | G20: 21.56306997 | H20: 96039.84138 | I20: 62292.8027 | J20: 33747.03868 | K20: 54.17486004 | L20: 0 | M20: 0 | N20: 0 | O20: 0 | P20: 0 | Q20: 0 | R20: 0 | S20: 0 | T20: 0 | U20: 0 | V20: 34.623654 | W20: 42.859701 | X20: 60.82550883 | Y20: 106.4238043 | Z20: 9614.016433 | AA20: 1828.96319 | AB20: 0 | AC20: 0 | AD20: 0 | AE20: 0 | AF20: 0 | AG20: 0 | AH20: 0 | AI20: 0 | AJ20: 0 | AK20: 0 | AL20: 0 | AM20: 0 | AN20: 0 | AO20: 0 | AP20: 0 | AQ20: 0 | AR20: 0 | AS20: 0 | AT20: 0 | AU20: 0 | AV20: 3172.875839 | AW20: 4444.691454 | AX20: 1475.065783 | AY20: 1202.759569 | AZ20: 431.7288845 | BA20: 2467.025071 | BB20: 0 | BC20: 0 | BD20: 0 | BE20: 0 | BF20: 0 | BG20: 0 | BH20: 0 | BI20: 0 | BJ20: 0 | BK20: 0 | BL20: 0 | BM20: 0 | BN20: 0 | BO20: 0 | BP20: 0 | BQ20: 0 | BR20: 0 | BS20: 0 | BT20: 0 | BU20: 0 | BV20: 0 | BW20: 0 | BX20: 0 | BY20: 0 | BZ20: 0 | CA20: 0 | CB20: 0 | CC20: 0 | CD20: 0 | CE20: 0 | CF20: 431.7288845 | CG20: 2467.025071 | CH20: 89243.17912 | CI20: 58568.04534 | CJ20: 7129.016075 | CK20: 1433.91529 | CL20: 0 | CM20: 0 | CN20: 0 | CO20: - | CP20: 239350.6035 | CQ20: 173739.5852 | CR20: 65611.01823 | CS20: 37.76400073 | CT20: 0 | CU20: 0 | CV20: 0 | CW20: - | CX20: 117822.2658 | CY20: 76317.82348 | CZ20: 41504.44228 | DA20: 54.3836818 | DB20: 0 | DC20: 0 | DD20: 0 | DE20: 0 | DF20: 190285.797 | DG20: 179687.1591 | DH20: 10598.63795 | DI20: 5.898383617 | DJ20: 368968.873 | DK20: 307943.2182 | DL20: 61025.65481 | DM20: 19.81717772 | DN20: 0 | DO20: 0 | DP20: 0 | DQ20: - | DR20: 69.714777 | DS20: 69.714777 | DT20: 0 | DU20: 0 | DV20: 137577.7711 | DW20: 106595.1878 | DX20: 0 | DY20: 0 | DZ20: 0 | EA20: - | EB20: 50670.63474 | EC20: 42777.53588 | ED20: 7893.098861 | EE20: 18.45150427 | EF20: 231391.1019 | EG20: 201348.0304 | EH20: 318298.2382 | EI20: 265165.6823 | EJ20: 53132.55595 | EK20: 20.03749335 | EL20: 117822.2658 | EM20: 76317.82348 | EN20: 41504.44228 | EO20: 54.3836818 | EP20: 0 | EQ20: 0 | ER20: 0 | ES20: - | ET20: 0 | EU20: 0 | EV20: 0 | EW20: - | EX20: 0 | EY20: 0 | EZ20: 0 | FA20: - | FB20: 96039.84138 | FC20: 62292.8027 | FD20: 33747.03868 | FE20: 54.17486004 | FF20: 0 | FG20: 0 | FH20: 7560.744959 | FI20: 3900.940362 | FJ20: 0 | FK20: 0
A21: 45500000 | B21: Fiduciaria Central S.A. | C21: ANTIOQUIA EMPRESAS QUE COTIZAN | D21: 33115.89597 | E21: 32089.55784 | F21: 1026.338128 | G21: 3.19835547 | H21: 6091.606329 | I21: 4074.159078 | J21: 2017.447251 | K21: 49.51812663 | L21: 0 | M21: 0 | N21: 0 | O21: 0 | P21: 0 | Q21: 0 | R21: 0 | S21: 0 | T21: 0 | U21: 0 | V21: 0 | W21: 0 | X21: 7112.867794 | Y21: 5720.856753 | Z21: 0 | AA21: 0 | AB21: 0 | AC21: 0 | AD21: 0 | AE21: 0 | AF21: 0 | AG21: 0 | AH21: 0 | AI21: 0 | AJ21: 0 | AK21: 0 | AL21: 0 | AM21: 0 | AN21: 0 | AO21: 0 | AP21: 0 | AQ21: 0 | AR21: 0 | AS21: 0 | AT21: 0 | AU21: 0 | AV21: 396.6290834 | AW21: 285.6093422 | AX21: 0 | AY21: 0 | AZ21: 1417.890548 | BA21: 1932.307017 | BB21: 0 | BC21: 0 | BD21: 1357.9377 | BE21: 1899.051166 | BF21: 0 | BG21: 0 | BH21: 0 | BI21: 0 | BJ21: 0 | BK21: 0 | BL21: 0 | BM21: 0 | BN21: 0 | BO21: 0 | BP21: 0 | BQ21: 0 | BR21: 0 | BS21: 0 | BT21: 0 | BU21: 0 | BV21: 0 | BW21: 0 | BX21: 0 | BY21: 0 | BZ21: 0 | CA21: 0 | CB21: 0 | CC21: 0 | CD21: 0 | CE21: 0 | CF21: 59.95284733 | CG21: 33.25585055 | CH21: 0 | CI21: 0 | CJ21: 0 | CK21: 0 | CL21: 0 | CM21: 0 | CN21: 0 | CO21: - | CP21: 7216.056799 | CQ21: 9423.142836 | CR21: -2207.086037 | CS21: -23.4219737 | CT21: 0 | CU21: 0 | CV21: 0 | CW21: - | CX21: 0 | CY21: 0 | CZ21: 0 | DA21: - | DB21: 0 | DC21: 0 | DD21: 0 | DE21: 0 | DF21: 25899.83917 | DG21: 22666.415 | DH21: 3233.424165 | DI21: 14.265265 | DJ21: 36675.09733 | DK21: 24443.30537 | DL21: 12231.79195 | DM21: 50.04148075 | DN21: 0 | DO21: 0 | DP21: 0 | DQ21: - | DR21: 0 | DS21: 0 | DT21: 0 | DU21: - | DV21: 36675.09733 | DW21: 24443.30537 | DX21: 0 | DY21: 0 | DZ21: 0 | EA21: - | EB21: 4489.160337 | EC21: 1997.707577 | ED21: 2491.45276 | EE21: 124.7155884 | EF21: 0 | EG21: 0 | EH21: 32185.93699 | EI21: 22445.5978 | EJ21: 9740.339194 | EK21: 43.39532091 | EL21: 0 | EM21: 0 | EN21: 0 | EO21: - | EP21: 0 | EQ21: 0 | ER21: 0 | ES21: - | ET21: 0 | EU21: 0 | EV21: 0 | EW21: - | EX21: 0 | EY21: 0 | EZ21: 0 | FA21: - | FB21: 6091.606329 | FC21: 4074.159078 | FD21: 2017.447251 | FE21: 49.51812663 | FF21: 0 | FG21: 0 | FH21: 1417.890548 | FI21: 1932.307017 | FJ21: 0 | FK21: 0
A22: 62200000 | B22: Turnariño Ltda. | C22: NARIÑO EMPRESAS QUE NO COTIZAN | D22: 31108.5502 | E22: 35948.72509 | F22: -4840.174898 | G22: -13.46410724 | H22: 5552.657838 | I22: 8946.302904 | J22: -3393.645066 | K22: -37.93349166 | L22: 0 | M22: 0 | N22: 0 | O22: 0 | P22: 0 | Q22: 0 | R22: 0 | S22: 0 | T22: 0 | U22: 0 | V22: 0 | W22: 0 | X22: 5478.665196 | Y22: 8899.128629 | Z22: 0 | AA22: 0 | AB22: 0 | AC22: 0 | AD22: 0 | AE22: 0 | AF22: 0 | AG22: 0 | AH22: 0 | AI22: 0 | AJ22: 0 | AK22: 0 | AL22: 0 | AM22: 0 | AN22: 0 | AO22: 0 | AP22: 0 | AQ22: 0 | AR22: 0 | AS22: 0 | AT22: 0 | AU22: 0 | AV22: 89.985309 | AW22: 14.06481535 | AX22: 66.31124604 | AY22: 66.31124604 | AZ22: 82.30391304 | BA22: 33.20178595 | BB22: 0 | BC22: 0 | BD22: 0 | BE22: 0 | BF22: 0 | BG22: 0 | BH22: 0 | BI22: 0 | BJ22: 0 | BK22: 0 | BL22: 0 | BM22: 0 | BN22: 0 | BO22: 0 | BP22: 0 | BQ22: 0 | BR22: 0 | BS22: 0 | BT22: 0 | BU22: 0 | BV22: 0 | BW22: 0 | BX22: 0 | BY22: 0 | BZ22: 0 | CA22: 0 | CB22: 0 | CC22: 0 | CD22: 0 | CE22: 0 | CF22: 82.30391304 | CG22: 33.20178595 | CH22: 0 | CI22: 0 | CJ22: 0 | CK22: 0 | CL22: 0 | CM22: 0 | CN22: 0 | CO22: - | CP22: 10678.08261 | CQ22: 13298.08039 | CR22: -2619.997784 | CS22: -19.70207509 | CT22: 0 | CU22: 0 | CV22: 0 | CW22: - | CX22: 0 | CY22: 0 | CZ22: 0 | DA22: - | DB22: 0 | DC22: 0 | DD22: 0 | DE22: 0 | DF22: 20430.46759 | DG22: 22650.6447 | DH22: -2220.177114 | DI22: -9.801827467 | DJ22: 13321.4969 | DK22: 12286.79695 | DL22: 1034.699947 | DM22: 8.421234204 | DN22: 0 | DO22: 0 | DP22: 0 | DQ22: - | DR22: 0 | DS22: 0 | DT22: 0 | DU22: - | DV22: 4358.356025 | DW22: 5378.09928 | DX22: 0 | DY22: 0 | DZ22: 0 | EA22: - | EB22: 782.1677104 | EC22: 2657.030342 | ED22: -1874.862631 | EE22: -70.56233427 | EF22: 8963.140873 | EG22: 6908.69767 | EH22: 12539.32919 | EI22: 9629.766609 | EJ22: 2909.562579 | EK22: 30.21425853 | EL22: 0 | EM22: 0 | EN22: 0 | EO22: - | EP22: 0 | EQ22: 0 | ER22: 0 | ES22: - | ET22: 0 | EU22: 0 | EV22: 0 | EW22: - | EX22: 0 | EY22: 0 | EZ22: 0 | FA22: - | FB22: 5552.657838 | FC22: 8946.302904 | FD22: -3393.645066 | FE22: -37.93349166 | FF22: 0 | FG22: 0 | FH22: 82.30391304 | FI22: 33.20178595 | FJ22: 0 | FK22: 0
A23: 64500000 | B23: Instituto Tecnológico de Soledad Atlántico | C23: ATLÁNTICO ENTIDADES DE GOBIERNO | D23: 54042.7492 | E23: 47293.33347 | F23: 6749.415726 | G23: 14.27138928 | H23: 9090.040736 | I23: 6129.274302 | J23: 2960.766434 | K23: 48.30533417 | L23: 0 | M23: 0 | N23: 0 | O23: 0 | P23: 0 | Q23: 0 | R23: 0 | S23: 0 | T23: 0 | U23: 0 | V23: 0 | W23: 0 | X23: 5774.957468 | Y23: 3607.719239 | Z23: 0 | AA23: 0 | AB23: 0 | AC23: 0 | AD23: 0 | AE23: 0 | AF23: 0 | AG23: 0 | AH23: 0 | AI23: 0 | AJ23: 0 | AK23: 0 | AL23: 0 | AM23: 0 | AN23: 0 | AO23: 0 | AP23: 0 | AQ23: 0 | AR23: 2640.631474 | AS23: 2237.038457 | AT23: 0 | AU23: 0 | AV23: 674.451794 | AW23: 284.516606 | AX23: 25145.17067 | AY23: 18365.36327 | AZ23: 25145.17067 | BA23: 18365.36327 | BB23: 0 | BC23: 0 | BD23: 392.045709 | BE23: 384.55575 | BF23: 0 | BG23: 0 | BH23: 0 | BI23: 0 | BJ23: 0 | BK23: 0 | BL23: 0 | BM23: 0 | BN23: 0 | BO23: 0 | BP23: 0 | BQ23: 0 | BR23: 0 | BS23: 0 | BT23: 0 | BU23: 0 | BV23: 0 | BW23: 0 | BX23: 0 | BY23: 0 | BZ23: 0 | CA23: 0 | CB23: 0 | CC23: 0 | CD23: 0 | CE23: 0 | CF23: 24753.12496 | CG23: 17980.80752 | CH23: 0 | CI23: 0 | CJ23: 0 | CK23: 0 | CL23: 0 | CM23: 0 | CN23: 0 | CO23: - | CP23: 2994.343005 | CQ23: 2616.334592 | CR23: 378.008413 | CS23: 14.44801495 | CT23: 0 | CU23: 0 | CV23: 0 | CW23: - | CX23: 0 | CY23: 0 | CZ23: 0 | DA23: - | DB23: 0 | DC23: 0 | DD23: 0 | DE23: 0 | DF23: 51048.4062 | DG23: 44676.99888 | DH23: 6371.407313 | DI23: 14.26104589 | DJ23: 51561.95769 | DK23: 37215.37546 | DL23: 14346.58223 | DM23: 38.55014775 | DN23: 6499.757548 | DO23: 5749.940619 | DP23: 749.816929 | DQ23: 13.04042909 | DR23: 19300.95662 | DS23: 13836.68609 | DT23: 5464.270526 | DU23: 39.49117939 | DV23: 22727.97482 | DW23: 18172.62778 | DX23: 0 | DY23: 0 | DZ23: 0 | EA23: - | EB23: 6344.791727 | EC23: 9541.655718 | ED23: -3196.863991 | EE23: -33.50428988 | EF23: 28833.98287 | EG23: 19042.74769 | EH23: 45217.16597 | EI23: 27673.71975 | EJ23: 17543.44622 | EK23: 63.39388553 | EL23: 0 | EM23: 0 | EN23: 0 | EO23: - | EP23: 0 | EQ23: 0 | ER23: 0 | ES23: - | ET23: 0 | EU23: 0 | EV23: 0 | EW23: - | EX23: 2640.631474 | EY23: 2237.038457 | EZ23: 403.593017 | FA23: 18.04139825 | FB23: 6449.409262 | FC23: 3892.235845 | FD23: 2557.173417 | FE23: 65.699344 | FF23: 0 | FG23: 0 | FH23: 25145.17067 | FI23: 18365.36327 | FJ23: 0 | FK23: 0
A24: 80500000 | B24: Fertilizantes Colombianos S.A. - En Liquidación | C24: SANTANDER ENTIDADES EN PROCESOS ESPECIALES | D24: 92913.09198 | E24: 89428.53436 | F24: 3484.557615 | G24: 3.896471792 | H24: 0 | I24: 3861.07537 | J24: -3861.07537 | K24: -100 | L24: 0 | M24: 0 | N24: 0 | O24: 0 | P24: 0 | Q24: 0 | R24: 0 | S24: 0 | T24: 0 | U24: 0 | V24: 0 | W24: 2187.012315 | X24: 0 | Y24: 0 | Z24: 0 | AA24: 0 | AB24: 0 | AC24: 0 | AD24: 0 | AE24: 0 | AF24: 0 | AG24: 0 | AH24: 0 | AI24: 0 | AJ24: 0 | AK24: 0 | AL24: 0 | AM24: 0 | AN24: 0 | AO24: 0 | AP24: 0 | AQ24: 0 | AR24: 0 | AS24: 0 | AT24: 0 | AU24: 0 | AV24: 0 | AW24: 1674.063055 | AX24: 0 | AY24: 0 | AZ24: 0 | BA24: 0 | BB24: 0 | BC24: 0 | BD24: 0 | BE24: 0 | BF24: 0 | BG24: 0 | BH24: 0 | BI24: 0 | BJ24: 0 | BK24: 0 | BL24: 0 | BM24: 0 | BN24: 0 | BO24: 0 | BP24: 0 | BQ24: 0 | BR24: 0 | BS24: 0 | BT24: 0 | BU24: 0 | BV24: 0 | BW24: 0 | BX24: 0 | BY24: 0 | BZ24: 0 | CA24: 0 | CB24: 0 | CC24: 0 | CD24: 0 | CE24: 0 | CF24: 0 | CG24: 0 | CH24: 0 | CI24: 0 | CJ24: 0 | CK24: 0 | CL24: 0 | CM24: 0 | CN24: 0 | CO24: - | CP24: 141499.145 | CQ24: 140042.6188 | CR24: 1456.526124 | CS24: 1.040059188 | CT24: 0 | CU24: 0 | CV24: 0 | CW24: - | CX24: 0 | CY24: 0 | CZ24: 0 | DA24: - | DB24: 0 | DC24: 7403.066308 | DD24: 0 | DE24: 0 | DF24: -48586.05299 | DG24: -50614.08448 | DH24: 2028.031491 | DI24: -4.006852069 | DJ24: 5167.58722 | DK24: 1209.943575 | DL24: 3957.643645 | DM24: 327.0932403 | DN24: 0 | DO24: 0 | DP24: 0 | DQ24: - | DR24: 0 | DS24: 0 | DT24: 0 | DU24: - | DV24: 5167.58722 | DW24: 1209.943575 | DX24: 0 | DY24: 0 | DZ24: 0 | EA24: - | EB24: -622.013463 | EC24: -39979.5984 | ED24: 39357.58494 | EE24: -98.44417281 | EF24: 0 | EG24: 0 | EH24: 5789.600683 | EI24: 41189.54198 | EJ24: -35399.9413 | EK24: -85.94400325 | EL24: 0 | EM24: 0 | EN24: 0 | EO24: - | EP24: 0 | EQ24: 7403.066308 | ER24: -7403.066308 | ES24: -100 | ET24: 0 | EU24: -7403.066308 | EV24: 7403.066308 | EW24: -100 | EX24: 0 | EY24: 0 | EZ24: 0 | FA24: - | FB24: 0 | FC24: 3861.07537 | FD24: -3861.07537 | FE24: -100 | FF24: 0 | FG24: 0 | FH24: 0 | FI24: 0 | FJ24: 0 | FK24: 0
A25: 81400000 | B25: Federación Nacional de Departamentos | C25: BOGOTÁ ENTIDADES DE GOBIERNO | D25: 914101.7834 | E25: 731616.4903 | F25: 182485.2931 | G25: 24.94275286 | H25: 6027.919623 | I25: 4915.120566 | J25: 1112.799057 | K25: 22.64032067 | L25: 0 | M25: 0 | N25: 0 | O25: 0 | P25: 0 | Q25: 0 | R25: 0 | S25: 0 | T25: 0 | U25: 0 | V25: 0 | W25: 0 | X25: 0 | Y25: 0 | Z25: 0 | AA25: 0 | AB25: 0 | AC25: 0 | AD25: 0 | AE25: 0 | AF25: 0 | AG25: 0 | AH25: 0 | AI25: 0 | AJ25: 0 | AK25: 0 | AL25: 0 | AM25: 0 | AN25: 0 | AO25: 0 | AP25: 0 | AQ25: 0 | AR25: 0 | AS25: 0 | AT25: 0 | AU25: 0 | AV25: 6027.919623 | AW25: 4915.120566 | AX25: 0 | AY25: 0 | AZ25: 0 | BA25: 0 | BB25: 0 | BC25: 0 | BD25: 0 | BE25: 0 | BF25: 0 | BG25: 0 | BH25: 0 | BI25: 0 | BJ25: 0 | BK25: 0 | BL25: 0 | BM25: 0 | BN25: 0 | BO25: 0 | BP25: 0 | BQ25: 0 | BR25: 0 | BS25: 0 | BT25: 0 | BU25: 0 | BV25: 0 | BW25: 0 | BX25: 0 | BY25: 0 | BZ25: 0 | CA25: 0 | CB25: 0 | CC25: 0 | CD25: 0 | CE25: 0 | CF25: 0 | CG25: 0 | CH25: 0 | CI25: 0 | CJ25: 0 | CK25: 0 | CL25: 0 | CM25: 0 | CN25: 0 | CO25: - | CP25: 888676.8269 | CQ25: 715233.2535 | CR25: 173443.5733 | CS25: 24.2499314 | CT25: 0 | CU25: 0 | CV25: 0 | CW25: - | CX25: 0 | CY25: 0 | CZ25: 0 | DA25: - | DB25: 0 | DC25: 0 | DD25: 0 | DE25: 0 | DF25: 25424.95653 | DG25: 16383.23678 | DH25: 9041.719748 | DI25: 55.18884864 | DJ25: 60380.2381 | DK25: 55566.0513 | DL25: 4814.186798 | DM25: 8.663899422 | DN25: 0 | DO25: 0 | DP25: 0 | DQ25: - | DR25: 0 | DS25: 0 | DT25: 0 | DU25: - | DV25: 60380.2381 | DW25: 55566.0513 | DX25: 0 | DY25: 0 | DZ25: 0 | EA25: - | EB25: 9290.415266 | EC25: 5550.020966 | ED25: 3740.3943 | EE25: 67.3942373 | EF25: 0 | EG25: 0 | EH25: 51089.82284 | EI25: 50016.03034 | EJ25: 1073.792498 | EK25: 2.146896686 | EL25: 0 | EM25: 0 | EN25: 0 | EO25: - | EP25: 0 | EQ25: 0 | ER25: 0 | ES25: - | ET25: 0 | EU25: 0 | EV25: 0 | EW25: - | EX25: 0 | EY25: 0 | EZ25: 0 | FA25: - | FB25: 6027.919623 | FC25: 4915.120566 | FD25: 1112.799057 | FE25: 22.64032067 | FF25: 0 | FG25: 0 | FH25: 0 | FI25: 0 | FJ25: 0 | FK25: 0
A26: 82900000 | B26: E.S.E. Hospital Local Nueva Granada | C26: MAGDALENA EMPRESAS QUE NO COTIZAN | D26: 2011.378309 | E26: 1926.83202 | F26: 84.546289 | G26: 4.387839112 | H26: 662.758663 | I26: 745.427092 | J26: -82.668429 | K26: -11.09007573 | L26: 0 | M26: 0 | N26: 0 | O26: 0 | P26: 0 | Q26: 0 | R26: 0 | S26: 0 | T26: 0 | U26: 0 | V26: 0 | W26: 0 | X26: 0 | Y26: 0 | Z26: 0 | AA26: 0 | AB26: 612.904337 | AC26: 618.476219 | AD26: 0 | AE26: 0 | AF26: 0 | AG26: 0 | AH26: 86.533516 | AI26: 126.950873 | AJ26: 0 | AK26: 0 | AL26: 0 | AM26: 0 | AN26: 0 | AO26: 0 | AP26: 0 | AQ26: 0 | AR26: 0 | AS26: 0 | AT26: 0 | AU26: 0 | AV26: 0 | AW26: 0 | AX26: 0 | AY26: 0 | AZ26: 36.67919 | BA26: 0 | BB26: 0 | BC26: 0 | BD26: 0 | BE26: 0 | BF26: 0 | BG26: 0 | BH26: 0 | BI26: 0 | BJ26: 0 | BK26: 0 | BL26: 0 | BM26: 0 | BN26: 0 | BO26: 0 | BP26: 0 | BQ26: 0 | BR26: 36.67919 | BS26: 0 | BT26: 0 | BU26: 0 | BV26: 0 | BW26: 0 | BX26: 0 | BY26: 0 | BZ26: 0 | CA26: 0 | CB26: 0 | CC26: 0 | CD26: 0 | CE26: 0 | CF26: 0 | CG26: 0 | CH26: 0 | CI26: 0 | CJ26: 0 | CK26: 0 | CL26: 0 | CM26: 0 | CN26: 0 | CO26: - | CP26: 528.543267 | CQ26: 439.701159 | CR26: 88.842108 | CS26: 20.20511117 | CT26: 0 | CU26: 0 | CV26: 0 | CW26: - | CX26: 0 | CY26: 0 | CZ26: 0 | DA26: - | DB26: 0 | DC26: 0 | DD26: 0 | DE26: 0 | DF26: 1482.835042 | DG26: 1487.130861 | DH26: -4.295819 | DI26: -0.2888662399 | DJ26: 4276.010154 | DK26: 3874.110254 | DL26: 401.8999 | DM26: 10.37399231 | DN26: 0 | DO26: 0 | DP26: 0 | DQ26: - | DR26: 353.067032 | DS26: 326.950873 | DT26: 26.116159 | DU26: 7.987793016 | DV26: 2462.855722 | DW26: 2263.865633 | DX26: 0 | DY26: 0 | DZ26: 0 | EA26: - | EB26: 74.165859 | EC26: 72.187143 | ED26: 1.978716 | EE26: 2.741091998 | EF26: 1813.154432 | EG26: 1610.244621 | EH26: 4201.844295 | EI26: 3801.923111 | EJ26: 399.921184 | EK26: 10.51891825 | EL26: 0 | EM26: 0 | EN26: 0 | EO26: - | EP26: 0 | EQ26: 0 | ER26: 0 | ES26: - | ET26: 0 | EU26: 0 | EV26: 0 | EW26: - | EX26: 86.533516 | EY26: 126.950873 | EZ26: -40.417357 | FA26: -31.83700596 | FB26: 576.225147 | FC26: 618.476219 | FD26: -42.251072 | FE26: -6.831478835 | FF26: 0 | FG26: 0 | FH26: 36.67919 | FI26: 0 | FJ26: 0 | FK26: 0
A27: 83000000 | B27: E.S.E. Hospital Local San Juan de Puerto Rico - Tiquisio | C27: BOLÍVAR EMPRESAS QUE NO COTIZAN | D27: 3070.561158 | E27: 2665.156289 | F27: 405.404869 | G27: 15.21129814 | H27: 1001.359705 | I27: 740.970323 | J27: 260.389382 | K27: 35.1416749 | L27: 0 | M27: 0 | N27: 0 | O27: 0 | P27: 0 | Q27: 0 | R27: 0 | S27: 0 | T27: 0 | U27: 0 | V27: 0 | W27: 0 | X27: 0 | Y27: 0 | Z27: 0 | AA27: 0 | AB27: 1111.734885 | AC27: 678.057326 | AD27: 0 | AE27: 0 | AF27: 0 | AG27: 0 | AH27: 0 | AI27: 0 | AJ27: 0 | AK27: 0 | AL27: 0 | AM27: 0 | AN27: 0 | AO27: 0 | AP27: 0 | AQ27: 0 | AR27: 0 | AS27: 0 | AT27: 0 | AU27: 0 | AV27: 0 | AW27: 0 | AX27: 0 | AY27: 93.421337 | AZ27: 110.37518 | BA27: 30.50834 | BB27: 0 | BC27: 0 | BD27: 0 | BE27: 0 | BF27: 0 | BG27: 0 | BH27: 0 | BI27: 0 | BJ27: 0 | BK27: 0 | BL27: 0 | BM27: 0 | BN27: 0 | BO27: 0 | BP27: 0 | BQ27: 0 | BR27: 110.37518 | BS27: 30.50834 | BT27: 0 | BU27: 0 | BV27: 0 | BW27: 0 | BX27: 0 | BY27: 0 | BZ27: 0 | CA27: 0 | CB27: 0 | CC27: 0 | CD27: 0 | CE27: 0 | CF27: 0 | CG27: 0 | CH27: 0 | CI27: 0 | CJ27: 0 | CK27: 0 | CL27: 0 | CM27: 0 | CN27: 0 | CO27: - | CP27: 1304.335438 | CQ27: 1051.552461 | CR27: 252.782977 | CS27: 24.03902671 | CT27: 0 | CU27: 0 | CV27: 0 | CW27: - | CX27: 0 | CY27: 0 | CZ27: 0 | DA27: - | DB27: 0 | DC27: 0 | DD27: 0 | DE27: 0 | DF27: 1766.22572 | DG27: 1613.603828 | DH27: 152.621892 | DI27: 9.458448806 | DJ27: 4778.960998 | DK27: 4701.448988 | DL27: 77.51201 | DM27: 1.648683421 | DN27: 0 | DO27: 0 | DP27: 0 | DQ27: - | DR27: 0 | DS27: 0 | DT27: 0 | DU27: - | DV27: 1277.611678 | DW27: 1421.805511 | DX27: 0 | DY27: 0 | DZ27: 0 | EA27: - | EB27: 152.62198 | EC27: 111.966726 | ED27: 40.655254 | EE27: 36.31012128 | EF27: 3501.34932 | EG27: 3279.643477 | EH27: 4626.339018 | EI27: 4589.482262 | EJ27: 36.856756 | EK27: 0.8030700174 | EL27: 0 | EM27: 0 | EN27: 0 | EO27: - | EP27: 0 | EQ27: 0 | ER27: 0 | ES27: - | ET27: 0 | EU27: 0 | EV27: 0 | EW27: - | EX27: 0 | EY27: 0 | EZ27: 0 | FA27: - | FB27: 1001.359705 | FC27: 740.970323 | FD27: 260.389382 | FE27: 35.1416749 | FF27: 0 | FG27: 0 | FH27: 110.37518 | FI27: 30.50834 | FJ27: 0 | FK27: 0
A28: 83200000 | B28: Terminal de Transportes del Socorro S.A. | C28: SANTANDER EMPRESAS QUE NO COTIZAN | D28: 1455.75489 | E28: 1459.288067 | F28: -3.53317729 | G28: -0.2421165066 | H28: 34.1986013 | I28: 34.3733 | J28: -0.1746987 | K28: -0.5082395348 | L28: 0 | M28: 0 | N28: 0 | O28: 0 | P28: 0 | Q28: 0 | R28: 0 | S28: 0 | T28: 0 | U28: 0 | V28: 0 | W28: 0 | X28: 0.6950002 | Y28: 0.058 | Z28: 0 | AA28: 0 | AB28: 0 | AC28: 0 | AD28: 0 | AE28: 0 | AF28: 0 | AG28: 0 | AH28: 0 | AI28: 0 | AJ28: 0 | AK28: 0 | AL28: 0 | AM28: 0 | AN28: 0 | AO28: 0 | AP28: 0 | AQ28: 0 | AR28: 0 | AS28: 0 | AT28: 0 | AU28: 0 | AV28: 33.5036011 | AW28: 34.3153 | AX28: 0 | AY28: 0 | AZ28: 0 | BA28: 0 | BB28: 0 | BC28: 0 | BD28: 0 | BE28: 0 | BF28: 0 | BG28: 0 | BH28: 0 | BI28: 0 | BJ28: 0 | BK28: 0 | BL28: 0 | BM28: 0 | BN28: 0 | BO28: 0 | BP28: 0 | BQ28: 0 | BR28: 0 | BS28: 0 | BT28: 0 | BU28: 0 | BV28: 0 | BW28: 0 | BX28: 0 | BY28: 0 | BZ28: 0 | CA28: 0 | CB28: 0 | CC28: 0 | CD28: 0 | CE28: 0 | CF28: 0 | CG28: 0 | CH28: 0 | CI28: 0 | CJ28: 0 | CK28: 0 | CL28: 0 | CM28: 0 | CN28: 0 | CO28: - | CP28: 87.27752356 | CQ28: 92.17897138 | CR28: -4.90144782 | CS28: -5.317316679 | CT28: 0 | CU28: 0 | CV28: 0 | CW28: - | CX28: 0 | CY28: 0 | CZ28: 0 | DA28: - | DB28: 0 | DC28: 0 | DD28: 0 | DE28: 0 | DF28: 1368.477367 | DG28: 1367.109096 | DH28: 1.36827053 | DI28: 0.1000849555 | DJ28: 579.1621123 | DK28: 435.3785962 | DL28: 143.7835161 | DM28: 33.02493907 | DN28: 0 | DO28: 0 | DP28: 0 | DQ28: - | DR28: 0 | DS28: 0 | DT28: 0 | DU28: - | DV28: 559.7392123 | DW28: 317.9973992 | DX28: 0 | DY28: 0 | DZ28: 0 | EA28: - | EB28: 1.36827053 | EC28: -8.2054633 | ED28: 9.57373383 | EE28: -116.6751161 | EF28: 19.4229 | EG28: 117.381197 | EH28: 577.7938418 | EI28: 443.5840595 | EJ28: 134.2097823 | EK28: 30.25577214 | EL28: 0 | EM28: 0 | EN28: 0 | EO28: - | EP28: 0 | EQ28: 0 | ER28: 0 | ES28: - | ET28: 0 | EU28: 0 | EV28: 0 | EW28: - | EX28: 0 | EY28: 0 | EZ28: 0 | FA28: - | FB28: 34.1986013 | FC28: 34.3733 | FD28: -0.1746987 | FE28: -0.5082395348 | FF28: 0 | FG28: 0 | FH28: 0 | FI28: 0 | FJ28: 0 | FK28: 0
A29: 83300000 | B29: Sociedad Terminal de Transporte Terrestre de Ipiales S.A. | C29: NARIÑO EMPRESAS QUE NO COTIZAN | D29: 14801.67207 | E29: 15030.10036 | F29: -228.428297 | G29: -1.519805533 | H29: 31.335069 | I29: 34.444564 | J29: -3.109495 | K29: -9.027534795 | L29: 0 | M29: 0 | N29: 0 | O29: 0 | P29: 0 | Q29: 0 | R29: 0 | S29: 0 | T29: 0 | U29: 0 | V29: 0 | W29: 0 | X29: 0 | Y29: 0 | Z29: 0 | AA29: 0 | AB29: 0 | AC29: 0 | AD29: 0 | AE29: 0 | AF29: 0 | AG29: 0 | AH29: 0 | AI29: 0 | AJ29: 0 | AK29: 0 | AL29: 0 | AM29: 0 | AN29: 0 | AO29: 0 | AP29: 0 | AQ29: 0 | AR29: 0 | AS29: 0 | AT29: 0 | AU29: 0 | AV29: 31.335069 | AW29: 34.444564 | AX29: 0 | AY29: 0 | AZ29: 0 | BA29: 0 | BB29: 0 | BC29: 0 | BD29: 0 | BE29: 0 | BF29: 0 | BG29: 0 | BH29: 0 | BI29: 0 | BJ29: 0 | BK29: 0 | BL29: 0 | BM29: 0 | BN29: 0 | BO29: 0 | BP29: 0 | BQ29: 0 | BR29: 0 | BS29: 0 | BT29: 0 | BU29: 0 | BV29: 0 | BW29: 0 | BX29: 0 | BY29: 0 | BZ29: 0 | CA29: 0 | CB29: 0 | CC29: 0 | CD29: 0 | CE29: 0 | CF29: 0 | CG29: 0 | CH29: 0 | CI29: 0 | CJ29: 0 | CK29: 0 | CL29: 0 | CM29: 0 | CN29: 0 | CO29: - | CP29: 390.92615 | CQ29: 552.357118 | CR29: -161.430968 | CS29: -29.22583284 | CT29: 0 | CU29: 0 | CV29: 0 | CW29: - | CX29: 0 | CY29: 0 | CZ29: 0 | DA29: - | DB29: 0 | DC29: 0 | DD29: 0 | DE29: 0 | DF29: 14410.74592 | DG29: 14477.74325 | DH29: -66.997329 | DI29: -0.4627608589 | DJ29: 2268.661757 | DK29: 1755.842551 | DL29: 512.819206 | DM29: 29.20644597 | DN29: 0 | DO29: 0 | DP29: 0 | DQ29: - | DR29: 0 | DS29: 0 | DT29: 0 | DU29: - | DV29: 1606.011352 | DW29: 1755.842551 | DX29: 0 | DY29: 0 | DZ29: 0 | EA29: - | EB29: -66.997329 | EC29: -49.811501 | ED29: -17.185828 | EE29: 34.50172682 | EF29: 662.650405 | EG29: 0 | EH29: 2335.659086 | EI29: 1805.654052 | EJ29: 530.005034 | EK29: 29.35252372 | EL29: 0 | EM29: 0 | EN29: 0 | EO29: - | EP29: 0 | EQ29: 0 | ER29: 0 | ES29: - | ET29: 0 | EU29: 0 | EV29: 0 | EW29: - | EX29: 0 | EY29: 0 | EZ29: 0 | FA29: - | FB29: 31.335069 | FC29: 34.444564 | FD29: -3.109495 | FE29: -9.027534795 | FF29: 0 | FG29: 0 | FH29: 0 | FI29: 0 | FJ29: 0 | FK29: 0
A30: 83400000 | B30: E.S.E. Hospital San Miguel - Santander | C30: SANTANDER EMPRESAS QUE NO COTIZAN | D30: 1418.27205 | E30: 836.939628 | F30: 581.332422 | G30: 69.45930179 | H30: 179.2341569 | I30: 146.329771 | J30: 32.90438586 | K30: 22.4864603 | L30: 0 | M30: 0 | N30: 0 | O30: 0 | P30: 0 | Q30: 0 | R30: 0 | S30: 0 | T30: 0 | U30: 0 | V30: 0 | W30: 0 | X30: 0 | Y30: 0 | Z30: 0 | AA30: 0 | AB30: 172.7858155 | AC30: 139.579655 | AD30: 0 | AE30: 0 | AF30: 0 | AG30: 0 | AH30: 0 | AI30: 0 | AJ30: 0 | AK30: 0 | AL30: 0 | AM30: 0 | AN30: 0 | AO30: 0 | AP30: 0 | AQ30: 0 | AR30: 0 | AS30: 0 | AT30: 0 | AU30: 0 | AV30: 7.322117 | AW30: 7.252117 | AX30: 0 | AY30: 0 | AZ30: 0.87377563 | BA30: 0.502001 | BB30: 0 | BC30: 0 | BD30: 0 | BE30: 0 | BF30: 0 | BG30: 0 | BH30: 0 | BI30: 0 | BJ30: 0 | BK30: 0 | BL30: 0 | BM30: 0 | BN30: 0 | BO30: 0 | BP30: 0 | BQ30: 0 | BR30: 0.87377563 | BS30: 0.502001 | BT30: 0 | BU30: 0 | BV30: 0 | BW30: 0 | BX30: 0 | BY30: 0 | BZ30: 0 | CA30: 0 | CB30: 0 | CC30: 0 | CD30: 0 | CE30: 0 | CF30: 0 | CG30: 0 | CH30: 0 | CI30: 0 | CJ30: 0 | CK30: 0 | CL30: 0 | CM30: 0 | CN30: 0 | CO30: - | CP30: 0 | CQ30: 7.276472 | CR30: -7.276472 | CS30: -100 | CT30: 0 | CU30: 0 | CV30: 0 | CW30: - | CX30: 0 | CY30: 0 | CZ30: 0 | DA30: - | DB30: 0 | DC30: 0 | DD30: 0 | DE30: 0 | DF30: 1418.27205 | DG30: 829.663156 | DH30: 588.608894 | DI30: 70.94552648 | DJ30: 1348.677414 | DK30: 829.802196 | DL30: 518.8752182 | DM30: 62.52998855 | DN30: 0 | DO30: 0 | DP30: 0 | DQ30: - | DR30: 642.6759672 | DS30: 170.334216 | DT30: 472.3417512 | DU30: 277.3029179 | DV30: 937.1782294 | DW30: 425.110835 | DX30: 0 | DY30: 0 | DZ30: 0 | EA30: - | EB30: 588.608894 | EC30: 114.832264 | ED30: 473.77663 | EE30: 412.5814588 | EF30: 411.4991848 | EG30: 404.691361 | EH30: 760.0685202 | EI30: 714.969932 | EJ30: 45.09858818 | EK30: 6.307760112 | EL30: 0 | EM30: 0 | EN30: 0 | EO30: - | EP30: 0 | EQ30: 0 | ER30: 0 | ES30: - | ET30: 0 | EU30: 0 | EV30: 0 | EW30: - | EX30: 0 | EY30: 0 | EZ30: 0 | FA30: - | FB30: 179.2341569 | FC30: 146.329771 | FD30: 32.90438586 | FE30: 22.4864603 | FF30: 0 | FG30: 0 | FH30: 0.87377563 | FI30: 0.502001 | FJ30: 0 | FK30: 0
A31: 83500000 | B31: E.S.E. Hospital María Angelines - Puerto Leguízamo | C31: PUTUMAYO EMPRESAS QUE NO COTIZAN | D31: 15679.98738 | E31: 15725.30584 | F31: -45.31846652 | G31: -0.2881881406 | H31: 4597.55054 | I31: 5478.271667 | J31: -880.7211267 | K31: -16.0766238 | L31: 0 | M31: 0 | N31: 0 | O31: 0 | P31: 0 | Q31: 0 | R31: 0 | S31: 0 | T31: 0 | U31: 0 | V31: 0 | W31: 0 | X31: 0 | Y31: 0 | Z31: 0 | AA31: 0 | AB31: 5189.313107 | AC31: 4782.998747 | AD31: 0 | AE31: 0 | AF31: 0 | AG31: 0 | AH31: 0 | AI31: 0 | AJ31: 0 | AK31: 0 | AL31: 0 | AM31: 0 | AN31: 0 | AO31: 0 | AP31: 0 | AQ31: 0 | AR31: 0 | AS31: 0 | AT31: 0 | AU31: 0 | AV31: 47.4454 | AW31: 1216.573263 | AX31: 0 | AY31: 0 | AZ31: 639.2079673 | BA31: 521.3003435 | BB31: 0 | BC31: 0 | BD31: 0 | BE31: 0 | BF31: 0 | BG31: 0 | BH31: 0 | BI31: 0 | BJ31: 0 | BK31: 0 | BL31: 0 | BM31: 0 | BN31: 0 | BO31: 0 | BP31: 0 | BQ31: 0 | BR31: 639.2079673 | BS31: 521.3003435 | BT31: 0 | BU31: 0 | BV31: 0 | BW31: 0 | BX31: 0 | BY31: 0 | BZ31: 0 | CA31: 0 | CB31: 0 | CC31: 0 | CD31: 0 | CE31: 0 | CF31: 0 | CG31: 0 | CH31: 0 | CI31: 0 | CJ31: 0 | CK31: 0 | CL31: 0 | CM31: 0 | CN31: 0 | CO31: - | CP31: 2348.413355 | CQ31: 2120.920315 | CR31: 227.4930405 | CS31: 10.72614746 | CT31: 0 | CU31: 0 | CV31: 0 | CW31: - | CX31: 0 | CY31: 0 | CZ31: 0 | DA31: - | DB31: 0 | DC31: 0 | DD31: 0 | DE31: 0 | DF31: 13331.57402 | DG31: 13604.38553 | DH31: -272.811507 | DI31: -2.005320317 | DJ31: 11534.93247 | DK31: 10418.83646 | DL31: 1116.096013 | DM31: 10.71229035 | DN31: 0 | DO31: 0 | DP31: 0 | DQ31: - | DR31: 2318.160925 | DS31: 782.9959286 | DT31: 1535.164996 | DU31: 196.0629603 | DV31: 4190.314402 | DW31: 3132.953527 | DX31: 0 | DY31: 0 | DZ31: 0 | EA31: - | EB31: -272.811507 | EC31: 61.74769884 | ED31: -334.5592059 | EE31: -541.816476 | EF31: 7344.618071 | EG31: 7285.882932 | EH31: 11807.74398 | EI31: 10357.08876 | EJ31: 1450.655219 | EK31: 14.00639941 | EL31: 0 | EM31: 0 | EN31: 0 | EO31: - | EP31: 0 | EQ31: 0 | ER31: 0 | ES31: - | ET31: 0 | EU31: 0 | EV31: 0 | EW31: - | EX31: 0 | EY31: 0 | EZ31: 0 | FA31: - | FB31: 4597.55054 | FC31: 5478.271667 | FD31: -880.7211267 | FE31: -16.0766238 | FF31: 0 | FG31: 0 | FH31: 639.2079673 | FI31: 521.3003435 | FJ31: 0 | FK31: 0
A32: 84100000 | B32: Empresa Departamental para la Salud | C32: CALDAS EMPRESAS QUE NO COTIZAN | D32: 568.984743 | E32: 379.345471 | F32: 189.639272 | G32: 49.99117862 | H32: 29.232816 | I32: 25.237949 | J32: 3.994867 | K32: 15.82881002 | L32: 0 | M32: 0 | N32: 0 | O32: 0 | P32: 0 | Q32: 0 | R32: 0 | S32: 0 | T32: 0 | U32: 0 | V32: 0 | W32: 0 | X32: 13.614618 | Y32: 9.316249 | Z32: 0 | AA32: 0 | AB32: 0 | AC32: 0 | AD32: 0 | AE32: 0 | AF32: 0 | AG32: 0 | AH32: 0 | AI32: 0 | AJ32: 0 | AK32: 0 | AL32: 0 | AM32: 0 | AN32: 0 | AO32: 0 | AP32: 0 | AQ32: 0 | AR32: 0 | AS32: 0 | AT32: 0 | AU32: 0 | AV32: 15.618198 | AW32: 15.9217 | AX32: 0 | AY32: 0 | AZ32: 0 | BA32: 0 | BB32: 0 | BC32: 0 | BD32: 0 | BE32: 0 | BF32: 0 | BG32: 0 | BH32: 0 | BI32: 0 | BJ32: 0 | BK32: 0 | BL32: 0 | BM32: 0 | BN32: 0 | BO32: 0 | BP32: 0 | BQ32: 0 | BR32: 0 | BS32: 0 | BT32: 0 | BU32: 0 | BV32: 0 | BW32: 0 | BX32: 0 | BY32: 0 | BZ32: 0 | CA32: 0 | CB32: 0 | CC32: 0 | CD32: 0 | CE32: 0 | CF32: 0 | CG32: 0 | CH32: 0 | CI32: 0 | CJ32: 0 | CK32: 0 | CL32: 0 | CM32: 0 | CN32: 0 | CO32: - | CP32: 108.885349 | CQ32: 116.300309 | CR32: -7.41496 | CS32: -6.375701031 | CT32: 0 | CU32: 0 | CV32: 0 | CW32: - | CX32: 0 | CY32: 0 | CZ32: 0 | DA32: - | DB32: 0 | DC32: 0 | DD32: 0 | DE32: 0 | DF32: 460.099394 | DG32: 263.045162 | DH32: 197.054232 | DI32: 74.91269959 | DJ32: 660.365633 | DK32: 607.186031 | DL32: 53.179602 | DM32: 8.758370464 | DN32: 0 | DO32: 0 | DP32: 0 | DQ32: - | DR32: 0 | DS32: 0 | DT32: 0 | DU32: - | DV32: 660.365633 | DW32: 607.186031 | DX32: 0 | DY32: 0 | DZ32: 0 | EA32: - | EB32: 197.729819 | EC32: 193.84904 | ED32: 3.880779 | EE32: 2.00195936 | EF32: 0 | EG32: 0 | EH32: 462.635814 | EI32: 413.336991 | EJ32: 49.298823 | EK32: 11.92702905 | EL32: 0 | EM32: 0 | EN32: 0 | EO32: - | EP32: 0 | EQ32: 0 | ER32: 0 | ES32: - | ET32: 0 | EU32: 0 | EV32: 0 | EW32: - | EX32: 0 | EY32: 0 | EZ32: 0 | FA32: - | FB32: 29.232816 | FC32: 25.237949 | FD32: 3.994867 | FE32: 15.82881002 | FF32: 0 | FG32: 0 | FH32: 0 | FI32: 0 | FJ32: 0 | FK32: 0
A33: 84200000 | B33: E.S.E. Camu del Municipio de La Apartada | C33: CÓRDOBA EMPRESAS QUE NO COTIZAN | D33: 7291.013666 | E33: 6670.196169 | F33: 620.817497 | G33: 9.307334916 | H33: 1493.960926 | I33: 1189.492954 | J33: 304.467972 | K33: 25.59645023 | L33: 0 | M33: 0 | N33: 0 | O33: 0 | P33: 0 | Q33: 0 | R33: 0 | S33: 0 | T33: 0 | U33: 0 | V33: 0 | W33: 0 | X33: 0 | Y33: 0 | Z33: 0 | AA33: 0 | AB33: 1335.594686 | AC33: 1189.492954 | AD33: 0 | AE33: 0 | AF33: 0 | AG33: 0 | AH33: 158.36624 | AI33: 0 | AJ33: 0 | AK33: 0 | AL33: 0 | AM33: 0 | AN33: 0 | AO33: 0 | AP33: 0 | AQ33: 0 | AR33: 0 | AS33: 0 | AT33: 0 | AU33: 0 | AV33: 0 | AW33: 0 | AX33: 0 | AY33: 0 | AZ33: 0 | BA33: 0 | BB33: 0 | BC33: 0 | BD33: 0 | BE33: 0 | BF33: 0 | BG33: 0 | BH33: 0 | BI33: 0 | BJ33: 0 | BK33: 0 | BL33: 0 | BM33: 0 | BN33: 0 | BO33: 0 | BP33: 0 | BQ33: 0 | BR33: 0 | BS33: 0 | BT33: 0 | BU33: 0 | BV33: 0 | BW33: 0 | BX33: 0 | BY33: 0 | BZ33: 0 | CA33: 0 | CB33: 0 | CC33: 0 | CD33: 0 | CE33: 0 | CF33: 0 | CG33: 0 | CH33: 0 | CI33: 0 | CJ33: 0 | CK33: 0 | CL33: 0 | CM33: 0 | CN33: 0 | CO33: - | CP33: 448.828512 | CQ33: 1181.217727 | CR33: -732.389215 | CS33: -62.00289737 | CT33: 0 | CU33: 0 | CV33: 0 | CW33: - | CX33: 0 | CY33: 0 | CZ33: 0 | DA33: - | DB33: 0 | DC33: 0 | DD33: 0 | DE33: 0 | DF33: 6842.185154 | DG33: 5488.978442 | DH33: 1353.206712 | DI33: 24.65316135 | DJ33: 4445.047353 | DK33: 2767.708474 | DL33: 1677.338879 | DM33: 60.60388566 | DN33: 0 | DO33: 0 | DP33: 0 | DQ33: - | DR33: 734.843167 | DS33: 0 | DT33: 734.843167 | DU33: - | DV33: 3064.352816 | DW33: 1746.667285 | DX33: 0 | DY33: 0 | DZ33: 0 | EA33: - | EB33: 1353.206712 | EC33: -114.363873 | ED33: 1467.570585 | EE33: -1283.246664 | EF33: 1380.694537 | EG33: 1021.041189 | EH33: 3091.840641 | EI33: 2882.072347 | EJ33: 209.768294 | EK33: 7.27838405 | EL33: 0 | EM33: 0 | EN33: 0 | EO33: - | EP33: 0 | EQ33: 0 | ER33: 0 | ES33: - | ET33: 0 | EU33: 0 | EV33: 0 | EW33: - | EX33: 158.36624 | EY33: 0 | EZ33: 158.36624 | FA33: - | FB33: 1335.594686 | FC33: 1189.492954 | FD33: 146.101732 | FE33: 12.28268999 | FF33: 0 | FG33: 0 | FH33: 0 | FI33: 0 | FJ33: 0 | FK33: 0
A34: 84300000 | B34: E.S.E. Centro Hospital Luis Antonio Montero Potosí - Nariño | C34: NARIÑO EMPRESAS QUE NO COTIZAN | D34: 4306.173737 | E34: 4228.135697 | F34: 78.03804 | G34: 1.845684377 | H34: 286.886441 | I34: 283.680369 | J34: 3.206072 | K34: 1.130170555 | L34: 0 | M34: 0 | N34: 0 | O34: 0 | P34: 0 | Q34: 0 | R34: 0 | S34: 0 | T34: 0 | U34: 0 | V34: 0 | W34: 0 | X34: 0 | Y34: 0 | Z34: 0 | AA34: 0 | AB34: 225.127638 | AC34: 219.001471 | AD34: 0 | AE34: 0 | AF34: 0 | AG34: 0 | AH34: 0 | AI34: 0 | AJ34: 0 | AK34: 0 | AL34: 0 | AM34: 0 | AN34: 0 | AO34: 0 | AP34: 0 | AQ34: 0 | AR34: 0 | AS34: 0 | AT34: 0 | AU34: 0 | AV34: 5.215613 | AW34: 3.709076 | AX34: 316.969822 | AY34: 316.969822 | AZ34: 260.426632 | BA34: 256 | BB34: 0 | BC34: 0 | BD34: 0 | BE34: 0 | BF34: 0 | BG34: 0 | BH34: 0 | BI34: 0 | BJ34: 0 | BK34: 0 | BL34: 0 | BM34: 0 | BN34: 0 | BO34: 0 | BP34: 0 | BQ34: 0 | BR34: 260.426632 | BS34: 256 | BT34: 0 | BU34: 0 | BV34: 0 | BW34: 0 | BX34: 0 | BY34: 0 | BZ34: 0 | CA34: 0 | CB34: 0 | CC34: 0 | CD34: 0 | CE34: 0 | CF34: 0 | CG34: 0 | CH34: 0 | CI34: 0 | CJ34: 0 | CK34: 0 | CL34: 0 | CM34: 0 | CN34: 0 | CO34: - | CP34: 294.859211 | CQ34: 221.685528 | CR34: 73.173683 | CS34: 33.00787546 | CT34: 0 | CU34: 0 | CV34: 0 | CW34: - | CX34: 0 | CY34: 0 | CZ34: 0 | DA34: - | DB34: 0 | DC34: 0 | DD34: 0 | DE34: 0 | DF34: 4011.314526 | DG34: 4006.450169 | DH34: 4.864357 | DI34: 0.1214131412 | DJ34: 4286.229878 | DK34: 4074.632979 | DL34: 211.596899 | DM34: 5.193029657 | DN34: 0 | DO34: 0 | DP34: 0 | DQ34: - | DR34: 181.152934 | DS34: 249.600658 | DT34: -68.447724 | DU34: -27.42289405 | DV34: 2128.534578 | DW34: 2115.403509 | DX34: 0 | DY34: 0 | DZ34: 0 | EA34: - | EB34: 4.864357 | EC34: 111.532915 | ED34: -106.668558 | EE34: -95.63863546 | EF34: 2157.6953 | EG34: 1959.22947 | EH34: 4281.365521 | EI34: 3963.100064 | EJ34: 318.265457 | EK34: 8.030719686 | EL34: 0 | EM34: 0 | EN34: 0 | EO34: - | EP34: 0 | EQ34: 0 | ER34: 0 | ES34: - | ET34: 0 | EU34: 0 | EV34: 0 | EW34: - | EX34: 0 | EY34: 0 | EZ34: 0 | FA34: - | FB34: 286.886441 | FC34: 283.680369 | FD34: 3.206072 | FE34: 1.130170555 | FF34: 0 | FG34: 0 | FH34: 260.426632 | FI34: 256 | FJ34: 0 | FK34: 0
A35: 84800000 | B35: Instituto Departamental del Deporte y la Recreación de Arauca | C35: ARAUCA ENTIDADES DE GOBIERNO | D35: 4479.428668 | E35: 3484.729355 | F35: 994.6993135 | G35: 28.54452132 | H35: 986.4110494 | I35: 787.6299268 | J35: 198.7811227 | K35: 25.23788341 | L35: 0 | M35: 0 | N35: 0 | O35: 0 | P35: 0 | Q35: 0 | R35: 0 | S35: 0 | T35: 0 | U35: 0 | V35: 0 | W35: 0 | X35: 0 | Y35: 0 | Z35: 0 | AA35: 0 | AB35: 0 | AC35: 0 | AD35: 0 | AE35: 0 | AF35: 0 | AG35: 0 | AH35: 0 | AI35: 0 | AJ35: 0 | AK35: 0 | AL35: 0 | AM35: 0 | AN35: 0 | AO35: 0 | AP35: 0 | AQ35: 0 | AR35: 986.4110494 | AS35: 787.6299268 | AT35: 0 | AU35: 0 | AV35: 0 | AW35: 0 | AX35: 0 | AY35: 0 | AZ35: 0 | BA35: 0 | BB35: 0 | BC35: 0 | BD35: 0 | BE35: 0 | BF35: 0 | BG35: 0 | BH35: 0 | BI35: 0 | BJ35: 0 | BK35: 0 | BL35: 0 | BM35: 0 | BN35: 0 | BO35: 0 | BP35: 0 | BQ35: 0 | BR35: 0 | BS35: 0 | BT35: 0 | BU35: 0 | BV35: 0 | BW35: 0 | BX35: 0 | BY35: 0 | BZ35: 0 | CA35: 0 | CB35: 0 | CC35: 0 | CD35: 0 | CE35: 0 | CF35: 0 | CG35: 0 | CH35: 0 | CI35: 0 | CJ35: 0 | CK35: 0 | CL35: 0 | CM35: 0 | CN35: 0 | CO35: - | CP35: 2642.465619 | CQ35: 3266.057211 | CR35: -623.591592 | CS35: -19.09310069 | CT35: 0 | CU35: 0 | CV35: 0 | CW35: - | CX35: 0 | CY35: 0 | CZ35: 0 | DA35: - | DB35: 0 | DC35: 0 | DD35: 0 | DE35: 0 | DF35: 1836.963049 | DG35: 218.6721434 | DH35: 1618.290906 | DI35: 740.0535252 | DJ35: 5035.924975 | DK35: 1035.844027 | DL35: 4000.080948 | DM35: 386.1663382 | DN35: 0 | DO35: 0 | DP35: 0 | DQ35: - | DR35: 4981.654023 | DS35: 1002.6018 | DT35: 3979.052223 | DU35: 396.872639 | DV35: 5035.924975 | DW35: 1035.844027 | DX35: 2325.509948 | DY35: 0 | DZ35: 2325.509948 | EA35: - | EB35: 1618.290906 | EC35: -76.89284763 | ED35: 1695.183753 | EE35: -2204.605247 | EF35: 0 | EG35: 0 | EH35: 3417.634069 | EI35: 1112.736874 | EJ35: 2304.897195 | EK35: 207.1376664 | EL35: 0 | EM35: 0 | EN35: 0 | EO35: - | EP35: 0 | EQ35: 0 | ER35: 0 | ES35: - | ET35: 0 | EU35: 0 | EV35: 0 | EW35: - | EX35: 986.4110494 | EY35: 787.6299268 | EZ35: 198.7811227 | FA35: 25.23788341 | FB35: 0 | FC35: 0 | FD35: 0 | FE35: - | FF35: 0 | FG35: 0 | FH35: 0 | FI35: 0 | FJ35: 0 | FK35: 0
A36: 84900000 | B36: Empresa de Desarrollo Urbano Piedemonte EICM. | C36: META ENTIDADES DE GOBIERNO | D36: 63970.37207 | E36: 64778.47565 | F36: -808.1035857 | G36: -1.247487808 | H36: 22702.04681 | I36: 22225.95387 | J36: 476.092935 | K36: 2.142058504 | L36: 0 | M36: 0 | N36: 0 | O36: 0 | P36: 0 | Q36: 0 | R36: 0 | S36: 0 | T36: 0 | U36: 0 | V36: 22613.9934 | W36: 22149.16988 | X36: 0 | Y36: 0 | Z36: 0 | AA36: 0 | AB36: 0 | AC36: 0 | AD36: 0 | AE36: 0 | AF36: 0 | AG36: 0 | AH36: 0 | AI36: 0 | AJ36: 0 | AK36: 0 | AL36: 0 | AM36: 0 | AN36: 0 | AO36: 0 | AP36: 0 | AQ36: 0 | AR36: 0 | AS36: 0 | AT36: 0 | AU36: 0 | AV36: 88.05340684 | AW36: 76.78399584 | AX36: 0 | AY36: 0 | AZ36: 0 | BA36: 0 | BB36: 0 | BC36: 0 | BD36: 0 | BE36: 0 | BF36: 0 | BG36: 0 | BH36: 0 | BI36: 0 | BJ36: 0 | BK36: 0 | BL36: 0 | BM36: 0 | BN36: 0 | BO36: 0 | BP36: 0 | BQ36: 0 | BR36: 0 | BS36: 0 | BT36: 0 | BU36: 0 | BV36: 0 | BW36: 0 | BX36: 0 | BY36: 0 | BZ36: 0 | CA36: 0 | CB36: 0 | CC36: 0 | CD36: 0 | CE36: 0 | CF36: 0 | CG36: 0 | CH36: 0 | CI36: 0 | CJ36: 0 | CK36: 0 | CL36: 0 | CM36: 0 | CN36: 0 | CO36: - | CP36: 801.1627831 | CQ36: 1055.462382 | CR36: -254.299599 | CS36: -24.0936677 | CT36: 0 | CU36: 0 | CV36: 0 | CW36: - | CX36: 0 | CY36: 0 | CZ36: 0 | DA36: - | DB36: 0 | DC36: 0 | DD36: 0 | DE36: 0 | DF36: 63169.20928 | DG36: 63723.01327 | DH36: -553.8039867 | DI36: -0.869080036 | DJ36: 2839.884963 | DK36: 10800.52588 | DL36: -7960.640915 | DM36: -73.70604917 | DN36: 0 | DO36: 0 | DP36: 0 | DQ36: - | DR36: 0 | DS36: 0 | DT36: 0 | DU36: - | DV36: 2839.884963 | DW36: 10770.52588 | DX36: 0 | DY36: 171.507852 | DZ36: -171.507852 | EA36: -100 | EB36: 443.7521967 | EC36: 7882.773336 | ED36: -7439.021139 | EE36: -94.37060819 | EF36: 0 | EG36: 30 | EH36: 2396.132766 | EI36: 2917.752542 | EJ36: -521.6197755 | EK36: -17.87745081 | EL36: 0 | EM36: 0 | EN36: 0 | EO36: - | EP36: 0 | EQ36: 0 | ER36: 0 | ES36: - | ET36: 0 | EU36: 0 | EV36: 0 | EW36: - | EX36: 0 | EY36: 0 | EZ36: 0 | FA36: - | FB36: 22702.04681 | FC36: 22225.95387 | FD36: 476.092935 | FE36: 2.142058504 | FF36: 0 | FG36: 0 | FH36: 0 | FI36: 0 | FJ36: 0 | FK36: 0
A37: 85100000 | B37: E.S.E. Centro de Salud de Puerres | C37: NARIÑO EMPRESAS QUE NO COTIZAN | D37: 3310.303518 | E37: 3252.80863 | F37: 57.49488826 | G37: 1.767545983 | H37: 434.1317922 | I37: 421.521824 | J37: 12.60996821 | K37: 2.991533888 | L37: 0 | M37: 0 | N37: 0 | O37: 0 | P37: 0 | Q37: 0 | R37: 0 | S37: 0 | T37: 0 | U37: 0 | V37: 0 | W37: 0 | X37: 0 | Y37: 0 | Z37: 0 | AA37: 0 | AB37: 385.7904237 | AC37: 470.585694 | AD37: 0 | AE37: 0 | AF37: 0 | AG37: 0 | AH37: 134.0166665 | AI37: 0 | AJ37: 0 | AK37: 0 | AL37: 0 | AM37: 0 | AN37: 0 | AO37: 0 | AP37: 0 | AQ37: 0 | AR37: 0 | AS37: 0 | AT37: 0 | AU37: 0 | AV37: 9.804847 | AW37: 3.079594 | AX37: 0 | AY37: 0 | AZ37: 95.480145 | BA37: 52.143464 | BB37: 0 | BC37: 0 | BD37: 0 | BE37: 0 | BF37: 0 | BG37: 0 | BH37: 0 | BI37: 0 | BJ37: 0 | BK37: 0 | BL37: 0 | BM37: 0 | BN37: 0 | BO37: 0 | BP37: 0 | BQ37: 0 | BR37: 95.480145 | BS37: 52.143464 | BT37: 0 | BU37: 0 | BV37: 0 | BW37: 0 | BX37: 0 | BY37: 0 | BZ37: 0 | CA37: 0 | CB37: 0 | CC37: 0 | CD37: 0 | CE37: 0 | CF37: 0 | CG37: 0 | CH37: 0 | CI37: 0 | CJ37: 0 | CK37: 0 | CL37: 0 | CM37: 0 | CN37: 0 | CO37: - | CP37: 290.4165929 | CQ37: 459.168326 | CR37: -168.7517331 | CS37: -36.75160578 | CT37: 0 | CU37: 0 | CV37: 0 | CW37: - | CX37: 0 | CY37: 0 | CZ37: 0 | DA37: - | DB37: 0 | DC37: 0 | DD37: 0 | DE37: 0 | DF37: 3019.886925 | DG37: 2793.640304 | DH37: 226.2466213 | DI37: 8.098631058 | DJ37: 2569.9144 | DK37: 2626.851349 | DL37: -56.93694871 | DM37: -2.167497934 | DN37: 0 | DO37: 0 | DP37: 0 | DQ37: - | DR37: 440.409048 | DS37: 392.312388 | DT37: 48.09666 | DU37: 12.2597862 | DV37: 1317.671498 | DW37: 1261.627338 | DX37: 0 | DY37: 0 | DZ37: 0 | EA37: - | EB37: 226.2466223 | EC37: 31.18339 | ED37: 195.0632323 | EE37: 625.5356851 | EF37: 1252.242902 | EG37: 1365.224011 | EH37: 2343.667778 | EI37: 2595.667959 | EJ37: -252.000181 | EK37: -9.708490645 | EL37: 0 | EM37: 0 | EN37: 0 | EO37: - | EP37: 0 | EQ37: 0 | ER37: 0 | ES37: - | ET37: 0 | EU37: 0 | EV37: 0 | EW37: - | EX37: 134.0166665 | EY37: 0 | EZ37: 134.0166665 | FA37: - | FB37: 300.1151257 | FC37: 421.521824 | FD37: -121.4066983 | FE37: -28.80199586 | FF37: 0 | FG37: 0 | FH37: 95.480145 | FI37: 52.143464 | FJ37: 0 | FK37: 0
A38: 85600000 | B38: E.I.C.E. Empresa de Desarrollo Urbano y Rural de Dosquebradas - EDOS | C38: RISARALDA EMPRESAS QUE NO COTIZAN | D38: 12416.37873 | E38: 6735.262389 | F38: 5681.116344 | G38: 84.34884963 | H38: 6411.084771 | I38: 605.947088 | J38: 5805.137683 | K38: 958.0271608 | L38: 0 | M38: 0 | N38: 0 | O38: 26.264893 | P38: 0 | Q38: 0 | R38: 0 | S38: 0 | T38: 0 | U38: 0 | V38: 0 | W38: 0 | X38: 0 | Y38: 0 | Z38: 0 | AA38: 0 | AB38: 0 | AC38: 0 | AD38: 0 | AE38: 0 | AF38: 0 | AG38: 0 | AH38: 5806.786245 | AI38: 0 | AJ38: 0 | AK38: 0 | AL38: 0 | AM38: 0 | AN38: 0 | AO38: 0 | AP38: 0 | AQ38: 0 | AR38: 0 | AS38: 444.312215 | AT38: 403 | AU38: 0 | AV38: 372.382443 | AW38: 321.996782 | AX38: 15.514563 | AY38: 0 | AZ38: 186.59848 | BA38: 186.626802 | BB38: 13.129757 | BC38: 13.129757 | BD38: 0 | BE38: 0 | BF38: 0 | BG38: 0 | BH38: 0 | BI38: 0 | BJ38: 0 | BK38: 0 | BL38: 0 | BM38: 0 | BN38: 0 | BO38: 0 | BP38: 0 | BQ38: 0 | BR38: 0 | BS38: 0 | BT38: 0 | BU38: 0 | BV38: 0 | BW38: 0 | BX38: 0 | BY38: 0 | BZ38: 0 | CA38: 0 | CB38: 0 | CC38: 0 | CD38: 0 | CE38: 0 | CF38: 173.468723 | CG38: 173.497045 | CH38: 0 | CI38: 0 | CJ38: 0 | CK38: 0 | CL38: 0 | CM38: 0 | CN38: 0 | CO38: - | CP38: 6509.975875 | CQ38: 541.132631 | CR38: 5968.843244 | CS38: 1103.02778 | CT38: 0 | CU38: 0 | CV38: 0 | CW38: - | CX38: 0 | CY38: 0 | CZ38: 0 | DA38: - | DB38: 0 | DC38: 0 | DD38: 0 | DE38: 0 | DF38: 5906.402859 | DG38: 6194.129758 | DH38: -287.7268994 | DI38: -4.645154536 | DJ38: 3987.712282 | DK38: 2612.238904 | DL38: 1375.473378 | DM38: 52.65496108 | DN38: 0 | DO38: 0 | DP38: 0 | DQ38: - | DR38: 3964.368151 | DS38: 2434.623309 | DT38: 1529.744842 | DU38: 62.83291695 | DV38: 1560.095135 | DW38: 2612.238904 | DX38: 0 | DY38: 5852.489706 | DZ38: -5852.489706 | EA38: -100 | EB38: -287.7268994 | EC38: -4949.470944 | ED38: 4661.744045 | EE38: -94.18671404 | EF38: 2427.617147 | EG38: 0 | EH38: 4275.439182 | EI38: 7561.709848 | EJ38: -3286.270666 | EK38: -43.45935949 | EL38: 0 | EM38: 0 | EN38: 0 | EO38: - | EP38: 0 | EQ38: 0 | ER38: 0 | ES38: - | ET38: 0 | EU38: 0 | EV38: 0 | EW38: - | EX38: 6209.786245 | EY38: 470.577108 | EZ38: 5739.209137 | FA38: 1219.61078 | FB38: 201.298526 | FC38: 135.36998 | FD38: 65.928546 | FE38: 48.70248633 | FF38: 0 | FG38: 0 | FH38: 186.59848 | FI38: 186.626802 | FJ38: 0 | FK38: 0
A39: 85700000 | B39: Instituto Municipal de Deporte y Recreación de Sesquilé IMDER | C39: CUNDINAMARCA ENTIDADES DE GOBIERNO | D39: 466.429764 | E39: 456.265473 | F39: 10.164291 | G39: 2.227714259 | H39: 0 | I39: 0 | J39: 0 | K39: - | L39: 0 | M39: 0 | N39: 0 | O39: 0 | P39: 0 | Q39: 0 | R39: 0 | S39: 0 | T39: 0 | U39: 0 | V39: 0 | W39: 0 | X39: 0 | Y39: 0 | Z39: 0 | AA39: 0 | AB39: 0 | AC39: 0 | AD39: 0 | AE39: 0 | AF39: 0 | AG39: 0 | AH39: 0 | AI39: 0 | AJ39: 0 | AK39: 0 | AL39: 0 | AM39: 0 | AN39: 0 | AO39: 0 | AP39: 0 | AQ39: 0 | AR39: 0 | AS39: 0 | AT39: 0 | AU39: 0 | AV39: 0 | AW39: 0 | AX39: 0 | AY39: 0 | AZ39: 0 | BA39: 0 | BB39: 0 | BC39: 0 | BD39: 0 | BE39: 0 | BF39: 0 | BG39: 0 | BH39: 0 | BI39: 0 | BJ39: 0 | BK39: 0 | BL39: 0 | BM39: 0 | BN39: 0 | BO39: 0 | BP39: 0 | BQ39: 0 | BR39: 0 | BS39: 0 | BT39: 0 | BU39: 0 | BV39: 0 | BW39: 0 | BX39: 0 | BY39: 0 | BZ39: 0 | CA39: 0 | CB39: 0 | CC39: 0 | CD39: 0 | CE39: 0 | CF39: 0 | CG39: 0 | CH39: 0 | CI39: 0 | CJ39: 0 | CK39: 0 | CL39: 0 | CM39: 0 | CN39: 0 | CO39: - | CP39: 17.11791 | CQ39: 117.090741 | CR39: -99.972831 | CS39: -85.38064594 | CT39: 0 | CU39: 0 | CV39: 0 | CW39: - | CX39: 0 | CY39: 0 | CZ39: 0 | DA39: - | DB39: 0 | DC39: 0 | DD39: 0 | DE39: 0 | DF39: 449.311854 | DG39: 339.174732 | DH39: 110.137122 | DI39: 32.47208934 | DJ39: 899.861549 | DK39: 1003.563251 | DL39: -103.701702 | DM39: -10.33334988 | DN39: 17.03521 | DO39: 20.907383 | DP39: -3.872173 | DQ39: -18.52060107 | DR39: 867.396055 | DS39: 707.799891 | DT39: 159.596164 | DU39: 22.54820409 | DV39: 899.861549 | DW39: 1003.563251 | DX39: 576.399873 | DY39: 622.924865 | DZ39: -46.524992 | EA39: -7.468796738 | EB39: 110.137122 | EC39: 211.376303 | ED39: -101.239181 | EE39: -47.89523687 | EF39: 0 | EG39: 0 | EH39: 789.724427 | EI39: 792.186948 | EJ39: -2.462521 | EK39: -0.3108509937 | EL39: 0 | EM39: 0 | EN39: 0 | EO39: - | EP39: 0 | EQ39: 0 | ER39: 0 | ES39: - | ET39: 0 | EU39: 0 | EV39: 0 | EW39: - | EX39: 0 | EY39: 0 | EZ39: 0 | FA39: - | FB39: 0 | FC39: 0 | FD39: 0 | FE39: - | FF39: 0 | FG39: 0 | FH39: 0 | FI39: 0 | FJ39: 0 | FK39: 0
A40: 85800000 | B40: E.S.E. Salud Yopal | C40: CASANARE EMPRESAS QUE NO COTIZAN | D40: 56361.07387 | E40: 52555.68782 | F40: 3805.386042 | G40: 7.240674035 | H40: 9412.572579 | I40: 5807.195176 | J40: 3605.377403 | K40: 62.08466039 | L40: 0 | M40: 0 | N40: 0 | O40: 0 | P40: 0 | Q40: 0 | R40: 0 | S40: 0 | T40: 0 | U40: 0 | V40: 0 | W40: 0 | X40: 0 | Y40: 0 | Z40: 0 | AA40: 0 | AB40: 9126.173614 | AC40: 5798.734937 | AD40: 0 | AE40: 0 | AF40: 0 | AG40: 0 | AH40: 0 | AI40: 0 | AJ40: 0 | AK40: 0 | AL40: 0 | AM40: 0 | AN40: 0 | AO40: 0 | AP40: 0 | AQ40: 0 | AR40: 0 | AS40: 0 | AT40: 0 | AU40: 0 | AV40: 281.868854 | AW40: 3.930128 | AX40: 294.780007 | AY40: 294.780007 | AZ40: 290.249896 | BA40: 290.249896 | BB40: 0 | BC40: 0 | BD40: 0 | BE40: 0 | BF40: 0 | BG40: 0 | BH40: 0 | BI40: 0 | BJ40: 0 | BK40: 0 | BL40: 0 | BM40: 0 | BN40: 0 | BO40: 0 | BP40: 0 | BQ40: 0 | BR40: 290.249896 | BS40: 290.249896 | BT40: 0 | BU40: 0 | BV40: 0 | BW40: 0 | BX40: 0 | BY40: 0 | BZ40: 0 | CA40: 0 | CB40: 0 | CC40: 0 | CD40: 0 | CE40: 0 | CF40: 0 | CG40: 0 | CH40: 0 | CI40: 0 | CJ40: 0 | CK40: 0 | CL40: 0 | CM40: 0 | CN40: 0 | CO40: - | CP40: 4117.690756 | CQ40: 1360.395638 | CR40: 2757.295118 | CS40: 202.6833254 | CT40: 0 | CU40: 0 | CV40: 0 | CW40: - | CX40: 0 | CY40: 0 | CZ40: 0 | DA40: - | DB40: 0 | DC40: 0 | DD40: 0 | DE40: 0 | DF40: 52243.38311 | DG40: 51195.29219 | DH40: 1048.090924 | DI40: 2.047240829 | DJ40: 27075.80609 | DK40: 24963.26595 | DL40: 2112.540145 | DM40: 8.462595196 | DN40: 0 | DO40: 0 | DP40: 0 | DQ40: - | DR40: 1242.07154 | DS40: 2193.517436 | DT40: -951.445896 | DU40: -43.37535141 | DV40: 10413.25654 | DW40: 9772.83137 | DX40: 0 | DY40: 0 | DZ40: 0 | EA40: - | EB40: 1031.119411 | EC40: 2452.444039 | ED40: -1421.324628 | EE40: -57.9554357 | EF40: 16662.54956 | EG40: 15190.43458 | EH40: 26044.68668 | EI40: 22510.82191 | EJ40: 3533.864773 | EK40: 15.69851508 | EL40: 0 | EM40: 0 | EN40: 0 | EO40: - | EP40: 0 | EQ40: 0 | ER40: 0 | ES40: - | ET40: 0 | EU40: 0 | EV40: 0 | EW40: - | EX40: 0 | EY40: 0 | EZ40: 0 | FA40: - | FB40: 9412.572579 | FC40: 5807.195176 | FD40: 3605.377403 | FE40: 62.08466039 | FF40: 0 | FG40: 0 | FH40: 290.249896 | FI40: 290.249896 | FJ40: 0 | FK40: 0
A41: 86200000 | B41: Empresa Social del Estado Región de Salud Medina | C41: CUNDINAMARCA EMPRESAS QUE NO COTIZAN | D41: 16732.77735 | E41: 13303.87443 | F41: 3428.902926 | G41: 25.77371686 | H41: 3751.790807 | I41: 3354.302313 | J41: 397.488494 | K41: 11.85010941 | L41: 0 | M41: 0 | N41: 0 | O41: 0 | P41: 0 | Q41: 0 | R41: 0 | S41: 0 | T41: 0 | U41: 0 | V41: 0 | W41: 0 | X41: 0 | Y41: 0 | Z41: 0 | AA41: 0 | AB41: 4520.277374 | AC41: 4021.149241 | AD41: 0 | AE41: 0 | AF41: 0 | AG41: 0 | AH41: 0 | AI41: 0 | AJ41: 0 | AK41: 0 | AL41: 0 | AM41: 0 | AN41: 0 | AO41: 0 | AP41: 0 | AQ41: 0 | AR41: 0 | AS41: 0 | AT41: 0 | AU41: 0 | AV41: 0 | AW41: 6.149168 | AX41: 0 | AY41: 0 | AZ41: 768.486567 | BA41: 672.996096 | BB41: 0 | BC41: 0 | BD41: 0 | BE41: 0 | BF41: 0 | BG41: 0 | BH41: 0 | BI41: 0 | BJ41: 0 | BK41: 0 | BL41: 0 | BM41: 0 | BN41: 0 | BO41: 0 | BP41: 0 | BQ41: 0 | BR41: 768.486567 | BS41: 672.996096 | BT41: 0 | BU41: 0 | BV41: 0 | BW41: 0 | BX41: 0 | BY41: 0 | BZ41: 0 | CA41: 0 | CB41: 0 | CC41: 0 | CD41: 0 | CE41: 0 | CF41: 0 | CG41: 0 | CH41: 0 | CI41: 0 | CJ41: 0 | CK41: 0 | CL41: 0 | CM41: 0 | CN41: 0 | CO41: - | CP41: 3059.793861 | CQ41: 1309.074711 | CR41: 1750.71915 | CS41: 133.7371454 | CT41: 0 | CU41: 0 | CV41: 0 | CW41: - | CX41: 0 | CY41: 0 | CZ41: 0 | DA41: - | DB41: 0 | DC41: 0 | DD41: 0 | DE41: 0 | DF41: 13672.98349 | DG41: 11994.79972 | DH41: 1678.183776 | DI41: 13.99092787 | DJ41: 9989.213235 | DK41: 8067.357665 | DL41: 1921.85557 | DM41: 23.82261516 | DN41: 0 | DO41: 0 | DP41: 0 | DQ41: - | DR41: 4105.662202 | DS41: 2641.237585 | DT41: 1464.424617 | DU41: 55.44463797 | DV41: 4008.023174 | DW41: 2546.034594 | DX41: 0 | DY41: 0 | DZ41: 0 | EA41: - | EB41: 1678.183776 | EC41: 675.250599 | ED41: 1002.933177 | EE41: 148.5275509 | EF41: 5981.190061 | EG41: 5521.323071 | EH41: 8311.029459 | EI41: 7392.107066 | EJ41: 918.922393 | EK41: 12.43112938 | EL41: 0 | EM41: 0 | EN41: 0 | EO41: - | EP41: 0 | EQ41: 0 | ER41: 0 | ES41: - | ET41: 0 | EU41: 0 | EV41: 0 | EW41: - | EX41: 0 | EY41: 0 | EZ41: 0 | FA41: - | FB41: 3751.790807 | FC41: 3354.302313 | FD41: 397.488494 | FE41: 11.85010941 | FF41: 0 | FG41: 0 | FH41: 768.486567 | FI41: 672.996096 | FJ41: 0 | FK41: 0
A42: 86300000 | B42: E.S.E. Barrancabermeja | C42: SANTANDER EMPRESAS QUE NO COTIZAN | D42: 22933.89821 | E42: 27330.28347 | F42: -4396.385254 | G42: -16.08613119 | H42: 3043.791756 | I42: 4839.977847 | J42: -1796.186091 | K42: -37.11145273 | L42: 0 | M42: 0 | N42: 0 | O42: 0 | P42: 0 | Q42: 0 | R42: 0 | S42: 0 | T42: 0 | U42: 0 | V42: 0 | W42: 0 | X42: 0 | Y42: 0 | Z42: 0 | AA42: 0 | AB42: 3101.470812 | AC42: 5690.346915 | AD42: 0 | AE42: 0 | AF42: 0 | AG42: 0 | AH42: 673.524048 | AI42: 0 | AJ42: 0 | AK42: 0 | AL42: 0 | AM42: 0 | AN42: 0 | AO42: 0 | AP42: 0 | AQ42: 0 | AR42: 0 | AS42: 0 | AT42: 0 | AU42: 0 | AV42: 0.791749 | AW42: 3.595094 | AX42: 0 | AY42: 0 | AZ42: 731.994853 | BA42: 853.964162 | BB42: 0 | BC42: 0 | BD42: 0 | BE42: 0 | BF42: 0 | BG42: 0 | BH42: 0 | BI42: 0 | BJ42: 0 | BK42: 0 | BL42: 0 | BM42: 0 | BN42: 0 | BO42: 0 | BP42: 0 | BQ42: 0 | BR42: 731.994853 | BS42: 853.964162 | BT42: 0 | BU42: 0 | BV42: 0 | BW42: 0 | BX42: 0 | BY42: 0 | BZ42: 0 | CA42: 0 | CB42: 0 | CC42: 0 | CD42: 0 | CE42: 0 | CF42: 0 | CG42: 0 | CH42: 0 | CI42: 0 | CJ42: 0 | CK42: 0 | CL42: 0 | CM42: 0 | CN42: 0 | CO42: - | CP42: 2766.627315 | CQ42: 14540.34832 | CR42: -11773.721 | CS42: -80.97275763 | CT42: 0 | CU42: 0 | CV42: 0 | CW42: - | CX42: 0 | CY42: 0 | CZ42: 0 | DA42: - | DB42: 0 | DC42: 0 | DD42: 0 | DE42: 0 | DF42: 20167.2709 | DG42: 12789.93515 | DH42: 7377.335747 | DI42: 57.68079088 | DJ42: 24812.17763 | DK42: 17994.43212 | DL42: 6817.745515 | DM42: 37.88808377 | DN42: 0 | DO42: 0 | DP42: 0 | DQ42: - | DR42: 4791.403426 | DS42: 403 | DT42: 4388.403426 | DU42: 1088.933853 | DV42: 11660.95006 | DW42: 3937.208097 | DX42: 0 | DY42: 0 | DZ42: 0 | EA42: - | EB42: 6735.06711 | EC42: -1206.925866 | ED42: 7941.992976 | EE42: -658.0348636 | EF42: 13151.22757 | EG42: 14057.22402 | EH42: 18077.11052 | EI42: 19201.35798 | EJ42: -1124.247461 | EK42: -5.855041409 | EL42: 0 | EM42: 0 | EN42: 0 | EO42: - | EP42: 0 | EQ42: 0 | ER42: 0 | ES42: - | ET42: 0 | EU42: 0 | EV42: 0 | EW42: - | EX42: 673.524048 | EY42: 0 | EZ42: 673.524048 | FA42: - | FB42: 2370.267708 | FC42: 4839.977847 | FD42: -2469.710139 | FE42: -51.02730254 | FF42: 0 | FG42: 0 | FH42: 731.994853 | FI42: 853.964162 | FJ42: 0 | FK42: 0
A43: 86400000 | B43: Instituto de Deportes y Recreación de Yarumal | C43: ANTIOQUIA ENTIDADES DE GOBIERNO | D43: 668.4309743 | E43: 621.7742813 | F43: 46.656693 | G43: 7.503799113 | H43: 205.541391 | I43: 107.309134 | J43: 98.232257 | K43: 91.54137522 | L43: 0 | M43: 0 | N43: 0 | O43: 0 | P43: 0 | Q43: 0 | R43: 0 | S43: 0 | T43: 0 | U43: 0 | V43: 0 | W43: 0 | X43: 0.027 | Y43: 0.18 | Z43: 0 | AA43: 0 | AB43: 0 | AC43: 0 | AD43: 0 | AE43: 0 | AF43: 0 | AG43: 0 | AH43: 0 | AI43: 0 | AJ43: 0 | AK43: 0 | AL43: 0 | AM43: 0 | AN43: 0 | AO43: 0 | AP43: 0 | AQ43: 0 | AR43: 205.514391 | AS43: 107.129134 | AT43: 0 | AU43: 0 | AV43: 0 | AW43: 0 | AX43: 0 | AY43: 0 | AZ43: 0 | BA43: 0 | BB43: 0 | BC43: 0 | BD43: 0 | BE43: 0 | BF43: 0 | BG43: 0 | BH43: 0 | BI43: 0 | BJ43: 0 | BK43: 0 | BL43: 0 | BM43: 0 | BN43: 0 | BO43: 0 | BP43: 0 | BQ43: 0 | BR43: 0 | BS43: 0 | BT43: 0 | BU43: 0 | BV43: 0 | BW43: 0 | BX43: 0 | BY43: 0 | BZ43: 0 | CA43: 0 | CB43: 0 | CC43: 0 | CD43: 0 | CE43: 0 | CF43: 0 | CG43: 0 | CH43: 0 | CI43: 0 | CJ43: 0 | CK43: 0 | CL43: 0 | CM43: 0 | CN43: 0 | CO43: - | CP43: 84.118398 | CQ43: 43.410743 | CR43: 40.707655 | CS43: 93.77322798 | CT43: 0 | CU43: 0 | CV43: 0 | CW43: - | CX43: 0 | CY43: 0 | CZ43: 0 | DA43: - | DB43: 0 | DC43: 0 | DD43: 0 | DE43: 0 | DF43: 584.3125763 | DG43: 578.3635383 | DH43: 5.949038 | DI43: 1.028598383 | DJ43: 1506.973716 | DK43: 1326.642125 | DL43: 180.331591 | DM43: 13.59308495 | DN43: 0 | DO43: 0 | DP43: 0 | DQ43: - | DR43: 1481.267429 | DS43: 1246.060331 | DT43: 235.207098 | DU43: 18.87606018 | DV43: 1506.973716 | DW43: 1326.642125 | DX43: 1254.048603 | DY43: 746.610333 | DZ43: 507.43827 | EA43: 67.96561038 | EB43: 5.949038 | EC43: 391.9863302 | ED43: -386.0372922 | EE43: -98.48233534 | EF43: 0 | EG43: 0 | EH43: 1501.024678 | EI43: 934.6557948 | EJ43: 566.3688832 | EK43: 60.59651973 | EL43: 0 | EM43: 0 | EN43: 0 | EO43: - | EP43: 0 | EQ43: 0 | ER43: 0 | ES43: - | ET43: 0 | EU43: 0 | EV43: 0 | EW43: - | EX43: 205.514391 | EY43: 107.129134 | EZ43: 98.385257 | FA43: 91.83800272 | FB43: 0.027 | FC43: 0.18 | FD43: -0.153 | FE43: -85 | FF43: 0 | FG43: 0 | FH43: 0 | FI43: 0 | FJ43: 0 | FK43: 0
A44: 86500000 | B44: E.S.P. Empresa de Servicios Públicos Domiciliarios de la Dorada | C44: CALDAS EMPRESAS QUE NO COTIZAN | D44: 4215.226446 | E44: 4340.162978 | F44: -124.936532 | G44: -2.878613836 | H44: 1093.000983 | I44: 1744.106048 | J44: -651.105065 | K44: -37.33173598 | L44: 0 | M44: 0 | N44: 0 | O44: 0 | P44: 0 | Q44: 0 | R44: 0 | S44: 0 | T44: 0 | U44: 0 | V44: 0 | W44: 0 | X44: 0 | Y44: 0 | Z44: 712.783302 | AA44: 1259.462513 | AB44: 0 | AC44: 0 | AD44: 0 | AE44: 0 | AF44: 0 | AG44: 0 | AH44: 0 | AI44: 0 | AJ44: 0 | AK44: 0 | AL44: 0 | AM44: 0 | AN44: 0 | AO44: 0 | AP44: 0 | AQ44: 0 | AR44: 0 | AS44: 0 | AT44: 0 | AU44: 0 | AV44: 0 | AW44: 0.09 | AX44: 869.555952 | AY44: 973.891806 | AZ44: 489.338271 | BA44: 489.338271 | BB44: 0 | BC44: 0 | BD44: 0 | BE44: 0 | BF44: 0 | BG44: 0 | BH44: 0 | BI44: 0 | BJ44: 0 | BK44: 0 | BL44: 489.338271 | BM44: 489.338271 | BN44: 0 | BO44: 0 | BP44: 0 | BQ44: 0 | BR44: 0 | BS44: 0 | BT44: 0 | BU44: 0 | BV44: 0 | BW44: 0 | BX44: 0 | BY44: 0 | BZ44: 0 | CA44: 0 | CB44: 0 | CC44: 0 | CD44: 0 | CE44: 0 | CF44: 0 | CG44: 0 | CH44: 0 | CI44: 0 | CJ44: 0 | CK44: 0 | CL44: 0 | CM44: 0 | CN44: 0 | CO44: - | CP44: 1696.308457 | CQ44: 1580.824686 | CR44: 115.483771 | CS44: 7.305286413 | CT44: 0 | CU44: 0 | CV44: 0 | CW44: - | CX44: 0 | CY44: 0 | CZ44: 0 | DA44: - | DB44: 0 | DC44: 0 | DD44: 0 | DE44: 0 | DF44: 2518.917989 | DG44: 2759.338292 | DH44: -240.420303 | DI44: -8.712969472 | DJ44: 2061.781809 | DK44: 9101.829981 | DL44: -7040.048172 | DM44: -77.34761237 | DN44: 0 | DO44: 0 | DP44: 0 | DQ44: - | DR44: 0 | DS44: 0 | DT44: 0 | DU44: - | DV44: 1826.39473 | DW44: 2350.816052 | DX44: 0 | DY44: 0 | DZ44: 0 | EA44: - | EB44: 97.609848 | EC44: 155.269205 | ED44: -57.659357 | EE44: -37.1350887 | EF44: 235.387079 | EG44: 6751.013929 | EH44: 1964.171961 | EI44: 8946.560776 | EJ44: -6982.388815 | EK44: -78.0455081 | EL44: 0 | EM44: 0 | EN44: 0 | EO44: - | EP44: 0 | EQ44: 0 | ER44: 0 | ES44: - | ET44: 0 | EU44: 0 | EV44: 0 | EW44: - | EX44: 0 | EY44: 0 | EZ44: 0 | FA44: - | FB44: 1093.000983 | FC44: 1744.106048 | FD44: -651.105065 | FE44: -37.33173598 | FF44: 0 | FG44: 0 | FH44: 489.338271 | FI44: 489.338271 | FJ44: 0 | FK44: 0
A45: 86600000 | B45: E.S.E. Centro de Salud San Antonio - Socotá | C45: BOYACÁ EMPRESAS QUE NO COTIZAN | D45: 2575.036948 | E45: 2248.73889 | F45: 326.298058 | G45: 14.51026882 | H45: 773.94278 | I45: 656.314545 | J45: 117.628235 | K45: 17.92253972 | L45: 0 | M45: 0 | N45: 0 | O45: 0 | P45: 0 | Q45: 0 | R45: 0 | S45: 0 | T45: 0 | U45: 0 | V45: 0 | W45: 0 | X45: 0 | Y45: 0 | Z45: 0 | AA45: 0 | AB45: 872.86047 | AC45: 784.802233 | AD45: 0 | AE45: 0 | AF45: 0 | AG45: 0 | AH45: 0 | AI45: 26.400969 | AJ45: 0 | AK45: 0 | AL45: 0 | AM45: 0 | AN45: 0 | AO45: 0 | AP45: 0 | AQ45: 0 | AR45: 0 | AS45: 0 | AT45: 0 | AU45: 0 | AV45: 28.416917 | AW45: 28.416917 | AX45: 0 | AY45: 0 | AZ45: 127.334607 | BA45: 183.305574 | BB45: 0 | BC45: 0 | BD45: 0 | BE45: 0 | BF45: 0 | BG45: 0 | BH45: 0 | BI45: 0 | BJ45: 0 | BK45: 0 | BL45: 0 | BM45: 0 | BN45: 0 | BO45: 0 | BP45: 0 | BQ45: 0 | BR45: 127.334607 | BS45: 183.305574 | BT45: 0 | BU45: 0 | BV45: 0 | BW45: 0 | BX45: 0 | BY45: 0 | BZ45: 0 | CA45: 0 | CB45: 0 | CC45: 0 | CD45: 0 | CE45: 0 | CF45: 0 | CG45: 0 | CH45: 0 | CI45: 0 | CJ45: 0 | CK45: 0 | CL45: 0 | CM45: 0 | CN45: 0 | CO45: - | CP45: 69.678371 | CQ45: 122.140496 | CR45: -52.462125 | CS45: -42.95227768 | CT45: 0 | CU45: 0 | CV45: 0 | CW45: - | CX45: 0 | CY45: 0 | CZ45: 0 | DA45: - | DB45: 0 | DC45: 0 | DD45: 0 | DE45: 0 | DF45: 2505.358577 | DG45: 2126.598394 | DH45: 378.760183 | DI45: 17.81061173 | DJ45: 2598.027551 | DK45: 2271.602009 | DL45: 326.425542 | DM45: 14.36983859 | DN45: 0 | DO45: 0 | DP45: 0 | DQ45: - | DR45: 427.701245 | DS45: 296.166806 | DT45: 131.534439 | DU45: 44.41228265 | DV45: 1290.827807 | DW45: 1095.204137 | DX45: 0 | DY45: 0 | DZ45: 0 | EA45: - | EB45: 378.760183 | EC45: 147.793903 | ED45: 230.96628 | EE45: 156.2759189 | EF45: 1307.199744 | EG45: 1176.397872 | EH45: 2219.267368 | EI45: 2123.808106 | EJ45: 95.459262 | EK45: 4.494721615 | EL45: 0 | EM45: 0 | EN45: 0 | EO45: - | EP45: 0 | EQ45: 0 | ER45: 0 | ES45: - | ET45: 0 | EU45: 0 | EV45: 0 | EW45: - | EX45: 0 | EY45: 26.400969 | EZ45: -26.400969 | FA45: -100 | FB45: 773.94278 | FC45: 629.913576 | FD45: 144.029204 | FE45: 22.86491504 | FF45: 0 | FG45: 0 | FH45: 127.334607 | FI45: 183.305574 | FJ45: 0 | FK45: 0
A46: 86800000 | B46: E.S.P. Empresa de Servicios Públicos Domiciliarios de Aguazul | C46: CASANARE EMPRESAS QUE NO COTIZAN | D46: 5904.849579 | E46: 6067.206849 | F46: -162.35727 | G46: -2.675980464 | H46: 972.345216 | I46: 1090.824883 | J46: -118.479667 | K46: -10.86147455 | L46: 0 | M46: 0 | N46: 0 | O46: 0 | P46: 0 | Q46: 0 | R46: 0 | S46: 0 | T46: 0 | U46: 0 | V46: 0 | W46: 0 | X46: 14.211264 | Y46: 16.739865 | Z46: 1034.67838 | AA46: 890.345623 | AB46: 0 | AC46: 0 | AD46: 0 | AE46: 0 | AF46: 0 | AG46: 0 | AH46: 0 | AI46: 0 | AJ46: 0 | AK46: 0 | AL46: 0 | AM46: 0 | AN46: 0 | AO46: 0 | AP46: 0 | AQ46: 0 | AR46: 0 | AS46: 0 | AT46: 0 | AU46: 0 | AV46: 39.560642 | AW46: 299.844465 | AX46: 0 | AY46: 0 | AZ46: 116.10507 | BA46: 116.10507 | BB46: 0 | BC46: 0 | BD46: 0 | BE46: 0 | BF46: 0 | BG46: 0 | BH46: 90.20099 | BI46: 90.20099 | BJ46: 11.04694 | BK46: 11.04694 | BL46: 14.85714 | BM46: 14.85714 | BN46: 0 | BO46: 0 | BP46: 0 | BQ46: 0 | BR46: 0 | BS46: 0 | BT46: 0 | BU46: 0 | BV46: 0 | BW46: 0 | BX46: 0 | BY46: 0 | BZ46: 0 | CA46: 0 | CB46: 0 | CC46: 0 | CD46: 0 | CE46: 0 | CF46: 0 | CG46: 0 | CH46: 0 | CI46: 0 | CJ46: 0 | CK46: 0 | CL46: 0 | CM46: 0 | CN46: 0 | CO46: - | CP46: 4152.53061 | CQ46: 4397.633173 | CR46: -245.102563 | CS46: -5.573510872 | CT46: 0 | CU46: 0 | CV46: 0 | CW46: - | CX46: 0.302187 | CY46: 187.5 | CZ46: -187.197813 | DA46: -99.8388336 | DB46: 0 | DC46: 0 | DD46: 0 | DE46: 0 | DF46: 1752.318969 | DG46: 1669.573676 | DH46: 82.745293 | DI46: 4.956073169 | DJ46: 5255.401095 | DK46: 5085.8383 | DL46: 169.562795 | DM46: 3.334018602 | DN46: 0 | DO46: 0 | DP46: 0 | DQ46: - | DR46: 0 | DS46: 0 | DT46: 0 | DU46: - | DV46: 3283.475602 | DW46: 2790.942583 | DX46: 0 | DY46: 0 | DZ46: 0 | EA46: - | EB46: 82.745294 | EC46: 48.230762 | ED46: 34.514532 | EE46: 71.56124135 | EF46: 1971.925493 | EG46: 2294.895717 | EH46: 5172.655801 | EI46: 5037.607538 | EJ46: 135.048263 | EK46: 2.68080159 | EL46: 0.302187 | EM46: 187.5 | EN46: -187.197813 | EO46: -99.8388336 | EP46: 0 | EQ46: 0 | ER46: 0 | ES46: - | ET46: 0 | EU46: 0 | EV46: 0 | EW46: - | EX46: 0 | EY46: 0 | EZ46: 0 | FA46: - | FB46: 972.345216 | FC46: 1090.824883 | FD46: -118.479667 | FE46: -10.86147455 | FF46: 0 | FG46: 0 | FH46: 116.10507 | FI46: 116.10507 | FJ46: 0 | FK46: 0
A47: 86900000 | B47: Centro de Salud Alcides Jiménez Puerto Caicedo | C47: PUTUMAYO EMPRESAS QUE NO COTIZAN | D47: 13802.19403 | E47: 11220.00108 | F47: 2582.192953 | G47: 23.01419523 | H47: 5830.800128 | I47: 4314.745451 | J47: 1516.054677 | K47: 35.13659599 | L47: 0 | M47: 0 | N47: 0 | O47: 0 | P47: 0 | Q47: 0 | R47: 0 | S47: 0 | T47: 0 | U47: 0 | V47: 0 | W47: 0 | X47: 0 | Y47: 0 | Z47: 0 | AA47: 0 | AB47: 5733.087984 | AC47: 4418.263014 | AD47: 0 | AE47: 0 | AF47: 0 | AG47: 0 | AH47: 0 | AI47: 0 | AJ47: 0 | AK47: 0 | AL47: 0 | AM47: 0 | AN47: 0 | AO47: 0 | AP47: 0 | AQ47: 0 | AR47: 0 | AS47: 0 | AT47: 0 | AU47: 0 | AV47: 201.229707 | AW47: 0 | AX47: 0 | AY47: 0 | AZ47: 103.517563 | BA47: 103.517563 | BB47: 0 | BC47: 0 | BD47: 0 | BE47: 0 | BF47: 0 | BG47: 0 | BH47: 0 | BI47: 0 | BJ47: 0 | BK47: 0 | BL47: 0 | BM47: 0 | BN47: 0 | BO47: 0 | BP47: 0 | BQ47: 0 | BR47: 103.517563 | BS47: 103.517563 | BT47: 0 | BU47: 0 | BV47: 0 | BW47: 0 | BX47: 0 | BY47: 0 | BZ47: 0 | CA47: 0 | CB47: 0 | CC47: 0 | CD47: 0 | CE47: 0 | CF47: 0 | CG47: 0 | CH47: 0 | CI47: 0 | CJ47: 0 | CK47: 0 | CL47: 0 | CM47: 0 | CN47: 0 | CO47: - | CP47: 2557.088029 | CQ47: 2233.216907 | CR47: 323.871122 | CS47: 14.50244806 | CT47: 0 | CU47: 0 | CV47: 0 | CW47: - | CX47: 0 | CY47: 0 | CZ47: 0 | DA47: - | DB47: 0 | DC47: 0 | DD47: 0 | DE47: 0 | DF47: 11245.106 | DG47: 8986.78417 | DH47: 2258.321831 | DI47: 25.12936539 | DJ47: 9618.595613 | DK47: 8409.58609 | DL47: 1209.009523 | DM47: 14.37656396 | DN47: 0 | DO47: 0 | DP47: 0 | DQ47: - | DR47: 1725.880636 | DS47: 783.282446 | DT47: 942.59819 | DU47: 120.3395014 | DV47: 5413.915702 | DW47: 4290.084068 | DX47: 0 | DY47: 0 | DZ47: 0 | EA47: - | EB47: 2258.321831 | EC47: 1850.25654 | ED47: 408.065291 | EE47: 22.05452499 | EF47: 4204.679911 | EG47: 4119.502022 | EH47: 7360.273782 | EI47: 6559.32955 | EJ47: 800.944232 | EK47: 12.21076371 | EL47: 0 | EM47: 0 | EN47: 0 | EO47: - | EP47: 0 | EQ47: 0 | ER47: 0 | ES47: - | ET47: 0 | EU47: 0 | EV47: 0 | EW47: - | EX47: 0 | EY47: 0 | EZ47: 0 | FA47: - | FB47: 5830.800128 | FC47: 4314.745451 | FD47: 1516.054677 | FE47: 35.13659599 | FF47: 0 | FG47: 0 | FH47: 103.517563 | FI47: 103.517563 | FJ47: 0 | FK47: 0
A48: 87000000 | B48: Instituto del Deporte, la Recreación y el Aprovechamiento del Tiempo Libre - Santo Domingo | C48: ANTIOQUIA ENTIDADES DE GOBIERNO | D48: 448.156675 | E48: 486.456641 | F48: -38.299966 | G48: -7.873253806 | H48: 11.548579 | I48: 11.548579 | J48: 0 | K48: 0 | L48: 0 | M48: 0 | N48: 0 | O48: 0 | P48: 0 | Q48: 0 | R48: 0 | S48: 0 | T48: 0 | U48: 0 | V48: 0 | W48: 0 | X48: 0 | Y48: 0 | Z48: 0 | AA48: 0 | AB48: 0 | AC48: 0 | AD48: 0 | AE48: 0 | AF48: 0 | AG48: 0 | AH48: 0 | AI48: 0 | AJ48: 0 | AK48: 0 | AL48: 0 | AM48: 0 | AN48: 0 | AO48: 0 | AP48: 0 | AQ48: 0 | AR48: 11.548579 | AS48: 11.548579 | AT48: 0 | AU48: 0 | AV48: 0 | AW48: 0 | AX48: 0 | AY48: 0 | AZ48: 0 | BA48: 0 | BB48: 0 | BC48: 0 | BD48: 0 | BE48: 0 | BF48: 0 | BG48: 0 | BH48: 0 | BI48: 0 | BJ48: 0 | BK48: 0 | BL48: 0 | BM48: 0 | BN48: 0 | BO48: 0 | BP48: 0 | BQ48: 0 | BR48: 0 | BS48: 0 | BT48: 0 | BU48: 0 | BV48: 0 | BW48: 0 | BX48: 0 | BY48: 0 | BZ48: 0 | CA48: 0 | CB48: 0 | CC48: 0 | CD48: 0 | CE48: 0 | CF48: 0 | CG48: 0 | CH48: 0 | CI48: 0 | CJ48: 0 | CK48: 0 | CL48: 0 | CM48: 0 | CN48: 0 | CO48: - | CP48: 9.662617 | CQ48: 9.66003 | CR48: 0.002587 | CS48: 0.02678045513 | CT48: 0 | CU48: 0 | CV48: 0 | CW48: - | CX48: 0 | CY48: 0 | CZ48: 0 | DA48: - | DB48: 0 | DC48: 0 | DD48: 0 | DE48: 0 | DF48: 438.494058 | DG48: 476.796611 | DH48: -38.302553 | DI48: -8.033310665 | DJ48: 329.74107 | DK48: 348.00783 | DL48: -18.26676 | DM48: -5.248950864 | DN48: 0 | DO48: 0 | DP48: 0 | DQ48: - | DR48: 242.58178 | DS48: 332.746522 | DT48: -90.164742 | DU48: -27.0971253 | DV48: 329.74107 | DW48: 348.00783 | DX48: 0 | DY48: 0 | DZ48: 0 | EA48: - | EB48: -38.302553 | EC48: 11.676291 | ED48: -49.978844 | EE48: -428.0369854 | EF48: 0 | EG48: 0 | EH48: 368.043623 | EI48: 336.331539 | EJ48: 31.712084 | EK48: 9.428816606 | EL48: 0 | EM48: 0 | EN48: 0 | EO48: - | EP48: 0 | EQ48: 0 | ER48: 0 | ES48: - | ET48: 0 | EU48: 0 | EV48: 0 | EW48: - | EX48: 11.548579 | EY48: 11.548579 | EZ48: 0 | FA48: 0 | FB48: 0 | FC48: 0 | FD48: 0 | FE48: - | FF48: 0 | FG48: 0 | FH48: 0 | FI48: 0 | FJ48: 0 | FK48: 0
A49: 87200000 | B49: Empresa de Vivienda de Antioquia - VIVA | C49: ANTIOQUIA ENTIDADES DE GOBIERNO | D49: 471923.2119 | E49: 402365.6379 | F49: 69557.57397 | G49: 17.28715561 | H49: 13999.84075 | I49: 53802.9068 | J49: -39803.06605 | K49: -73.97939706 | L49: 0 | M49: 0 | N49: 0 | O49: 0 | P49: 0 | Q49: 0 | R49: 0 | S49: 0 | T49: 0 | U49: 0 | V49: 0 | W49: 0 | X49: 7575.118934 | Y49: 8049.715053 | Z49: 0 | AA49: 0 | AB49: 0 | AC49: 0 | AD49: 0 | AE49: 0 | AF49: 0 | AG49: 0 | AH49: 0 | AI49: 0 | AJ49: 0 | AK49: 0 | AL49: 0 | AM49: 0 | AN49: 0 | AO49: 0 | AP49: 0 | AQ49: 0 | AR49: 0 | AS49: 39568.55257 | AT49: 0 | AU49: 0 | AV49: 6424.721814 | AW49: 6184.639179 | AX49: 0 | AY49: 0 | AZ49: 0 | BA49: 0 | BB49: 0 | BC49: 0 | BD49: 0 | BE49: 0 | BF49: 0 | BG49: 0 | BH49: 0 | BI49: 0 | BJ49: 0 | BK49: 0 | BL49: 0 | BM49: 0 | BN49: 0 | BO49: 0 | BP49: 0 | BQ49: 0 | BR49: 0 | BS49: 0 | BT49: 0 | BU49: 0 | BV49: 0 | BW49: 0 | BX49: 0 | BY49: 0 | BZ49: 0 | CA49: 0 | CB49: 0 | CC49: 0 | CD49: 0 | CE49: 0 | CF49: 0 | CG49: 0 | CH49: 0 | CI49: 0 | CJ49: 0 | CK49: 0 | CL49: 0 | CM49: 0 | CN49: 0 | CO49: - | CP49: 427496.6831 | CQ49: 362147.5399 | CR49: 65349.14315 | CS49: 18.04489495 | CT49: 0 | CU49: 0 | CV49: 0 | CW49: - | CX49: 0 | CY49: 0 | CZ49: 0 | DA49: - | DB49: 0 | DC49: 0 | DD49: 0 | DE49: 0 | DF49: 44426.52881 | DG49: 40218.098 | DH49: 4208.430817 | DI49: 10.46402248 | DJ49: 66773.20328 | DK49: 58666.25538 | DL49: 8106.947902 | DM49: 13.81875807 | DN49: 0 | DO49: 0 | DP49: 0 | DQ49: - | DR49: 46157.44809 | DS49: 30647.78435 | DT49: 15509.66374 | DU49: 50.60615008 | DV49: 61572.35843 | DW49: 52198.80717 | DX49: 27906.52747 | DY49: 16750.69966 | DZ49: 11155.82781 | EA49: 66.59917516 | EB49: 3850.905939 | EC49: 15404.85947 | ED49: -11553.95353 | EE49: -75.0020054 | EF49: 5200.844846 | EG49: 6467.448204 | EH49: 62922.29734 | EI49: 43261.39591 | EJ49: 19660.90143 | EK49: 45.44675691 | EL49: 0 | EM49: 0 | EN49: 0 | EO49: - | EP49: 0 | EQ49: 0 | ER49: 0 | ES49: - | ET49: 0 | EU49: 0 | EV49: 0 | EW49: - | EX49: 0 | EY49: 39568.55257 | EZ49: -39568.55257 | FA49: -100 | FB49: 13999.84075 | FC49: 14234.35423 | FD49: -234.513484 | FE49: -1.647517549 | FF49: 0 | FG49: 0 | FH49: 0 | FI49: 0 | FJ49: 0 | FK49: 0
A50: 87700000 | B50: E.S.E. Hospital San José de Marsella | C50: RISARALDA EMPRESAS QUE NO COTIZAN | D50: 13154.92051 | E50: 12598.45302 | F50: 556.4674951 | G50: 4.416950988 | H50: 1948.135586 | I50: 1571.460684 | J50: 376.6749027 | K50: 23.96973126 | L50: 0 | M50: 0 | N50: 0 | O50: 0 | P50: 0 | Q50: 0 | R50: 0 | S50: 0 | T50: 0 | U50: 0 | V50: 0 | W50: 0 | X50: 0 | Y50: 0 | Z50: 0 | AA50: 0 | AB50: 2109.172643 | AC50: 1717.503304 | AD50: 0 | AE50: 0 | AF50: 0 | AG50: 0 | AH50: 0 | AI50: 0 | AJ50: 0 | AK50: 0 | AL50: 0 | AM50: 0 | AN50: 0 | AO50: 0 | AP50: 0 | AQ50: 0 | AR50: 0 | AS50: 0 | AT50: 0 | AU50: 0 | AV50: 0 | AW50: 0 | AX50: 219.9856516 | AY50: 232.3602135 | AZ50: 381.0227079 | BA50: 378.4028339 | BB50: 0 | BC50: 0 | BD50: 0 | BE50: 0 | BF50: 0 | BG50: 0 | BH50: 0 | BI50: 0 | BJ50: 0 | BK50: 0 | BL50: 0 | BM50: 0 | BN50: 0 | BO50: 0 | BP50: 0 | BQ50: 0 | BR50: 381.0227079 | BS50: 378.4028339 | BT50: 0 | BU50: 0 | BV50: 0 | BW50: 0 | BX50: 0 | BY50: 0 | BZ50: 0 | CA50: 0 | CB50: 0 | CC50: 0 | CD50: 0 | CE50: 0 | CF50: 0 | CG50: 0 | CH50: 0 | CI50: 0 | CJ50: 0 | CK50: 0 | CL50: 0 | CM50: 0 | CN50: 0 | CO50: - | CP50: 281.3408683 | CQ50: 268.4798645 | CR50: 12.86100378 | CS50: 4.790304779 | CT50: 0 | CU50: 0 | CV50: 0 | CW50: - | CX50: 0 | CY50: 0 | CZ50: 0 | DA50: - | DB50: 0 | DC50: 0 | DD50: 0 | DE50: 0 | DF50: 12873.57964 | DG50: 12329.97315 | DH50: 543.6064913 | DI50: 4.40882137 | DJ50: 5568.924171 | DK50: 5016.990579 | DL50: 551.9335917 | DM50: 11.00128818 | DN50: 0 | DO50: 0 | DP50: 0 | DQ50: - | DR50: 463.596683 | DS50: 540.0273235 | DT50: -76.43064054 | DU50: -14.15310619 | DV50: 2409.455616 | DW50: 2041.356629 | DX50: 0 | DY50: 0 | DZ50: 0 | EA50: - | EB50: 543.6064913 | EC50: 542.0867409 | ED50: 1.51975044 | EE50: 0.280351893 | EF50: 3159.468555 | EG50: 2975.63395 | EH50: 5025.31768 | EI50: 4474.903838 | EJ50: 550.4138413 | EK50: 12.30001495 | EL50: 0 | EM50: 0 | EN50: 0 | EO50: - | EP50: 0 | EQ50: 0 | ER50: 0 | ES50: - | ET50: 0 | EU50: 0 | EV50: 0 | EW50: - | EX50: 0 | EY50: 0 | EZ50: 0 | FA50: - | FB50: 1948.135586 | FC50: 1571.460684 | FD50: 376.6749027 | FE50: 23.96973126 | FF50: 0 | FG50: 0 | FH50: 381.0227079 | FI50: 378.4028339 | FJ50: 0 | FK50: 0
A51: 87800000 | B51: Instituto Municipal de Deporte y Recreación de Ginebra | C51: VALLE DEL CAUCA ENTIDADES DE GOBIERNO | D51: 152.1144929 | E51: 292.400777 | F51: -140.2862841 | G51: -47.97739785 | H51: 28.870392 | I51: 21.499772 | J51: 7.37062 | K51: 34.28231704 | L51: 28.870392 | M51: 21.499772 | N51: 0 | O51: 0 | P51: 0 | Q51: 0 | R51: 0 | S51: 0 | T51: 0 | U51: 0 | V51: 0 | W51: 0 | X51: 0 | Y51: 0 | Z51: 0 | AA51: 0 | AB51: 0 | AC51: 0 | AD51: 0 | AE51: 0 | AF51: 0 | AG51: 0 | AH51: 0 | AI51: 0 | AJ51: 0 | AK51: 0 | AL51: 0 | AM51: 0 | AN51: 0 | AO51: 0 | AP51: 0 | AQ51: 0 | AR51: 0 | AS51: 0 | AT51: 0 | AU51: 0 | AV51: 0 | AW51: 0 | AX51: 0 | AY51: 0 | AZ51: 0 | BA51: 0 | BB51: 0 | BC51: 0 | BD51: 0 | BE51: 0 | BF51: 0 | BG51: 0 | BH51: 0 | BI51: 0 | BJ51: 0 | BK51: 0 | BL51: 0 | BM51: 0 | BN51: 0 | BO51: 0 | BP51: 0 | BQ51: 0 | BR51: 0 | BS51: 0 | BT51: 0 | BU51: 0 | BV51: 0 | BW51: 0 | BX51: 0 | BY51: 0 | BZ51: 0 | CA51: 0 | CB51: 0 | CC51: 0 | CD51: 0 | CE51: 0 | CF51: 0 | CG51: 0 | CH51: 0 | CI51: 0 | CJ51: 0 | CK51: 0 | CL51: 0 | CM51: 0 | CN51: 0 | CO51: - | CP51: 0 | CQ51: 0 | CR51: 0 | CS51: - | CT51: 0 | CU51: 0 | CV51: 0 | CW51: - | CX51: 0 | CY51: 0 | CZ51: 0 | DA51: - | DB51: 0 | DC51: 0 | DD51: 0 | DE51: 0 | DF51: 152.1144929 | DG51: 292.400777 | DH51: -140.2862841 | DI51: -47.97739785 | DJ51: 555.5543675 | DK51: 608.7939633 | DL51: -53.2395958 | DM51: -8.745092595 | DN51: 11.388245 | DO51: 21.499772 | DP51: -10.111527 | DQ51: -47.03085689 | DR51: 541.556656 | DS51: 586.0261663 | DT51: -44.46951028 | DU51: -7.588314795 | DV51: 555.5543675 | DW51: 608.7939633 | DX51: 548.649929 | DY51: 390.0170522 | DZ51: 158.6328768 | EA51: 40.67331823 | EB51: -140.2862841 | EC51: 95.90152418 | ED51: -236.1878083 | EE51: -246.2816001 | EF51: 0 | EG51: 0 | EH51: 695.8406516 | EI51: 512.8924391 | EJ51: 182.9482125 | EK51: 35.66989851 | EL51: 0 | EM51: 0 | EN51: 0 | EO51: - | EP51: 0 | EQ51: 0 | ER51: 0 | ES51: - | ET51: 0 | EU51: 0 | EV51: 0 | EW51: - | EX51: 28.870392 | EY51: 21.499772 | EZ51: 7.37062 | FA51: 34.28231704 | FB51: 0 | FC51: 0 | FD51: 0 | FE51: - | FF51: 0 | FG51: 0 | FH51: 0 | FI51: 0 | FJ51: 0 | FK51: 0
A52: 87900000 | B52: E.S.P. Empresa Municipal de Natagaima | C52: TOLIMA EMPRESAS QUE NO COTIZAN | D52: 2691.72211 | E52: 2514.832995 | F52: 176.889115 | G52: 7.033831485 | H52: 619.275633 | I52: 591.199964 | J52: 28.075669 | K52: 4.748929416 | L52: 0 | M52: 0 | N52: 0 | O52: 0 | P52: 0 | Q52: 0 | R52: 0 | S52: 0 | T52: 0 | U52: 0 | V52: 0 | W52: 0 | X52: 0 | Y52: 0 | Z52: 755.10358 | AA52: 698.730231 | AB52: 0 | AC52: 0 | AD52: 0 | AE52: 0 | AF52: 0 | AG52: 0 | AH52: 12 | AI52: 12.026752 | AJ52: 0 | AK52: 0 | AL52: 0 | AM52: 0 | AN52: 0 | AO52: 0 | AP52: 0 | AQ52: 0 | AR52: 0 | AS52: 0 | AT52: 0 | AU52: 0 | AV52: 42.890709 | AW52: 57.051406 | AX52: 0 | AY52: 0 | AZ52: 190.718656 | BA52: 176.608425 | BB52: 0 | BC52: 0 | BD52: 0 | BE52: 0 | BF52: 0 | BG52: 0 | BH52: 100.142262 | BI52: 93.068898 | BJ52: 42.813315 | BK52: 39.956201 | BL52: 47.763079 | BM52: 43.583326 | BN52: 0 | BO52: 0 | BP52: 0 | BQ52: 0 | BR52: 0 | BS52: 0 | BT52: 0 | BU52: 0 | BV52: 0 | BW52: 0 | BX52: 0 | BY52: 0 | BZ52: 0 | CA52: 0 | CB52: 0 | CC52: 0 | CD52: 0 | CE52: 0 | CF52: 0 | CG52: 0 | CH52: 0 | CI52: 0 | CJ52: 0 | CK52: 0 | CL52: 0 | CM52: 0 | CN52: 0 | CO52: - | CP52: 911.990616 | CQ52: 777.009907 | CR52: 134.980709 | CS52: 17.37181312 | CT52: 0 | CU52: 0 | CV52: 0 | CW52: - | CX52: 0 | CY52: 0 | CZ52: 0 | DA52: - | DB52: 0 | DC52: 0 | DD52: 0 | DE52: 0 | DF52: 1779.731494 | DG52: 1737.823088 | DH52: 41.908406 | DI52: 2.411546163 | DJ52: 2091.951552 | DK52: 4523.644939 | DL52: -2431.693387 | DM52: -53.75517795 | DN52: 0 | DO52: 0 | DP52: 0 | DQ52: - | DR52: 326.53425 | DS52: 2842.443652 | DT52: -2515.909402 | DU52: -88.51219971 | DV52: 1097.1674 | DW52: 1121.768065 | DX52: 0 | DY52: 0 | DZ52: 0 | EA52: - | EB52: 57.953817 | EC52: 1.355186 | ED52: 56.598631 | EE52: 4176.44744 | EF52: 994.784152 | EG52: 3401.876874 | EH52: 2033.997735 | EI52: 4522.289753 | EJ52: -2488.292018 | EK52: -55.02283476 | EL52: 0 | EM52: 0 | EN52: 0 | EO52: - | EP52: 0 | EQ52: 0 | ER52: 0 | ES52: - | ET52: 0 | EU52: 0 | EV52: 0 | EW52: - | EX52: 12 | EY52: 12.026752 | EZ52: -0.026752 | FA52: -0.2224374461 | FB52: 607.275633 | FC52: 579.173212 | FD52: 28.102421 | FE52: 4.85216174 | FF52: 0 | FG52: 0 | FH52: 190.718656 | FI52: 176.608425 | FJ52: 0 | FK52: 0
A53: 88500000 | B53: Empresa Municipal de Vías - Belén de Umbría | C53: RISARALDA EMPRESAS QUE NO COTIZAN | D53: 2517.820318 | E53: 2574.911111 | F53: -57.09079292 | G53: -2.217194709 | H53: 748.302927 | I53: 1939.952225 | J53: -1191.649298 | K53: -61.42673426 | L53: 0 | M53: 0 | N53: 0 | O53: 0 | P53: 0 | Q53: 0 | R53: 0 | S53: 0 | T53: 0 | U53: 0 | V53: 0 | W53: 0 | X53: 748.302927 | Y53: 73.741214 | Z53: 0 | AA53: 0 | AB53: 0 | AC53: 0 | AD53: 0 | AE53: 0 | AF53: 0 | AG53: 0 | AH53: 0 | AI53: 1866.211011 | AJ53: 0 | AK53: 0 | AL53: 0 | AM53: 0 | AN53: 0 | AO53: 0 | AP53: 0 | AQ53: 0 | AR53: 0 | AS53: 0 | AT53: 0 | AU53: 0 | AV53: 0 | AW53: 0 | AX53: 0 | AY53: 0 | AZ53: 0 | BA53: 0 | BB53: 0 | BC53: 0 | BD53: 0 | BE53: 0 | BF53: 0 | BG53: 0 | BH53: 0 | BI53: 0 | BJ53: 0 | BK53: 0 | BL53: 0 | BM53: 0 | BN53: 0 | BO53: 0 | BP53: 0 | BQ53: 0 | BR53: 0 | BS53: 0 | BT53: 0 | BU53: 0 | BV53: 0 | BW53: 0 | BX53: 0 | BY53: 0 | BZ53: 0 | CA53: 0 | CB53: 0 | CC53: 0 | CD53: 0 | CE53: 0 | CF53: 0 | CG53: 0 | CH53: 0 | CI53: 0 | CJ53: 0 | CK53: 0 | CL53: 0 | CM53: 0 | CN53: 0 | CO53: - | CP53: 2213.653421 | CQ53: 2458.56684 | CR53: -244.9134189 | CS53: -9.961633538 | CT53: 0 | CU53: 0 | CV53: 0 | CW53: - | CX53: 0 | CY53: 0 | CZ53: 0 | DA53: - | DB53: 0 | DC53: 0 | DD53: 0 | DE53: 0 | DF53: 304.1668968 | DG53: 116.3442708 | DH53: 187.822626 | DI53: 161.436936 | DJ53: 862.4603433 | DK53: 933.4281154 | DL53: -70.96777214 | DM53: -7.602917779 | DN53: 0 | DO53: 0 | DP53: 0 | DQ53: - | DR53: 0 | DS53: 0 | DT53: 0 | DU53: - | DV53: 659.4614053 | DW53: 722.5625784 | DX53: 0 | DY53: 0 | DZ53: 0 | EA53: - | EB53: -112.177374 | EC53: -382.5100237 | ED53: 270.3326497 | EE53: -70.67335049 | EF53: 202.998938 | EG53: 210.865537 | EH53: 974.6377173 | EI53: 1315.938139 | EJ53: -341.3004218 | EK53: -25.93590167 | EL53: 0 | EM53: 0 | EN53: 0 | EO53: - | EP53: 0 | EQ53: 0 | ER53: 0 | ES53: - | ET53: 0 | EU53: 0 | EV53: 0 | EW53: - | EX53: 0 | EY53: 1866.211011 | EZ53: -1866.211011 | FA53: -100 | FB53: 748.302927 | FC53: 73.741214 | FD53: 674.561713 | FE53: 914.7689283 | FF53: 0 | FG53: 0 | FH53: 0 | FI53: 0 | FJ53: 0 | FK53: 0
A54: 88800000 | B54: Instituto de Tránsito y Transporte de Los Patios | C54: NORTE DE SANTANDER ENTIDADES DE GOBIERNO | D54: 4982.606218 | E54: 4065.090207 | F54: 917.5160108 | G54: 22.57061871 | H54: 962.7443576 | I54: 963.9555566 | J54: -1.211199 | K54: -0.1256488426 | L54: 0 | M54: 0 | N54: 869.5069586 | O54: 878.2304076 | P54: 0 | Q54: 0 | R54: 0 | S54: 0 | T54: 0 | U54: 0 | V54: 0 | W54: 0 | X54: 0 | Y54: 0 | Z54: 0 | AA54: 0 | AB54: 0 | AC54: 0 | AD54: 0 | AE54: 0 | AF54: 0 | AG54: 0 | AH54: 0 | AI54: 0 | AJ54: 0 | AK54: 0 | AL54: 0 | AM54: 0 | AN54: 0 | AO54: 0 | AP54: 0 | AQ54: 0 | AR54: 0 | AS54: 0 | AT54: 0 | AU54: 0 | AV54: 93.237399 | AW54: 85.725149 | AX54: 0 | AY54: 0 | AZ54: 0 | BA54: 0 | BB54: 0 | BC54: 0 | BD54: 0 | BE54: 0 | BF54: 0 | BG54: 0 | BH54: 0 | BI54: 0 | BJ54: 0 | BK54: 0 | BL54: 0 | BM54: 0 | BN54: 0 | BO54: 0 | BP54: 0 | BQ54: 0 | BR54: 0 | BS54: 0 | BT54: 0 | BU54: 0 | BV54: 0 | BW54: 0 | BX54: 0 | BY54: 0 | BZ54: 0 | CA54: 0 | CB54: 0 | CC54: 0 | CD54: 0 | CE54: 0 | CF54: 0 | CG54: 0 | CH54: 0 | CI54: 0 | CJ54: 0 | CK54: 0 | CL54: 0 | CM54: 0 | CN54: 0 | CO54: - | CP54: 1966.017555 | CQ54: 1232.36371 | CR54: 733.6538453 | CS54: 59.53225007 | CT54: 0 | CU54: 0 | CV54: 0 | CW54: - | CX54: 0 | CY54: 0 | CZ54: 0 | DA54: - | DB54: 0 | DC54: 0 | DD54: 0 | DE54: 0 | DF54: 3016.588663 | DG54: 2832.726497 | DH54: 183.8621655 | DI54: 6.490643049 | DJ54: 5037.918525 | DK54: 4691.916559 | DL54: 346.0019652 | DM54: 7.374427078 | DN54: 0 | DO54: 0 | DP54: 0 | DQ54: - | DR54: 0 | DS54: 21.149 | DT54: -21.149 | DU54: -100 | DV54: 5037.918525 | DW54: 4691.916559 | DX54: 0 | DY54: 0 | DZ54: 0 | EA54: - | EB54: 183.8621655 | EC54: 1535.225286 | ED54: -1351.363121 | EE54: -88.02376647 | EF54: 0 | EG54: 0 | EH54: 4854.056359 | EI54: 3156.691273 | EJ54: 1697.365086 | EK54: 53.77038612 | EL54: 0 | EM54: 0 | EN54: 0 | EO54: - | EP54: 0 | EQ54: 0 | ER54: 0 | ES54: - | ET54: 0 | EU54: 0 | EV54: 0 | EW54: - | EX54: 869.5069586 | EY54: 878.2304076 | EZ54: -8.723449 | FA54: -0.9932984471 | FB54: 93.237399 | FC54: 85.725149 | FD54: 7.51225 | FE54: 8.763181036 | FF54: 0 | FG54: 0 | FH54: 0 | FI54: 0 | FJ54: 0 | FK54: 0
A55: 88900000 | B55: E.S.E. Centro de Salud con Camas de la Cabecera Municipal de El Peñón | C55: BOLÍVAR EMPRESAS QUE NO COTIZAN | D55: 1874.372286 | E55: 2055.537345 | F55: -181.165059 | G55: -8.813513383 | H55: 483.742689 | I55: 429.852607 | J55: 53.890082 | K55: 12.53687453 | L55: 0 | M55: 0 | N55: 0 | O55: 0 | P55: 0 | Q55: 0 | R55: 0 | S55: 0 | T55: 0 | U55: 0 | V55: 0 | W55: 0 | X55: 0 | Y55: 0 | Z55: 0 | AA55: 0 | AB55: 483.742689 | AC55: 429.852607 | AD55: 0 | AE55: 0 | AF55: 0 | AG55: 0 | AH55: 0 | AI55: 0 | AJ55: 0 | AK55: 0 | AL55: 0 | AM55: 0 | AN55: 0 | AO55: 0 | AP55: 0 | AQ55: 0 | AR55: 0 | AS55: 0 | AT55: 0 | AU55: 0 | AV55: 0 | AW55: 0 | AX55: 0 | AY55: 0 | AZ55: 0 | BA55: 0 | BB55: 0 | BC55: 0 | BD55: 0 | BE55: 0 | BF55: 0 | BG55: 0 | BH55: 0 | BI55: 0 | BJ55: 0 | BK55: 0 | BL55: 0 | BM55: 0 | BN55: 0 | BO55: 0 | BP55: 0 | BQ55: 0 | BR55: 0 | BS55: 0 | BT55: 0 | BU55: 0 | BV55: 0 | BW55: 0 | BX55: 0 | BY55: 0 | BZ55: 0 | CA55: 0 | CB55: 0 | CC55: 0 | CD55: 0 | CE55: 0 | CF55: 0 | CG55: 0 | CH55: 0 | CI55: 0 | CJ55: 0 | CK55: 0 | CL55: 0 | CM55: 0 | CN55: 0 | CO55: - | CP55: 1136.812576 | CQ55: 1431.728332 | CR55: -294.915756 | CS55: -20.5985835 | CT55: 0 | CU55: 0 | CV55: 0 | CW55: - | CX55: 0 | CY55: 110 | CZ55: -110 | DA55: -100 | DB55: 0 | DC55: 0 | DD55: 0 | DE55: 0 | DF55: 737.55971 | DG55: 623.809013 | DH55: 113.750697 | DI55: 18.23485949 | DJ55: 1712.720083 | DK55: 2035.24782 | DL55: -322.527737 | DM55: -15.847099 | DN55: 0 | DO55: 0 | DP55: 0 | DQ55: - | DR55: 344.737272 | DS55: 615.431607 | DT55: -270.694335 | DU55: -43.98447072 | DV55: 1246.872102 | DW55: 1065.24782 | DX55: 0 | DY55: 0 | DZ55: 0 | EA55: - | EB55: 47.484074 | EC55: 0.678635 | ED55: 46.805439 | EE55: 6896.997502 | EF55: 465.847981 | EG55: 970 | EH55: 1665.236009 | EI55: 2034.569185 | EJ55: -369.333176 | EK55: -18.15289343 | EL55: 0 | EM55: 110 | EN55: -110 | EO55: -100 | EP55: 0 | EQ55: 0 | ER55: 0 | ES55: - | ET55: 0 | EU55: 0 | EV55: 0 | EW55: - | EX55: 0 | EY55: 0 | EZ55: 0 | FA55: - | FB55: 483.742689 | FC55: 429.852607 | FD55: 53.890082 | FE55: 12.53687453 | FF55: 0 | FG55: 0 | FH55: 0 | FI55: 0 | FJ55: 0 | FK55: 0
A56: 89000000 | B56: Asociación de Municipios del Alto Ariari | C56: META ENTIDADES DE GOBIERNO | D56: 23857.08957 | E56: 903.672688 | F56: 22953.41689 | G56: 2540.014453 | H56: 20813.95167 | I56: 826.465524 | J56: 19987.48615 | K56: 2418.429513 | L56: 0 | M56: 0 | N56: 663.850714 | O56: 605.764985 | P56: 0 | Q56: 0 | R56: 0 | S56: 0 | T56: 0 | U56: 0 | V56: 0 | W56: 0 | X56: 0 | Y56: 0 | Z56: 0 | AA56: 0 | AB56: 0 | AC56: 0 | AD56: 0 | AE56: 0 | AF56: 0 | AG56: 0 | AH56: 0 | AI56: 0 | AJ56: 0 | AK56: 0 | AL56: 0 | AM56: 0 | AN56: 0 | AO56: 0 | AP56: 0 | AQ56: 0 | AR56: 0 | AS56: 0 | AT56: 0 | AU56: 0 | AV56: 20150.10096 | AW56: 220.700539 | AX56: 0 | AY56: 0 | AZ56: 0 | BA56: 0 | BB56: 0 | BC56: 0 | BD56: 0 | BE56: 0 | BF56: 0 | BG56: 0 | BH56: 0 | BI56: 0 | BJ56: 0 | BK56: 0 | BL56: 0 | BM56: 0 | BN56: 0 | BO56: 0 | BP56: 0 | BQ56: 0 | BR56: 0 | BS56: 0 | BT56: 0 | BU56: 0 | BV56: 0 | BW56: 0 | BX56: 0 | BY56: 0 | BZ56: 0 | CA56: 0 | CB56: 0 | CC56: 0 | CD56: 0 | CE56: 0 | CF56: 0 | CG56: 0 | CH56: 0 | CI56: 0 | CJ56: 0 | CK56: 0 | CL56: 0 | CM56: 0 | CN56: 0 | CO56: - | CP56: 23489.76708 | CQ56: 581.701686 | CR56: 22908.06539 | CS56: 3938.112256 | CT56: 0 | CU56: 0 | CV56: 0 | CW56: - | CX56: 0 | CY56: 0 | CZ56: 0 | DA56: - | DB56: 0 | DC56: 0 | DD56: 0 | DE56: 0 | DF56: 367.322498 | DG56: 321.971002 | DH56: 45.351496 | DI56: 14.08558402 | DJ56: 728.8091 | DK56: 439.298201 | DL56: 289.510899 | DM56: 65.9030468 | DN56: 0 | DO56: 0 | DP56: 0 | DQ56: - | DR56: 0 | DS56: 0 | DT56: 0 | DU56: - | DV56: 728.8091 | DW56: 439.298201 | DX56: 0 | DY56: 0 | DZ56: 0 | EA56: - | EB56: 33.116273 | EC56: -111.671852 | ED56: 144.788125 | EE56: -129.6549868 | EF56: 0 | EG56: 0 | EH56: 695.692827 | EI56: 550.970053 | EJ56: 144.722774 | EK56: 26.26690384 | EL56: 0 | EM56: 0 | EN56: 0 | EO56: - | EP56: 0 | EQ56: 0 | ER56: 0 | ES56: - | ET56: 0 | EU56: 0 | EV56: 0 | EW56: - | EX56: 663.850714 | EY56: 605.764985 | EZ56: 58.085729 | FA56: 9.58882247 | FB56: 20150.10096 | FC56: 220.700539 | FD56: 19929.40042 | FE56: 9030.064226 | FF56: 0 | FG56: 0 | FH56: 0 | FI56: 0 | FJ56: 0 | FK56: 0
A57: 89100000 | B57: E.S.P. Aguas del Puerto S.A. - Puerto Berrío | C57: ANTIOQUIA EMPRESAS QUE NO COTIZAN | D57: 9983.632907 | E57: 9714.502985 | F57: 269.129922 | G57: 2.770393117 | H57: 1805.193529 | I57: 1299.328957 | J57: 505.864572 | K57: 38.93275596 | L57: 0 | M57: 0 | N57: 0 | O57: 0 | P57: 0 | Q57: 0 | R57: 0 | S57: 0 | T57: 0 | U57: 0 | V57: 3.215013 | W57: 0 | X57: 0 | Y57: 0 | Z57: 883.581441 | AA57: 798.383384 | AB57: 0 | AC57: 0 | AD57: 0 | AE57: 0 | AF57: 0 | AG57: 0 | AH57: 0 | AI57: 0 | AJ57: 0 | AK57: 0 | AL57: 0 | AM57: 0 | AN57: 0 | AO57: 0 | AP57: 0 | AQ57: 0 | AR57: 0 | AS57: 0 | AT57: 0 | AU57: 0 | AV57: 129.0756 | AW57: 0 | AX57: 1543.218484 | AY57: 1187.591356 | AZ57: 753.897009 | BA57: 686.645783 | BB57: 0 | BC57: 0 | BD57: 0 | BE57: 0 | BF57: 0 | BG57: 0 | BH57: 271.782454 | BI57: 235.213478 | BJ57: 109.317459 | BK57: 93.560458 | BL57: 372.797096 | BM57: 357.871847 | BN57: 0 | BO57: 0 | BP57: 0 | BQ57: 0 | BR57: 0 | BS57: 0 | BT57: 0 | BU57: 0 | BV57: 0 | BW57: 0 | BX57: 0 | BY57: 0 | BZ57: 0 | CA57: 0 | CB57: 0 | CC57: 0 | CD57: 0 | CE57: 0 | CF57: 0 | CG57: 0 | CH57: 0 | CI57: 0 | CJ57: 0 | CK57: 0 | CL57: 0 | CM57: 0 | CN57: 0 | CO57: - | CP57: 1872.375445 | CQ57: 1611.294795 | CR57: 261.08065 | CS57: 16.20315853 | CT57: 0 | CU57: 0 | CV57: 0 | CW57: - | CX57: 0 | CY57: 0 | CZ57: 0 | DA57: - | DB57: 0 | DC57: 0 | DD57: 0 | DE57: 0 | DF57: 8111.257462 | DG57: 8103.20819 | DH57: 8.049272 | DI57: 0.09933438474 | DJ57: 9328.517376 | DK57: 8538.482306 | DL57: 790.03507 | DM57: 9.252640477 | DN57: 0 | DO57: 0 | DP57: 0 | DQ57: - | DR57: 0 | DS57: 0 | DT57: 0 | DU57: - | DV57: 2125.821783 | DW57: 1966.440673 | DX57: 0 | DY57: 0 | DZ57: 0 | EA57: - | EB57: 8.049272 | EC57: 43.761372 | ED57: -35.7121 | EE57: -81.60644506 | EF57: 7202.695593 | EG57: 6572.041633 | EH57: 9320.468104 | EI57: 8494.720934 | EJ57: 825.74717 | EK57: 9.720709796 | EL57: 0 | EM57: 0 | EN57: 0 | EO57: - | EP57: 0 | EQ57: 0 | ER57: 0 | ES57: - | ET57: 0 | EU57: 0 | EV57: 0 | EW57: - | EX57: 0 | EY57: 0 | EZ57: 0 | FA57: - | FB57: 1805.193529 | FC57: 1299.328957 | FD57: 505.864572 | FE57: 38.93275596 | FF57: 0 | FG57: 0 | FH57: 753.897009 | FI57: 686.645783 | FJ57: 0 | FK57: 0
A58: 89200000 | B58: E.S.P. Empresa de Servicios Públicos Domiciliarios del Municipio de Pacho | C58: CUNDINAMARCA EMPRESAS QUE NO COTIZAN | D58: 6607.15027 | E58: 6623.991389 | F58: -16.841119 | G58: -0.2542442768 | H58: 980.601711 | I58: 1015.656257 | J58: -35.054546 | K58: -3.451418308 | L58: 0 | M58: 0 | N58: 1.787477 | O58: 4.202449 | P58: 0 | Q58: 0 | R58: 0 | S58: 0 | T58: 0 | U58: 0 | V58: 14.958409 | W58: 12.311013 | X58: 0 | Y58: 0 | Z58: 554.087319 | AA58: 589.437516 | AB58: 0 | AC58: 0 | AD58: 0 | AE58: 0 | AF58: 0 | AG58: 0 | AH58: 396.436469 | AI58: 396.436469 | AJ58: 0 | AK58: 0 | AL58: 0 | AM58: 0 | AN58: 0 | AO58: 0 | AP58: 0 | AQ58: 0 | AR58: 0 | AS58: 0 | AT58: 0 | AU58: 0 | AV58: 54.018936 | AW58: 53.955709 | AX58: 0 | AY58: 0 | AZ58: 40.686899 | BA58: 40.686899 | BB58: 0 | BC58: 0 | BD58: 0 | BE58: 0 | BF58: 0 | BG58: 0 | BH58: 40.686899 | BI58: 40.686899 | BJ58: 0 | BK58: 0 | BL58: 0 | BM58: 0 | BN58: 0 | BO58: 0 | BP58: 0 | BQ58: 0 | BR58: 0 | BS58: 0 | BT58: 0 | BU58: 0 | BV58: 0 | BW58: 0 | BX58: 0 | BY58: 0 | BZ58: 0 | CA58: 0 | CB58: 0 | CC58: 0 | CD58: 0 | CE58: 0 | CF58: 0 | CG58: 0 | CH58: 0 | CI58: 0 | CJ58: 0 | CK58: 0 | CL58: 0 | CM58: 0 | CN58: 0 | CO58: - | CP58: 565.02687 | CQ58: 647.401323 | CR58: -82.374453 | CS58: -12.72386232 | CT58: 0 | CU58: 0 | CV58: 0 | CW58: - | CX58: 0 | CY58: 0 | CZ58: 0 | DA58: - | DB58: 0 | DC58: 0 | DD58: 0 | DE58: 0 | DF58: 6042.1234 | DG58: 5976.590066 | DH58: 65.533334 | DI58: 1.0965004 | DJ58: 2725.010652 | DK58: 2976.960536 | DL58: -251.949884 | DM58: -8.463326301 | DN58: 0 | DO58: 0 | DP58: 0 | DQ58: - | DR58: 56.246706 | DS58: 510.121845 | DT58: -453.875139 | DU58: -88.97386839 | DV58: 999.666331 | DW58: 1438.339431 | DX58: 0 | DY58: 0 | DZ58: 0 | EA58: - | EB58: 65.533334 | EC58: 607.457716 | ED58: -541.924382 | EE58: -89.21186903 | EF58: 1725.344321 | EG58: 1538.621105 | EH58: 2659.477318 | EI58: 2369.50282 | EJ58: 289.974498 | EK58: 12.23777813 | EL58: 0 | EM58: 0 | EN58: 0 | EO58: - | EP58: 0 | EQ58: 0 | ER58: 0 | ES58: - | ET58: 0 | EU58: 0 | EV58: 0 | EW58: - | EX58: 398.223946 | EY58: 400.638918 | EZ58: -2.414972 | FA58: -0.6027801822 | FB58: 582.377765 | FC58: 615.017339 | FD58: -32.639574 | FE58: -5.307098179 | FF58: 0 | FG58: 0 | FH58: 40.686899 | FI58: 40.686899 | FJ58: 0 | FK58: 0
A59: 89300000 | B59: E.S.E. Centro de Salud Samuel Villanueva Valest - El Banco | C59: MAGDALENA EMPRESAS QUE NO COTIZAN | D59: 6575.662213 | E59: 6759.495245 | F59: -183.833032 | G59: -2.719626619 | H59: 846.405333 | I59: 971.738822 | J59: -125.333489 | K59: -12.89785755 | L59: 0 | M59: 0 | N59: 0 | O59: 0 | P59: 0 | Q59: 0 | R59: 0 | S59: 0 | T59: 0 | U59: 0 | V59: 0 | W59: 0 | X59: 0 | Y59: 0 | Z59: 0 | AA59: 0 | AB59: 807.173616 | AC59: 971.738822 | AD59: 0 | AE59: 0 | AF59: 0 | AG59: 0 | AH59: 51.61148 | AI59: 0 | AJ59: 0 | AK59: 0 | AL59: 0 | AM59: 0 | AN59: 0 | AO59: 0 | AP59: 0 | AQ59: 0 | AR59: 0 | AS59: 0 | AT59: 0 | AU59: 0 | AV59: 0 | AW59: 0 | AX59: 0 | AY59: 0 | AZ59: 12.379763 | BA59: 0 | BB59: 0 | BC59: 0 | BD59: 0 | BE59: 0 | BF59: 0 | BG59: 0 | BH59: 0 | BI59: 0 | BJ59: 0 | BK59: 0 | BL59: 0 | BM59: 0 | BN59: 0 | BO59: 0 | BP59: 0 | BQ59: 0 | BR59: 12.379763 | BS59: 0 | BT59: 0 | BU59: 0 | BV59: 0 | BW59: 0 | BX59: 0 | BY59: 0 | BZ59: 0 | CA59: 0 | CB59: 0 | CC59: 0 | CD59: 0 | CE59: 0 | CF59: 0 | CG59: 0 | CH59: 0 | CI59: 0 | CJ59: 0 | CK59: 0 | CL59: 0 | CM59: 0 | CN59: 0 | CO59: - | CP59: 322.854734 | CQ59: 715.742648 | CR59: -392.887914 | CS59: -54.89234365 | CT59: 0 | CU59: 0 | CV59: 0 | CW59: - | CX59: 0 | CY59: 0 | CZ59: 0 | DA59: - | DB59: 0 | DC59: 0 | DD59: 0 | DE59: 0 | DF59: 6252.807479 | DG59: 6043.752597 | DH59: 209.054882 | DI59: 3.459024483 | DJ59: 12370.36812 | DK59: 10775.0198 | DL59: 1595.34832 | DM59: 14.80598968 | DN59: 0 | DO59: 0 | DP59: 0 | DQ59: - | DR59: 72.706331 | DS59: 60 | DT59: 12.706331 | DU59: 21.17721833 | DV59: 5299.525258 | DW59: 6017.782449 | DX59: 0 | DY59: 0 | DZ59: 0 | EA59: - | EB59: 955.383741 | EC59: 548.68928 | ED59: 406.694461 | EE59: 74.12108744 | EF59: 7070.842863 | EG59: 4757.237352 | EH59: 11414.98438 | EI59: 10226.33052 | EJ59: 1188.653859 | EK59: 11.62346412 | EL59: 0 | EM59: 0 | EN59: 0 | EO59: - | EP59: 0 | EQ59: 0 | ER59: 0 | ES59: - | ET59: 0 | EU59: 0 | EV59: 0 | EW59: - | EX59: 51.61148 | EY59: 0 | EZ59: 51.61148 | FA59: - | FB59: 794.793853 | FC59: 971.738822 | FD59: -176.944969 | FE59: -18.20910773 | FF59: 0 | FG59: 0 | FH59: 12.379763 | FI59: 0 | FJ59: 0 | FK59: 0
A60: 89400000 | B60: E.S.P. Retirar - El Retiro | C60: ANTIOQUIA EMPRESAS QUE NO COTIZAN | D60: 4309.373547 | E60: 4279.099824 | F60: 30.27372323 | G60: 0.70747878 | H60: 1006.740416 | I60: 913.4345338 | J60: 93.3058827 | K60: 10.21484072 | L60: 0 | M60: 0 | N60: 0 | O60: 0 | P60: 0 | Q60: 0 | R60: 0 | S60: 0 | T60: 0 | U60: 0 | V60: 0 | W60: 0 | X60: 31.36754021 | Y60: 51.135237 | Z60: 976.9140503 | AA60: 831.9144948 | AB60: 0 | AC60: 0 | AD60: 0 | AE60: 0 | AF60: 0 | AG60: 0 | AH60: 0 | AI60: 0 | AJ60: 0 | AK60: 0 | AL60: 0 | AM60: 0 | AN60: 0 | AO60: 0 | AP60: 0 | AQ60: 0 | AR60: 0 | AS60: 0 | AT60: 0 | AU60: 0 | AV60: 4.434729 | AW60: 36.360705 | AX60: 0 | AY60: 0 | AZ60: 5.975903 | BA60: 5.975903 | BB60: 0 | BC60: 0 | BD60: 5.975903 | BE60: 5.975903 | BF60: 0 | BG60: 0 | BH60: 0 | BI60: 0 | BJ60: 0 | BK60: 0 | BL60: 0 | BM60: 0 | BN60: 0 | BO60: 0 | BP60: 0 | BQ60: 0 | BR60: 0 | BS60: 0 | BT60: 0 | BU60: 0 | BV60: 0 | BW60: 0 | BX60: 0 | BY60: 0 | BZ60: 0 | CA60: 0 | CB60: 0 | CC60: 0 | CD60: 0 | CE60: 0 | CF60: 0 | CG60: 0 | CH60: 0 | CI60: 0 | CJ60: 0 | CK60: 0 | CL60: 0 | CM60: 0 | CN60: 0 | CO60: - | CP60: 1584.18866 | CQ60: 1598.236117 | CR60: -14.04745695 | CS60: -0.8789350209 | CT60: 0 | CU60: 0 | CV60: 0 | CW60: - | CX60: 149.600729 | CY60: 313.33326 | CZ60: -163.732531 | DA60: -52.25507532 | DB60: 0 | DC60: 0 | DD60: 0 | DE60: 0 | DF60: 2725.184887 | DG60: 2680.863707 | DH60: 44.32118018 | DI60: 1.653242575 | DJ60: 4809.190704 | DK60: 4372.342325 | DL60: 436.8483789 | DM60: 9.991175128 | DN60: 0 | DO60: 0 | DP60: 0 | DQ60: - | DR60: 0 | DS60: 0 | DT60: 0 | DU60: - | DV60: 1522.469568 | DW60: 1406.409437 | DX60: 0 | DY60: 0 | DZ60: 0 | EA60: - | EB60: 44.32118018 | EC60: 55.1101488 | ED60: -10.78896862 | EE60: -19.57709942 | EF60: 3286.721136 | EG60: 2965.932888 | EH60: 4764.869524 | EI60: 4317.232177 | EJ60: 447.6373475 | EK60: 10.36861881 | EL60: 149.600729 | EM60: 313.33326 | EN60: -163.732531 | EO60: -52.25507532 | EP60: 0 | EQ60: 0 | ER60: 0 | ES60: - | ET60: 0 | EU60: 0 | EV60: 0 | EW60: - | EX60: 0 | EY60: 0 | EZ60: 0 | FA60: - | FB60: 1006.740416 | FC60: 913.4345338 | FD60: 93.3058827 | FE60: 10.21484072 | FF60: 0 | FG60: 0 | FH60: 5.975903 | FI60: 5.975903 | FJ60: 0 | FK60: 0
A61: 89700000 | B61: Instituto Departamental de Juventud y Deporte de Boyacá | C61: BOYACÁ ENTIDADES DE GOBIERNO | D61: 139721.3027 | E61: 140063.2641 | F61: -341.9614586 | G61: -0.2441478575 | H61: 0 | I61: 23.567065 | J61: -23.567065 | K61: -100 | L61: 0 | M61: 0 | N61: 0 | O61: 0 | P61: 0 | Q61: 0 | R61: 0 | S61: 0 | T61: 0 | U61: 0 | V61: 0 | W61: 0 | X61: 0 | Y61: 0 | Z61: 0 | AA61: 0 | AB61: 0 | AC61: 0 | AD61: 0 | AE61: 0 | AF61: 0 | AG61: 0 | AH61: 0 | AI61: 0 | AJ61: 0 | AK61: 0 | AL61: 0 | AM61: 0 | AN61: 0 | AO61: 0 | AP61: 0 | AQ61: 0 | AR61: 0 | AS61: 0 | AT61: 0 | AU61: 0 | AV61: 0 | AW61: 23.567065 | AX61: 15 | AY61: 15 | AZ61: 15 | BA61: 15 | BB61: 0 | BC61: 0 | BD61: 0 | BE61: 0 | BF61: 0 | BG61: 0 | BH61: 0 | BI61: 0 | BJ61: 0 | BK61: 0 | BL61: 0 | BM61: 0 | BN61: 0 | BO61: 0 | BP61: 0 | BQ61: 0 | BR61: 0 | BS61: 0 | BT61: 0 | BU61: 0 | BV61: 0 | BW61: 0 | BX61: 0 | BY61: 0 | BZ61: 0 | CA61: 0 | CB61: 0 | CC61: 0 | CD61: 0 | CE61: 0 | CF61: 15 | CG61: 15 | CH61: 0 | CI61: 0 | CJ61: 0 | CK61: 0 | CL61: 0 | CM61: 0 | CN61: 0 | CO61: - | CP61: 2540.249903 | CQ61: 3075.830158 | CR61: -535.5802558 | CS61: -17.41254322 | CT61: 0 | CU61: 0 | CV61: 0 | CW61: - | CX61: 0 | CY61: 0 | CZ61: 0 | DA61: - | DB61: 0 | DC61: 0 | DD61: 0 | DE61: 0 | DF61: 137181.0528 | DG61: 136987.434 | DH61: 193.6187973 | DI61: 0.1413405534 | DJ61: 18933.36992 | DK61: 15893.55023 | DL61: 3039.819685 | DM61: 19.12612123 | DN61: 0 | DO61: 0 | DP61: 0 | DQ61: - | DR61: 13261.74477 | DS61: 11545.81667 | DT61: 1715.928104 | DU61: 14.86190326 | DV61: 18933.36992 | DW61: 15893.55023 | DX61: 14751.64605 | DY61: 14906.56801 | DZ61: -154.9219593 | EA61: -1.03928657 | EB61: 63.02267051 | EC61: -3014.249694 | ED61: 3077.272365 | EE61: -102.0908245 | EF61: 0 | EG61: 0 | EH61: 18870.34725 | EI61: 18907.79993 | EJ61: -37.45267958 | EK61: -0.198080579 | EL61: 0 | EM61: 0 | EN61: 0 | EO61: - | EP61: 0 | EQ61: 0 | ER61: 0 | ES61: - | ET61: 0 | EU61: 0 | EV61: 0 | EW61: - | EX61: 0 | EY61: 0 | EZ61: 0 | FA61: - | FB61: 0 | FC61: 23.567065 | FD61: -23.567065 | FE61: -100 | FF61: 0 | FG61: 0 | FH61: 15 | FI61: 15 | FJ61: 0 | FK61: 0
A62: 89800000 | B62: E.S.E. Centro de Salud - Ventaquemada | C62: BOYACÁ EMPRESAS QUE NO COTIZAN | D62: 19790.86419 | E62: 13888.81598 | F62: 5902.04821 | G62: 42.49497017 | H62: 642.476855 | I62: 8318.446773 | J62: -7675.969918 | K62: -92.27648054 | L62: 0 | M62: 0 | N62: 0 | O62: 0 | P62: 0 | Q62: 0 | R62: 0 | S62: 0 | T62: 0 | U62: 0 | V62: 0 | W62: 0 | X62: 0 | Y62: 0 | Z62: 0 | AA62: 0 | AB62: 947.485095 | AC62: 830.4705228 | AD62: 0 | AE62: 0 | AF62: 0 | AG62: 0 | AH62: 0 | AI62: 7751.812628 | AJ62: 0 | AK62: 0 | AL62: 0 | AM62: 0 | AN62: 0 | AO62: 0 | AP62: 0 | AQ62: 0 | AR62: 0 | AS62: 0 | AT62: 0 | AU62: 0 | AV62: 0 | AW62: 0 | AX62: 0 | AY62: 0 | AZ62: 305.00824 | BA62: 263.836378 | BB62: 0 | BC62: 0 | BD62: 0 | BE62: 0 | BF62: 0 | BG62: 0 | BH62: 0 | BI62: 0 | BJ62: 0 | BK62: 0 | BL62: 0 | BM62: 0 | BN62: 0 | BO62: 0 | BP62: 0 | BQ62: 0 | BR62: 305.00824 | BS62: 263.836378 | BT62: 0 | BU62: 0 | BV62: 0 | BW62: 0 | BX62: 0 | BY62: 0 | BZ62: 0 | CA62: 0 | CB62: 0 | CC62: 0 | CD62: 0 | CE62: 0 | CF62: 0 | CG62: 0 | CH62: 0 | CI62: 0 | CJ62: 0 | CK62: 0 | CL62: 0 | CM62: 0 | CN62: 0 | CO62: - | CP62: 14066.19108 | CQ62: 8474.803865 | CR62: 5591.387215 | CS62: 65.97659726 | CT62: 0 | CU62: 0 | CV62: 0 | CW62: - | CX62: 0 | CY62: 0 | CZ62: 0 | DA62: - | DB62: 0 | DC62: 0 | DD62: 0 | DE62: 0 | DF62: 5724.673115 | DG62: 5414.01212 | DH62: 310.6609952 | DI62: 5.738091979 | DJ62: 2863.967021 | DK62: 2960.707751 | DL62: -96.74073032 | DM62: -3.267486643 | DN62: 0 | DO62: 0 | DP62: 0 | DQ62: - | DR62: 228.600701 | DS62: 488.769011 | DT62: -260.16831 | DU62: -53.22929731 | DV62: 1317.320706 | DW62: 1583.127726 | DX62: 0 | DY62: 0 | DZ62: 0 | EA62: - | EB62: 310.6609952 | EC62: 764.7040382 | ED62: -454.043043 | EE62: -59.37500265 | EF62: 1546.646315 | EG62: 1377.580025 | EH62: 2553.306026 | EI62: 2196.003713 | EJ62: 357.3023126 | EK62: 16.2705696 | EL62: 0 | EM62: 0 | EN62: 0 | EO62: - | EP62: 0 | EQ62: 0 | ER62: 0 | ES62: - | ET62: 0 | EU62: 0 | EV62: 0 | EW62: - | EX62: 0 | EY62: 7751.812628 | EZ62: -7751.812628 | FA62: -100 | FB62: 642.476855 | FC62: 566.6341448 | FD62: 75.84271024 | FE62: 13.38477586 | FF62: 0 | FG62: 0 | FH62: 305.00824 | FI62: 263.836378 | FJ62: 0 | FK62: 0
A63: 89970221 | B63: Coveñas | C63: SUCRE ENTIDADES DE GOBIERNO | D63: 411975.8628 | E63: 335075.6002 | F63: 76900.2626 | G63: 22.95012306 | H63: 100113.7799 | I63: 101770.6292 | J63: -1656.849263 | K63: -1.628023012 | L63: 31117.63757 | M63: 31034.28593 | N63: 22263.03767 | O63: 22309.43737 | P63: 0 | Q63: 0 | R63: 0 | S63: 0 | T63: 0 | U63: 0 | V63: 0 | W63: 0 | X63: 0 | Y63: 0 | Z63: 0 | AA63: 0 | AB63: 0 | AC63: 0 | AD63: 0 | AE63: 0 | AF63: 0 | AG63: 0 | AH63: 0 | AI63: 0 | AJ63: 0 | AK63: 0 | AL63: 0 | AM63: 0 | AN63: 0 | AO63: 0 | AP63: 0 | AQ63: 0 | AR63: 29255.05871 | AS63: 32103.19802 | AT63: 0 | AU63: 0 | AV63: 17478.04599 | AW63: 16323.70789 | AX63: 0 | AY63: 0 | AZ63: 0 | BA63: 0 | BB63: 0 | BC63: 0 | BD63: 0 | BE63: 0 | BF63: 0 | BG63: 0 | BH63: 0 | BI63: 0 | BJ63: 0 | BK63: 0 | BL63: 0 | BM63: 0 | BN63: 0 | BO63: 0 | BP63: 0 | BQ63: 0 | BR63: 0 | BS63: 0 | BT63: 0 | BU63: 0 | BV63: 0 | BW63: 0 | BX63: 0 | BY63: 0 | BZ63: 0 | CA63: 0 | CB63: 0 | CC63: 0 | CD63: 0 | CE63: 0 | CF63: 0 | CG63: 0 | CH63: 0 | CI63: 0 | CJ63: 0 | CK63: 0 | CL63: 131.8997656 | CM63: 131.8997656 | CN63: 0 | CO63: 0 | CP63: 30659.50793 | CQ63: 17824.36328 | CR63: 12835.14466 | CS63: 72.00899385 | CT63: 0 | CU63: 0 | CV63: 0 | CW63: - | CX63: 2473.331657 | CY63: 3779.352541 | CZ63: -1306.020884 | DA63: -34.5567361 | DB63: 0 | DC63: 0 | DD63: 0 | DE63: 0 | DF63: 381316.3549 | DG63: 317251.2369 | DH63: 64065.11794 | DI63: 20.19381187 | DJ63: 133083.0079 | DK63: 105619.7943 | DL63: 27463.21364 | DM63: 26.00195714 | DN63: 102467.6086 | DO63: 66441.33054 | DP63: 36026.27811 | DQ63: 54.22269213 | DR63: 26468.1342 | DS63: 34743.69296 | DT63: -8275.558754 | DU63: -23.81888064 | DV63: 133083.0079 | DW63: 105619.7943 | DX63: 37488.39233 | DY63: 6293.40339 | DZ63: 31194.98894 | EA63: 495.6775691 | EB63: 61629.42549 | EC63: 59275.03099 | ED63: 2354.394498 | EE63: 3.971983579 | EF63: 0 | EG63: 0 | EH63: 71453.58241 | EI63: 46344.76327 | EJ63: 25108.81914 | EK63: 54.17833077 | EL63: 2473.331657 | EM63: 3779.352541 | EN63: -1306.020884 | EO63: -34.5567361 | EP63: 0 | EQ63: 0 | ER63: 0 | ES63: - | ET63: 131.8997656 | EU63: 131.8997656 | EV63: 0 | EW63: 0 | EX63: 82635.73396 | EY63: 85446.92132 | EZ63: -2811.187364 | FA63: -3.289980869 | FB63: 17478.04599 | FC63: 16323.70789 | FD63: 1154.338101 | FE63: 7.071543481 | FF63: 0 | FG63: 0 | FH63: 0 | FI63: 0 | FJ63: 0 | FK63: 0
A64: 90000000 | B64: Corporación Prodesarrollo y Seguridad del Municipio de Girardot | C64: CUNDINAMARCA ENTIDADES DE GOBIERNO | D64: 2292.76746 | E64: 2435.32851 | F64: -142.5610503 | G64: -5.853873499 | H64: 1222.770112 | I64: 1127.913933 | J64: 94.85617899 | K64: 8.409877404 | L64: 0 | M64: 0 | N64: 48.019278 | O64: 138.795036 | P64: 0 | Q64: 0 | R64: 0 | S64: 0 | T64: 0 | U64: 0 | V64: 0 | W64: 0 | X64: 0 | Y64: 0 | Z64: 0 | AA64: 0 | AB64: 0 | AC64: 0 | AD64: 0 | AE64: 0 | AF64: 0 | AG64: 0 | AH64: 0 | AI64: 0 | AJ64: 0 | AK64: 0 | AL64: 0 | AM64: 0 | AN64: 0 | AO64: 0 | AP64: 0 | AQ64: 0 | AR64: 1172.425924 | AS64: 988.487397 | AT64: 0 | AU64: 0 | AV64: 2.32491 | AW64: 0.6315 | AX64: 0 | AY64: 18.839827 | AZ64: 0 | BA64: 18.839827 | BB64: 0 | BC64: 0 | BD64: 0 | BE64: 0 | BF64: 0 | BG64: 0 | BH64: 0 | BI64: 0 | BJ64: 0 | BK64: 0 | BL64: 0 | BM64: 0 | BN64: 0 | BO64: 0 | BP64: 0 | BQ64: 0 | BR64: 0 | BS64: 0 | BT64: 0 | BU64: 0 | BV64: 0 | BW64: 0 | BX64: 0 | BY64: 0 | BZ64: 0 | CA64: 0 | CB64: 0 | CC64: 0 | CD64: 0 | CE64: 0 | CF64: 0 | CG64: 18.839827 | CH64: 0 | CI64: 0 | CJ64: 0 | CK64: 0 | CL64: 0 | CM64: 0 | CN64: 0 | CO64: - | CP64: 805.5217168 | CQ64: 569.3274867 | CR64: 236.1942301 | CS64: 41.48653203 | CT64: 0 | CU64: 0 | CV64: 0 | CW64: - | CX64: 0 | CY64: 0 | CZ64: 0 | DA64: - | DB64: 0 | DC64: 0 | DD64: 0 | DE64: 0 | DF64: 1487.245743 | DG64: 1866.001024 | DH64: -378.7552804 | DI64: -20.2976995 | DJ64: 2483.244923 | DK64: 2218.940644 | DL64: 264.3042798 | DM64: 11.91128211 | DN64: 0 | DO64: 0 | DP64: 0 | DQ64: - | DR64: 1910.241338 | DS64: 1665.473007 | DT64: 244.768331 | DU64: 14.69662552 | DV64: 2483.244923 | DW64: 2218.940644 | DX64: 0 | DY64: 0 | DZ64: 0 | EA64: - | EB64: -358.1708234 | EC64: -96.79839763 | ED64: -261.3724258 | EE64: 270.0173063 | EF64: 0 | EG64: 0 | EH64: 2841.415747 | EI64: 2315.739041 | EJ64: 525.6767056 | EK64: 22.70017028 | EL64: 0 | EM64: 0 | EN64: 0 | EO64: - | EP64: 0 | EQ64: 0 | ER64: 0 | ES64: - | ET64: 0 | EU64: 0 | EV64: 0 | EW64: - | EX64: 1220.445202 | EY64: 1127.282433 | EZ64: 93.16276899 | FA64: 8.264368029 | FB64: 2.32491 | FC64: 0.6315 | FD64: 1.69341 | FE64: 268.1567696 | FF64: 0 | FG64: 0 | FH64: 0 | FI64: 18.839827 | FJ64: 0 | FK64: 0
A65: 90300000 | B65: E.S.P. Empresas Públicas Municipales de Yolombó | C65: ANTIOQUIA EMPRESAS QUE NO COTIZAN | D65: 1021.520777 | E65: 733.0103291 | F65: 288.5104483 | G65: 39.35967023 | H65: 255.0955325 | I65: 24.44720131 | J65: 230.6483312 | K65: 943.4549512 | L65: 0 | M65: 0 | N65: 0 | O65: 0 | P65: 0 | Q65: 0 | R65: 0 | S65: 0 | T65: 0 | U65: 0 | V65: 0.185377 | W65: 0 | X65: 0 | Y65: 0 | Z65: 254.9101555 | AA65: 24.44720131 | AB65: 0 | AC65: 0 | AD65: 0 | AE65: 0 | AF65: 0 | AG65: 0 | AH65: 0 | AI65: 0 | AJ65: 0 | AK65: 0 | AL65: 0 | AM65: 0 | AN65: 0 | AO65: 0 | AP65: 0 | AQ65: 0 | AR65: 0 | AS65: 0 | AT65: 0 | AU65: 0 | AV65: 0 | AW65: 0 | AX65: 0 | AY65: 0 | AZ65: 0 | BA65: 0 | BB65: 0 | BC65: 0 | BD65: 0 | BE65: 0 | BF65: 0 | BG65: 0 | BH65: 0 | BI65: 0 | BJ65: 0 | BK65: 0 | BL65: 0 | BM65: 0 | BN65: 0 | BO65: 0 | BP65: 0 | BQ65: 0 | BR65: 0 | BS65: 0 | BT65: 0 | BU65: 0 | BV65: 0 | BW65: 0 | BX65: 0 | BY65: 0 | BZ65: 0 | CA65: 0 | CB65: 0 | CC65: 0 | CD65: 0 | CE65: 0 | CF65: 0 | CG65: 0 | CH65: 0 | CI65: 0 | CJ65: 0 | CK65: 0 | CL65: 0 | CM65: 0 | CN65: 0 | CO65: - | CP65: 389.3152783 | CQ65: 289.5835996 | CR65: 99.73167872 | CS65: 34.43968473 | CT65: 0 | CU65: 0 | CV65: 0 | CW65: - | CX65: 76.337189 | CY65: 76.337189 | CZ65: 0 | DA65: 0 | DB65: 0 | DC65: 0 | DD65: 0 | DE65: 0 | DF65: 632.2054992 | DG65: 443.4267296 | DH65: 188.7787696 | DI65: 42.57270864 | DJ65: 2194.565931 | DK65: 1583.608344 | DL65: 610.9575874 | DM65: 38.58009398 | DN65: 0 | DO65: 0 | DP65: 0 | DQ65: - | DR65: 0 | DS65: 0 | DT65: 0 | DU65: - | DV65: 472.2274778 | DW65: 326.2246345 | DX65: 0 | DY65: 0 | DZ65: 0 | EA65: - | EB65: -8.60932782 | EC65: 154.5166305 | ED65: -163.1259583 | EE65: -105.5717807 | EF65: 1722.338454 | EG65: 1257.383709 | EH65: 2203.175259 | EI65: 1429.091714 | EJ65: 774.0835457 | EK65: 54.16612093 | EL65: 76.337189 | EM65: 76.337189 | EN65: 0 | EO65: 0 | EP65: 0 | EQ65: 0 | ER65: 0 | ES65: - | ET65: 0 | EU65: 0 | EV65: 0 | EW65: - | EX65: 0 | EY65: 0 | EZ65: 0 | FA65: - | FB65: 255.0955325 | FC65: 24.44720131 | FD65: 230.6483312 | FE65: 943.4549512 | FF65: 0 | FG65: 0 | FH65: 0 | FI65: 0 | FJ65: 0 | FK65: 0
A66: 90400000 | B66: Instituto para el Deporte, la Educación Física y la Recreación de El Peñol | C66: ANTIOQUIA ENTIDADES DE GOBIERNO | D66: 3316.97835 | E66: 3306.681423 | F66: 10.296927 | G66: 0.3113976124 | H66: 7.290741 | I66: 12.362178 | J66: -5.071437 | K66: -41.02381474 | L66: 0 | M66: 0 | N66: 0 | O66: 0 | P66: 0 | Q66: 0 | R66: 0 | S66: 0 | T66: 0 | U66: 0 | V66: 0 | W66: 0 | X66: 0 | Y66: 0 | Z66: 0 | AA66: 0 | AB66: 0 | AC66: 0 | AD66: 0 | AE66: 0 | AF66: 0 | AG66: 0 | AH66: 0 | AI66: 0 | AJ66: 0 | AK66: 0 | AL66: 0 | AM66: 0 | AN66: 0 | AO66: 0 | AP66: 0 | AQ66: 0 | AR66: 7.290741 | AS66: 10.16344 | AT66: 0 | AU66: 0 | AV66: 0 | AW66: 2.198738 | AX66: 10.5 | AY66: 10.5 | AZ66: 10.5 | BA66: 10.5 | BB66: 0 | BC66: 0 | BD66: 10.5 | BE66: 10.5 | BF66: 0 | BG66: 0 | BH66: 0 | BI66: 0 | BJ66: 0 | BK66: 0 | BL66: 0 | BM66: 0 | BN66: 0 | BO66: 0 | BP66: 0 | BQ66: 0 | BR66: 0 | BS66: 0 | BT66: 0 | BU66: 0 | BV66: 0 | BW66: 0 | BX66: 0 | BY66: 0 | BZ66: 0 | CA66: 0 | CB66: 0 | CC66: 0 | CD66: 0 | CE66: 0 | CF66: 0 | CG66: 0 | CH66: 0 | CI66: 0 | CJ66: 0 | CK66: 0 | CL66: 0 | CM66: 0 | CN66: 0 | CO66: - | CP66: 21.234383 | CQ66: 32.198557 | CR66: -10.964174 | CS66: -34.0517558 | CT66: 0 | CU66: 0 | CV66: 0 | CW66: - | CX66: 0 | CY66: 0 | CZ66: 0 | DA66: - | DB66: 0 | DC66: 0 | DD66: 0 | DE66: 0 | DF66: 3295.743967 | DG66: 3274.482866 | DH66: 21.261101 | DI66: 0.6492964499 | DJ66: 976.045085 | DK66: 678.825554 | DL66: 297.219531 | DM66: 43.78437571 | DN66: 0 | DO66: 0 | DP66: 0 | DQ66: - | DR66: 918.785072 | DS66: 565.179323 | DT66: 353.605749 | DU66: 62.565231 | DV66: 976.045085 | DW66: 678.825554 | DX66: 644.424617 | DY66: 493.40541 | DZ66: 151.019207 | EA66: 30.60752962 | EB66: 21.261101 | EC66: -53.041587 | ED66: 74.302688 | EE66: -140.0838327 | EF66: 0 | EG66: 0 | EH66: 954.783984 | EI66: 731.867141 | EJ66: 222.916843 | EK66: 30.45864891 | EL66: 0 | EM66: 0 | EN66: 0 | EO66: - | EP66: 0 | EQ66: 0 | ER66: 0 | ES66: - | ET66: 0 | EU66: 0 | EV66: 0 | EW66: - | EX66: 7.290741 | EY66: 10.16344 | EZ66: -2.872699 | FA66: -28.26502641 | FB66: 0 | FC66: 2.198738 | FD66: -2.198738 | FE66: -100 | FF66: 0 | FG66: 0 | FH66: 10.5 | FI66: 10.5 | FJ66: 0 | FK66: 0
A67: 90500000 | B67: E.S.E. Hospital Fronterizo - La Dorada | C67: PUTUMAYO EMPRESAS QUE NO COTIZAN | D67: 6560.075472 | E67: 5937.080317 | F67: 622.9951549 | G67: 10.49329168 | H67: 1828.500843 | I67: 1636.520645 | J67: 191.9801985 | K67: 11.73099766 | L67: 0 | M67: 0 | N67: 0 | O67: 0 | P67: 0 | Q67: 0 | R67: 0 | S67: 0 | T67: 0 | U67: 0 | V67: 0 | W67: 0 | X67: 0 | Y67: 0 | Z67: 0 | AA67: 0 | AB67: 1837.062364 | AC67: 1616.598475 | AD67: 0 | AE67: 0 | AF67: 0 | AG67: 0 | AH67: 200.110143 | AI67: 0 | AJ67: 0 | AK67: 0 | AL67: 0 | AM67: 0 | AN67: 0 | AO67: 0 | AP67: 0 | AQ67: 0 | AR67: 0 | AS67: 0 | AT67: 0 | AU67: 0 | AV67: 0 | AW67: 278.7806195 | AX67: 0 | AY67: 0 | AZ67: 208.6716641 | BA67: 258.8584501 | BB67: 0 | BC67: 0 | BD67: 0 | BE67: 0 | BF67: 0 | BG67: 0 | BH67: 0 | BI67: 0 | BJ67: 0 | BK67: 0 | BL67: 0 | BM67: 0 | BN67: 0 | BO67: 0 | BP67: 0 | BQ67: 0 | BR67: 208.6716641 | BS67: 258.8584501 | BT67: 0 | BU67: 0 | BV67: 0 | BW67: 0 | BX67: 0 | BY67: 0 | BZ67: 0 | CA67: 0 | CB67: 0 | CC67: 0 | CD67: 0 | CE67: 0 | CF67: 0 | CG67: 0 | CH67: 0 | CI67: 0 | CJ67: 0 | CK67: 0 | CL67: 0 | CM67: 0 | CN67: 0 | CO67: - | CP67: 95.69652722 | CQ67: 178.2014469 | CR67: -82.50491964 | CS67: -46.29868112 | CT67: 0 | CU67: 0 | CV67: 0 | CW67: - | CX67: 0 | CY67: 0 | CZ67: 0 | DA67: - | DB67: 0 | DC67: 0 | DD67: 0 | DE67: 0 | DF67: 6464.378945 | DG67: 5758.87887 | DH67: 705.5000745 | DI67: 12.25064966 | DJ67: 7973.751487 | DK67: 5887.162365 | DL67: 2086.589122 | DM67: 35.44303677 | DN67: 0 | DO67: 0 | DP67: 0 | DQ67: - | DR67: 1952.464672 | DS67: 584.3228109 | DT67: 1368.141861 | DU67: 234.141443 | DV67: 3866.888694 | DW67: 2639.724035 | DX67: 0 | DY67: 0 | DZ67: 0 | EA67: - | EB67: 705.5000745 | EC67: 694.4158083 | ED67: 11.08426627 | EE67: 1.596200164 | EF67: 4106.862794 | EG67: 3247.43833 | EH67: 7268.251413 | EI67: 5192.746557 | EJ67: 2075.504856 | EK67: 39.96930782 | EL67: 0 | EM67: 0 | EN67: 0 | EO67: - | EP67: 0 | EQ67: 0 | ER67: 0 | ES67: - | ET67: 0 | EU67: 0 | EV67: 0 | EW67: - | EX67: 200.110143 | EY67: 0 | EZ67: 200.110143 | FA67: - | FB67: 1628.3907 | FC67: 1636.520645 | FD67: -8.12994453 | FE67: -0.4967822774 | FF67: 0 | FG67: 0 | FH67: 208.6716641 | FI67: 258.8584501 | FJ67: 0 | FK67: 0
A68: 90600000 | B68: E.S.E. Hospital San Francisco Javier del Municipio de Acevedo | C68: HUILA EMPRESAS QUE NO COTIZAN | D68: 5359.073457 | E68: 5448.102682 | F68: -89.02922479 | G68: -1.634132651 | H68: 2018.370546 | I68: 2072.163908 | J68: -53.79336145 | K68: -2.595999344 | L68: 0 | M68: 0 | N68: 0 | O68: 0 | P68: 0 | Q68: 0 | R68: 0 | S68: 0 | T68: 0 | U68: 0 | V68: 0 | W68: 0 | X68: 0 | Y68: 0 | Z68: 0 | AA68: 0 | AB68: 3053.899002 | AC68: 2535.705278 | AD68: 0 | AE68: 0 | AF68: 0 | AG68: 0 | AH68: 0 | AI68: 3 | AJ68: 0 | AK68: 0 | AL68: 0 | AM68: 0 | AN68: 0 | AO68: 0 | AP68: 0 | AQ68: 0 | AR68: 0 | AS68: 0 | AT68: 0 | AU68: 0 | AV68: 1.760913 | AW68: 1.722465 | AX68: 0 | AY68: 0 | AZ68: 1037.289369 | BA68: 468.2638356 | BB68: 0 | BC68: 0 | BD68: 0 | BE68: 0 | BF68: 0 | BG68: 0 | BH68: 0 | BI68: 0 | BJ68: 0 | BK68: 0 | BL68: 0 | BM68: 0 | BN68: 0 | BO68: 0 | BP68: 0 | BQ68: 0 | BR68: 1037.289369 | BS68: 0 | BT68: 0 | BU68: 0 | BV68: 0 | BW68: 0 | BX68: 0 | BY68: 0 | BZ68: 0 | CA68: 0 | CB68: 0 | CC68: 0 | CD68: 0 | CE68: 0 | CF68: 0 | CG68: 468.2638356 | CH68: 0 | CI68: 0 | CJ68: 0 | CK68: 0 | CL68: 0 | CM68: 0 | CN68: 0 | CO68: - | CP68: 883.8470561 | CQ68: 1877.576293 | CR68: -993.7292374 | CS68: -52.92617087 | CT68: 0 | CU68: 0 | CV68: 0 | CW68: - | CX68: 0 | CY68: 0 | CZ68: 0 | DA68: - | DB68: 0 | DC68: 0 | DD68: 0 | DE68: 0 | DF68: 4475.226401 | DG68: 3570.526388 | DH68: 904.7000126 | DI68: 25.33800102 | DJ68: 8700.132635 | DK68: 7874.959267 | DL68: 825.1733679 | DM68: 10.47844617 | DN68: 0 | DO68: 0 | DP68: 0 | DQ68: - | DR68: 484.415081 | DS68: 646.177568 | DT68: -161.762487 | DU68: -25.03375156 | DV68: 4072.245267 | DW68: 3411.194482 | DX68: 0 | DY68: 0 | DZ68: 0 | EA68: - | EB68: 794.8825942 | EC68: 232.9389198 | ED68: 561.9436743 | EE68: 241.2407831 | EF68: 4627.887368 | EG68: 4463.764785 | EH68: 7905.250041 | EI68: 7642.020347 | EJ68: 263.2296936 | EK68: 3.444503961 | EL68: 0 | EM68: 0 | EN68: 0 | EO68: - | EP68: 0 | EQ68: 0 | ER68: 0 | ES68: - | ET68: 0 | EU68: 0 | EV68: 0 | EW68: - | EX68: 0 | EY68: 3 | EZ68: -3 | FA68: -100 | FB68: 2018.370546 | FC68: 2069.163908 | FD68: -50.79336145 | FE68: -2.454777084 | FF68: 0 | FG68: 0 | FH68: 1037.289369 | FI68: 468.2638356 | FJ68: 0 | FK68: 0
A69: 90700000 | B69: Empresa Constructora de Vivienda de Tunja | C69: BOYACÁ ENTIDADES DE GOBIERNO | D69: 25296.87965 | E69: 30017.94711 | F69: -4721.067461 | G69: -15.72748277 | H69: 0 | I69: 12.264914 | J69: -12.264914 | K69: -100 | L69: 0 | M69: 0 | N69: 0 | O69: 0 | P69: 0 | Q69: 0 | R69: 0 | S69: 0 | T69: 0 | U69: 0 | V69: 0 | W69: 0 | X69: 0 | Y69: 0 | Z69: 0 | AA69: 0 | AB69: 0 | AC69: 0 | AD69: 0 | AE69: 0 | AF69: 0 | AG69: 0 | AH69: 0 | AI69: 0 | AJ69: 0 | AK69: 0 | AL69: 0 | AM69: 0 | AN69: 0 | AO69: 0 | AP69: 0 | AQ69: 0 | AR69: 0 | AS69: 12.264914 | AT69: 0 | AU69: 0 | AV69: 0 | AW69: 0 | AX69: 0 | AY69: 0 | AZ69: 0 | BA69: 0 | BB69: 0 | BC69: 0 | BD69: 0 | BE69: 0 | BF69: 0 | BG69: 0 | BH69: 0 | BI69: 0 | BJ69: 0 | BK69: 0 | BL69: 0 | BM69: 0 | BN69: 0 | BO69: 0 | BP69: 0 | BQ69: 0 | BR69: 0 | BS69: 0 | BT69: 0 | BU69: 0 | BV69: 0 | BW69: 0 | BX69: 0 | BY69: 0 | BZ69: 0 | CA69: 0 | CB69: 0 | CC69: 0 | CD69: 0 | CE69: 0 | CF69: 0 | CG69: 0 | CH69: 0 | CI69: 0 | CJ69: 0 | CK69: 0 | CL69: 0 | CM69: 0 | CN69: 0 | CO69: - | CP69: 2181.452988 | CQ69: 7772.96338 | CR69: -5591.510392 | CS69: -71.93537547 | CT69: 0 | CU69: 0 | CV69: 0 | CW69: - | CX69: 0 | CY69: 0 | CZ69: 0 | DA69: - | DB69: 0 | DC69: 0 | DD69: 0 | DE69: 0 | DF69: 23115.42666 | DG69: 22244.98373 | DH69: 870.4429314 | DI69: 3.912985246 | DJ69: 4476.509617 | DK69: 3845.10003 | DL69: 631.4095871 | DM69: 16.42114853 | DN69: 0 | DO69: 0 | DP69: 0 | DQ69: - | DR69: 4463.792427 | DS69: 3788.286542 | DT69: 675.5058845 | DU69: 17.83143585 | DV69: 4476.509617 | DW69: 3845.10003 | DX69: 1436.955502 | DY69: 469.766981 | DZ69: 967.188521 | EA69: 205.8868673 | EB69: 859.4720204 | EC69: 1514.204606 | ED69: -654.732586 | EE69: -43.23937354 | EF69: 0 | EG69: 0 | EH69: 3617.037597 | EI69: 2330.895424 | EJ69: 1286.142173 | EK69: 55.17802987 | EL69: 0 | EM69: 0 | EN69: 0 | EO69: - | EP69: 0 | EQ69: 0 | ER69: 0 | ES69: - | ET69: 0 | EU69: 0 | EV69: 0 | EW69: - | EX69: 0 | EY69: 12.264914 | EZ69: -12.264914 | FA69: -100 | FB69: 0 | FC69: 0 | FD69: 0 | FE69: - | FF69: 0 | FG69: 0 | FH69: 0 | FI69: 0 | FJ69: 0 | FK69: 0
A70: 90900000 | B70: E.S.E. Centro de Salud Rafael Salgado | C70: BOYACÁ EMPRESAS QUE NO COTIZAN | D70: 1658.474789 | E70: 1871.027418 | F70: -212.552629 | G70: -11.36020921 | H70: 625.698 | I70: 816.436045 | J70: -190.738045 | K70: -23.36227634 | L70: 0 | M70: 0 | N70: 0 | O70: 0 | P70: 0 | Q70: 0 | R70: 0 | S70: 0 | T70: 0 | U70: 0 | V70: 0 | W70: 0 | X70: 0 | Y70: 0 | Z70: 0 | AA70: 0 | AB70: 1069.343599 | AC70: 1060.980754 | AD70: 0 | AE70: 0 | AF70: 0 | AG70: 0 | AH70: 0 | AI70: 27.664676 | AJ70: 0 | AK70: 0 | AL70: 0 | AM70: 0 | AN70: 0 | AO70: 0 | AP70: 0 | AQ70: 0 | AR70: 0 | AS70: 0 | AT70: 0 | AU70: 0 | AV70: 0.068407 | AW70: 0 | AX70: 0 | AY70: 0 | AZ70: 443.714006 | BA70: 272.209385 | BB70: 0 | BC70: 0 | BD70: 0 | BE70: 0 | BF70: 0 | BG70: 0 | BH70: 0 | BI70: 0 | BJ70: 0 | BK70: 0 | BL70: 0 | BM70: 0 | BN70: 0 | BO70: 0 | BP70: 0 | BQ70: 0 | BR70: 443.714006 | BS70: 272.209385 | BT70: 0 | BU70: 0 | BV70: 0 | BW70: 0 | BX70: 0 | BY70: 0 | BZ70: 0 | CA70: 0 | CB70: 0 | CC70: 0 | CD70: 0 | CE70: 0 | CF70: 0 | CG70: 0 | CH70: 0 | CI70: 0 | CJ70: 0 | CK70: 0 | CL70: 0 | CM70: 0 | CN70: 0 | CO70: - | CP70: 262.239482 | CQ70: 515.023316 | CR70: -252.783834 | CS70: -49.08201748 | CT70: 0 | CU70: 0 | CV70: 0 | CW70: - | CX70: 0 | CY70: 0 | CZ70: 0 | DA70: - | DB70: 0 | DC70: 0 | DD70: 0 | DE70: 0 | DF70: 1396.235307 | DG70: 1356.004102 | DH70: 40.231205 | DI70: 2.966894049 | DJ70: 1685.562611 | DK70: 1824.204689 | DL70: -138.642078 | DM70: -7.600138232 | DN70: 0 | DO70: 0 | DP70: 0 | DQ70: - | DR70: 339.773802 | DS70: 427.418489 | DT70: -87.644687 | DU70: -20.50559095 | DV70: 783.655089 | DW70: 970.917706 | DX70: 0 | DY70: 0 | DZ70: 0 | EA70: - | EB70: 38.089602 | EC70: 296.781909 | ED70: -258.692307 | EE70: -87.16579386 | EF70: 901.907522 | EG70: 853.286983 | EH70: 1647.473009 | EI70: 1527.42278 | EJ70: 120.050229 | EK70: 7.859659459 | EL70: 0 | EM70: 0 | EN70: 0 | EO70: - | EP70: 0 | EQ70: 0 | ER70: 0 | ES70: - | ET70: 0 | EU70: 0 | EV70: 0 | EW70: - | EX70: 0 | EY70: 27.664676 | EZ70: -27.664676 | FA70: -100 | FB70: 625.698 | FC70: 788.771369 | FD70: -163.073369 | FE70: -20.67435196 | FF70: 0 | FG70: 0 | FH70: 443.714006 | FI70: 272.209385 | FJ70: 0 | FK70: 0
A71: 91000000 | B71: E.S.E. Hospital San Nicolás de Tolentino | C71: BOLÍVAR EMPRESAS QUE NO COTIZAN | D71: 5716.356069 | E71: 4510.988555 | F71: 1205.367514 | G71: 26.72069546 | H71: 2820.731711 | I71: 3085.159549 | J71: -264.427838 | K71: -8.570961527 | L71: 0 | M71: 0 | N71: 0 | O71: 0 | P71: 0 | Q71: 0 | R71: 0 | S71: 0 | T71: 0 | U71: 0 | V71: 0 | W71: 0 | X71: 0 | Y71: 0 | Z71: 0 | AA71: 0 | AB71: 2846.979386 | AC71: 3085.159549 | AD71: 0 | AE71: 0 | AF71: 0 | AG71: 0 | AH71: 0 | AI71: 0 | AJ71: 0 | AK71: 0 | AL71: 0 | AM71: 0 | AN71: 0 | AO71: 0 | AP71: 0 | AQ71: 0 | AR71: 0 | AS71: 0 | AT71: 0 | AU71: 0 | AV71: 0 | AW71: 0 | AX71: 0 | AY71: 0 | AZ71: 26.247675 | BA71: 0 | BB71: 0 | BC71: 0 | BD71: 0 | BE71: 0 | BF71: 0 | BG71: 0 | BH71: 0 | BI71: 0 | BJ71: 0 | BK71: 0 | BL71: 0 | BM71: 0 | BN71: 0 | BO71: 0 | BP71: 0 | BQ71: 0 | BR71: 26.247675 | BS71: 0 | BT71: 0 | BU71: 0 | BV71: 0 | BW71: 0 | BX71: 0 | BY71: 0 | BZ71: 0 | CA71: 0 | CB71: 0 | CC71: 0 | CD71: 0 | CE71: 0 | CF71: 0 | CG71: 0 | CH71: 0 | CI71: 0 | CJ71: 0 | CK71: 0 | CL71: 0 | CM71: 0 | CN71: 0 | CO71: - | CP71: 1133.826233 | CQ71: 1287.595808 | CR71: -153.769575 | CS71: -11.94237928 | CT71: 0 | CU71: 0 | CV71: 0 | CW71: - | CX71: 0 | CY71: 0 | CZ71: 0 | DA71: - | DB71: 0 | DC71: 0 | DD71: 0 | DE71: 0 | DF71: 4582.529836 | DG71: 3223.392747 | DH71: 1359.137089 | DI71: 42.1647995 | DJ71: 5479.980498 | DK71: 4593.808178 | DL71: 886.17232 | DM71: 19.29058171 | DN71: 0 | DO71: 0 | DP71: 0 | DQ71: - | DR71: 4.922329 | DS71: 493.38309 | DT71: -488.460761 | DU71: -99.00233123 | DV71: 2194.945598 | DW71: 2107.137229 | DX71: 0 | DY71: 0 | DZ71: 0 | EA71: - | EB71: -1069.029665 | EC71: 1e-06 | ED71: -1069.029666 | EE71: -106902966600 | EF71: 3285.0349 | EG71: 2486.670949 | EH71: 6549.010163 | EI71: 4593.808177 | EJ71: 1955.201986 | EK71: 42.56168109 | EL71: 0 | EM71: 0 | EN71: 0 | EO71: - | EP71: 0 | EQ71: 0 | ER71: 0 | ES71: - | ET71: 0 | EU71: 0 | EV71: 0 | EW71: - | EX71: 0 | EY71: 0 | EZ71: 0 | FA71: - | FB71: 2820.731711 | FC71: 3085.159549 | FD71: -264.427838 | FE71: -8.570961527 | FF71: 0 | FG71: 0 | FH71: 26.247675 | FI71: 0 | FJ71: 0 | FK71: 0
A72: 91100000 | B72: E.S.E. Puesto de Salud de Ciénega | C72: BOYACÁ EMPRESAS QUE NO COTIZAN | D72: 524.3382266 | E72: 459.0932164 | F72: 65.24501018 | G72: 14.21171297 | H72: 92.30151726 | I72: 144.8180814 | J72: -52.51656412 | K72: -36.26381707 | L72: 0 | M72: 0 | N72: 0 | O72: 0 | P72: 0 | Q72: 0 | R72: 0 | S72: 0 | T72: 0 | U72: 0 | V72: 0 | W72: 0 | X72: 0 | Y72: 0 | Z72: 0 | AA72: 0 | AB72: 89.93450726 | AC72: 109.7157269 | AD72: 0 | AE72: 0 | AF72: 0 | AG72: 0 | AH72: 0 | AI72: 12.8762725 | AJ72: 0 | AK72: 0 | AL72: 0 | AM72: 0 | AN72: 0 | AO72: 0 | AP72: 0 | AQ72: 0 | AR72: 0 | AS72: 0 | AT72: 0 | AU72: 0 | AV72: 2.36701 | AW72: 0 | AX72: 0 | AY72: 97.36298026 | AZ72: 0 | BA72: 75.13689826 | BB72: 0 | BC72: 0 | BD72: 0 | BE72: 0 | BF72: 0 | BG72: 0 | BH72: 0 | BI72: 0 | BJ72: 0 | BK72: 0 | BL72: 0 | BM72: 0 | BN72: 0 | BO72: 0 | BP72: 0 | BQ72: 0 | BR72: 0 | BS72: 75.13689826 | BT72: 0 | BU72: 0 | BV72: 0 | BW72: 0 | BX72: 0 | BY72: 0 | BZ72: 0 | CA72: 0 | CB72: 0 | CC72: 0 | CD72: 0 | CE72: 0 | CF72: 0 | CG72: 0 | CH72: 0 | CI72: 0 | CJ72: 0 | CK72: 0 | CL72: 0 | CM72: 0 | CN72: 0 | CO72: - | CP72: 44.495845 | CQ72: 74.271325 | CR72: -29.77548 | CS72: -40.09014246 | CT72: 0 | CU72: 0 | CV72: 0 | CW72: - | CX72: 0 | CY72: 0 | CZ72: 0 | DA72: - | DB72: 0 | DC72: 0 | DD72: 0 | DE72: 0 | DF72: 479.8423816 | DG72: 384.8218914 | DH72: 95.02049018 | DI72: 24.69206984 | DJ72: 914.8113265 | DK72: 874.905109 | DL72: 39.90621745 | DM72: 4.561205214 | DN72: 0 | DO72: 0 | DP72: 0 | DQ72: - | DR72: 149.943307 | DS72: 128.7627173 | DT72: 21.1805897 | DU72: 16.44931867 | DV72: 467.4432725 | DW72: 442.4518005 | DX72: 0 | DY72: 0 | DZ72: 0 | EA72: - | EB72: 95.02049018 | EC72: 33.6586897 | ED72: 61.36180048 | EE72: 182.3059692 | EF72: 447.368054 | EG72: 432.4533086 | EH72: 819.7908363 | EI72: 841.2464193 | EJ72: -21.45558303 | EK72: -2.550451632 | EL72: 0 | EM72: 0 | EN72: 0 | EO72: - | EP72: 0 | EQ72: 0 | ER72: 0 | ES72: - | ET72: 0 | EU72: 0 | EV72: 0 | EW72: - | EX72: 0 | EY72: 12.8762725 | EZ72: -12.8762725 | FA72: -100 | FB72: 92.30151726 | FC72: 131.9418089 | FD72: -39.64029162 | FE72: -30.0437685 | FF72: 0 | FG72: 0 | FH72: 0 | FI72: 75.13689826 | FJ72: 0 | FK72: 0
A73: 91500000 | B73: E.S.P. Aguas y Aseo de El Peñol | C73: ANTIOQUIA EMPRESAS QUE NO COTIZAN | D73: 7921.069877 | E73: 7871.684979 | F73: 49.3848979 | G73: 0.6273739108 | H73: 434.1811548 | I73: 556.6877775 | J73: -122.5066227 | K73: -22.00634317 | L73: 0 | M73: 0 | N73: 0 | O73: 0 | P73: 0 | Q73: 0 | R73: 0 | S73: 0 | T73: 0 | U73: 0 | V73: 0 | W73: 0 | X73: 118.4777585 | Y73: 313.3260141 | Z73: 315.7033963 | AA73: 243.3617633 | AB73: 0 | AC73: 0 | AD73: 0 | AE73: 0 | AF73: 0 | AG73: 0 | AH73: 0 | AI73: 0 | AJ73: 0 | AK73: 0 | AL73: 0 | AM73: 0 | AN73: 0 | AO73: 0 | AP73: 0 | AQ73: 0 | AR73: 0 | AS73: 0 | AT73: 0 | AU73: 0 | AV73: 0 | AW73: 0 | AX73: 29.257576 | AY73: 26.025445 | AZ73: 29.257576 | BA73: 26.025445 | BB73: 0 | BC73: 0 | BD73: 29.257576 | BE73: 26.025445 | BF73: 0 | BG73: 0 | BH73: 0 | BI73: 0 | BJ73: 0 | BK73: 0 | BL73: 0 | BM73: 0 | BN73: 0 | BO73: 0 | BP73: 0 | BQ73: 0 | BR73: 0 | BS73: 0 | BT73: 0 | BU73: 0 | BV73: 0 | BW73: 0 | BX73: 0 | BY73: 0 | BZ73: 0 | CA73: 0 | CB73: 0 | CC73: 0 | CD73: 0 | CE73: 0 | CF73: 0 | CG73: 0 | CH73: 0 | CI73: 0 | CJ73: 0 | CK73: 0 | CL73: 0 | CM73: 0 | CN73: 0 | CO73: - | CP73: 559.733812 | CQ73: 474.673684 | CR73: 85.060128 | CS73: 17.91970587 | CT73: 0 | CU73: 0 | CV73: 0 | CW73: - | CX73: 0 | CY73: 0 | CZ73: 0 | DA73: - | DB73: 0 | DC73: 0 | DD73: 0 | DE73: 0 | DF73: 7361.336065 | DG73: 7397.011295 | DH73: -35.6752301 | DI73: -0.4822924919 | DJ73: 3608.355833 | DK73: 5053.316722 | DL73: -1444.960888 | DM73: -28.59430683 | DN73: 0 | DO73: 0 | DP73: 0 | DQ73: - | DR73: 266.486728 | DS73: 0 | DT73: 266.486728 | DU73: - | DV73: 1236.206343 | DW73: 1384.175036 | DX73: 0 | DY73: 0 | DZ73: 0 | EA73: - | EB73: 193.7227709 | EC73: 290.0357882 | ED73: -96.31301726 | EE73: -33.20728724 | EF73: 2372.14949 | EG73: 3669.141686 | EH73: 3414.633062 | EI73: 4763.280934 | EJ73: -1348.647871 | EK73: -28.31342283 | EL73: 0 | EM73: 0 | EN73: 0 | EO73: - | EP73: 0 | EQ73: 0 | ER73: 0 | ES73: - | ET73: 0 | EU73: 0 | EV73: 0 | EW73: - | EX73: 0 | EY73: 0 | EZ73: 0 | FA73: - | FB73: 434.1811548 | FC73: 556.6877775 | FD73: -122.5066227 | FE73: -22.00634317 | FF73: 0 | FG73: 0 | FH73: 29.257576 | FI73: 26.025445 | FJ73: 0 | FK73: 0
A74: 91700000 | B74: E.S.E. Hospital Local San José de Achí | C74: BOLÍVAR EMPRESAS QUE NO COTIZAN | D74: 3272.446997 | E74: 3684.011882 | F74: -411.564885 | G74: -11.17164923 | H74: 845.146378 | I74: 1431.447404 | J74: -586.301026 | K74: -40.95861464 | L74: 0 | M74: 0 | N74: 0 | O74: 0 | P74: 0 | Q74: 0 | R74: 0 | S74: 0 | T74: 0 | U74: 0 | V74: 0 | W74: 0 | X74: 0 | Y74: 0 | Z74: 0 | AA74: 0 | AB74: 845.146378 | AC74: 1431.447404 | AD74: 0 | AE74: 0 | AF74: 0 | AG74: 0 | AH74: 0 | AI74: 0 | AJ74: 0 | AK74: 0 | AL74: 0 | AM74: 0 | AN74: 0 | AO74: 0 | AP74: 0 | AQ74: 0 | AR74: 0 | AS74: 0 | AT74: 0 | AU74: 0 | AV74: 0 | AW74: 0 | AX74: 0 | AY74: 0 | AZ74: 0 | BA74: 0 | BB74: 0 | BC74: 0 | BD74: 0 | BE74: 0 | BF74: 0 | BG74: 0 | BH74: 0 | BI74: 0 | BJ74: 0 | BK74: 0 | BL74: 0 | BM74: 0 | BN74: 0 | BO74: 0 | BP74: 0 | BQ74: 0 | BR74: 0 | BS74: 0 | BT74: 0 | BU74: 0 | BV74: 0 | BW74: 0 | BX74: 0 | BY74: 0 | BZ74: 0 | CA74: 0 | CB74: 0 | CC74: 0 | CD74: 0 | CE74: 0 | CF74: 0 | CG74: 0 | CH74: 0 | CI74: 0 | CJ74: 0 | CK74: 0 | CL74: 0 | CM74: 0 | CN74: 0 | CO74: - | CP74: 771.685964 | CQ74: 812.543859 | CR74: -40.857895 | CS74: -5.028392566 | CT74: 0 | CU74: 0 | CV74: 0 | CW74: - | CX74: 0 | CY74: 0 | CZ74: 0 | DA74: - | DB74: 0 | DC74: 0 | DD74: 0 | DE74: 0 | DF74: 2500.761033 | DG74: 2871.468023 | DH74: -370.70699 | DI74: -12.91001631 | DJ74: 5059.906318 | DK74: 4434.614378 | DL74: 625.29194 | DM74: 14.1002551 | DN74: 0 | DO74: 0 | DP74: 0 | DQ74: - | DR74: 0 | DS74: 0 | DT74: 0 | DU74: - | DV74: 3954.90862 | DW74: 3840.344694 | DX74: 0 | DY74: 0 | DZ74: 0 | EA74: - | EB74: -11.418215 | EC74: 230.472205 | ED74: -241.89042 | EE74: -104.9542699 | EF74: 1104.997698 | EG74: 594.269684 | EH74: 5071.324533 | EI74: 4204.142173 | EJ74: 867.18236 | EK74: 20.62685619 | EL74: 0 | EM74: 0 | EN74: 0 | EO74: - | EP74: 0 | EQ74: 0 | ER74: 0 | ES74: - | ET74: 0 | EU74: 0 | EV74: 0 | EW74: - | EX74: 0 | EY74: 0 | EZ74: 0 | FA74: - | FB74: 845.146378 | FC74: 1431.447404 | FD74: -586.301026 | FE74: -40.95861464 | FF74: 0 | FG74: 0 | FH74: 0 | FI74: 0 | FJ74: 0 | FK74: 0
A75: 91800000 | B75: Instituto Municipal del Deporte, la Recreación, el Aprovechamiento del Tiempo Libre, la Educación Extraescolar y Educación Física de Sibaté | C75: CUNDINAMARCA ENTIDADES DE GOBIERNO | D75: 335.904068 | E75: 367.443761 | F75: -31.539693 | G75: -8.583542938 | H75: 5.936382 | I75: 0 | J75: 5.936382 | K75: - | L75: 0 | M75: 0 | N75: 0 | O75: 0 | P75: 0 | Q75: 0 | R75: 0 | S75: 0 | T75: 0 | U75: 0 | V75: 0 | W75: 0 | X75: 0 | Y75: 0 | Z75: 0 | AA75: 0 | AB75: 0 | AC75: 0 | AD75: 0 | AE75: 0 | AF75: 0 | AG75: 0 | AH75: 0 | AI75: 0 | AJ75: 0 | AK75: 0 | AL75: 0 | AM75: 0 | AN75: 0 | AO75: 0 | AP75: 0 | AQ75: 0 | AR75: 0 | AS75: 0 | AT75: 0 | AU75: 0 | AV75: 5.936382 | AW75: 0 | AX75: 0 | AY75: 0 | AZ75: 0 | BA75: 0 | BB75: 0 | BC75: 0 | BD75: 0 | BE75: 0 | BF75: 0 | BG75: 0 | BH75: 0 | BI75: 0 | BJ75: 0 | BK75: 0 | BL75: 0 | BM75: 0 | BN75: 0 | BO75: 0 | BP75: 0 | BQ75: 0 | BR75: 0 | BS75: 0 | BT75: 0 | BU75: 0 | BV75: 0 | BW75: 0 | BX75: 0 | BY75: 0 | BZ75: 0 | CA75: 0 | CB75: 0 | CC75: 0 | CD75: 0 | CE75: 0 | CF75: 0 | CG75: 0 | CH75: 0 | CI75: 0 | CJ75: 0 | CK75: 0 | CL75: 0 | CM75: 0 | CN75: 0 | CO75: - | CP75: 71.481379 | CQ75: 197.224277 | CR75: -125.742898 | CS75: -63.75629812 | CT75: 0 | CU75: 0 | CV75: 0 | CW75: - | CX75: 0 | CY75: 0 | CZ75: 0 | DA75: - | DB75: 0 | DC75: 0 | DD75: 0 | DE75: 0 | DF75: 264.422689 | DG75: 170.219484 | DH75: 94.203205 | DI75: 55.34219866 | DJ75: 2184.3302 | DK75: 1604.20036 | DL75: 580.12984 | DM75: 36.16317852 | DN75: 0 | DO75: 0 | DP75: 0 | DQ75: - | DR75: 2159.833124 | DS75: 1575.104324 | DT75: 584.7288 | DU75: 37.12317915 | DV75: 2184.3302 | DW75: 1604.20036 | DX75: 0 | DY75: 0 | DZ75: 0 | EA75: - | EB75: 132.545766 | EC75: 105.136096 | ED75: 27.40967 | EE75: 26.07065608 | EF75: 0 | EG75: 0 | EH75: 2051.784434 | EI75: 1499.064264 | EJ75: 552.72017 | EK75: 36.87101236 | EL75: 0 | EM75: 0 | EN75: 0 | EO75: - | EP75: 0 | EQ75: 0 | ER75: 0 | ES75: - | ET75: 0 | EU75: 0 | EV75: 0 | EW75: - | EX75: 0 | EY75: 0 | EZ75: 0 | FA75: - | FB75: 5.936382 | FC75: 0 | FD75: 5.936382 | FE75: - | FF75: 0 | FG75: 0 | FH75: 0 | FI75: 0 | FJ75: 0 | FK75: 0
A76: 91900000 | B76: E.S.E. Santiago de Tunja | C76: BOYACÁ EMPRESAS QUE NO COTIZAN | D76: 48748.0959 | E76: 41369.07476 | F76: 7379.021141 | G76: 17.8370466 | H76: 15915.00456 | I76: 8963.458764 | J76: 6951.545792 | K76: 77.55427871 | L76: 0 | M76: 0 | N76: 0 | O76: 0 | P76: 0 | Q76: 0 | R76: 0 | S76: 0 | T76: 0 | U76: 0 | V76: 0 | W76: 0 | X76: 0 | Y76: 0 | Z76: 0 | AA76: 0 | AB76: 12007.54681 | AC76: 8889.502191 | AD76: 0 | AE76: 0 | AF76: 0 | AG76: 0 | AH76: 0 | AI76: 0 | AJ76: 0 | AK76: 0 | AL76: 0 | AM76: 0 | AN76: 0 | AO76: 0 | AP76: 0 | AQ76: 0 | AR76: 0 | AS76: 0 | AT76: 0 | AU76: 0 | AV76: 5240.15694 | AW76: 1173.82257 | AX76: 0 | AY76: 0 | AZ76: 1332.699195 | BA76: 1099.865997 | BB76: 0 | BC76: 0 | BD76: 0 | BE76: 0 | BF76: 0 | BG76: 0 | BH76: 0 | BI76: 0 | BJ76: 0 | BK76: 0 | BL76: 0 | BM76: 0 | BN76: 0 | BO76: 0 | BP76: 0 | BQ76: 0 | BR76: 1332.699195 | BS76: 1099.865997 | BT76: 0 | BU76: 0 | BV76: 0 | BW76: 0 | BX76: 0 | BY76: 0 | BZ76: 0 | CA76: 0 | CB76: 0 | CC76: 0 | CD76: 0 | CE76: 0 | CF76: 0 | CG76: 0 | CH76: 0 | CI76: 0 | CJ76: 0 | CK76: 0 | CL76: 0 | CM76: 0 | CN76: 0 | CO76: - | CP76: 12357.52499 | CQ76: 6418.101576 | CR76: 5939.42341 | CS76: 92.54174836 | CT76: 0 | CU76: 0 | CV76: 0 | CW76: - | CX76: 0 | CY76: 0 | CZ76: 0 | DA76: - | DB76: 0 | DC76: 0 | DD76: 0 | DE76: 0 | DF76: 36390.57092 | DG76: 34950.97318 | DH76: 1439.597732 | DI76: 4.118906 | DJ76: 28058.96057 | DK76: 25376.18681 | DL76: 2682.773754 | DM76: 10.57201294 | DN76: 0 | DO76: 0 | DP76: 0 | DQ76: - | DR76: 4697.971725 | DS76: 8641.865292 | DT76: -3943.893567 | DU76: -45.63706369 | DV76: 7740.931254 | DW76: 7878.156645 | DX76: 0 | DY76: 0 | DZ76: 0 | EA76: - | EB76: 1439.597732 | EC76: 2557.833226 | ED76: -1118.235494 | EE76: -43.7180768 | EF76: 20318.02931 | EG76: 17498.03017 | EH76: 26619.36284 | EI76: 22818.35359 | EJ76: 3801.009248 | EK76: 16.65768406 | EL76: 0 | EM76: 0 | EN76: 0 | EO76: - | EP76: 0 | EQ76: 0 | ER76: 0 | ES76: - | ET76: 0 | EU76: 0 | EV76: 0 | EW76: - | EX76: 0 | EY76: 0 | EZ76: 0 | FA76: - | FB76: 15915.00456 | FC76: 8963.458764 | FD76: 6951.545792 | FE76: 77.55427871 | FF76: 0 | FG76: 0 | FH76: 1332.699195 | FI76: 1099.865997 | FJ76: 0 | FK76: 0
A77: 92000000 | B77: E.S.E. Inés Ochoa Pérez - Tibasosa | C77: BOYACÁ EMPRESAS QUE NO COTIZAN | D77: 1171.999845 | E77: 1267.974953 | F77: -95.97510824 | G77: -7.569164361 | H77: 59.29229468 | I77: 86.52687691 | J77: -27.23458223 | K77: -31.4752863 | L77: 0 | M77: 0 | N77: 0 | O77: 0 | P77: 0 | Q77: 0 | R77: 0 | S77: 0 | T77: 0 | U77: 0 | V77: 0 | W77: 0 | X77: 0 | Y77: 0 | Z77: 0 | AA77: 0 | AB77: 53.35534888 | AC77: 55.03825271 | AD77: 0 | AE77: 0 | AF77: 0 | AG77: 0 | AH77: 0 | AI77: 24.445814 | AJ77: 0 | AK77: 0 | AL77: 0 | AM77: 0 | AN77: 0 | AO77: 0 | AP77: 0 | AQ77: 0 | AR77: 0 | AS77: 0 | AT77: 0 | AU77: 0 | AV77: 8.89456612 | AW77: 8.89456612 | AX77: 0 | AY77: 0 | AZ77: 2.95762032 | BA77: 1.85175592 | BB77: 0 | BC77: 0 | BD77: 2.95762032 | BE77: 1.85175592 | BF77: 0 | BG77: 0 | BH77: 0 | BI77: 0 | BJ77: 0 | BK77: 0 | BL77: 0 | BM77: 0 | BN77: 0 | BO77: 0 | BP77: 0 | BQ77: 0 | BR77: 0 | BS77: 0 | BT77: 0 | BU77: 0 | BV77: 0 | BW77: 0 | BX77: 0 | BY77: 0 | BZ77: 0 | CA77: 0 | CB77: 0 | CC77: 0 | CD77: 0 | CE77: 0 | CF77: 0 | CG77: 0 | CH77: 0 | CI77: 0 | CJ77: 0 | CK77: 0 | CL77: 0 | CM77: 0 | CN77: 0 | CO77: - | CP77: 63.310704 | CQ77: 69.91914 | CR77: -6.608436 | CS77: -9.451540737 | CT77: 0 | CU77: 0 | CV77: 0 | CW77: - | CX77: 0 | CY77: 0 | CZ77: 0 | DA77: - | DB77: 0 | DC77: 0 | DD77: 0 | DE77: 0 | DF77: 1108.689141 | DG77: 1198.055813 | DH77: -89.36667224 | DI77: -7.459307929 | DJ77: 1347.759781 | DK77: 1434.934582 | DL77: -87.17480042 | DM77: -6.075175936 | DN77: 0 | DO77: 0 | DP77: 0 | DQ77: - | DR77: 257.173759 | DS77: 275.408881 | DT77: -18.235122 | DU77: -6.621108925 | DV77: 715.7247327 | DW77: 905.4388099 | DX77: 0 | DY77: 0 | DZ77: 0 | EA77: - | EB77: -34.22338824 | EC77: 155.8651637 | ED77: -190.088552 | EE77: -121.9570476 | EF77: 632.0350488 | EG77: 529.495772 | EH77: 1381.98317 | EI77: 1279.069418 | EJ77: 102.9137516 | EK77: 8.045986409 | EL77: 0 | EM77: 0 | EN77: 0 | EO77: - | EP77: 0 | EQ77: 0 | ER77: 0 | ES77: - | ET77: 0 | EU77: 0 | EV77: 0 | EW77: - | EX77: 0 | EY77: 24.445814 | EZ77: -24.445814 | FA77: -100 | FB77: 59.29229468 | FC77: 62.08106291 | FD77: -2.78876823 | FE77: -4.492139953 | FF77: 0 | FG77: 0 | FH77: 2.95762032 | FI77: 1.85175592 | FJ77: 0 | FK77: 0
A78: 92100000 | B78: E.S.E. Hospital Sagrado Corazón de Jesús de la Hormiga | C78: PUTUMAYO EMPRESAS QUE NO COTIZAN | D78: 21670.26513 | E78: 21296.82532 | F78: 373.4398099 | G78: 1.753499896 | H78: 4936.163272 | I78: 5344.795452 | J78: -408.6321803 | K78: -7.645422242 | L78: 0 | M78: 0 | N78: 0 | O78: 0 | P78: 0 | Q78: 0 | R78: 0 | S78: 0 | T78: 0 | U78: 0 | V78: 0 | W78: 0 | X78: 0 | Y78: 0 | Z78: 0 | AA78: 0 | AB78: 5593.962053 | AC78: 5351.273231 | AD78: 0 | AE78: 0 | AF78: 0 | AG78: 0 | AH78: 0 | AI78: 0 | AJ78: 0 | AK78: 0 | AL78: 0 | AM78: 0 | AN78: 0 | AO78: 0 | AP78: 0 | AQ78: 0 | AR78: 0 | AS78: 0 | AT78: 0 | AU78: 0 | AV78: 459.5218067 | AW78: 1075.74128 | AX78: 685.6516651 | AY78: 163.4266192 | AZ78: 1802.972253 | BA78: 1245.645677 | BB78: 0 | BC78: 0 | BD78: 0 | BE78: 0 | BF78: 0 | BG78: 0 | BH78: 0 | BI78: 0 | BJ78: 0 | BK78: 0 | BL78: 0 | BM78: 0 | BN78: 0 | BO78: 0 | BP78: 0 | BQ78: 0 | BR78: 1802.972253 | BS78: 1245.645677 | BT78: 0 | BU78: 0 | BV78: 0 | BW78: 0 | BX78: 0 | BY78: 0 | BZ78: 0 | CA78: 0 | CB78: 0 | CC78: 0 | CD78: 0 | CE78: 0 | CF78: 0 | CG78: 0 | CH78: 0 | CI78: 0 | CJ78: 0 | CK78: 0 | CL78: 0 | CM78: 0 | CN78: 0 | CO78: - | CP78: 2318.348979 | CQ78: 2655.606424 | CR78: -337.2574448 | CS78: -12.69982787 | CT78: 0 | CU78: 0 | CV78: 0 | CW78: - | CX78: 0 | CY78: 0 | CZ78: 0 | DA78: - | DB78: 0 | DC78: 0 | DD78: 0 | DE78: 0 | DF78: 19351.91615 | DG78: 18641.2189 | DH78: 710.6972547 | DI78: 3.812504206 | DJ78: 18850.9761 | DK78: 17838.61112 | DL78: 1012.36498 | DM78: 5.675133409 | DN78: 0 | DO78: 0 | DP78: 0 | DQ78: - | DR78: 3834.191414 | DS78: 1934.71873 | DT78: 1899.472683 | DU78: 98.17823406 | DV78: 8030.243642 | DW78: 7355.325633 | DX78: 0 | DY78: 0 | DZ78: 0 | EA78: - | EB78: 710.6972547 | EC78: 947.7845699 | ED78: -237.0873152 | EE78: -25.01489503 | EF78: 10820.73246 | EG78: 10483.28549 | EH78: 18140.27885 | EI78: 16890.82655 | EJ78: 1249.452295 | EK78: 7.397224114 | EL78: 0 | EM78: 0 | EN78: 0 | EO78: - | EP78: 0 | EQ78: 0 | ER78: 0 | ES78: - | ET78: 0 | EU78: 0 | EV78: 0 | EW78: - | EX78: 0 | EY78: 0 | EZ78: 0 | FA78: - | FB78: 4936.163272 | FC78: 5344.795452 | FD78: -408.6321803 | FE78: -7.645422242 | FF78: 0 | FG78: 0 | FH78: 1802.972253 | FI78: 1245.645677 | FJ78: 0 | FK78: 0
A79: 92200000 | B79: E.S.E. Centro de Salud San Blas | C79: BOYACÁ EMPRESAS QUE NO COTIZAN | D79: 1066.52109 | E79: 1045.092292 | F79: 21.42879863 | G79: 2.050421651 | H79: 66.7691374 | I79: 83.700682 | J79: -16.9315446 | K79: -20.22868177 | L79: 0 | M79: 0 | N79: 0 | O79: 0 | P79: 0 | Q79: 0 | R79: 0 | S79: 0 | T79: 0 | U79: 0 | V79: 0 | W79: 0 | X79: 0 | Y79: 0 | Z79: 0 | AA79: 0 | AB79: 72.7114534 | AC79: 72.457492 | AD79: 0 | AE79: 0 | AF79: 0 | AG79: 0 | AH79: 0 | AI79: 11.771516 | AJ79: 0 | AK79: 0 | AL79: 0 | AM79: 0 | AN79: 0 | AO79: 0 | AP79: 0 | AQ79: 0 | AR79: 0 | AS79: 0 | AT79: 0 | AU79: 0 | AV79: 0.08071 | AW79: 0 | AX79: 97.924766 | AY79: 97.924766 | AZ79: 103.947792 | BA79: 98.453092 | BB79: 0 | BC79: 0 | BD79: 0 | BE79: 0 | BF79: 0 | BG79: 0 | BH79: 0 | BI79: 0 | BJ79: 0 | BK79: 0 | BL79: 0 | BM79: 0 | BN79: 0 | BO79: 0 | BP79: 0 | BQ79: 0 | BR79: 103.947792 | BS79: 98.453092 | BT79: 0 | BU79: 0 | BV79: 0 | BW79: 0 | BX79: 0 | BY79: 0 | BZ79: 0 | CA79: 0 | CB79: 0 | CC79: 0 | CD79: 0 | CE79: 0 | CF79: 0 | CG79: 0 | CH79: 0 | CI79: 0 | CJ79: 0 | CK79: 0 | CL79: 0 | CM79: 0 | CN79: 0 | CO79: - | CP79: 22.82737348 | CQ79: 38.87996634 | CR79: -16.05259286 | CS79: -41.28756882 | CT79: 0 | CU79: 0 | CV79: 0 | CW79: - | CX79: 0 | CY79: 0 | CZ79: 0 | DA79: - | DB79: 0 | DC79: 0 | DD79: 0 | DE79: 0 | DF79: 1043.693717 | DG79: 1006.212326 | DH79: 37.48139149 | DI79: 3.724998247 | DJ79: 712.70461 | DK79: 703.6124331 | DL79: 9.0921769 | DM79: 1.292213792 | DN79: 0 | DO79: 0 | DP79: 0 | DQ79: - | DR79: 121.989972 | DS79: 132.0800337 | DT79: -10.0900617 | DU79: -7.639354274 | DV79: 437.9301559 | DW79: 353.726323 | DX79: 0 | DY79: 0 | DZ79: 0 | EA79: - | EB79: 37.48139149 | EC79: 12.22024363 | ED79: 25.26114786 | EE79: 206.715583 | EF79: 274.7744541 | EG79: 349.8861101 | EH79: 675.2232185 | EI79: 691.3921895 | EJ79: -16.16897096 | EK79: -2.33861059 | EL79: 0 | EM79: 0 | EN79: 0 | EO79: - | EP79: 0 | EQ79: 0 | ER79: 0 | ES79: - | ET79: 0 | EU79: 0 | EV79: 0 | EW79: - | EX79: 0 | EY79: 11.771516 | EZ79: -11.771516 | FA79: -100 | FB79: 66.7691374 | FC79: 71.929166 | FD79: -5.1600286 | FE79: -7.173763978 | FF79: 0 | FG79: 0 | FH79: 103.947792 | FI79: 98.453092 | FJ79: 0 | FK79: 0
A80: 92400000 | B80: E.S.E. Hospital José Antonio Socarras Sánchez | C80: CESAR EMPRESAS QUE NO COTIZAN | D80: 3218.309781 | E80: 2859.538195 | F80: 358.771586 | G80: 12.54648693 | H80: 1094.431917 | I80: 1062.241149 | J80: 32.190768 | K80: 3.030457635 | L80: 0 | M80: 0 | N80: 0 | O80: 0 | P80: 0 | Q80: 0 | R80: 0 | S80: 0 | T80: 0 | U80: 0 | V80: 0 | W80: 0 | X80: 0 | Y80: 0 | Z80: 0 | AA80: 0 | AB80: 1123.166492 | AC80: 1081.387634 | AD80: 0 | AE80: 0 | AF80: 0 | AG80: 0 | AH80: 0 | AI80: 0 | AJ80: 0 | AK80: 0 | AL80: 0 | AM80: 0 | AN80: 0 | AO80: 0 | AP80: 0 | AQ80: 0 | AR80: 0 | AS80: 0 | AT80: 0 | AU80: 0 | AV80: 0 | AW80: 0 | AX80: 0 | AY80: 0 | AZ80: 28.734575 | BA80: 19.146485 | BB80: 0 | BC80: 0 | BD80: 0 | BE80: 0 | BF80: 0 | BG80: 0 | BH80: 0 | BI80: 0 | BJ80: 0 | BK80: 0 | BL80: 0 | BM80: 0 | BN80: 0 | BO80: 0 | BP80: 0 | BQ80: 0 | BR80: 28.734575 | BS80: 19.146485 | BT80: 0 | BU80: 0 | BV80: 0 | BW80: 0 | BX80: 0 | BY80: 0 | BZ80: 0 | CA80: 0 | CB80: 0 | CC80: 0 | CD80: 0 | CE80: 0 | CF80: 0 | CG80: 0 | CH80: 0 | CI80: 0 | CJ80: 0 | CK80: 0 | CL80: 0 | CM80: 0 | CN80: 0 | CO80: - | CP80: 189.109291 | CQ80: 159.214381 | CR80: 29.89491 | CS80: 18.77651366 | CT80: 0 | CU80: 0 | CV80: 0 | CW80: - | CX80: 0 | CY80: 0 | CZ80: 0 | DA80: - | DB80: 0 | DC80: 0 | DD80: 0 | DE80: 0 | DF80: 3029.20049 | DG80: 2700.323814 | DH80: 328.876676 | DI80: 12.17915697 | DJ80: 2951.958379 | DK80: 3046.41385 | DL80: -94.455471 | DM80: -3.10054627 | DN80: 0 | DO80: 0 | DP80: 0 | DQ80: - | DR80: 4.356118 | DS80: 0 | DT80: 4.356118 | DU80: - | DV80: 1510.853322 | DW80: 1495.263538 | DX80: 0 | DY80: 0 | DZ80: 0 | EA80: - | EB80: 21.926676 | EC80: 47.992206 | ED80: -26.06553 | EE80: -54.31200641 | EF80: 1441.105057 | EG80: 1551.150312 | EH80: 2930.031703 | EI80: 2998.421644 | EJ80: -68.389941 | EK80: -2.280864705 | EL80: 0 | EM80: 0 | EN80: 0 | EO80: - | EP80: 0 | EQ80: 0 | ER80: 0 | ES80: - | ET80: 0 | EU80: 0 | EV80: 0 | EW80: - | EX80: 0 | EY80: 0 | EZ80: 0 | FA80: - | FB80: 1094.431917 | FC80: 1062.241149 | FD80: 32.190768 | FE80: 3.030457635 | FF80: 0 | FG80: 0 | FH80: 28.734575 | FI80: 19.146485 | FJ80: 0 | FK80: 0
A81: 92500000 | B81: Instituto Colombiano de Ballet Clásico | C81: VALLE DEL CAUCA ENTIDADES DE GOBIERNO | D81: 2591.213644 | E81: 1827.352173 | F81: 763.8614708 | G81: 41.80154664 | H81: 140.548031 | I81: 18 | J81: 122.548031 | K81: 680.8223944 | L81: 0 | M81: 0 | N81: 0 | O81: 0 | P81: 0 | Q81: 0 | R81: 0 | S81: 0 | T81: 0 | U81: 0 | V81: 0 | W81: 0 | X81: 53.423398 | Y81: 0 | Z81: 0 | AA81: 0 | AB81: 0 | AC81: 0 | AD81: 0 | AE81: 0 | AF81: 0 | AG81: 0 | AH81: 0 | AI81: 0 | AJ81: 0 | AK81: 0 | AL81: 0 | AM81: 0 | AN81: 0 | AO81: 0 | AP81: 0 | AQ81: 0 | AR81: 87.124633 | AS81: 18 | AT81: 0 | AU81: 0 | AV81: 0 | AW81: 0 | AX81: 0 | AY81: 0 | AZ81: 0 | BA81: 0 | BB81: 0 | BC81: 0 | BD81: 0 | BE81: 0 | BF81: 0 | BG81: 0 | BH81: 0 | BI81: 0 | BJ81: 0 | BK81: 0 | BL81: 0 | BM81: 0 | BN81: 0 | BO81: 0 | BP81: 0 | BQ81: 0 | BR81: 0 | BS81: 0 | BT81: 0 | BU81: 0 | BV81: 0 | BW81: 0 | BX81: 0 | BY81: 0 | BZ81: 0 | CA81: 0 | CB81: 0 | CC81: 0 | CD81: 0 | CE81: 0 | CF81: 0 | CG81: 0 | CH81: 0 | CI81: 0 | CJ81: 0 | CK81: 0 | CL81: 0 | CM81: 0 | CN81: 0 | CO81: - | CP81: 51.954376 | CQ81: 120.641029 | CR81: -68.686653 | CS81: -56.93473735 | CT81: 0 | CU81: 0 | CV81: 0 | CW81: - | CX81: 0 | CY81: 0 | CZ81: 0 | DA81: - | DB81: 0 | DC81: 0 | DD81: 0 | DE81: 0 | DF81: 2539.259268 | DG81: 1706.711144 | DH81: 832.5481238 | DI81: 48.78084536 | DJ81: 6303.830421 | DK81: 4499.568504 | DL81: 1804.261917 | DM81: 40.09855424 | DN81: 0 | DO81: 0 | DP81: 0 | DQ81: - | DR81: 5898.902321 | DS81: 4289.240519 | DT81: 1609.661802 | DU81: 37.52789788 | DV81: 5436.42532 | DW81: 4476.787178 | DX81: 72.556142 | DY81: 63.586139 | DZ81: 8.970003 | EA81: 14.10685275 | EB81: 832.5481238 | EC81: -453.1555916 | ED81: 1285.703715 | EE81: -283.7223548 | EF81: 867.405101 | EG81: 22.781326 | EH81: 5471.282298 | EI81: 4952.724096 | EJ81: 518.5582018 | EK81: 10.4701613 | EL81: 0 | EM81: 0 | EN81: 0 | EO81: - | EP81: 0 | EQ81: 0 | ER81: 0 | ES81: - | ET81: 0 | EU81: 0 | EV81: 0 | EW81: - | EX81: 87.124633 | EY81: 18 | EZ81: 69.124633 | FA81: 384.0257389 | FB81: 53.423398 | FC81: 0 | FD81: 53.423398 | FE81: - | FF81: 0 | FG81: 0 | FH81: 0 | FI81: 0 | FJ81: 0 | FK81: 0
A82: 92600000 | B82: E.S.E. Centro de Salud de Sáchica | C82: BOYACÁ EMPRESAS QUE NO COTIZAN | D82: 2485.527456 | E82: 2178.55127 | F82: 306.9761865 | G82: 14.09084058 | H82: 253.2869698 | I82: 261.1857492 | J82: -7.8987794 | K82: -3.02419999 | L82: 0 | M82: 0 | N82: 0 | O82: 0 | P82: 0 | Q82: 0 | R82: 0 | S82: 0 | T82: 0 | U82: 0 | V82: 0 | W82: 0 | X82: 0 | Y82: 0 | Z82: 0 | AA82: 0 | AB82: 374.7763648 | AC82: 324.718934 | AD82: 0 | AE82: 0 | AF82: 0 | AG82: 0 | AH82: 0 | AI82: 0 | AJ82: 0 | AK82: 0 | AL82: 0 | AM82: 0 | AN82: 0 | AO82: 0 | AP82: 0 | AQ82: 0 | AR82: 0 | AS82: 0 | AT82: 0 | AU82: 0 | AV82: 0 | AW82: 12.5020982 | AX82: 0 | AY82: 0 | AZ82: 121.489395 | BA82: 76.035283 | BB82: 0 | BC82: 0 | BD82: 0 | BE82: 0 | BF82: 0 | BG82: 0 | BH82: 0 | BI82: 0 | BJ82: 0 | BK82: 0 | BL82: 0 | BM82: 0 | BN82: 0 | BO82: 0 | BP82: 0 | BQ82: 0 | BR82: 121.489395 | BS82: 76.035283 | BT82: 0 | BU82: 0 | BV82: 0 | BW82: 0 | BX82: 0 | BY82: 0 | BZ82: 0 | CA82: 0 | CB82: 0 | CC82: 0 | CD82: 0 | CE82: 0 | CF82: 0 | CG82: 0 | CH82: 0 | CI82: 0 | CJ82: 0 | CK82: 0 | CL82: 0 | CM82: 0 | CN82: 0 | CO82: - | CP82: 32.962722 | CQ82: 65.4417585 | CR82: -32.4790365 | CS82: -49.63044583 | CT82: 0 | CU82: 0 | CV82: 0 | CW82: - | CX82: 0 | CY82: 0 | CZ82: 0 | DA82: - | DB82: 0 | DC82: 0 | DD82: 0 | DE82: 0 | DF82: 2452.564734 | DG82: 2113.109511 | DH82: 339.455223 | DI82: 16.06425134 | DJ82: 1217.40896 | DK82: 1048.797713 | DL82: 168.6112467 | DM82: 16.07662227 | DN82: 0 | DO82: 0 | DP82: 0 | DQ82: - | DR82: 134.132548 | DS82: 140.654699 | DT82: -6.522151 | DU82: -4.636994744 | DV82: 693.1395727 | DW82: 590.494527 | DX82: 0 | DY82: 0 | DZ82: 0 | EA82: - | EB82: 339.455223 | EC82: 233.6073008 | ED82: 105.8479221 | EE82: 45.31019439 | EF82: 524.269387 | EG82: 458.303186 | EH82: 877.9537367 | EI82: 815.1904122 | EJ82: 62.76332458 | EK82: 7.699222616 | EL82: 0 | EM82: 0 | EN82: 0 | EO82: - | EP82: 0 | EQ82: 0 | ER82: 0 | ES82: - | ET82: 0 | EU82: 0 | EV82: 0 | EW82: - | EX82: 0 | EY82: 0 | EZ82: 0 | FA82: - | FB82: 253.2869698 | FC82: 261.1857492 | FD82: -7.8987794 | FE82: -3.02419999 | FF82: 0 | FG82: 0 | FH82: 121.489395 | FI82: 76.035283 | FJ82: 0 | FK82: 0
A83: 92800000 | B83: Gestora Urbana de Ibagué | C83: TOLIMA ENTIDADES DE GOBIERNO | D83: 49108.98882 | E83: 47934.73456 | F83: 1174.25426 | G83: 2.449693883 | H83: 4105.982126 | I83: 3023.312026 | J83: 1082.670101 | K83: 35.8107298 | L83: 0 | M83: 0 | N83: 813.9765324 | O83: 618.7740404 | P83: 0 | Q83: 0 | R83: 0 | S83: 0 | T83: 0 | U83: 0 | V83: 31.05076253 | W83: 34.32084253 | X83: 103.1812442 | Y83: 15.6828791 | Z83: 0 | AA83: 0 | AB83: 0 | AC83: 0 | AD83: 0 | AE83: 0 | AF83: 0 | AG83: 0 | AH83: 0 | AI83: 0 | AJ83: 0 | AK83: 0 | AL83: 0 | AM83: 0 | AN83: 0 | AO83: 0 | AP83: 0 | AQ83: 0 | AR83: 0 | AS83: 0 | AT83: 0 | AU83: 0 | AV83: 3307.035241 | AW83: 2503.795918 | AX83: 0 | AY83: 0 | AZ83: 149.261654 | BA83: 149.261654 | BB83: 0 | BC83: 0 | BD83: 0 | BE83: 0 | BF83: 0 | BG83: 0 | BH83: 0 | BI83: 0 | BJ83: 0 | BK83: 0 | BL83: 0 | BM83: 0 | BN83: 0 | BO83: 0 | BP83: 0 | BQ83: 0 | BR83: 0 | BS83: 0 | BT83: 0 | BU83: 0 | BV83: 0 | BW83: 0 | BX83: 0 | BY83: 0 | BZ83: 149.261654 | CA83: 149.261654 | CB83: 0 | CC83: 0 | CD83: 0 | CE83: 0 | CF83: 0 | CG83: 0 | CH83: 0 | CI83: 0 | CJ83: 0 | CK83: 0 | CL83: 0 | CM83: 0 | CN83: 0 | CO83: - | CP83: 4694.308534 | CQ83: 4113.692687 | CR83: 580.6158472 | CS83: 14.11422514 | CT83: 0 | CU83: 0 | CV83: 0 | CW83: - | CX83: 0 | CY83: 0 | CZ83: 0 | DA83: - | DB83: 0 | DC83: 0 | DD83: 0 | DE83: 0 | DF83: 44414.68028 | DG83: 43821.04187 | DH83: 593.6384132 | DI83: 1.35468804 | DJ83: 4413.697524 | DK83: 3778.880776 | DL83: 634.8167474 | DM83: 16.7990679 | DN83: 0 | DO83: 0 | DP83: 0 | DQ83: - | DR83: 0 | DS83: 0 | DT83: 0 | DU83: - | DV83: 4413.697524 | DW83: 3778.880776 | DX83: 0 | DY83: 0 | DZ83: 0 | EA83: - | EB83: 389.9144447 | EC83: 991.0012661 | ED83: -601.0868214 | EE83: -60.6544958 | EF83: 0 | EG83: 0 | EH83: 4023.783079 | EI83: 2787.87951 | EJ83: 1235.903569 | EK83: 44.33131218 | EL83: 0 | EM83: 0 | EN83: 0 | EO83: - | EP83: 0 | EQ83: 0 | ER83: 0 | ES83: - | ET83: 0 | EU83: 0 | EV83: 0 | EW83: - | EX83: 664.7148784 | EY83: 469.5123864 | EZ83: 195.202492 | FA83: 41.57557876 | FB83: 3441.267248 | FC83: 2553.799639 | FD83: 887.4676086 | FE83: 34.75087062 | FF83: 149.261654 | FG83: 149.261654 | FH83: 0 | FI83: 0 | FJ83: 0 | FK83: 0
A84: 92900000 | B84: Centro de Salud Santo Domingo Savio | C84: SANTANDER EMPRESAS QUE NO COTIZAN | D84: 3510.321091 | E84: 3549.454975 | F84: -39.13388373 | G84: -1.102532192 | H84: 921.0188211 | I84: 942.4959907 | J84: -21.47716957 | K84: -2.278754476 | L84: 0 | M84: 0 | N84: 0 | O84: 0 | P84: 0 | Q84: 0 | R84: 0 | S84: 0 | T84: 0 | U84: 0 | V84: 0 | W84: 0 | X84: 0 | Y84: 0 | Z84: 0 | AA84: 0 | AB84: 1294.104361 | AC84: 1219.860721 | AD84: 0 | AE84: 0 | AF84: 0 | AG84: 0 | AH84: 1e-07 | AI84: 1e-07 | AJ84: 0 | AK84: 0 | AL84: 0 | AM84: 0 | AN84: 0 | AO84: 0 | AP84: 0 | AQ84: 0 | AR84: 0 | AS84: 0 | AT84: 0 | AU84: 0 | AV84: 4.189376 | AW84: 0 | AX84: 0 | AY84: 0 | AZ84: 377.274916 | BA84: 277.36473 | BB84: 0 | BC84: 0 | BD84: 0 | BE84: 0 | BF84: 0 | BG84: 0 | BH84: 0 | BI84: 0 | BJ84: 0 | BK84: 0 | BL84: 0 | BM84: 0 | BN84: 0 | BO84: 0 | BP84: 0 | BQ84: 0 | BR84: 377.274916 | BS84: 277.36473 | BT84: 0 | BU84: 0 | BV84: 0 | BW84: 0 | BX84: 0 | BY84: 0 | BZ84: 0 | CA84: 0 | CB84: 0 | CC84: 0 | CD84: 0 | CE84: 0 | CF84: 0 | CG84: 0 | CH84: 0 | CI84: 0 | CJ84: 0 | CK84: 0 | CL84: 0 | CM84: 0 | CN84: 0 | CO84: - | CP84: 158.9342294 | CQ84: 7.55861911 | CR84: 151.3756102 | CS84: 2002.688693 | CT84: 0 | CU84: 0 | CV84: 0 | CW84: - | CX84: 0 | CY84: 0 | CZ84: 0 | DA84: - | DB84: 0 | DC84: 0 | DD84: 0 | DE84: 0 | DF84: 3351.386862 | DG84: 3541.896356 | DH84: -190.509494 | DI84: -5.378742765 | DJ84: 3158.278766 | DK84: 3089.756387 | DL84: 68.52237877 | DM84: 2.217727555 | DN84: 0 | DO84: 0 | DP84: 0 | DQ84: - | DR84: 328.203142 | DS84: 264.501541 | DT84: 63.701601 | DU84: 24.08364078 | DV84: 1247.994735 | DW84: 1251.825338 | DX84: 0 | DY84: 0 | DZ84: 0 | EA84: - | EB84: -190.509494 | EC84: -208.0720774 | ED84: 17.56258341 | EE84: -8.440624821 | EF84: 1910.28403 | EG84: 1837.931049 | EH84: 3348.78826 | EI84: 3297.828464 | EJ84: 50.95979536 | EK84: 1.545253063 | EL84: 0 | EM84: 0 | EN84: 0 | EO84: - | EP84: 0 | EQ84: 0 | ER84: 0 | ES84: - | ET84: 0 | EU84: 0 | EV84: 0 | EW84: - | EX84: 1e-07 | EY84: 1e-07 | EZ84: 0 | FA84: 0 | FB84: 921.018821 | FC84: 942.4959906 | FD84: -21.47716957 | FE84: -2.278754476 | FF84: 0 | FG84: 0 | FH84: 377.274916 | FI84: 277.36473 | FJ84: 0 | FK84: 0
A85: 93100000 | B85: E.S.E. Centro de Salud - Cómbita | C85: BOYACÁ EMPRESAS QUE NO COTIZAN | D85: 1970.118017 | E85: 1891.582317 | F85: 78.53569961 | G85: 4.151852071 | H85: 96.55438728 | I85: 90.98650711 | J85: 5.56788017 | K85: 6.119456991 | L85: 0 | M85: 0 | N85: 0 | O85: 0 | P85: 0 | Q85: 0 | R85: 0 | S85: 0 | T85: 0 | U85: 0 | V85: 0 | W85: 0 | X85: 0 | Y85: 0 | Z85: 0 | AA85: 0 | AB85: 113.6625323 | AC85: 123.824036 | AD85: 0 | AE85: 0 | AF85: 0 | AG85: 0 | AH85: 0 | AI85: 0 | AJ85: 0 | AK85: 0 | AL85: 0 | AM85: 0 | AN85: 0 | AO85: 0 | AP85: 0 | AQ85: 0 | AR85: 0 | AS85: 0 | AT85: 0 | AU85: 0 | AV85: 0 | AW85: 3.34022808 | AX85: 0 | AY85: 0 | AZ85: 17.108145 | BA85: 36.177757 | BB85: 0 | BC85: 0 | BD85: 0 | BE85: 0 | BF85: 0 | BG85: 0 | BH85: 0 | BI85: 0 | BJ85: 0 | BK85: 0 | BL85: 0 | BM85: 0 | BN85: 0 | BO85: 0 | BP85: 0 | BQ85: 0 | BR85: 17.108145 | BS85: 36.177757 | BT85: 0 | BU85: 0 | BV85: 0 | BW85: 0 | BX85: 0 | BY85: 0 | BZ85: 0 | CA85: 0 | CB85: 0 | CC85: 0 | CD85: 0 | CE85: 0 | CF85: 0 | CG85: 0 | CH85: 0 | CI85: 0 | CJ85: 0 | CK85: 0 | CL85: 0 | CM85: 0 | CN85: 0 | CO85: - | CP85: 72.537512 | CQ85: 53.572179 | CR85: 18.965333 | CS85: 35.40145903 | CT85: 0 | CU85: 0 | CV85: 0 | CW85: - | CX85: 0 | CY85: 0 | CZ85: 0 | DA85: - | DB85: 0 | DC85: 0 | DD85: 0 | DE85: 0 | DF85: 1897.580505 | DG85: 1838.010138 | DH85: 59.57036661 | DI85: 3.24102492 | DJ85: 1740.323107 | DK85: 1459.340988 | DL85: 280.9821191 | DM85: 19.25404147 | DN85: 0 | DO85: 0 | DP85: 0 | DQ85: - | DR85: 61 | DS85: 150 | DT85: -89 | DU85: -59.33333333 | DV85: 916.6002663 | DW85: 565.7384552 | DX85: 0 | DY85: 0 | DZ85: 0 | EA85: - | EB85: 59.57024661 | EC85: -24.78220476 | ED85: 84.35245137 | EE85: -340.3750884 | EF85: 823.722841 | EG85: 893.602533 | EH85: 1680.752861 | EI85: 1484.123193 | EJ85: 196.6296678 | EK85: 13.24887777 | EL85: 0 | EM85: 0 | EN85: 0 | EO85: - | EP85: 0 | EQ85: 0 | ER85: 0 | ES85: - | ET85: 0 | EU85: 0 | EV85: 0 | EW85: - | EX85: 0 | EY85: 0 | EZ85: 0 | FA85: - | FB85: 96.55438728 | FC85: 90.98650711 | FD85: 5.56788017 | FE85: 6.119456991 | FF85: 0 | FG85: 0 | FH85: 17.108145 | FI85: 36.177757 | FJ85: 0 | FK85: 0
A86: 93200000 | B86: E.S.E. Salud del Tundama | C86: BOYACÁ EMPRESAS QUE NO COTIZAN | D86: 18565.53062 | E86: 17914.88228 | F86: 650.6483434 | G86: 3.631887351 | H86: 2692.327082 | I86: 1707.798123 | J86: 984.528959 | K86: 57.64902452 | L86: 0 | M86: 0 | N86: 0 | O86: 0 | P86: 0 | Q86: 0 | R86: 0 | S86: 0 | T86: 0 | U86: 0 | V86: 0 | W86: 0 | X86: 0 | Y86: 0 | Z86: 0 | AA86: 0 | AB86: 3054.33531 | AC86: 2063.451444 | AD86: 0 | AE86: 0 | AF86: 0 | AG86: 0 | AH86: 0 | AI86: 0 | AJ86: 0 | AK86: 0 | AL86: 0 | AM86: 0 | AN86: 0 | AO86: 0 | AP86: 0 | AQ86: 0 | AR86: 0 | AS86: 0 | AT86: 0 | AU86: 0 | AV86: 0 | AW86: 0 | AX86: 0 | AY86: 0 | AZ86: 362.0082275 | BA86: 355.653321 | BB86: 0 | BC86: 0 | BD86: 0 | BE86: 0 | BF86: 0 | BG86: 0 | BH86: 0 | BI86: 0 | BJ86: 0 | BK86: 0 | BL86: 0 | BM86: 0 | BN86: 0 | BO86: 0 | BP86: 0 | BQ86: 0 | BR86: 362.0082275 | BS86: 355.653321 | BT86: 0 | BU86: 0 | BV86: 0 | BW86: 0 | BX86: 0 | BY86: 0 | BZ86: 0 | CA86: 0 | CB86: 0 | CC86: 0 | CD86: 0 | CE86: 0 | CF86: 0 | CG86: 0 | CH86: 0 | CI86: 0 | CJ86: 0 | CK86: 0 | CL86: 0 | CM86: 0 | CN86: 0 | CO86: - | CP86: 2127.621513 | CQ86: 1497.513645 | CR86: 630.1078685 | CS86: 42.07693671 | CT86: 0 | CU86: 0 | CV86: 0 | CW86: - | CX86: 0 | CY86: 0 | CZ86: 0 | DA86: - | DB86: 0 | DC86: 0 | DD86: 0 | DE86: 0 | DF86: 16437.90911 | DG86: 16417.36863 | DH86: 20.54047487 | DI86: 0.1251142941 | DJ86: 10090.55698 | DK86: 9981.274261 | DL86: 109.2827156 | DM86: 1.094877395 | DN86: 0 | DO86: 0 | DP86: 0 | DQ86: - | DR86: 0 | DS86: 0 | DT86: 0 | DU86: - | DV86: 4266.834366 | DW86: 4189.922807 | DX86: 0 | DY86: 0 | DZ86: 0 | EA86: - | EB86: 20.48803787 | EC86: 119.7507307 | ED86: -99.26269279 | EE86: -82.89109573 | EF86: 5823.722611 | EG86: 5791.351453 | EH86: 10070.06894 | EI86: 9861.52353 | EJ86: 208.5454084 | EK86: 2.114738232 | EL86: 0 | EM86: 0 | EN86: 0 | EO86: - | EP86: 0 | EQ86: 0 | ER86: 0 | ES86: - | ET86: 0 | EU86: 0 | EV86: 0 | EW86: - | EX86: 0 | EY86: 0 | EZ86: 0 | FA86: - | FB86: 2692.327082 | FC86: 1707.798123 | FD86: 984.528959 | FE86: 57.64902452 | FF86: 0 | FG86: 0 | FH86: 362.0082275 | FI86: 355.653321 | FJ86: 0 | FK86: 0
A87: 93400000 | B87: E.S.P. Empresa de Acueducto, Alcantarillado y Aseo de Chimichagua | C87: CESAR EMPRESAS QUE NO COTIZAN | D87: 5004.727642 | E87: 5181.410202 | F87: -176.68256 | G87: -3.409931913 | H87: 2759.647154 | I87: 2817.617271 | J87: -57.970117 | K87: -2.0574163 | L87: 0 | M87: 0 | N87: 0 | O87: 0 | P87: 0 | Q87: 0 | R87: 0 | S87: 0 | T87: 0 | U87: 0 | V87: 0 | W87: 0 | X87: 0 | Y87: 0 | Z87: 2759.647154 | AA87: 2817.617271 | AB87: 0 | AC87: 0 | AD87: 0 | AE87: 0 | AF87: 0 | AG87: 0 | AH87: 0 | AI87: 0 | AJ87: 0 | AK87: 0 | AL87: 0 | AM87: 0 | AN87: 0 | AO87: 0 | AP87: 0 | AQ87: 0 | AR87: 0 | AS87: 0 | AT87: 0 | AU87: 0 | AV87: 0 | AW87: 0 | AX87: 395.659195 | AY87: 395.659195 | AZ87: 395.659195 | BA87: 395.659195 | BB87: 0 | BC87: 0 | BD87: 0 | BE87: 0 | BF87: 0 | BG87: 0 | BH87: 221.08251 | BI87: 221.08251 | BJ87: 133.47974 | BK87: 133.47974 | BL87: 41.096945 | BM87: 41.096945 | BN87: 0 | BO87: 0 | BP87: 0 | BQ87: 0 | BR87: 0 | BS87: 0 | BT87: 0 | BU87: 0 | BV87: 0 | BW87: 0 | BX87: 0 | BY87: 0 | BZ87: 0 | CA87: 0 | CB87: 0 | CC87: 0 | CD87: 0 | CE87: 0 | CF87: 0 | CG87: 0 | CH87: 0 | CI87: 0 | CJ87: 0 | CK87: 0 | CL87: 0 | CM87: 0 | CN87: 0 | CO87: - | CP87: 2070.276436 | CQ87: 1769.133072 | CR87: 301.143364 | CS87: 17.02208662 | CT87: 0 | CU87: 0 | CV87: 0 | CW87: - | CX87: 0 | CY87: 0 | CZ87: 0 | DA87: - | DB87: 0 | DC87: 0 | DD87: 0 | DE87: 0 | DF87: 2934.451206 | DG87: 3412.27713 | DH87: -477.825924 | DI87: -14.00313942 | DJ87: 941.952563 | DK87: 760.404611 | DL87: 181.547952 | DM87: 23.87517768 | DN87: 0 | DO87: 0 | DP87: 0 | DQ87: - | DR87: 0 | DS87: 0 | DT87: 0 | DU87: - | DV87: 30.351889 | DW87: 1.187012 | DX87: 0 | DY87: 0 | DZ87: 0 | EA87: - | EB87: -433.890895 | EC87: -596.349424 | ED87: 162.458529 | EE87: -27.24217086 | EF87: 911.600674 | EG87: 759.217599 | EH87: 1375.843458 | EI87: 1356.754035 | EJ87: 19.089423 | EK87: 1.406992167 | EL87: 0 | EM87: 0 | EN87: 0 | EO87: - | EP87: 0 | EQ87: 0 | ER87: 0 | ES87: - | ET87: 0 | EU87: 0 | EV87: 0 | EW87: - | EX87: 0 | EY87: 0 | EZ87: 0 | FA87: - | FB87: 2759.647154 | FC87: 2817.617271 | FD87: -57.970117 | FE87: -2.0574163 | FF87: 0 | FG87: 0 | FH87: 395.659195 | FI87: 395.659195 | FJ87: 0 | FK87: 0
A88: 93500000 | B88: Empresa Social del Estado Centro de Salud Santa Rita de Casia | C88: BOYACÁ EMPRESAS QUE NO COTIZAN | D88: 888.5273148 | E88: 742.9674998 | F88: 145.559815 | G88: 19.59168 | H88: 361.7504024 | I88: 242.3139821 | J88: 119.4364203 | K88: 49.28994161 | L88: 0 | M88: 0 | N88: 0 | O88: 0 | P88: 0 | Q88: 0 | R88: 0 | S88: 0 | T88: 0 | U88: 0 | V88: 0 | W88: 0 | X88: 0 | Y88: 0 | Z88: 0 | AA88: 0 | AB88: 390.3916424 | AC88: 224.8643127 | AD88: 0 | AE88: 0 | AF88: 0 | AG88: 0 | AH88: 0 | AI88: 17.1343894 | AJ88: 0 | AK88: 0 | AL88: 0 | AM88: 0 | AN88: 0 | AO88: 0 | AP88: 0 | AQ88: 0 | AR88: 0 | AS88: 0 | AT88: 0 | AU88: 0 | AV88: 0 | AW88: 0.31528 | AX88: 0 | AY88: 0 | AZ88: 28.64124 | BA88: 0 | BB88: 0 | BC88: 0 | BD88: 0 | BE88: 0 | BF88: 0 | BG88: 0 | BH88: 0 | BI88: 0 | BJ88: 0 | BK88: 0 | BL88: 0 | BM88: 0 | BN88: 0 | BO88: 0 | BP88: 0 | BQ88: 0 | BR88: 28.64124 | BS88: 0 | BT88: 0 | BU88: 0 | BV88: 0 | BW88: 0 | BX88: 0 | BY88: 0 | BZ88: 0 | CA88: 0 | CB88: 0 | CC88: 0 | CD88: 0 | CE88: 0 | CF88: 0 | CG88: 0 | CH88: 0 | CI88: 0 | CJ88: 0 | CK88: 0 | CL88: 0 | CM88: 0 | CN88: 0 | CO88: - | CP88: 16.917386 | CQ88: 26.914427 | CR88: -9.997041 | CS88: -37.14380024 | CT88: 0 | CU88: 0 | CV88: 0 | CW88: - | CX88: 0 | CY88: 0 | CZ88: 0 | DA88: - | DB88: 0 | DC88: 0 | DD88: 0 | DE88: 0 | DF88: 871.6099288 | DG88: 716.0530727 | DH88: 155.556856 | DI88: 21.7242076 | DJ88: 1008.43545 | DK88: 850.4607946 | DL88: 157.9746558 | DM88: 18.57518381 | DN88: 0 | DO88: 0 | DP88: 0 | DQ88: - | DR88: 177.523476 | DS88: 191.90481 | DT88: -14.381334 | DU88: -7.493993506 | DV88: 644.9809354 | DW88: 577.0800616 | DX88: 0 | DY88: 0 | DZ88: 0 | EA88: - | EB88: 152.054664 | EC88: 230.4717803 | ED88: -78.41711631 | EE88: -34.02460648 | EF88: 363.454515 | EG88: 273.380733 | EH88: 856.3807864 | EI88: 619.9890143 | EJ88: 236.3917721 | EK88: 38.12838077 | EL88: 0 | EM88: 0 | EN88: 0 | EO88: - | EP88: 0 | EQ88: 0 | ER88: 0 | ES88: - | ET88: 0 | EU88: 0 | EV88: 0 | EW88: - | EX88: 0 | EY88: 17.1343894 | EZ88: -17.1343894 | FA88: -100 | FB88: 361.7504024 | FC88: 225.1795927 | FD88: 136.5708097 | FE88: 60.64972765 | FF88: 0 | FG88: 0 | FH88: 28.64124 | FI88: 0 | FJ88: 0 | FK88: 0
A89: 93600000 | B89: E.S.E. Prestadora de Servicios de Salud Gustavo Romero Hernández | C89: BOYACÁ EMPRESAS QUE NO COTIZAN | D89: 2240.707546 | E89: 2490.92457 | F89: -250.2170244 | G89: -10.04514659 | H89: 197.4456955 | I89: 392.5757951 | J89: -195.1300996 | K89: -49.70507659 | L89: 0 | M89: 0 | N89: 0 | O89: 0 | P89: 0 | Q89: 0 | R89: 0 | S89: 0 | T89: 0 | U89: 0 | V89: 0 | W89: 0 | X89: 0 | Y89: 0 | Z89: 0 | AA89: 0 | AB89: 314.3959825 | AC89: 471.9861805 | AD89: 0 | AE89: 0 | AF89: 0 | AG89: 0 | AH89: 0 | AI89: 22.513936 | AJ89: 0 | AK89: 0 | AL89: 0 | AM89: 0 | AN89: 0 | AO89: 0 | AP89: 0 | AQ89: 0 | AR89: 0 | AS89: 0 | AT89: 0 | AU89: 0 | AV89: 0 | AW89: 6.776124 | AX89: 0 | AY89: 0 | AZ89: 116.950287 | BA89: 108.7004454 | BB89: 0 | BC89: 0 | BD89: 0 | BE89: 0 | BF89: 0 | BG89: 0 | BH89: 0 | BI89: 0 | BJ89: 0 | BK89: 0 | BL89: 0 | BM89: 0 | BN89: 0 | BO89: 0 | BP89: 0 | BQ89: 0 | BR89: 116.950287 | BS89: 108.7004454 | BT89: 0 | BU89: 0 | BV89: 0 | BW89: 0 | BX89: 0 | BY89: 0 | BZ89: 0 | CA89: 0 | CB89: 0 | CC89: 0 | CD89: 0 | CE89: 0 | CF89: 0 | CG89: 0 | CH89: 0 | CI89: 0 | CJ89: 0 | CK89: 0 | CL89: 0 | CM89: 0 | CN89: 0 | CO89: - | CP89: 243.6208929 | CQ89: 298.4642259 | CR89: -54.843333 | CS89: -18.37517807 | CT89: 0 | CU89: 0 | CV89: 0 | CW89: - | CX89: 0 | CY89: 0 | CZ89: 0 | DA89: - | DB89: 0 | DC89: 0 | DD89: 0 | DE89: 0 | DF89: 1997.086653 | DG89: 2192.460344 | DH89: -195.3736914 | DI89: -8.911161924 | DJ89: 2090.219608 | DK89: 1997.290652 | DL89: 92.92895664 | DM89: 4.652750793 | DN89: 0 | DO89: 0 | DP89: 0 | DQ89: - | DR89: 235.025516 | DS89: 225.1393562 | DT89: 9.8861598 | DU89: 4.391129106 | DV89: 560.2382163 | DW89: 535.0236353 | DX89: 0 | DY89: 0 | DZ89: 0 | EA89: - | EB89: -195.3736914 | EC89: -115.5943261 | ED89: -79.7793653 | EE89: 69.01667927 | EF89: 1529.981392 | EG89: 1462.267016 | EH89: 2285.5933 | EI89: 2112.884978 | EJ89: 172.7083219 | EK89: 8.174052244 | EL89: 0 | EM89: 0 | EN89: 0 | EO89: - | EP89: 0 | EQ89: 0 | ER89: 0 | ES89: - | ET89: 0 | EU89: 0 | EV89: 0 | EW89: - | EX89: 0 | EY89: 22.513936 | EZ89: -22.513936 | FA89: -100 | FB89: 197.4456955 | FC89: 370.0618591 | FD89: -172.6161636 | FE89: -46.64521873 | FF89: 0 | FG89: 0 | FH89: 116.950287 | FI89: 108.7004454 | FJ89: 0 | FK89: 0
A90: 93700000 | B90: E.S.E. Centro de Salud de Motavita | C90: BOYACÁ EMPRESAS QUE NO COTIZAN | D90: 592.8112056 | E90: 770.4730804 | F90: -177.6618747 | G90: -23.05880364 | H90: 46.0280848 | I90: 157.8090701 | J90: -111.7809853 | K90: -70.83305493 | L90: 0 | M90: 0 | N90: 0 | O90: 0 | P90: 0 | Q90: 0 | R90: 0 | S90: 0 | T90: 0 | U90: 0 | V90: 0 | W90: 0 | X90: 0 | Y90: 0 | Z90: 0 | AA90: 0 | AB90: 46.0280848 | AC90: 18.629198 | AD90: 0 | AE90: 0 | AF90: 0 | AG90: 0 | AH90: 0 | AI90: 17.506379 | AJ90: 0 | AK90: 0 | AL90: 0 | AM90: 0 | AN90: 0 | AO90: 0 | AP90: 0 | AQ90: 0 | AR90: 0 | AS90: 0 | AT90: 0 | AU90: 0 | AV90: 0 | AW90: 0 | AX90: 0 | AY90: 243.3469881 | AZ90: 0 | BA90: 121.673495 | BB90: 0 | BC90: 0 | BD90: 0 | BE90: 0 | BF90: 0 | BG90: 0 | BH90: 0 | BI90: 0 | BJ90: 0 | BK90: 0 | BL90: 0 | BM90: 0 | BN90: 0 | BO90: 0 | BP90: 0 | BQ90: 0 | BR90: 0 | BS90: 121.673495 | BT90: 0 | BU90: 0 | BV90: 0 | BW90: 0 | BX90: 0 | BY90: 0 | BZ90: 0 | CA90: 0 | CB90: 0 | CC90: 0 | CD90: 0 | CE90: 0 | CF90: 0 | CG90: 0 | CH90: 0 | CI90: 0 | CJ90: 0 | CK90: 0 | CL90: 0 | CM90: 0 | CN90: 0 | CO90: - | CP90: 24.321353 | CQ90: 59.101848 | CR90: -34.780495 | CS90: -58.84840521 | CT90: 0 | CU90: 0 | CV90: 0 | CW90: - | CX90: 0 | CY90: 0 | CZ90: 0 | DA90: - | DB90: 0 | DC90: 0 | DD90: 0 | DE90: 0 | DF90: 568.4898526 | DG90: 711.3712324 | DH90: -142.8813797 | DI90: -20.08534689 | DJ90: 1077.510781 | DK90: 938.1987755 | DL90: 139.3120057 | DM90: 14.84887951 | DN90: 0 | DO90: 0 | DP90: 0 | DQ90: - | DR90: 181.91319 | DS90: 175.06379 | DT90: 6.8494 | DU90: 3.912516689 | DV90: 383.0688624 | DW90: 339.6098485 | DX90: 0 | DY90: 0 | DZ90: 0 | EA90: - | EB90: -142.8813797 | EC90: -229.9133462 | ED90: 87.03196649 | EE90: -37.85424723 | EF90: 694.4419188 | EG90: 598.588927 | EH90: 1220.392161 | EI90: 1168.112122 | EJ90: 52.28003926 | EK90: 4.475601125 | EL90: 0 | EM90: 0 | EN90: 0 | EO90: - | EP90: 0 | EQ90: 0 | ER90: 0 | ES90: - | ET90: 0 | EU90: 0 | EV90: 0 | EW90: - | EX90: 0 | EY90: 17.506379 | EZ90: -17.506379 | FA90: -100 | FB90: 46.0280848 | FC90: 140.3026911 | FD90: -94.27460632 | FE90: -67.19372634 | FF90: 0 | FG90: 0 | FH90: 0 | FI90: 121.673495 | FJ90: 0 | FK90: 0
A91: 93900000 | B91: E.S.E. Hospital San José de Guaduas | C91: CUNDINAMARCA EMPRESAS QUE NO COTIZAN | D91: 10110.67319 | E91: 10503.4142 | F91: -392.7410144 | G91: -3.739174774 | H91: 3711.645073 | I91: 3821.110462 | J91: -109.4653887 | K91: -2.864753316 | L91: 0 | M91: 0 | N91: 0 | O91: 0 | P91: 0 | Q91: 0 | R91: 0 | S91: 0 | T91: 0 | U91: 0 | V91: 0 | W91: 0 | X91: 0 | Y91: 0 | Z91: 0 | AA91: 0 | AB91: 8334.047244 | AC91: 6564.284144 | AD91: 0 | AE91: 0 | AF91: 0 | AG91: 0 | AH91: 0 | AI91: 0 | AJ91: 0 | AK91: 0 | AL91: 0 | AM91: 0 | AN91: 0 | AO91: 0 | AP91: 0 | AQ91: 0 | AR91: 0 | AS91: 0 | AT91: 0 | AU91: 0 | AV91: 3.76795953 | AW91: 5.25400897 | AX91: 1473.303125 | AY91: 1444.697072 | AZ91: 6099.473256 | BA91: 4193.124763 | BB91: 0 | BC91: 0 | BD91: 0 | BE91: 0 | BF91: 0 | BG91: 0 | BH91: 0 | BI91: 0 | BJ91: 0 | BK91: 0 | BL91: 0 | BM91: 0 | BN91: 0 | BO91: 0 | BP91: 0 | BQ91: 0 | BR91: 6099.473256 | BS91: 4193.124763 | BT91: 0 | BU91: 0 | BV91: 0 | BW91: 0 | BX91: 0 | BY91: 0 | BZ91: 0 | CA91: 0 | CB91: 0 | CC91: 0 | CD91: 0 | CE91: 0 | CF91: 0 | CG91: 0 | CH91: 0 | CI91: 0 | CJ91: 0 | CK91: 0 | CL91: 0 | CM91: 0 | CN91: 0 | CO91: - | CP91: 1374.093466 | CQ91: 1139.197252 | CR91: 234.8962137 | CS91: 20.61945052 | CT91: 0 | CU91: 0 | CV91: 0 | CW91: - | CX91: 0 | CY91: 0 | CZ91: 0 | DA91: - | DB91: 0 | DC91: 0 | DD91: 0 | DE91: 0 | DF91: 8736.579725 | DG91: 9364.216953 | DH91: -627.6372281 | DI91: -6.702506267 | DJ91: 10577.63495 | DK91: 9974.627736 | DL91: 603.0072126 | DM91: 6.045410701 | DN91: 0 | DO91: 0 | DP91: 0 | DQ91: - | DR91: 1238.537015 | DS91: 1141.872357 | DT91: 96.66465774 | DU91: 8.465452126 | DV91: 4347.158323 | DW91: 3947.733913 | DX91: 0 | DY91: 0 | DZ91: 0 | EA91: - | EB91: -1166.457098 | EC91: 304.2065462 | ED91: -1470.663645 | EE91: -483.4424713 | EF91: 6230.476625 | EG91: 6026.893823 | EH91: 11744.09205 | EI91: 9670.42119 | EJ91: 2073.670857 | EK91: 21.44343888 | EL91: 0 | EM91: 0 | EN91: 0 | EO91: - | EP91: 0 | EQ91: 0 | ER91: 0 | ES91: - | ET91: 0 | EU91: 0 | EV91: 0 | EW91: - | EX91: 0 | EY91: 0 | EZ91: 0 | FA91: - | FB91: 3711.645073 | FC91: 3821.110462 | FD91: -109.4653887 | FE91: -2.864753316 | FF91: 0 | FG91: 0 | FH91: 6099.473256 | FI91: 4193.124763 | FJ91: 0 | FK91: 0
A92: 94000000 | B92: Instituto Municipal de Deporte y Recreación - El Retiro | C92: ANTIOQUIA ENTIDADES DE GOBIERNO | D92: 813.9430329 | E92: 586.6173602 | F92: 227.3256727 | G92: 38.75195112 | H92: 0 | I92: 0 | J92: 0 | K92: - | L92: 0 | M92: 0 | N92: 0 | O92: 0 | P92: 0 | Q92: 0 | R92: 0 | S92: 0 | T92: 0 | U92: 0 | V92: 0 | W92: 0 | X92: 0 | Y92: 0 | Z92: 0 | AA92: 0 | AB92: 0 | AC92: 0 | AD92: 0 | AE92: 0 | AF92: 0 | AG92: 0 | AH92: 0 | AI92: 0 | AJ92: 0 | AK92: 0 | AL92: 0 | AM92: 0 | AN92: 0 | AO92: 0 | AP92: 0 | AQ92: 0 | AR92: 0 | AS92: 0 | AT92: 0 | AU92: 0 | AV92: 0 | AW92: 0 | AX92: 0 | AY92: 0 | AZ92: 0 | BA92: 0 | BB92: 0 | BC92: 0 | BD92: 0 | BE92: 0 | BF92: 0 | BG92: 0 | BH92: 0 | BI92: 0 | BJ92: 0 | BK92: 0 | BL92: 0 | BM92: 0 | BN92: 0 | BO92: 0 | BP92: 0 | BQ92: 0 | BR92: 0 | BS92: 0 | BT92: 0 | BU92: 0 | BV92: 0 | BW92: 0 | BX92: 0 | BY92: 0 | BZ92: 0 | CA92: 0 | CB92: 0 | CC92: 0 | CD92: 0 | CE92: 0 | CF92: 0 | CG92: 0 | CH92: 0 | CI92: 0 | CJ92: 0 | CK92: 0 | CL92: 0 | CM92: 0 | CN92: 0 | CO92: - | CP92: 246.1756615 | CQ92: 161.5758817 | CR92: 84.59977982 | CS92: 52.35916334 | CT92: 0 | CU92: 0 | CV92: 0 | CW92: - | CX92: 0 | CY92: 0 | CZ92: 0 | DA92: - | DB92: 0 | DC92: 0 | DD92: 0 | DE92: 0 | DF92: 567.7673714 | DG92: 425.0414785 | DH92: 142.7258929 | DI92: 33.57928581 | DJ92: 2933.789334 | DK92: 2528.711197 | DL92: 405.0781365 | DM92: 16.01915382 | DN92: 0 | DO92: 0 | DP92: 0 | DQ92: - | DR92: 2812.408646 | DS92: 2448.126356 | DT92: 364.2822904 | DU92: 14.88004447 | DV92: 2933.789334 | DW92: 2528.711197 | DX92: 380.7862957 | DY92: 340.0469256 | DZ92: 40.73937003 | EA92: 11.98051415 | EB92: 15.50869681 | EC92: 64.46772513 | ED92: -48.95902832 | EE92: -75.94347128 | EF92: 0 | EG92: 0 | EH92: 2918.280637 | EI92: 2464.243472 | EJ92: 454.0371648 | EK92: 18.42501238 | EL92: 0 | EM92: 0 | EN92: 0 | EO92: - | EP92: 0 | EQ92: 0 | ER92: 0 | ES92: - | ET92: 0 | EU92: 0 | EV92: 0 | EW92: - | EX92: 0 | EY92: 0 | EZ92: 0 | FA92: - | FB92: 0 | FC92: 0 | FD92: 0 | FE92: - | FF92: 0 | FG92: 0 | FH92: 0 | FI92: 0 | FJ92: 0 | FK92: 0
A93: 94200000 | B93: U.A.E. Unidad de Licores del Meta | C93: META EMPRESAS QUE NO COTIZAN | D93: 4678.129884 | E93: 4893.1525 | F93: -215.022616 | G93: -4.394357544 | H93: 61.122427 | I93: 61.068178 | J93: 0.054249 | K93: 0.08883350016 | L93: 0 | M93: 0 | N93: 0 | O93: 0 | P93: 0 | Q93: 0 | R93: 0 | S93: 0 | T93: 0 | U93: 0 | V93: 22.856428 | W93: 22.802179 | X93: 0 | Y93: 0 | Z93: 0 | AA93: 0 | AB93: 0 | AC93: 0 | AD93: 0 | AE93: 0 | AF93: 0 | AG93: 0 | AH93: 0 | AI93: 0 | AJ93: 0 | AK93: 0 | AL93: 0 | AM93: 0 | AN93: 0 | AO93: 0 | AP93: 0 | AQ93: 0 | AR93: 0 | AS93: 0 | AT93: 0 | AU93: 0 | AV93: 38.265999 | AW93: 38.265999 | AX93: 0 | AY93: 0 | AZ93: 0 | BA93: 0 | BB93: 0 | BC93: 0 | BD93: 0 | BE93: 0 | BF93: 0 | BG93: 0 | BH93: 0 | BI93: 0 | BJ93: 0 | BK93: 0 | BL93: 0 | BM93: 0 | BN93: 0 | BO93: 0 | BP93: 0 | BQ93: 0 | BR93: 0 | BS93: 0 | BT93: 0 | BU93: 0 | BV93: 0 | BW93: 0 | BX93: 0 | BY93: 0 | BZ93: 0 | CA93: 0 | CB93: 0 | CC93: 0 | CD93: 0 | CE93: 0 | CF93: 0 | CG93: 0 | CH93: 0 | CI93: 0 | CJ93: 0 | CK93: 0 | CL93: 0 | CM93: 0 | CN93: 0 | CO93: - | CP93: 1726.512473 | CQ93: 1829.426181 | CR93: -102.913708 | CS93: -5.625463824 | CT93: 0 | CU93: 0 | CV93: 0 | CW93: - | CX93: 0 | CY93: 0 | CZ93: 0 | DA93: - | DB93: 0 | DC93: 0 | DD93: 0 | DE93: 0 | DF93: 2951.617411 | DG93: 3063.726319 | DH93: -112.108908 | DI93: -3.659233767 | DJ93: 9333.969945 | DK93: 7437.135747 | DL93: 1896.834198 | DM93: 25.50490219 | DN93: 0 | DO93: 0 | DP93: 0 | DQ93: - | DR93: 416.384965 | DS93: 332.20603 | DT93: 84.178935 | DU93: 25.33937599 | DV93: 6020.189396 | DW93: 5035.556411 | DX93: 0 | DY93: 0 | DZ93: 0 | EA93: - | EB93: 1969.815916 | EC93: 2081.924824 | ED93: -112.108908 | EE93: -5.38486821 | EF93: 3313.780549 | EG93: 2401.579336 | EH93: 7364.154029 | EI93: 5355.210923 | EJ93: 2008.943106 | EK93: 37.51379983 | EL93: 0 | EM93: 0 | EN93: 0 | EO93: - | EP93: 0 | EQ93: 0 | ER93: 0 | ES93: - | ET93: 0 | EU93: 0 | EV93: 0 | EW93: - | EX93: 0 | EY93: 0 | EZ93: 0 | FA93: - | FB93: 61.122427 | FC93: 61.068178 | FD93: 0.054249 | FE93: 0.08883350016 | FF93: 0 | FG93: 0 | FH93: 0 | FI93: 0 | FJ93: 0 | FK93: 0
A94: 94300000 | B94: Instituto Municipal de Deporte, Recreación y Educación Física - Trujillo | C94: VALLE DEL CAUCA ENTIDADES DE GOBIERNO | D94: 9.064709 | E94: 3.27481809 | F94: 5.78989091 | G94: 176.8003825 | H94: 0 | I94: 0 | J94: 0 | K94: - | L94: 0 | M94: 0 | N94: 0 | O94: 0 | P94: 0 | Q94: 0 | R94: 0 | S94: 0 | T94: 0 | U94: 0 | V94: 0 | W94: 0 | X94: 0 | Y94: 0 | Z94: 0 | AA94: 0 | AB94: 0 | AC94: 0 | AD94: 0 | AE94: 0 | AF94: 0 | AG94: 0 | AH94: 0 | AI94: 0 | AJ94: 0 | AK94: 0 | AL94: 0 | AM94: 0 | AN94: 0 | AO94: 0 | AP94: 0 | AQ94: 0 | AR94: 0 | AS94: 0 | AT94: 0 | AU94: 0 | AV94: 0 | AW94: 0 | AX94: 0 | AY94: 0 | AZ94: 0 | BA94: 0 | BB94: 0 | BC94: 0 | BD94: 0 | BE94: 0 | BF94: 0 | BG94: 0 | BH94: 0 | BI94: 0 | BJ94: 0 | BK94: 0 | BL94: 0 | BM94: 0 | BN94: 0 | BO94: 0 | BP94: 0 | BQ94: 0 | BR94: 0 | BS94: 0 | BT94: 0 | BU94: 0 | BV94: 0 | BW94: 0 | BX94: 0 | BY94: 0 | BZ94: 0 | CA94: 0 | CB94: 0 | CC94: 0 | CD94: 0 | CE94: 0 | CF94: 0 | CG94: 0 | CH94: 0 | CI94: 0 | CJ94: 0 | CK94: 0 | CL94: 0 | CM94: 0 | CN94: 0 | CO94: - | CP94: 0 | CQ94: 0 | CR94: 0 | CS94: - | CT94: 0 | CU94: 0 | CV94: 0 | CW94: - | CX94: 0 | CY94: 0 | CZ94: 0 | DA94: - | DB94: 0 | DC94: 0 | DD94: 0 | DE94: 0 | DF94: 9.064709 | DG94: 3.27481809 | DH94: 5.78989091 | DI94: 176.8003825 | DJ94: 148.983799 | DK94: 122.5353471 | DL94: 26.44845191 | DM94: 21.58434488 | DN94: 9.461946 | DO94: 0 | DP94: 9.461946 | DQ94: - | DR94: 139.521853 | DS94: 119.6170581 | DT94: 19.90479491 | DU94: 16.64043175 | DV94: 148.983799 | DW94: 122.5353471 | DX94: 94.633458 | DY94: 57.516 | DZ94: 37.117458 | EA94: 64.53414354 | EB94: 1e-06 | EC94: 9e-08 | ED94: 9.1e-07 | EE94: 1011.111111 | EF94: 0 | EG94: 0 | EH94: 148.983798 | EI94: 122.535347 | EJ94: 26.448451 | EK94: 21.58434415 | EL94: 0 | EM94: 0 | EN94: 0 | EO94: - | EP94: 0 | EQ94: 0 | ER94: 0 | ES94: - | ET94: 0 | EU94: 0 | EV94: 0 | EW94: - | EX94: 0 | EY94: 0 | EZ94: 0 | FA94: - | FB94: 0 | FC94: 0 | FD94: 0 | FE94: - | FF94: 0 | FG94: 0 | FH94: 0 | FI94: 0 | FJ94: 0 | FK94: 0
A95: 94600000 | B95: Catedral de Sal de Zipaquirá S.A. S.E.M. | C95: CUNDINAMARCA EMPRESAS QUE NO COTIZAN | D95: 19180.62146 | E95: 8841.514313 | F95: 10339.10715 | G95: 116.9381939 | H95: 885.9993697 | I95: 596.5968262 | J95: 289.4025436 | K95: 48.50889761 | L95: 0 | M95: 0 | N95: 0 | O95: 0 | P95: 0 | Q95: 0 | R95: 0 | S95: 0 | T95: 0 | U95: 0 | V95: 0 | W95: 0 | X95: 850.4513707 | Y95: 566.8949142 | Z95: 0 | AA95: 0 | AB95: 0 | AC95: 0 | AD95: 0 | AE95: 0 | AF95: 35.547999 | AG95: 29.701912 | AH95: 0 | AI95: 0 | AJ95: 0 | AK95: 0 | AL95: 0 | AM95: 0 | AN95: 0 | AO95: 0 | AP95: 0 | AQ95: 0 | AR95: 0 | AS95: 0 | AT95: 0 | AU95: 0 | AV95: 0 | AW95: 0 | AX95: 0 | AY95: 0 | AZ95: 0 | BA95: 0 | BB95: 0 | BC95: 0 | BD95: 0 | BE95: 0 | BF95: 0 | BG95: 0 | BH95: 0 | BI95: 0 | BJ95: 0 | BK95: 0 | BL95: 0 | BM95: 0 | BN95: 0 | BO95: 0 | BP95: 0 | BQ95: 0 | BR95: 0 | BS95: 0 | BT95: 0 | BU95: 0 | BV95: 0 | BW95: 0 | BX95: 0 | BY95: 0 | BZ95: 0 | CA95: 0 | CB95: 0 | CC95: 0 | CD95: 0 | CE95: 0 | CF95: 0 | CG95: 0 | CH95: 0 | CI95: 0 | CJ95: 0 | CK95: 0 | CL95: 0 | CM95: 0 | CN95: 0 | CO95: - | CP95: 14519.59165 | CQ95: 4502.558268 | CR95: 10017.03338 | CS95: 222.4742643 | CT95: 0 | CU95: 0 | CV95: 0 | CW95: - | CX95: 0 | CY95: 0 | CZ95: 0 | DA95: - | DB95: 0 | DC95: 0 | DD95: 0 | DE95: 0 | DF95: 4661.029817 | DG95: 4338.956045 | DH95: 322.0737715 | DI95: 7.422840152 | DJ95: 2128.801239 | DK95: 1184.309956 | DL95: 944.4912833 | DM95: 79.75034566 | DN95: 0 | DO95: 0 | DP95: 0 | DQ95: - | DR95: 0 | DS95: 0 | DT95: 0 | DU95: - | DV95: 2128.801239 | DW95: 1184.309956 | DX95: 0 | DY95: 0 | DZ95: 0 | EA95: - | EB95: 763.4253727 | EC95: 442.6760998 | ED95: 320.7492729 | EE95: 72.45687604 | EF95: 0 | EG95: 0 | EH95: 1365.375866 | EI95: 741.6338559 | EJ95: 623.7420104 | EK95: 84.10376704 | EL95: 0 | EM95: 0 | EN95: 0 | EO95: - | EP95: 0 | EQ95: 0 | ER95: 0 | ES95: - | ET95: 0 | EU95: 0 | EV95: 0 | EW95: - | EX95: 35.547999 | EY95: 29.701912 | EZ95: 5.846087 | FA95: 19.68252751 | FB95: 850.4513707 | FC95: 566.8949142 | FD95: 283.5564566 | FE95: 50.01922746 | FF95: 0 | FG95: 0 | FH95: 0 | FI95: 0 | FJ95: 0 | FK95: 0
A96: 94900000 | B96: Instituto de Vivienda Municipal de Aguazul | C96: CASANARE ENTIDADES DE GOBIERNO | D96: 23788.98971 | E96: 16966.67436 | F96: 6822.315345 | G96: 40.21009185 | H96: 9091.047949 | I96: 0 | J96: 9091.047949 | K96: - | L96: 0 | M96: 0 | N96: 0 | O96: 0 | P96: 0 | Q96: 0 | R96: 0 | S96: 0 | T96: 0 | U96: 0 | V96: 0 | W96: 0 | X96: 0 | Y96: 0 | Z96: 0 | AA96: 0 | AB96: 0 | AC96: 0 | AD96: 0 | AE96: 0 | AF96: 0 | AG96: 0 | AH96: 0 | AI96: 0 | AJ96: 0 | AK96: 0 | AL96: 0 | AM96: 0 | AN96: 0 | AO96: 0 | AP96: 0 | AQ96: 0 | AR96: 71.310526 | AS96: 0 | AT96: 0 | AU96: 0 | AV96: 9019.737423 | AW96: 0 | AX96: 0 | AY96: 0 | AZ96: 0 | BA96: 0 | BB96: 0 | BC96: 0 | BD96: 0 | BE96: 0 | BF96: 0 | BG96: 0 | BH96: 0 | BI96: 0 | BJ96: 0 | BK96: 0 | BL96: 0 | BM96: 0 | BN96: 0 | BO96: 0 | BP96: 0 | BQ96: 0 | BR96: 0 | BS96: 0 | BT96: 0 | BU96: 0 | BV96: 0 | BW96: 0 | BX96: 0 | BY96: 0 | BZ96: 0 | CA96: 0 | CB96: 0 | CC96: 0 | CD96: 0 | CE96: 0 | CF96: 0 | CG96: 0 | CH96: 0 | CI96: 0 | CJ96: 0 | CK96: 0 | CL96: 0 | CM96: 0 | CN96: 0 | CO96: - | CP96: 18937.25085 | CQ96: 10819.9556 | CR96: 8117.295245 | CS96: 75.02152082 | CT96: 0 | CU96: 0 | CV96: 0 | CW96: - | CX96: 0 | CY96: 0 | CZ96: 0 | DA96: - | DB96: 0 | DC96: 0 | DD96: 0 | DE96: 0 | DF96: 4851.738859 | DG96: 6146.718759 | DH96: -1294.9799 | DI96: -21.06782416 | DJ96: 557.545445 | DK96: 532.969712 | DL96: 24.575733 | DM96: 4.611093735 | DN96: 0 | DO96: 0 | DP96: 0 | DQ96: - | DR96: 450 | DS96: 400 | DT96: 50 | DU96: 12.5 | DV96: 557.545445 | DW96: 532.969712 | DX96: 0 | DY96: 0 | DZ96: 0 | EA96: - | EB96: -1309.657541 | EC96: -1585.38539 | ED96: 275.727849 | EE96: -17.39185 | EF96: 0 | EG96: 0 | EH96: 1867.202986 | EI96: 2118.355102 | EJ96: -251.152116 | EK96: -11.85599694 | EL96: 0 | EM96: 0 | EN96: 0 | EO96: - | EP96: 0 | EQ96: 0 | ER96: 0 | ES96: - | ET96: 0 | EU96: 0 | EV96: 0 | EW96: - | EX96: 71.310526 | EY96: 0 | EZ96: 71.310526 | FA96: - | FB96: 9019.737423 | FC96: 0 | FD96: 9019.737423 | FE96: - | FF96: 0 | FG96: 0 | FH96: 0 | FI96: 0 | FJ96: 0 | FK96: 0
A97: 95200000 | B97: Asociación de Municipios de la Subregión de la Ciénaga Grande Santa Marta | C97: MAGDALENA ENTIDADES DE GOBIERNO | D97: 25072.71562 | E97: 20588.02173 | F97: 4484.693883 | G97: 21.78302481 | H97: 23809.51429 | I97: 19290.04396 | J97: 4519.470335 | K97: 23.42903078 | L97: 0 | M97: 0 | N97: 1775.843617 | O97: 193.563269 | P97: 0 | Q97: 0 | R97: 0 | S97: 0 | T97: 0 | U97: 0 | V97: 0 | W97: 0 | X97: 4783.692053 | Y97: 6987.24315 | Z97: 0 | AA97: 0 | AB97: 0 | AC97: 0 | AD97: 0 | AE97: 0 | AF97: 0 | AG97: 0 | AH97: 0 | AI97: 0 | AJ97: 0 | AK97: 0 | AL97: 0 | AM97: 0 | AN97: 0 | AO97: 0 | AP97: 0 | AQ97: 0 | AR97: 0 | AS97: 0 | AT97: 0 | AU97: 0 | AV97: 17249.97862 | AW97: 12109.23754 | AX97: 0 | AY97: 0 | AZ97: 0 | BA97: 0 | BB97: 0 | BC97: 0 | BD97: 0 | BE97: 0 | BF97: 0 | BG97: 0 | BH97: 0 | BI97: 0 | BJ97: 0 | BK97: 0 | BL97: 0 | BM97: 0 | BN97: 0 | BO97: 0 | BP97: 0 | BQ97: 0 | BR97: 0 | BS97: 0 | BT97: 0 | BU97: 0 | BV97: 0 | BW97: 0 | BX97: 0 | BY97: 0 | BZ97: 0 | CA97: 0 | CB97: 0 | CC97: 0 | CD97: 0 | CE97: 0 | CF97: 0 | CG97: 0 | CH97: 0 | CI97: 0 | CJ97: 0 | CK97: 0 | CL97: 0 | CM97: 0 | CN97: 0 | CO97: - | CP97: 12877.75607 | CQ97: 9029.039726 | CR97: 3848.716346 | CS97: 42.62597644 | CT97: 0 | CU97: 0 | CV97: 0 | CW97: - | CX97: 11.020905 | CY97: 0 | CZ97: 11.020905 | DA97: - | DB97: 0 | DC97: 0 | DD97: 0 | DE97: 0 | DF97: 12194.95955 | DG97: 11558.98201 | DH97: 635.977537 | DI97: 5.502020303 | DJ97: 12719.55075 | DK97: 11548.46615 | DL97: 1171.084604 | DM97: 10.14060732 | DN97: 0 | DO97: 0 | DP97: 0 | DQ97: - | DR97: 0 | DS97: 3.51 | DT97: -3.51 | DU97: -100 | DV97: 1554.812477 | DW97: 1306.810397 | DX97: 30.48 | DY97: 28 | DZ97: 2.48 | EA97: 8.857142857 | EB97: 635.977537 | EC97: 585.413128 | ED97: 50.564409 | EE97: 8.637388979 | EF97: 11164.73828 | EG97: 10241.65575 | EH97: 12083.57322 | EI97: 10963.05302 | EJ97: 1120.520195 | EK97: 10.22087728 | EL97: 11.020905 | EM97: 0 | EN97: 11.020905 | EO97: - | EP97: 0 | EQ97: 0 | ER97: 0 | ES97: - | ET97: 0 | EU97: 0 | EV97: 0 | EW97: - | EX97: 1775.843617 | EY97: 193.563269 | EZ97: 1582.280348 | FA97: 817.4486596 | FB97: 22033.67067 | FC97: 19096.48069 | FD97: 2937.189987 | FE97: 15.38079207 | FF97: 0 | FG97: 0 | FH97: 0 | FI97: 0 | FJ97: 0 | FK97: 0
A98: 95300000 | B98: E.S.E Centro de Salud - Betéitiva | C98: BOYACÁ EMPRESAS QUE NO COTIZAN | D98: 359.0782371 | E98: 361.2451201 | F98: -2.166883 | G98: -0.599837307 | H98: 63.5922178 | I98: 59.1483402 | J98: 4.4438776 | K98: 7.513106175 | L98: 0 | M98: 0 | N98: 0 | O98: 0 | P98: 0 | Q98: 0 | R98: 0 | S98: 0 | T98: 0 | U98: 0 | V98: 0 | W98: 0 | X98: 0 | Y98: 0 | Z98: 0 | AA98: 0 | AB98: 63.5922178 | AC98: 49.850618 | AD98: 0 | AE98: 0 | AF98: 0 | AG98: 0 | AH98: 0 | AI98: 9.2977222 | AJ98: 0 | AK98: 0 | AL98: 0 | AM98: 0 | AN98: 0 | AO98: 0 | AP98: 0 | AQ98: 0 | AR98: 0 | AS98: 0 | AT98: 0 | AU98: 0 | AV98: 0 | AW98: 0 | AX98: 0 | AY98: 0 | AZ98: 0 | BA98: 0 | BB98: 0 | BC98: 0 | BD98: 0 | BE98: 0 | BF98: 0 | BG98: 0 | BH98: 0 | BI98: 0 | BJ98: 0 | BK98: 0 | BL98: 0 | BM98: 0 | BN98: 0 | BO98: 0 | BP98: 0 | BQ98: 0 | BR98: 0 | BS98: 0 | BT98: 0 | BU98: 0 | BV98: 0 | BW98: 0 | BX98: 0 | BY98: 0 | BZ98: 0 | CA98: 0 | CB98: 0 | CC98: 0 | CD98: 0 | CE98: 0 | CF98: 0 | CG98: 0 | CH98: 0 | CI98: 0 | CJ98: 0 | CK98: 0 | CL98: 0 | CM98: 0 | CN98: 0 | CO98: - | CP98: 34.78681739 | CQ98: 18.32585239 | CR98: 16.460965 | CS98: 89.82373452 | CT98: 0 | CU98: 0 | CV98: 0 | CW98: - | CX98: 0 | CY98: 0 | CZ98: 0 | DA98: - | DB98: 0 | DC98: 0 | DD98: 0 | DE98: 0 | DF98: 324.2914197 | DG98: 342.9192677 | DH98: -18.627848 | DI98: -5.432138044 | DJ98: 446.009334 | DK98: 521.5827371 | DL98: -75.57340311 | DM98: -14.48924547 | DN98: 0 | DO98: 0 | DP98: 0 | DQ98: - | DR98: 95.93447 | DS98: 104.213898 | DT98: -8.279428 | DU98: -7.944648611 | DV98: 216.702528 | DW98: 345.0576131 | DX98: 0 | DY98: 0 | DZ98: 0 | EA98: - | EB98: -18.627848 | EC98: 30.06374271 | ED98: -48.69159071 | EE98: -161.9611742 | EF98: 229.306806 | EG98: 176.525124 | EH98: 464.637182 | EI98: 491.5189944 | EJ98: -26.8818124 | EK98: -5.469129923 | EL98: 0 | EM98: 0 | EN98: 0 | EO98: - | EP98: 0 | EQ98: 0 | ER98: 0 | ES98: - | ET98: 0 | EU98: 0 | EV98: 0 | EW98: - | EX98: 0 | EY98: 9.2977222 | EZ98: -9.2977222 | FA98: -100 | FB98: 63.5922178 | FC98: 49.850618 | FD98: 13.7415998 | FE98: 27.56555556 | FF98: 0 | FG98: 0 | FH98: 0 | FI98: 0 | FJ98: 0 | FK98: 0
A99: 95600000 | B99: E.S.E. Hospital San Antonio de Chía | C99: CUNDINAMARCA EMPRESAS QUE NO COTIZAN | D99: 26963.48035 | E99: 25699.47811 | F99: 1264.002241 | G99: 4.918396536 | H99: 9501.355081 | I99: 6726.366968 | J99: 2774.988113 | K99: 41.25537792 | L99: 0 | M99: 0 | N99: 0 | O99: 0 | P99: 0 | Q99: 0 | R99: 0 | S99: 0 | T99: 0 | U99: 0 | V99: 0 | W99: 0 | X99: 0 | Y99: 0 | Z99: 0 | AA99: 0 | AB99: 9672.681499 | AC99: 6984.409073 | AD99: 0 | AE99: 0 | AF99: 0 | AG99: 0 | AH99: 0 | AI99: 0 | AJ99: 0 | AK99: 0 | AL99: 0 | AM99: 0 | AN99: 0 | AO99: 0 | AP99: 0 | AQ99: 0 | AR99: 0 | AS99: 0 | AT99: 0 | AU99: 0 | AV99: 49.498228 | AW99: 49.498228 | AX99: 2067.335948 | AY99: 1273.999542 | AZ99: 2288.160594 | BA99: 1581.539875 | BB99: 0 | BC99: 0 | BD99: 0 | BE99: 0 | BF99: 0 | BG99: 0 | BH99: 0 | BI99: 0 | BJ99: 0 | BK99: 0 | BL99: 0 | BM99: 0 | BN99: 0 | BO99: 0 | BP99: 0 | BQ99: 0 | BR99: 2288.160594 | BS99: 1581.539875 | BT99: 0 | BU99: 0 | BV99: 0 | BW99: 0 | BX99: 0 | BY99: 0 | BZ99: 0 | CA99: 0 | CB99: 0 | CC99: 0 | CD99: 0 | CE99: 0 | CF99: 0 | CG99: 0 | CH99: 0 | CI99: 0 | CJ99: 0 | CK99: 0 | CL99: 0 | CM99: 0 | CN99: 0 | CO99: - | CP99: 4810.921032 | CQ99: 5604.865104 | CR99: -793.944072 | CS99: -14.16526638 | CT99: 0 | CU99: 0 | CV99: 0 | CW99: - | CX99: 0 | CY99: 0 | CZ99: 0 | DA99: - | DB99: 0 | DC99: 0 | DD99: 0 | DE99: 0 | DF99: 22152.55932 | DG99: 20094.613 | DH99: 2057.946313 | DI99: 10.24128363 | DJ99: 16396.11386 | DK99: 12168.27427 | DL99: 4227.839593 | DM99: 34.74477563 | DN99: 0 | DO99: 0 | DP99: 0 | DQ99: - | DR99: 7450.605966 | DS99: 2808.544422 | DT99: 4642.061544 | DU99: 165.2835365 | DV99: 6165.56117 | DW99: 2732.158267 | DX99: 0 | DY99: 0 | DZ99: 0 | EA99: - | EB99: 2057.946313 | EC99: -635.876885 | ED99: 2693.823198 | EE99: -423.6391134 | EF99: 10230.55269 | EG99: 9436.116004 | EH99: 14338.16755 | EI99: 12804.15116 | EJ99: 1534.016395 | EK99: 11.98061766 | EL99: 0 | EM99: 0 | EN99: 0 | EO99: - | EP99: 0 | EQ99: 0 | ER99: 0 | ES99: - | ET99: 0 | EU99: 0 | EV99: 0 | EW99: - | EX99: 0 | EY99: 0 | EZ99: 0 | FA99: - | FB99: 9501.355081 | FC99: 6726.366968 | FD99: 2774.988113 | FE99: 41.25537792 | FF99: 0 | FG99: 0 | FH99: 2288.160594 | FI99: 1581.539875 | FJ99: 0 | FK99: 0
A100: 95700000 | B100: E.S.E. Centro de Salud Nuestra Señora de La Paz | C100: BOYACÁ EMPRESAS QUE NO COTIZAN | D100: 1372.074781 | E100: 1078.541279 | F100: 293.533502 | G100: 27.21578745 | H100: 529.365972 | I100: 813.802582 | J100: -284.43661 | K100: -34.95154922 | L100: 0 | M100: 0 | N100: 0 | O100: 0 | P100: 0 | Q100: 0 | R100: 0 | S100: 0 | T100: 0 | U100: 0 | V100: 0 | W100: 0 | X100: 1.8e-05 | Y100: 0 | Z100: 0 | AA100: 0 | AB100: 528.139673 | AC100: 812.947482 | AD100: 0 | AE100: 0 | AF100: 0 | AG100: 0 | AH100: 0 | AI100: 0 | AJ100: 0 | AK100: 0 | AL100: 0 | AM100: 0 | AN100: 0 | AO100: 0 | AP100: 0 | AQ100: 0 | AR100: 0 | AS100: 0 | AT100: 0 | AU100: 0 | AV100: 1.226281 | AW100: 0.8551 | AX100: 0 | AY100: 0 | AZ100: 0 | BA100: 0 | BB100: 0 | BC100: 0 | BD100: 0 | BE100: 0 | BF100: 0 | BG100: 0 | BH100: 0 | BI100: 0 | BJ100: 0 | BK100: 0 | BL100: 0 | BM100: 0 | BN100: 0 | BO100: 0 | BP100: 0 | BQ100: 0 | BR100: 0 | BS100: 0 | BT100: 0 | BU100: 0 | BV100: 0 | BW100: 0 | BX100: 0 | BY100: 0 | BZ100: 0 | CA100: 0 | CB100: 0 | CC100: 0 | CD100: 0 | CE100: 0 | CF100: 0 | CG100: 0 | CH100: 0 | CI100: 0 | CJ100: 0 | CK100: 0 | CL100: 0 | CM100: 0 | CN100: 0 | CO100: - | CP100: 1256.968595 | CQ100: 1116.727604 | CR100: 140.240991 | CS100: 12.55820941 | CT100: 0 | CU100: 0 | CV100: 0 | CW100: - | CX100: 0 | CY100: 0 | CZ100: 0 | DA100: - | DB100: 0 | DC100: 0 | DD100: 0 | DE100: 0 | DF100: 115.106186 | DG100: -38.186325 | DH100: 153.292511 | DI100: -401.4330025 | DJ100: 1954.16078 | DK100: 1459.430058 | DL100: 494.730722 | DM100: 33.89889905 | DN100: 0 | DO100: 0 | DP100: 0 | DQ100: - | DR100: 548.273322 | DS100: 153.633488 | DT100: 394.639834 | DU100: 256.870972 | DV100: 1682.587985 | DW100: 999.200117 | DX100: 0 | DY100: 0 | DZ100: 0 | EA100: - | EB100: 149.558975 | EC100: -326.888298 | ED100: 476.447273 | EE100: -145.7523184 | EF100: 271.572795 | EG100: 460.229941 | EH100: 1804.601805 | EI100: 1786.318356 | EJ100: 18.283449 | EK100: 1.023526906 | EL100: 0 | EM100: 0 | EN100: 0 | EO100: - | EP100: 0 | EQ100: 0 | ER100: 0 | ES100: - | ET100: 0 | EU100: 0 | EV100: 0 | EW100: - | EX100: 0 | EY100: 0 | EZ100: 0 | FA100: - | FB100: 529.365972 | FC100: 813.802582 | FD100: -284.43661 | FE100: -34.95154922 | FF100: 0 | FG100: 0 | FH100: 0 | FI100: 0 | FJ100: 0 | FK100: 0
A101: 95800000 | B101: E.S.E. Centro de Salud de San José de Pare | C101: BOYACÁ EMPRESAS QUE NO COTIZAN | D101: 824.1637594 | E101: 1121.301372 | F101: -297.1376121 | G101: -26.49935331 | H101: 205.3539098 | I101: 403.2253637 | J101: -197.8714539 | K101: -49.07217445 | L101: 0 | M101: 0 | N101: 0 | O101: 0 | P101: 0 | Q101: 0 | R101: 0 | S101: 0 | T101: 0 | U101: 0 | V101: 0 | W101: 0 | X101: 0 | Y101: 0 | Z101: 0 | AA101: 0 | AB101: 212.2040518 | AC101: 580.5919356 | AD101: 0 | AE101: 0 | AF101: 0 | AG101: 0 | AH101: 0 | AI101: 0 | AJ101: 0 | AK101: 0 | AL101: 0 | AM101: 0 | AN101: 0 | AO101: 0 | AP101: 0 | AQ101: 0 | AR101: 0 | AS101: 0 | AT101: 0 | AU101: 0 | AV101: 0 | AW101: 0 | AX101: 0 | AY101: 0 | AZ101: 6.850142 | BA101: 177.3665719 | BB101: 0 | BC101: 0 | BD101: 0 | BE101: 0 | BF101: 0 | BG101: 0 | BH101: 0 | BI101: 0 | BJ101: 0 | BK101: 0 | BL101: 0 | BM101: 0 | BN101: 0 | BO101: 0 | BP101: 0 | BQ101: 0 | BR101: 6.850142 | BS101: 177.3665719 | BT101: 0 | BU101: 0 | BV101: 0 | BW101: 0 | BX101: 0 | BY101: 0 | BZ101: 0 | CA101: 0 | CB101: 0 | CC101: 0 | CD101: 0 | CE101: 0 | CF101: 0 | CG101: 0 | CH101: 0 | CI101: 0 | CJ101: 0 | CK101: 0 | CL101: 0 | CM101: 0 | CN101: 0 | CO101: - | CP101: 0 | CQ101: 107.9334246 | CR101: -107.9334246 | CS101: -100 | CT101: 0 | CU101: 0 | CV101: 0 | CW101: - | CX101: 0 | CY101: 0 | CZ101: 0 | DA101: - | DB101: 0 | DC101: 0 | DD101: 0 | DE101: 0 | DF101: 824.1637594 | DG101: 1013.367947 | DH101: -189.2041875 | DI101: -18.67082811 | DJ101: 1101.339447 | DK101: 1273.527974 | DL101: -172.188527 | DM101: -13.52059244 | DN101: 0 | DO101: 0 | DP101: 0 | DQ101: - | DR101: 181.089723 | DS101: 0 | DT101: 181.089723 | DU101: - | DV101: 533.2744179 | DW101: 643.0725865 | DX101: 0 | DY101: 0 | DZ101: 0 | EA101: - | EB101: -189.2041875 | EC101: -2.96023005 | ED101: -186.2439574 | EE101: 6291.536614 | EF101: 568.0650288 | EG101: 630.4553872 | EH101: 1290.543634 | EI101: 1276.488204 | EJ101: 14.05543046 | EK101: 1.101101477 | EL101: 0 | EM101: 0 | EN101: 0 | EO101: - | EP101: 0 | EQ101: 0 | ER101: 0 | ES101: - | ET101: 0 | EU101: 0 | EV101: 0 | EW101: - | EX101: 0 | EY101: 0 | EZ101: 0 | FA101: - | FB101: 205.3539098 | FC101: 403.2253637 | FD101: -197.8714539 | FE101: -49.07217445 | FF101: 0 | FG101: 0 | FH101: 6.850142 | FI101: 177.3665719 | FJ101: 0 | FK101: 0
A102: 96000000 | B102: Instituto Municipal para la Cultura y el Turismo - Moniquirá | C102: BOYACÁ ENTIDADES DE GOBIERNO | D102: 160.5483878 | E102: 55.67165642 | F102: 104.8767314 | G102: 188.3844278 | H102: 3.6994 | I102: 0 | J102: 3.6994 | K102: - | L102: 0 | M102: 0 | N102: 0 | O102: 0 | P102: 0 | Q102: 0 | R102: 0 | S102: 0 | T102: 0 | U102: 0 | V102: 0 | W102: 0 | X102: 0 | Y102: 0 | Z102: 0 | AA102: 0 | AB102: 0 | AC102: 0 | AD102: 0 | AE102: 0 | AF102: 0 | AG102: 0 | AH102: 0 | AI102: 0 | AJ102: 0 | AK102: 0 | AL102: 0 | AM102: 0 | AN102: 0 | AO102: 0 | AP102: 0 | AQ102: 0 | AR102: 3.6994 | AS102: 0 | AT102: 0 | AU102: 0 | AV102: 0 | AW102: 0 | AX102: 0 | AY102: 0 | AZ102: 0 | BA102: 0 | BB102: 0 | BC102: 0 | BD102: 0 | BE102: 0 | BF102: 0 | BG102: 0 | BH102: 0 | BI102: 0 | BJ102: 0 | BK102: 0 | BL102: 0 | BM102: 0 | BN102: 0 | BO102: 0 | BP102: 0 | BQ102: 0 | BR102: 0 | BS102: 0 | BT102: 0 | BU102: 0 | BV102: 0 | BW102: 0 | BX102: 0 | BY102: 0 | BZ102: 0 | CA102: 0 | CB102: 0 | CC102: 0 | CD102: 0 | CE102: 0 | CF102: 0 | CG102: 0 | CH102: 0 | CI102: 0 | CJ102: 0 | CK102: 0 | CL102: 0 | CM102: 0 | CN102: 0 | CO102: - | CP102: 7.379164 | CQ102: 7.327994 | CR102: 0.05117 | CS102: 0.6982811394 | CT102: 0 | CU102: 0 | CV102: 0 | CW102: - | CX102: 0 | CY102: 0 | CZ102: 0 | DA102: - | DB102: 0 | DC102: 0 | DD102: 0 | DE102: 0 | DF102: 153.1692238 | DG102: 48.34366242 | DH102: 104.8255614 | DI102: 216.8341332 | DJ102: 1067.470894 | DK102: 910.8494669 | DL102: 156.6214273 | DM102: 17.19509457 | DN102: 0 | DO102: 0 | DP102: 0 | DQ102: - | DR102: 1046.683346 | DS102: 888.9991447 | DT102: 157.6842016 | DU102: 17.73727259 | DV102: 1067.470894 | DW102: 910.8494669 | DX102: 830.7487268 | DY102: 888.647949 | DZ102: -57.89922224 | EA102: -6.515428557 | EB102: 104.8255614 | EC102: -101.2728651 | ED102: 206.0984265 | EE102: -203.5080436 | EF102: 0 | EG102: 0 | EH102: 962.6453328 | EI102: 1012.122332 | EJ102: -49.47699923 | EK102: -4.888440623 | EL102: 0 | EM102: 0 | EN102: 0 | EO102: - | EP102: 0 | EQ102: 0 | ER102: 0 | ES102: - | ET102: 0 | EU102: 0 | EV102: 0 | EW102: - | EX102: 3.6994 | EY102: 0 | EZ102: 3.6994 | FA102: - | FB102: 0 | FC102: 0 | FD102: 0 | FE102: - | FF102: 0 | FG102: 0 | FH102: 0 | FI102: 0 | FJ102: 0 | FK102: 0
A103: 96100000 | B103: E.S.E. Centro de Salud Con Camas de Montecristo | C103: BOLÍVAR EMPRESAS QUE NO COTIZAN | D103: 1307.414999 | E103: 1895.597876 | F103: -588.182877 | G103: -31.02888458 | H103: 986.684584 | I103: 1541.045633 | J103: -554.361049 | K103: -35.97304565 | L103: 0 | M103: 0 | N103: 0 | O103: 0 | P103: 0 | Q103: 0 | R103: 0 | S103: 0 | T103: 0 | U103: 0 | V103: 0 | W103: 0 | X103: 0 | Y103: 0 | Z103: 0 | AA103: 0 | AB103: 1212.535164 | AC103: 1225.919234 | AD103: 0 | AE103: 0 | AF103: 0 | AG103: 0 | AH103: 0 | AI103: 0 | AJ103: 0 | AK103: 0 | AL103: 0 | AM103: 0 | AN103: 0 | AO103: 0 | AP103: 0 | AQ103: 0 | AR103: 0 | AS103: 0 | AT103: 0 | AU103: 0 | AV103: 0 | AW103: 0 | AX103: 0 | AY103: 490.720979 | AZ103: 225.85058 | BA103: 175.59458 | BB103: 0 | BC103: 0 | BD103: 0 | BE103: 0 | BF103: 0 | BG103: 0 | BH103: 0 | BI103: 0 | BJ103: 0 | BK103: 0 | BL103: 0 | BM103: 0 | BN103: 0 | BO103: 0 | BP103: 0 | BQ103: 0 | BR103: 225.85058 | BS103: 175.59458 | BT103: 0 | BU103: 0 | BV103: 0 | BW103: 0 | BX103: 0 | BY103: 0 | BZ103: 0 | CA103: 0 | CB103: 0 | CC103: 0 | CD103: 0 | CE103: 0 | CF103: 0 | CG103: 0 | CH103: 0 | CI103: 0 | CJ103: 0 | CK103: 0 | CL103: 0 | CM103: 0 | CN103: 0 | CO103: - | CP103: 713.902717 | CQ103: 714.84234 | CR103: -0.939623 | CS103: -0.1314447882 | CT103: 0 | CU103: 0 | CV103: 0 | CW103: - | CX103: 0 | CY103: 0 | CZ103: 0 | DA103: - | DB103: 0 | DC103: 0 | DD103: 0 | DE103: 0 | DF103: 593.512282 | DG103: 1180.755536 | DH103: -587.243254 | DI103: -49.73453319 | DJ103: 3336.441187 | DK103: 2946.605937 | DL103: 389.83525 | DM103: 13.22997572 | DN103: 0 | DO103: 0 | DP103: 0 | DQ103: - | DR103: 387.405693 | DS103: 730.843624 | DT103: -343.437931 | DU103: -46.99198566 | DV103: 820.204726 | DW103: 811.284595 | DX103: 0 | DY103: 0 | DZ103: 0 | EA103: - | EB103: 23.834031 | EC103: -270.639964 | ED103: 294.473995 | EE103: -108.8065453 | EF103: 2516.236461 | EG103: 2135.321342 | EH103: 3312.607156 | EI103: 3217.245901 | EJ103: 95.361255 | EK103: 2.964064853 | EL103: 0 | EM103: 0 | EN103: 0 | EO103: - | EP103: 0 | EQ103: 0 | ER103: 0 | ES103: - | ET103: 0 | EU103: 0 | EV103: 0 | EW103: - | EX103: 0 | EY103: 0 | EZ103: 0 | FA103: - | FB103: 986.684584 | FC103: 1541.045633 | FD103: -554.361049 | FE103: -35.97304565 | FF103: 0 | FG103: 0 | FH103: 225.85058 | FI103: 175.59458 | FJ103: 0 | FK103: 0
A104: 96600000 | B104: E.S.E. Centro de Salud del Municipio de Sutamarchán | C104: BOYACÁ EMPRESAS QUE NO COTIZAN | D104: 3479.75469 | E104: 3379.560935 | F104: 100.193755 | G104: 2.964697395 | H104: 365.189686 | I104: 424.610508 | J104: -59.420822 | K104: -13.99419489 | L104: 0 | M104: 0 | N104: 0 | O104: 0 | P104: 0 | Q104: 0 | R104: 0 | S104: 0 | T104: 0 | U104: 0 | V104: 0 | W104: 0 | X104: 0 | Y104: 0 | Z104: 0 | AA104: 0 | AB104: 696.875472 | AC104: 736.156317 | AD104: 0 | AE104: 0 | AF104: 0 | AG104: 0 | AH104: 0 | AI104: 0 | AJ104: 0 | AK104: 0 | AL104: 0 | AM104: 0 | AN104: 0 | AO104: 0 | AP104: 0 | AQ104: 0 | AR104: 0 | AS104: 0 | AT104: 0 | AU104: 0 | AV104: 30.038975 | AW104: 31.281881 | AX104: 0 | AY104: 0 | AZ104: 361.724761 | BA104: 342.82769 | BB104: 0 | BC104: 0 | BD104: 0 | BE104: 0 | BF104: 0 | BG104: 0 | BH104: 0 | BI104: 0 | BJ104: 0 | BK104: 0 | BL104: 0 | BM104: 0 | BN104: 0 | BO104: 0 | BP104: 0 | BQ104: 0 | BR104: 361.724761 | BS104: 342.82769 | BT104: 0 | BU104: 0 | BV104: 0 | BW104: 0 | BX104: 0 | BY104: 0 | BZ104: 0 | CA104: 0 | CB104: 0 | CC104: 0 | CD104: 0 | CE104: 0 | CF104: 0 | CG104: 0 | CH104: 0 | CI104: 0 | CJ104: 0 | CK104: 0 | CL104: 0 | CM104: 0 | CN104: 0 | CO104: - | CP104: 59.520094 | CQ104: 78.759482 | CR104: -19.239388 | CS104: -24.4280276 | CT104: 0 | CU104: 0 | CV104: 0 | CW104: - | CX104: 0 | CY104: 0 | CZ104: 0 | DA104: - | DB104: 0 | DC104: 0 | DD104: 0 | DE104: 0 | DF104: 3420.234596 | DG104: 3300.801453 | DH104: 119.433143 | DI104: 3.618307393 | DJ104: 1718.164394 | DK104: 1526.790317 | DL104: 191.374077 | DM104: 12.53440468 | DN104: 0 | DO104: 0 | DP104: 0 | DQ104: - | DR104: 404.083471 | DS104: 171.479436 | DT104: 232.604035 | DU104: 135.6454397 | DV104: 1293.005758 | DW104: 1115.837924 | DX104: 0 | DY104: 0 | DZ104: 0 | EA104: - | EB104: 163.43314 | EC104: 34.596176 | ED104: 128.836964 | EE104: 372.4023256 | EF104: 425.158636 | EG104: 410.952393 | EH104: 1554.731254 | EI104: 1492.194141 | EJ104: 62.537113 | EK104: 4.190950177 | EL104: 0 | EM104: 0 | EN104: 0 | EO104: - | EP104: 0 | EQ104: 0 | ER104: 0 | ES104: - | ET104: 0 | EU104: 0 | EV104: 0 | EW104: - | EX104: 0 | EY104: 0 | EZ104: 0 | FA104: - | FB104: 365.189686 | FC104: 424.610508 | FD104: -59.420822 | FE104: -13.99419489 | FF104: 0 | FG104: 0 | FH104: 361.724761 | FI104: 342.82769 | FJ104: 0 | FK104: 0
